Workbook

Sheet SPIS TREŚCI
B1: BUDŻETY JEDNOSTEK SAMORZĄDU TERYTORIALNEGO W WOJEWÓDZTWIE DOLNOŚLĄSKIM W 2015 R.
B2: BUDGETS OF LOCAL GOVERNMENT UNITS IN DOLNOŚLĄSKIE VOIVODSHIP IN 2015
B3: I. TABLICE PRZEGLĄDOWE Review tables
B4: Tabl. 1. Dochody, wydatki i wynik finansowy budżetów jednostek samorządu terytorialnego
B5: Revenue, expenditure and financial result of local government units budgets
B6: Tabl. 2. Dochody i wydatki budżetów jednostek samorządu terytorialnego na 1 mieszkańca
B7: Revenue and expenditure of local government units budgets per capita
B8: Tabl. 3. Budżety jednostek samorządu terytorialnego województwa dolnośląskiego na tle kraju w 2015 r.
B9: Budgets of local government units of Dolnośląskie voivodship against the background of Poland in 2015
B10: II. BUDŻETY JEDNOSTEK SAMORZĄDU TERYTORIALNEGO Budgets of local government units
B11: Tabl. 4. Dochody budżetów jednostek samorządu terytorialnego według rodzajów
B12: Revenue of local government units budgets by types
B13: Tabl. 5. Dochody budżetów jednostek samorządu terytorialnego według działów
B14: Revenue of local government units budgets by divisions
B15: Tabl. 6. Wydatki budżetów jednostek samorządu terytorialnego według rodzajów
B16: Expenditure of local government units budgets by types
B17: Tabl. 7. Wydatki budżetów jednostek samorządu terytorialnego według działów
B18: Expenditure of local government units budgets by divisions
B19: III. BUDŻETY GMIN Gminas budgets
B20: Tabl. 8. Dochody budżetów gmin według rodzajów oraz podregionów i powiatów
B21: Revenue of gminas budgets by types as well as subregions and powiats
B22: Tabl. 9. Struktura dochodów budżetów gmin według rodzajów oraz podregionów i powiatów
B23: Structure of revenue of gminas budgets by types as well as subregions and powiats
B24: Tabl. 10. Dochody budżetów gmin według działów oraz podregionów i powiatów
B25: Revenue of gminas budgets by divisions as well as subregions and powiats
B26: Tabl. 11. Struktura dochodów budżetów gmin według działów oraz podregionów i powiatów
B27: Structure of revenue of gminas budgets by divisions as well as subregions and powiats
B28: Tabl. 12. Wydatki budżetów gmin według rodzajów oraz podregionów i powiatów
B29: Expenditure of gminas budgets by types as well as subregions and powiats
B30: Tabl. 13. Struktura wydatków budżetów gmin według rodzajów oraz podregionów i powiatów
B31: Structure of expenditure of gminas budgets by types as well as subregions and powiats
B32: Tabl. 14. Wydatki budżetów gmin według działów oraz podregionów i powiatów
B33: Expenditure of gminas budgets by divisions as well as subregions and powiats
B34: Tabl. 15. Struktura wydatków budżetów gmin według działów oraz podregionów i powiatów
B35: Structure of expenditure of gminas budgets by divisions as well as subregions and powiats
B36: Tabl. 16. Dochody i wydatki budżetów gmin na 1 mieszkańca
B37: Revenue and expenditure of gminas budgets per capita
B38: Tabl. 17. Dochody, wydatki i wynik finansowy budżetów gmin
B39: Revenue, expenditure and financial results of gminas budgets
B40: IV. BUDŻETY POWIATÓW Powiats budgets
B41: Tabl. 18. Dochody budżetów powiatów według rodzajów
B42: Revenue of powiats budgets by types
B43: Tabl. 19. Dochody budżetów powiatów według działów
B44: Revenue of powiats budgets by divisions
B45: Tabl. 20. Wydatki budżetów powiatów według rodzajów
B46: Expenditure of powiats budgets by types
B47: Tabl. 21. Wydatki budżetów powiatów według działów
B48: Expenditure of powiats budgets by divisions
B49: Tabl. 22. Dochody i wydatki budżetów powiatów na 1 mieszkańca
B50: Revenue and expenditure of powiats budgets per capita
B51: Tabl. 23. Dochody, wydatki i wynik finansowy budżetów powiatów
B52: Revenue, expenditure and financial results of powiats budgets
B53: V. BUDŻETY MIAST NA PRAWACH POWIATU Cities with powiat status budgets
B54: Tabl. 24. Dochody budżetów miast na prawach powiatu według rodzajów
B55: Revenue of cities with powiat status budgets by types
B56: Tabl. 25. Dochody budżetów miast na prawach powiatu według działów
B57: Revenue of cities with powiat status budgets by divisions
B58: Tabl. 26. Wydatki budżetów miast na prawach powiatu według rodzajów
B59: Expenditure of cities with powiat status budgets by types
B60: Tabl. 27. Wydatki budżetów miast na prawach powiatu według działów
B61: Expenditure of cities with powiat status budgets by divisions
B62: Tabl. 28. Dochody i wydatki budżetów miast na prawach powiatu na 1 mieszkańca
B63: Revenue and expenditure of cities with powiat status budgets per capita
B64: Tabl. 29. Dochody, wydatki i wynik finansowy budżetów miast na prawach powiatu
B65: Revenue, expenditure and financial results of cities with powiat status budgets
B66: VI. BUDŻET WOJEWÓDZTWA Voivodship budget
B67: Tabl. 30. Dochody budżetu województwa według rodzajów
B68: Revenue of voivodship by types
B69: Tabl. 31. Dochody budżetu województwa według działów
B70: Revenue of voivodship budget by divisions
B71: Tabl. 32. Wydatki budżetu województwa według rodzajów
B72: Expenditure of voivodship budget by types
B73: Tabl. 33. Wydatki budżetu województwa według działów
B74: Expenditure of voivodship budget by divisions
B75: Tabl. 34. Dochody i wydatki budżetu województwa na 1 mieszkańca
B76: Revenue and expenditure of voivodship budget per capita
B77: Tabl. 35. Dochody, wydatki i wynik finansowy budżetu województwa
B78: Revenue, expenditure and financial result of voivodship budget

Sheet Tabl. 1.
B4: Tabl. 1. Dochody, wydatki i wynik finansowy budżetów jednostek samorządu terytorialnego
B5: Revenue, expenditure and financial result of local government units budgets
B6: WYSZCZEGÓLNIENIE | C6: 2008 | D6: 2009 | E6: 2010 | F6: 2011 | G6: 2012 | H6: 2013 | I6: 2014 | J6: 2015 | K6: SPECIFICATION
B7: DOCHODY w tys. zł REVENUE in thous. zl
B8: O G Ó Ł E M | C8: 11205063.9 | D8: 11968476.9 | E8: 12782620.19 | F8: 13856723.66 | G8: 14620741.86 | H8: 14853936.04 | I8: 15405572 | J8: 15211147.13 | K8: T O T A L
B9: Gminya.......................................... | C9: 5286642.1 | D9: 5409411.6 | E9: 6034815.128 | F9: 6326394.707 | G9: 6634836.572 | H9: 6477720.21 | I9: 6847946.712 | J9: 7075516.151 | K9: Gminasa
B10: Powiaty | C10: 1590204.2 | D10: 1691723.5 | E10: 1905104.793 | F10: 2079721.038 | G10: 1944519.513 | H10: 1881676.178 | I10: 1976366.926 | J10: 1896967.585 | K10: Powiats
B11: Miasta na prawach powiatu | C11: 3248377.4 | D11: 3363515.7 | E11: 3829407.489 | F11: 4216464.453 | G11: 4367184.177 | H11: 4868100.226 | I11: 4853637.009 | J11: 4973289.766 | K11: Cities with powiat status
B12: Województwo | C12: 1079840.2 | D12: 1503826.1 | E12: 1013292.777 | F12: 1234143.461 | G12: 1674201.599 | H12: 1626439.423 | I12: 1727621.358 | J12: 1265373.626 | K12: Voivodship
B14: WYDATKI w tys. zł EXPENDITURE in thous. zl
B15: O G Ó Ł E M | C15: 11917438.1 | D15: 13630155.1 | E15: 14027112.77 | F15: 14692796.67 | G15: 14695196.86 | H15: 14645089.55 | I15: 16053874.53 | J15: 15349195.79 | K15: T O T A L
B16: Gminya.......................................... | C16: 5445439.3 | D16: 5890294.8 | E16: 6716508.937 | F16: 6628339.052 | G16: 6595255.268 | H16: 6419477.846 | I16: 6913856.02 | J16: 6880258.213 | K16: Gminasa
B17: Powiaty | C17: 1619367.3 | D17: 1848576.4 | E17: 2008061.053 | F17: 2110504.241 | G17: 1920551.169 | H17: 1870169.706 | I17: 1969240.502 | J17: 1870324.468 | K17: Powiats
B18: Miasta na prawach powiatu | C18: 3846447.4 | D18: 4300940.1 | E18: 3999167.451 | F18: 4437043.414 | G18: 4492160.165 | H18: 4767156.593 | I18: 5216527.112 | J18: 5297579.136 | K18: Cities with powiat status
B19: Województwo | C19: 1006184.1 | D19: 1590343.8 | E19: 1303375.329 | F19: 1516909.961 | G19: 1687230.26 | H19: 1588285.409 | I19: 1954250.899 | J19: 1301033.972 | K19: Voivodship
B21: WYNIK FINANSOWY deficyt (-) / nadwyżka (+) w tys. zł FINANCIAL RESULT deficit (-) / surplus (+) in thous. zl
B22: O G Ó Ł E M | C22: -712374.2 | D22: -1661678.2 | E22: -1244492.582 | F22: -836073.0094 | G22: -74455.00071 | H22: 208846.4822 | I22: -648302.5295 | J22: -138048.6614 | K22: T O T A L
B23: Gminya.......................................... | C23: -158797.2 | D23: -480883.2 | E23: -681693.8085 | F23: -301944.3448 | G23: 39581.30413 | H23: 58242.36416 | I23: -65909.30854 | J23: 195257.9379 | K23: Gminasa
B24: Powiaty | C24: -29163.1 | D24: -156852.9 | E24: -102956.2599 | F24: -30783.20284 | G24: 23968.34466 | H24: 11506.47171 | I24: 7126.42419 | J24: 26643.11713 | K24: Powiats
B25: Miasta na prawach powiatu | C25: -598070 | D25: -937424.4 | E25: -169759.9616 | F25: -220578.9618 | G25: -124975.9883 | H25: 100943.6328 | I25: -362890.1033 | J25: -324289.3708 | K25: Cities with powiat status
B26: Województwo | C26: 73656.1 | D26: -86517.7 | E26: -290082.5522 | F26: -282766.5 | G26: -13028.66121 | H26: 38154.01353 | I26: -226629.5419 | J26: -35660.34566 | K26: Voivodship
B28: DOCHODY w % REVENUE in %
B29: O G Ó Ł E M | C29: 100 | D29: 100 | E29: 100 | F29: 100 | G29: 100 | H29: 100 | I29: 100 | J29: 100 | K29: T O T A L
B30: Gminya.......................................... | C30: 47.18082955 | D30: 45.19715955 | E30: 47.21109631 | F30: 45.65577595 | G30: 45.3796164 | H30: 43.6094527 | I30: 44.45110321 | J30: 46.5153357 | K30: Gminasa
B31: Powiaty | C31: 14.19183518 | D31: 14.13482696 | E31: 14.90386764 | F31: 15.00875019 | G31: 13.2997322 | H31: 12.6678624 | I31: 12.82890973 | J31: 12.4709042 | K31: Powiats
B32: Miasta na prawach powiatu | C32: 28.99026216 | D32: 28.10312229 | E32: 29.95792281 | F32: 30.42901451 | G32: 29.86978512 | H32: 32.77313309 | I32: 31.50572408 | J32: 32.69503427 | K32: Cities with powiat status
B33: Województwo | C33: 9.637073109 | D33: 12.56489119 | E33: 7.927113235 | F33: 8.90645936 | G33: 11.45086628 | H33: 10.94955181 | I33: 11.21426298 | J33: 8.318725836 | K33: Voivodship
B35: WYDATKI w % EXPENDITURE in %
B36: O G Ó Ł E M | C36: 100 | D36: 100 | E36: 100 | F36: 100 | G36: 100 | H36: 100 | I36: 100 | J36: 100 | K36: T O T A L
B37: Gminya.......................................... | C37: 45.69303616 | D37: 43.21517075 | E37: 47.88233364 | F37: 45.11284816 | G37: 44.88034648 | H37: 43.83365375 | I37: 43.06658811 | J37: 44.82487752 | K37: Gminasa
B38: Powiaty | C38: 13.58821658 | D38: 13.5624018 | E38: 14.31556933 | F38: 14.36421049 | G38: 13.06924423 | H38: 12.7699438 | I38: 12.26645006 | J38: 12.18516262 | K38: Powiats
B39: Miasta na prawach powiatu | C39: 32.27579088 | D39: 31.55459398 | E39: 28.51026805 | F39: 30.19876688 | G39: 30.5689009 | H39: 32.55122869 | I39: 32.4938824 | J39: 34.51372443 | K39: Cities with powiat status
B40: Województwo | C40: 8.442956377 | D40: 11.66783348 | E40: 9.291828976 | F40: 10.32417446 | G40: 11.48150839 | H40: 10.84517376 | I40: 12.17307944 | J40: 8.47623543 | K40: Voivodship
B43: a Bez dochodów i wydatków gmin mających również status miasta na prawach powiatu.
B44: a Excluding revenue and expenditure of gminas which are also cities with powiat status.

Sheet Tabl. 2.
B4: Tabl. 2. Dochody i wydatki budżetów jednostek samorządu terytorialnego na 1 mieszkańca
B5: Revenue and expenditure of local government units budgets per capita
B6: WYSZCZEGÓLNIENIE | C6: 2008 | D6: 2009 | E6: 2010 | F6: 2011 | G6: 2012 | H6: 2013 | I6: 2014 | J6: 2015 | K6: SPECIFICATION
B7: GMINYa GMINASa
B8: Dochody ogółem w zł | C8: 2573.88 | D8: 2632.43 | E8: 2934.9 | F8: 3015.04555 | G8: 3162.36 | H8: 3276.85358 | I8: 3467.87667 | J8: 3586.98769 | K8: Total revenue in zl
B9: poprzedni rok = 100 | C9: 105.5374913 | D9: 102.2747758 | E9: 111.4901441 | F9: 102.7307762 | G9: 104.8859776 | H9: 103.6205106 | I9: 105.8294668 | J9: 103.434696 | K9: previous year = 100
B10: Wydatki ogółem w zł | C10: 2651.19 | D10: 2866.44 | E10: 3266.43 | F10: 3158.94678 | G10: 3143.5 | H10: 3247.3908 | I10: 3501.25388 | J10: 3488.00016 | K10: Total expenditure in zl
B11: poprzedni rok = 100 | C11: 112.4858395 | D11: 108.1189956 | E11: 113.9542429 | F11: 96.70945895 | G11: 99.51101487 | H11: 103.3049404 | I11: 107.8174478 | J11: 99.6214579 | K11: previous year = 100
B13: POWIATY POWIATS
B14: Dochody ogółem w zł | C14: 774.21 | D14: 823.26 | E14: 926.51 | F14: 991.15752 | G14: 926.82 | H14: 951.8746 | I14: 1000.85428 | J14: 961.6824 | K14: Total revenue in zl
B15: poprzedni rok = 100 | C15: 112.6730022 | D15: 106.3354904 | E15: 112.5416029 | F15: 106.9775307 | G15: 93.50885014 | H15: 102.7032865 | I15: 105.1456022 | J15: 96.08615552 | K15: previous year = 100
B16: Wydatki ogółem w zł | C16: 788.41 | D16: 899.59 | E16: 976.58 | F16: 1005.82824 | G16: 915.39 | H16: 946.05387 | I16: 997.24538 | J16: 948.17547 | K16: Total expenditure in zl
B17: poprzedni rok = 100 | C17: 113.8531077 | D17: 114.1017998 | E17: 108.5583432 | F17: 102.9949661 | G17: 91.00858015 | H17: 103.3498148 | I17: 105.4110566 | J17: 95.07945477 | K17: previous year = 100
B19: MIASTA NA PRAWACH POWIATU CITIES WITH POWIAT STATUS
B20: Dochody ogółem w zł | C20: 3947.6 | D20: 4093.22 | E20: 4664.9 | F20: 5157.56541 | G20: 5344.2 | H20: 5210.79325 | I20: 5197.85453 | J20: 5331.59422 | K20: Total revenue in zl
B21: poprzedni rok = 100 | C21: 98.83800992 | D21: 103.6888236 | E21: 113.9665105 | F21: 110.5611141 | G21: 103.6186568 | H21: 97.50370963 | I21: 99.75169385 | J21: 102.5729787 | K21: previous year = 100
B22: Wydatki ogółem w zł | C22: 4674.41 | D22: 5234.02 | E22: 4871.7 | F22: 5427.37687 | G22: 5497.14 | H22: 5102.74363 | I22: 5586.48062 | J22: 5679.24727 | K22: Total expenditure in zl
B23: poprzedni rok = 100 | C23: 117.7721005 | D23: 111.9717783 | E23: 93.07759619 | F23: 111.406221 | G23: 112.838229 | H23: 92.82542613 | I23: 109.4799391 | J23: 101.6605562 | K23: previous year = 100
B25: WOJEWÓDZTWO VOIVODSHIP
B26: Dochody ogółem w zł | C26: 375.36 | D26: 522.77 | E26: 352.19 | F26: 423.25994 | G26: 574.2919 | H26: 558.71325 | I26: 593.99928 | J26: 435.5327 | K26: Total revenue in zl
B27: poprzedni rok = 100 | C27: 110.3253681 | D27: 139.2716326 | E27: 67.3699715 | F27: 120.1794316 | G27: 135.6830273 | H27: 97.28732897 | I27: 106.3155885 | J27: 73.32209224 | K27: previous year = 100
B28: Wydatki ogółem w zł | C28: 349.75 | D28: 552.85 | E28: 453.01 | F28: 520.23711 | G28: 578.76 | H28: 545.60662 | I28: 671.92016 | J28: 447.80674 | K28: Total expenditure in zl
B29: poprzedni rok = 100 | C29: 114.7775007 | D29: 158.07005 | E29: 81.94085195 | F29: 114.840094 | G29: 111.2492725 | H29: 94.27165319 | I29: 123.1510277 | J29: 66.6458259 | K29: previous year = 100
B32: a Bez dochodów i wydatków gmin mających również status miasta na prawach powiatu.
B33: a Excluding revenue and expenditure of gminas which are also cities with powiat status.

Sheet Tabl. 3.
B4: Tabl. 3. Budżety jednostek samorządu terytorialnego województwa dolnośląskiego na tle kraju w 2015 r.
B5: Budgets of local government units of Dolnośląskie voivodship against the background of Poland in 2015
B6: WYSZCZEGÓLNIENIE | C6: Polska Poland | E6: Województwo dolnośląskie Dolnoślaskie voivodship | H6: SPECIFICATION
C7: w tys. zł in thous. zl | D7: 2014=100 | E7: w tys. zł in thous. zl | F7: Polska=100 Poland=100 | G7: 2014=100
B8: O G Ó Ł E M T O T A L
B9: Dochody | C9: 199018949 | D9: 102.4090916 | E9: 15211147.13 | F9: 7.643064746 | G9: 98.73795744 | H9: Revenue
B10: w tym: | H10: of which:
B11: Dochody własne | C11: 103445189.8 | D11: 104.9200958 | E11: 9149504.23 | F11: 8.844784615 | G11: 103.9444465 | H11: Own revenue
B12: Dotacje celowea......................................... | C12: 44230456.07 | D12: 99.30645501 | E12: 2838004.143 | F12: 6.416402622 | G12: 88.56504109 | H12: Targeted grantsa
B13: Subwencja ogólna z budżetu państwa | C13: 51343303.15 | D13: 100.2728901 | E13: 3223638.755 | F13: 6.278596345 | G13: 94.84524802 | H13: General subvention from the state budget
B14: w tym część oświatowa | C14: 40376935.29 | D14: 102.2211323 | E14: 2674072.347 | F14: 6.622771956 | G14: 101.8841657 | H14: of which educational subvention
B16: Wydatki | C16: 196415299.9 | D16: 99.82777987 | E16: 15349195.79 | F16: 7.814664027 | G16: 95.61053787 | H16: Expenditure
B17: w tym: | H17: of which:
B18: Wydatki bieżące | C18: 157839415 | D18: 101.567194 | E18: 12373716.62 | F18: 7.839433912 | G18: 98.65511699 | H18: Current expenditure
B19: Wydatki majątkowe | C19: 38575884.98 | D19: 93.2906486 | E19: 2975479.167 | F19: 7.713314077 | G19: 84.73582134 | H19: Property expenditure
B20: w tym inwestycyjneb............................. | C20: 37219959.01 | D20: 93.22994148 | E20: 2775504.615 | F20: 7.457032968 | G20: 84.49840947 | H20: of which investmentb
B22: GMINY c GMINASc
B23: Dochody | C23: 87667235.14 | D23: 103.6881029 | E23: 7075516.151 | F23: 8.070878635 | G23: 103.3231777 | H23: Revenue
B24: w tym: | H24: of which:
B25: Dochody własne | C25: 43573323.99 | D25: 104.4655209 | E25: 4198621.98 | F25: 9.635762425 | G25: 103.1969723 | H25: Own revenue
B26: Dotacje celowea......................................... | C26: 18674536.77 | D26: 102.3855127 | E26: 1344649.493 | F26: 7.200443629 | G26: 103.0057356 | H26: Targeted grantsa
B27: Subwencja ogólna z budżetu państwa | C27: 25419374.39 | D27: 103.335722 | E27: 1532244.678 | F27: 6.027861483 | G27: 103.9526734 | H27: General subvention from the state budget
B28: w tym część oświatowa | C28: 18992665.08 | D28: 103.9856134 | E28: 1201965.296 | F28: 6.328576274 | G28: 104.6942281 | H28: of which educational subvention
B30: Wydatki | C30: 85944373.54 | D30: 101.0276555 | E30: 6880258.213 | F30: 8.005478345 | G30: 99.5140511 | H30: Expenditure
B31: w tym: | H31: of which:
B32: Wydatki bieżące | C32: 71455138.79 | D32: 102.6427727 | E32: 5710146.509 | F32: 7.991232829 | G32: 102.9105127 | H32: Current expenditure
B33: Wydatki majątkowe | C33: 14489234.75 | D33: 93.7524339 | E33: 1170111.704 | F33: 8.075731563 | G33: 85.70967614 | H33: Property expenditure
B34: w tym inwestycyjneb............................. | C34: 14208973.25 | D34: 93.82958363 | E34: 1121662.766 | F34: 7.894045165 | G34: 85.86850458 | H34: of which investmentb
B36: POWIATY POWIATS
B37: Dochody | C37: 23681476.17 | D37: 99.57393265 | E37: 1896967.585 | F37: 8.010343494 | G37: 95.98256075 | H37: Revenue
B38: w tym: | H38: of which:
B39: Dochody własne | C39: 7943151.983 | D39: 106.7130843 | E39: 685437.906 | F39: 8.629293604 | G39: 103.4940399 | H39: Own revenue
B40: Dotacje celowea......................................... | C40: 5689155.332 | D40: 92.41970455 | E40: 449698.3684 | F40: 7.904483919 | G40: 85.26477782 | H40: Targeted grantsa
B41: Subwencja ogólna z budżetu państwa | C41: 10049168.85 | D41: 98.6803193 | E41: 761831.311 | F41: 7.581038017 | G41: 96.84428268 | H41: General subvention from the state budget
B42: w tym część oświatowa | C42: 7793481.833 | D42: 98.79722809 | E42: 608364.347 | F42: 7.806066147 | G42: 97.45018564 | H42: of which educational subvention
B44: Wydatki | C44: 23444106.67 | D44: 98.56966435 | E44: 1870324.468 | F44: 7.977802245 | G44: 94.976945 | H44: Expenditure
B45: w tym: | H45: of which:
B46: Wydatki bieżące | C46: 20017019.52 | D46: 98.64625915 | E46: 1670092.839 | F46: 8.343364191 | G46: 96.4760564 | H46: Current expenditure
B47: Wydatki majątkowe | C47: 3427087.153 | D47: 98.124653 | E47: 200231.6297 | F47: 5.84261855 | G47: 84.07977254 | H47: Property expenditure
B48: w tym inwestycyjneb............................. | C48: 3383881.623 | D48: 98.19391938 | E48: 198516.6297 | F48: 5.866535884 | G48: 84.24543038 | H48: of which investmentb
B50: MIASTA NA PRAWACH POWIATU CITIES WITH POWIAT STATUS
B51: Dochody | C51: 70560103.87 | D51: 103.3699582 | E51: 4973289.766 | F51: 7.048302784 | G51: 102.4652185 | H51: Revenue
B52: w tym: | H52: of which:
B53: Dochody własne | C53: 44773718.97 | D53: 104.382266 | E53: 3482793.708 | F53: 7.778656292 | G53: 103.5920727 | H53: Own revenue
B54: Dotacje celowea......................................... | C54: 11904739.66 | D54: 100.7631854 | E54: 623548.1479 | F54: 5.23781423 | G54: 98.79376869 | H54: Targeted grantsa
B55: Subwencja ogólna z budżetu państwa | C55: 13881645.24 | D55: 102.4383805 | E55: 866947.91 | F55: 6.245282133 | G55: 100.7553691 | H55: General subvention from the state budget
B56: w tym część oświatowa | C56: 12916828.24 | D56: 102.2857812 | E56: 802156.519 | F56: 6.210166336 | G56: 101.8211455 | H56: of which educational subvention
B58: Wydatki | C58: 69824168.25 | D58: 100.2336967 | E58: 5297579.136 | F58: 7.587027915 | G58: 101.5537545 | H58: Expenditure
B59: w tym: | H59: of which:
B60: Wydatki bieżące | C60: 56927594.13 | D60: 103.3069112 | E60: 4205390.493 | F60: 7.387261937 | G60: 101.5637426 | H60: Current expenditure
B61: Wydatki majątkowe | C61: 12896574.12 | D61: 88.59933823 | E61: 1092188.644 | F61: 8.468827716 | G61: 101.5153145 | H61: Property expenditure
B62: w tym inwestycyjneb............................. | C62: 12211671.44 | D62: 89.62162311 | E62: 970875.0299 | F62: 7.950386109 | G62: 103.9691875 | H62: of which investmentb
B64: WOJEWÓDZTWO VOIVODSHIP
B65: Dochody | C65: 17110133.81 | D65: 96.41890383 | E65: 1265373.626 | F65: 7.395463062 | G65: 73.24368968 | H65: Revenue
B66: w tym: | H66: of which:
B67: Dochody własne | C67: 7154994.838 | D67: 109.3019962 | E67: 782650.6363 | F67: 10.93852133 | G67: 110.3216138 | H67: Own revenue
B68: Dotacje celowea......................................... | C68: 7962024.308 | D68: 95.58746576 | E68: 420108.1337 | F68: 5.276398532 | G68: 56.73750626 | H68: Targeted grantsa
B69: Subwencja ogólna z budżetu państwa | C69: 1993114.669 | D69: 69.44714911 | E69: 62614.856 | F69: 3.141558134 | G69: 22.5433337 | H69: General subvention from the state budget
B70: w tym część oświatowa | C70: 673960.14 | D70: 93.8198179 | E70: 61586.185 | F70: 9.137956586 | G70: 95.54729324 | H70: of which educational subvention
B72: Wydatki | C72: 17202651.48 | D72: 94.32141406 | E72: 1301033.972 | F72: 7.562985119 | G72: 66.57456175 | H72: Expenditure
B73: w tym: | H73: of which:
B74: Wydatki bieżące | C74: 9439662.531 | D74: 90.83984846 | E74: 788086.7829 | F74: 8.348675393 | G74: 70.23898051 | H74: Current expenditure
B75: Wydatki majątkowe | C75: 7762988.951 | D75: 98.9320707 | E75: 512947.1888 | F75: 6.607599109 | G75: 61.63429161 | H75: Property expenditure
B76: w tym inwestycyjneb............................. | C76: 7415432.697 | D76: 96.21136976 | E76: 484450.1888 | F76: 6.532999605 | G76: 59.88443161 | H76: of which investmentb
B79: a Łącznie z dotacjami z paragrafów 200 i 620 oraz 205 i 625 klasyfikacji dochodów i wydatków budżetowych. b Łącznie z dotacjami na finansowanie zadań inwestycyjnych samorządowych zakładów budżetowych. c Bez dochodów i wydatków gmin mających również status miasta na prawach powiatu. c Bez gmin mających również status miast na prawach powiatu.
B80: a Including grants from paragraphs 200 and 620 as well as 205 and 625 of the classification of budget revenue and expenditure. b Including grants for financing investment tasks of local government budgetary establishments. c Excluding revenue and expenditure of gminas which are also cities with powiat status.

Sheet Tabl. 4.
B4: Tabl. 4. Dochody budżetów jednostek samorządu terytorialnego według rodzajów
B5: Revenue of local government units budgets by types
B6: WYSZCZEGÓLNIENIE | D6: Ogółem Total | F6: Gminya Gminasa | H6: Powiaty Powiats | J6: Miasta na prawach powiatu Cities with powiat status | L6: Województwo Voivodship | N6: SPECIFICATION
D9: w tys. zł in thous. zl | E9: w % in % | F9: w tys. zł in thous. zl | G9: w % in % | H9: w tys. zł in thous. zl | I9: w % in % | J9: w tys. zł in thous. zl | K9: w % in % | L9: w tys. zł in thous. zl | M9: w % in %
B10: O G Ó Ł E M | C10: 2014 | D10: 15405572 | E10: 100 | F10: 6847946.712 | G10: 100 | H10: 1976366.926 | I10: 100 | J10: 4853637.009 | K10: 100 | L10: 1727621.358 | M10: 100 | N10: T O T A L
C11: 2015 | D11: 15211147.13 | E11: 100 | F11: 7075516.151 | G11: 100 | H11: 1896967.585 | I11: 100 | J11: 4973289.766 | K11: 100 | L11: 1265373.626 | M11: 100
B13: Dochody własne | D13: 9149504.23 | E13: 60.14999496 | F13: 4198621.98 | G13: 59.34015117 | H13: 685437.906 | I13: 36.13334837 | J13: 3482793.708 | K13: 70.02997758 | L13: 782650.6363 | M13: 61.85134732 | N13: Own revenue
B14: Podatek od osób prawnych | D14: 761094.4063 | E14: 5.003530634 | F14: 120709.2272 | G14: 1.706013026 | H14: 25463.66015 | I14: 1.342335017 | J14: 122426.1787 | K14: 2.461673951 | L14: 492495.3404 | M14: 38.92094242 | N14: Corporate income tax
B15: Podatek od osób fizycznych | D15: 3058397.691 | E15: 20.10629222 | F15: 1351198.426 | G15: 19.09681778 | H15: 367660.557 | I15: 19.38148864 | J15: 1240721.335 | K15: 24.94769847 | L15: 98817.373 | M15: 7.809343499 | N15: Personal income tax
B16: Podatek rolny | D16: 137862.7916 | E16: 0.9063273822 | F16: 135897.7489 | G16: 1.920676118 | H16: - | I16: - | J16: 1965.04263 | K16: 0.03951192717 | L16: - | M16: - | N16: Agricultural tax
B17: Podatek leśny | D17: 12585.29299 | E17: 0.08273730366 | F17: 12428.53036 | G17: 0.1756554588 | H17: - | I17: - | J17: 156.76263 | K17: 0.003152091219 | L17: - | M17: - | N17: Forest tax
B18: Podatek od nieruchomości | D18: 1846362.002 | E18: 12.13821671 | F18: 1284884.914 | G18: 18.1595927 | H18: - | I18: - | J18: 561477.0878 | K18: 11.28985268 | L18: - | M18: - | N18: Tax on real estate
B19: Podatek od środków transportowych | D19: 59420.38596 | E19: 0.3906371128 | F19: 39554.55969 | G19: 0.5590342647 | H19: - | I19: - | J19: 19865.82627 | K19: 0.3994504082 | L19: - | M19: - | N19: Tax on means of transport
B20: Podatek od działalności gospodarczej osób fizycznych, | N20: Tax on economic activity of natural persons
B21: opłacany w formie karty podatkowej | D21: 4822.34964 | E21: 0.03170273484 | F21: 2744.27428 | G21: 0.03878549948 | H21: - | I21: - | J21: 2078.07536 | K21: 0.04178472315 | L21: - | M21: - | N21: paid in the form of a tax card
B22: Podatek od spadków i darowizn | D22: 16097.81338 | E22: 0.1058290558 | F22: 7041.97759 | G22: 0.09952599132 | H22: - | I22: - | J22: 9055.83579 | K22: 0.1820894462 | L22: - | M22: - | N22: Tax on inheritances and donations
B23: Podatek od czynności cywilnoprawnych | D23: 140004.3954 | E23: 0.9204065557 | F23: 65437.61634 | G23: 0.9248458338 | H23: - | I23: - | J23: 74566.77903 | K23: 1.499345153 | L23: - | M23: - | N23: Tax on civil law transactions
B24: Wpływy z opłaty skarbowej | D24: 30973.20479 | E24: 0.2036217553 | F24: 12512.70639 | G24: 0.1768451393 | H24: - | I24: - | J24: 18460.4984 | K24: 0.3711928979 | L24: - | M24: - | N24: Stamp duty
B25: Wpływy z opłaty eksploatacyjnej | D25: 98462.12353 | E25: 0.6473024204 | F25: 98299.85561 | G25: 1.389295897 | H25: - | I25: - | J25: 162.26792 | K25: 0.003262788368 | L25: - | M25: - | N25: Exploitation fee
B26: Wpływy z opłaty targowej | D26: 11885.72381 | E26: 0.07813824763 | F26: 9988.97561 | G26: 0.141176635 | H26: - | I26: - | J26: 1896.7482 | K26: 0.03813870274 | L26: - | M26: - | N26: Market fee
B27: Dochody z majątku | D27: 794106.6087 | E27: 5.220557016 | F27: 313586.1372 | G27: 4.431989561 | H27: 25239.00043 | I27: 1.330491919 | J27: 443232.6605 | K27: 8.912262936 | L27: 12048.81055 | M27: 0.9521939056 | N27: Revenue from property
B28: w tym dochody z wynajmu i dzierżawy oraz innych umów o podobnym | N28: of which income from renting and leasing as well as agreements with a similar
B29: charakterze | D29: 366875.8077 | E29: 2.411887839 | F29: 146030.4364 | G29: 2.063883867 | H29: 8013.74308 | I29: 0.4224501853 | J29: 210897.8427 | K29: 4.240610392 | L29: 1933.7856 | M29: 0.1528232895 | N29: character
B30: Pozostałe dochody | D30: 2177429.441 | E30: 14.31469581 | F30: 744337.0307 | G30: 10.51989727 | H30: 267074.6884 | I30: 14.07903279 | J30: 986728.6096 | K30: 19.8405614 | L30: 179289.1124 | M30: 14.1688675 | N30: Other revenue
B31: w tym środki na dofinansowanie własnych | N31: of which funds for additional financing of
B32: zadań pozyskane z innych źródeł | D32: 93425.63923 | E32: 0.6141919373 | F32: 49777.38437 | G32: 0.7035159458 | H32: 12667.16817 | I32: 0.6677588098 | J32: 16580.06824 | K32: 0.3333823087 | L32: 14401.01845 | M32: 1.13808429 | N32: own tasks from other sources
B33: Dotacje celoweb.................................................................... | D33: 2838004.143 | E33: 18.65739723 | F33: 1344649.493 | G33: 19.0042601 | H33: 449698.3684 | I33: 23.70617041 | J33: 623548.1479 | K33: 12.53794123 | L33: 420108.1337 | M33: 33.20032322 | N33: Targeted grantsb
B34: Z budżetu państwa | D34: 1872479.753 | E34: 12.3099181 | F34: 978279.5106 | G34: 13.82626355 | H34: 331909.5666 | I34: 17.49684967 | J34: 365631.3106 | K34: 7.351900409 | L34: 196659.3654 | M34: 15.54160458 | N34: From the state budget
B35: na zadania: | N35: for tasks:
B36: z zakresu administracji rządowej | D36: 1258778.545 | E36: 8.275368941 | F36: 603746.3811 | G36: 8.532895244 | H36: 218265.5613 | I36: 11.50602483 | J36: 249176.3769 | K36: 5.010292757 | L36: 187590.2256 | M36: 14.82488821 | N36: for government administration asks
B37: w tym inwestycyjne | D37: 92246.86363 | E37: 0.6064425178 | F37: 547.54323 | G37: 0.007738562365 | H37: 711.68069 | I37: 0.03751675545 | J37: 759.56926 | K37: 0.01527297414 | L37: 90228.07045 | M37: 7.130547737 | N37: of which investment
B38: własne | D38: 607375.3764 | E38: 3.992962341 | F38: 370836.5559 | G38: 5.241123728 | H38: 113029.3489 | I38: 5.958422788 | J38: 114449.6778 | K38: 2.30128714 | L38: 9059.79383 | M38: 0.7159777669 | N38: for own tasks
B39: w tym inwestycyjne | D39: 160279.4582 | E39: 1.053697376 | F39: 92194.86931 | G39: 1.303012633 | H39: 50767.83252 | I39: 2.676262521 | J39: 10073.91761 | K39: 0.2025604396 | L39: 7242.83877 | M39: 0.5723873662 | N39: of which investment
B40: realizowane na podstawie porozumień z organami | N40: realized on the basis of agreements with
B41: administracji rządowej | D41: 6325.83192 | E41: 0.041586817 | F41: 3696.57361 | G41: 0.05224457879 | H41: 614.65643 | I41: 0.03240205235 | J41: 2005.25588 | K41: 0.04032051166 | L41: 9.346 | M41: 0.0007385960801 | N41: government administration bodies
B42: w tym inwestycyjne | D42: 1934.01197 | E42: 0.01271443865 | F42: 1629.78958 | G42: 0.02303421468 | H42: 304.22239 | I42: 0.01603730039 | J42: - | K42: - | L42: - | M42: - | N42: of which investment
B43: Na zadania realizowane na podstawie porozumień | N43: For tasks realized on the basis of agreements
B44: między jednostkami samorządu terytorialnego | D44: 139958.5209 | E44: 0.9201049712 | F44: 53515.64436 | G44: 0.7563496884 | H44: 49384.07806 | I44: 2.603316917 | J44: 28606.43645 | K44: 0.5752014823 | L44: 8452.36203 | M44: 0.6679736211 | N44: between local government units
B45: w tym inwestycyjne | D45: 32991.32139 | E45: 0.2168891084 | F45: 24896.76321 | G45: 0.3518720427 | H45: 1903.78894 | I45: 0.1003595926 | J45: 1540.76924 | K45: 0.03098088615 | L45: 4650 | M45: 0.3674803951 | N45: of which investment
B46: Otrzymane z państwowych funduszy celowych | D46: 40416.82557 | E46: 0.2657053096 | F46: 14657.83492 | G46: 0.2071627653 | H46: 4515.16 | I46: 0.2380198816 | J46: 13706.95066 | K46: 0.2756113419 | L46: 7536.87999 | M46: 0.595624868 | N46: Received from state appropriated funds
B47: w tym inwestycyjne | D47: 30395.42565 | E47: 0.1998233624 | F47: 14221.14463 | G47: 0.2009909147 | H47: 3765.66508 | I47: 0.198509722 | J47: 12408.61594 | K47: 0.2495051872 | L47: - | M47: - | N47: of which investment
B48: Z tytułu pomocy finansowej udzielanej między | N48: For financial assistance between local
B49: jednostkami samorządu terytorialnego | N49: units for additional financing
B50: na dofinansowanie własnych zadań | D50: 79802.21533 | E50: 0.5246298301 | F50: 42900.80362 | G50: 0.6063275485 | H50: 29411.29085 | I50: 1.550437186 | J50: 5420.91359 | K50: 0.1090005579 | L50: 2069.20727 | M50: 0.1635253989 | N50: of own tasks
B51: w tym inwestycyjne | D51: 71367.36072 | E51: 0.4691780319 | F51: 39945.30497 | G51: 0.5645567633 | H51: 24267.71675 | I51: 1.279290007 | J51: 5268.13173 | K51: 0.1059285097 | L51: 1886.20727 | M51: 0.1490632673 | N51: of which investment
B52: Dotacje z paragrafów 200 i 620 | D52: 683978.8659 | E52: 4.496563344 | F52: 255077.3328 | G52: 3.605070321 | H52: 32478.98985 | I52: 1.712153128 | J52: 207106.7992 | K52: 4.16438231 | L52: 189315.744 | M52: 14.96125256 | N52: Grants from paragraphs 200 and 620
B53: w tym inwestycyjne | D53: 569260.7791 | E53: 3.74239217 | F53: 239530.1894 | G53: 3.385338742 | H53: 8535.37363 | I53: 0.449948312 | J53: 191824.3218 | K53: 3.857091199 | L53: 129370.8942 | M53: 10.22392845 | N53: of which investment
B54: Dotacje z paragrafów 205 i 625 | D54: 21367.96181 | E54: 0.1404756764 | F54: 218.36648 | G54: 0.003086226861 | H54: 1999.28296 | I54: 0.105393628 | J54: 3075.73735 | K54: 0.06184512656 | L54: 16074.57502 | M54: 1.270342189 | N54: Grants from paragraphs 205 and 625
B55: w tym inwestycyjne | D55: 1297.38204 | E55: 0.008529153187 | F55: - | G55: - | H55: - | I55: - | J55: 153.60289 | K55: 0.003088557016 | L55: 1143.77915 | M55: 0.09039062665 | N55: of which investment
B56: Subwencja ogólna z budżetu państwa | D56: 3223638.755 | E56: 21.19260781 | F56: 1532244.678 | G56: 21.65558873 | H56: 761831.311 | I56: 40.16048123 | J56: 866947.91 | K56: 17.43208119 | L56: 62614.856 | M56: 4.948329467 | N56: General subvention from the state budget
B57: Część wyrównawcza | D57: 408370.11 | E57: 2.684676616 | F57: 304252.662 | G57: 4.300077274 | H57: 96272.353 | I57: 5.075065792 | J57: 7845.095 | K57: 0.1577445789 | L57: - | M57: - | N57: Compensatory part
B58: Część oświatowa | D58: 2674072.347 | E58: 17.57968892 | F58: 1201965.296 | G58: 16.98766946 | H58: 608364.347 | I58: 32.0703607 | J58: 802156.519 | K58: 16.12929382 | L58: 61586.185 | M58: 4.867035612 | N58: Educational part
B59: Część rekompensująca | D59: 2791.136 | E59: 0.01834928015 | F59: 2311.894 | G59: 0.03267456325 | H59: - | I59: - | J59: 479.242 | K59: 0.00963631766 | L59: - | M59: - | N59: Offsetting part
B60: Część równoważąca | D60: 115903.523 | E60: 0.7619643806 | F60: 15343.027 | G60: 0.2168467526 | H60: 52180.531 | I60: 2.750733929 | J60: 48379.965 | K60: 0.9727960219 | L60: - | M60: - | N60: Balancing part
B61: Uzupełnienie subwencji ogólnej | D61: 22501.639 | E61: 0.1479286132 | F61: 8371.799 | G61: 0.1183206825 | H61: 5014.08 | I61: 0.2643208054 | J61: 8087.089 | K61: 0.1626104527 | L61: 1028.671 | M61: 0.08129385494 | N61: Supplement of general subvention part
B65: a Bez dochodów gmin mających również status miasta na prawach powiatu. b Łącznie z dotacjami z paragrafów 200 i 620 oraz 205 i 625 klasyfikacji dochodów i wydatków budżetowych.
B66: a Excluding revenue of gminas which are also cities with powiat status. b Including grants from paragraphs 200 and 620 as well as 205 and 625 of the classification of budget revenue and expenditure.

Sheet Tabl. 5.
B4: Tabl. 5. Dochody budżetów jednostek samorządu terytorialnego według działów
B5: Revenue of local government units budgets by divisions
B6: WYSZCZEGÓLNIENIE | D6: Ogółem Total | F6: Gminya Gminasa | H6: Powiaty Powiats | J6: Miasta na prawach powiatu Cities with powiat status | L6: Województwo Voivodship | N6: SPECIFICATION
D9: w tys. zł in thous. zl | E9: w % in % | F9: w tys. zł in thous. zl | G9: w % in % | H9: w tys. zł in thous. zl | I9: w % in % | J9: w tys. zł in thous. zl | K9: w % in % | L9: w tys. zł in thous. zl | M9: w % in %
B10: O G Ó Ł E M | C10: 2014 | D10: 15405572 | E10: 100 | F10: 6847946.712 | G10: 100 | H10: 1976366.926 | I10: 100 | J10: 4853637.009 | K10: 100 | L10: 1727621.358 | M10: 100 | N10: T O T A L
C11: 2015 | D11: 15211147.13 | E11: 100 | F11: 7075516.151 | G11: 100 | H11: 1896967.585 | I11: 100 | J11: 4973289.766 | K11: 100 | L11: 1265373.626 | M11: 100
B13: w tym: | N13: of which:
B14: Rolnictwo i łowiectwo | D14: 327924.6253 | E14: 2.155817852 | F14: 126554.3891 | G14: 1.788624129 | H14: 8158.86058 | I14: 0.4301001579 | J14: 438.96672 | K14: 0.008826485901 | L14: 192772.4088 | M14: 15.23442601 | N14: Agriculture and hunting
B15: Leśnictwo | D15: 3495.01293 | E15: 0.02297665587 | F15: 816.45713 | G15: 0.01153918827 | H15: 2284.04366 | I15: 0.1204049915 | J15: 394.51214 | K15: 0.007932619224 | L15: - | M15: - | N15: Forestry
B16: Przetwórstwo przemysłowe | D16: 4120.09204 | E16: 0.02708600479 | F16: 432.90277 | G16: 0.00611832071 | H16: - | I16: - | J16: - | K16: - | L16: 3687.18927 | M16: 0.2913913483 | N16: Manufacturing
B17: Wytwarzanie i zaopatrywanie
B18: w energię elektryczną, gaz, wodę | D18: 18466.26665 | E18: 0.1213995663 | F18: 17991.41226 | G18: 0.2542770291 | H18: - | I18: - | J18: - | K18: - | L18: 474.85439 | M18: 0.03752681265 | N18: Electricity, gas and water supply
B19: Transport i łączność | D19: 904362.5675 | E19: 5.945393598 | F19: 224818.5719 | G19: 3.177415853 | H19: 101901.3355 | I19: 5.371801623 | J19: 378227.7278 | K19: 7.605181794 | L19: 199414.9323 | M19: 15.75937163 | N19: Transport and communication
B20: Turystyka | D20: 14538.81368 | E20: 0.0955799951 | F20: 10699.1887 | G20: 0.1512142503 | H20: 176.27984 | I20: 0.009292717565 | J20: 2906.35717 | K20: 0.05843932903 | L20: 756.98797 | M20: 0.05982327705 | N20: Tourism
B21: Gospodarka mieszkaniowa | D21: 1008502.598 | E21: 6.630023297 | F21: 358061.3016 | G21: 5.060567935 | H21: 46959.07709 | I21: 2.47548126 | J21: 593648.4592 | K21: 11.93673579 | L21: 9833.76053 | M21: 0.7771428397 | N21: Dwelling economy
B22: Działalność usługowa | D22: 57836.48203 | E22: 0.3802243285 | F22: 8901.76737 | G22: 0.1258108551 | H22: 33642.31119 | I22: 1.773478443 | J22: 12209.67164 | K22: 0.2455049316 | L22: 3082.73183 | M22: 0.2436222604 | N22: Service activity
B23: Administracja publiczna | D23: 200236.0162 | E23: 1.316376829 | F23: 52133.25122 | G23: 0.7368119881 | H23: 15365.97961 | I23: 0.8100285808 | J23: 62067.84266 | K23: 1.248023855 | L23: 70668.9427 | M23: 5.584828168 | N23: Public administration
B24: Bezpieczeństwo publiczne | N24: Public safety and
B25: i ochrona przeciwpożarowa | D25: 180873.3848 | E25: 1.189084448 | F25: 6450.52856 | G25: 0.09116689754 | H25: 101525.1117 | I25: 5.351968713 | J25: 72896.70229 | K25: 1.465764227 | L25: 1.04228 | M25: 8.236934756e-05 | N25: fire care
B26: Dochody od osób prawnych, od osób fizycznych i od innych jednostek nieposiadających osobowości prawnej oraz wydatki związane z ich poborem........................................................ | D26: 6391265.284 | E26: 42.01698419 | F26: 3235245.293 | G26: 45.72451286 | H26: 445971.3169 | I26: 23.50969623 | J26: 2118017.788 | K26: 42.58786211 | L26: 592030.8873 | M26: 46.78704179 | N26: Income taxes from legal persons, natural persons and other organizational units without legal personality and expenses associated with their intake
B27: Różne rozliczenia | D27: 3426346.831 | E27: 22.52523627 | F27: 1587434.588 | G27: 22.43560122 | H27: 764703.4495 | I27: 40.31188806 | J27: 924115.2702 | K27: 18.58156902 | L27: 150093.5232 | M27: 11.86159725 | N27: Miscellaneous settlements
B28: Oświata i wychowanie | D28: 351304.7608 | E28: 2.309521812 | F28: 190500.1968 | G28: 2.692385866 | H28: 45129.34968 | I28: 2.379025874 | J28: 108015.0747 | K28: 2.171903906 | L28: 7660.13964 | M28: 0.6053658368 | N28: Education
B29: Ochrona zdrowia | D29: 88698.89433 | E29: 0.5831177201 | F29: 2459.56382 | G29: 0.03476161693 | H29: 73567.73717 | I29: 3.878175765 | J29: 11746.98724 | K29: 0.2362015445 | L29: 924.6061 | M29: 0.07306980966 | N29: Health care
B30: Pomoc społeczna | D30: 1131742.868 | E30: 7.440220372 | F30: 683798.5121 | G30: 9.664291587 | H30: 194964.4848 | I30: 10.27769195 | J30: 247517.9899 | K30: 4.976946882 | L30: 5461.88063 | M30: 0.4316417316 | N30: Social welfare
B31: Pozostałe zadania w zakresie | N31: Other tasks in sphere
B32: polityki społecznej | D32: 75805.54779 | E32: 0.4983552335 | F32: 11660.4468 | G32: 0.1647999461 | H32: 33120.41114 | I32: 1.745966109 | J32: 23052.80556 | K32: 0.4635323226 | L32: 7971.88429 | M32: 0.6300024061 | N32: of social policy
B33: Edukacyjna opieka wychowawcza | D33: 42431.5173 | E33: 0.2789501472 | F33: 22258.01817 | G33: 0.3145780137 | H33: 12970.31463 | I33: 0.6837393918 | J33: 6673.07655 | K33: 0.1341783179 | L33: 530.10795 | M33: 0.04189339331 | N33: Educational care
B34: Gospodarka komunalna i ochrona | N34: Municipal economy
B35: środowiska | D35: 731395.8645 | E35: 4.808288674 | F35: 423657.3526 | G35: 5.987652966 | H35: 12505.15636 | I35: 0.6592182416 | J35: 293928.6514 | K35: 5.910145301 | L35: 1304.70413 | M35: 0.1031082127 | N35: and environmental protection
B36: Kultura i ochrona dziedzictwa
B37: narodowego | D37: 160190.8086 | E37: 1.053114583 | F37: 49946.36401 | G37: 0.7059041764 | H37: 844.52707 | I37: 0.04451984718 | J37: 96318.22768 | K37: 1.936710552 | L37: 13081.68982 | M37: 1.033820332 | N37: Culture and national heritage
B38: Kultura fizyczna | D38: 64774.78627 | E38: 0.4258376158 | F38: 46121.18306 | G38: 0.6518419586 | H38: 2233.95084 | I38: 0.1177643128 | J38: 16205.79955 | K38: 0.3258567329 | L38: 213.85282 | M38: 0.01690036963 | N38: Physical education
B41: a Bez dochodów gmin mających również status miasta na prawach powiatu.
B42: a Excluding revenue of gminas which are also cities with powiat status.

Sheet Tabl. 6.
B4: Tabl. 6. Wydatki budżetów jednostek samorządu terytorialnego według rodzajów
B5: Expenditure of local government units budgets by types
B6: WYSZCZEGÓLNIENIE | D6: Ogółem Total | F6: Gminya Gminasa | H6: Powiaty Powiats | J6: Miasta na prawach powiatu Cities with powiat status | L6: Województwo Voivodship | N6: SPECIFICATION
D9: w tys. zł in thous. zl | E9: w % in % | F9: w tys. zł in thous. zl | G9: w % in % | H9: w tys. zł in thous. zl | I9: w % in % | J9: w tys. zł in thous. zl | K9: w % in % | L9: w tys. zł in thous. zl | M9: w % in %
B10: O G Ó Ł E M | C10: 2014 | D10: 16053874.53 | E10: 100 | F10: 6913856.02 | G10: 100 | H10: 1969240.502 | I10: 100 | J10: 5216527.112 | K10: 100 | L10: 1954250.899 | M10: 100 | N10: T O T A L
C11: 2015 | D11: 15349195.79 | E11: 100 | F11: 6880258.213 | G11: 100 | H11: 1870324.468 | I11: 100 | J11: 5297579.136 | K11: 100 | L11: 1301033.972 | M11: 100
B13: Wydatki bieżące | D13: 12373716.62 | E13: 80.61475528 | F13: 5710146.509 | G13: 82.99320072 | H13: 1670092.839 | I13: 89.29428379 | J13: 4205390.493 | K13: 79.38325005 | L13: 788086.7829 | M13: 60.57388201 | N13: Current expenditure
B14: w tym: | N14: of which:
B15: Dotacje | D15: 1454775.742 | E15: 9.477862956 | F15: 519975.5876 | G15: 7.557501063 | H15: 126442.8741 | I15: 6.760477995 | J15: 500626.7225 | K15: 9.450103709 | L15: 307730.5576 | M15: 23.65276882 | N15: Grants
B16: w tym dla samorządowych zakładów | N16: of which for local government budgetary
B17: budżetowych | D17: 56331.37785 | E17: 0.3669988879 | F17: 41289.06664 | G17: 0.6001092599 | H17: - | I17: - | J17: 15042.31121 | K17: 0.2839468901 | L17: - | M17: - | N17: establishments
B18: Świadczenia na rzecz osób fizycznych | D18: 1135052.504 | E18: 7.39486628 | F18: 783369.8963 | G18: 11.38576303 | H18: 74562.48158 | I18: 3.986606754 | J18: 269753.5192 | K18: 5.092014904 | L18: 7366.60655 | M18: 0.5662116986 | N18: Benefits for natural persons
B19: Wydatki bieżące jednostek budżetowych | D19: 9344070.849 | E19: 60.87661515 | F19: 4242312.632 | G19: 61.65920668 | H19: 1408549.912 | I19: 75.31045742 | J19: 3298518.722 | K19: 62.26464271 | L19: 394689.5839 | M19: 30.33660861 | N19: Current expenditure of budgetary units
B20: w tym: | N20: of which:
B21: wynagrodzenia | D21: 4414387.834 | E21: 28.7597337 | F21: 2029330.061 | G21: 29.49496949 | H21: 853443.1915 | I21: 45.63075584 | J21: 1352164.721 | K21: 25.52420051 | L21: 179449.861 | M21: 13.79286513 | N21: wages and salaries
B22: w tym osobowe | D22: 3995666.854 | E22: 26.0317668 | F22: 1833795.823 | G22: 26.65300875 | H22: 763123.8555 | I22: 40.80168273 | J22: 1234585.952 | K22: 23.30471938 | L22: 164161.2237 | M22: 12.61775075 | N22: of which personal
B23: pochodne od wynagrodzeń b ………………….. | D23: 795236.0479 | E23: 5.180962304 | F23: 381498.4819 | G23: 5.544827971 | H23: 141743.8122 | I23: 7.57856803 | J23: 239691.7555 | K23: 4.524552617 | L23: 32301.99831 | M23: 2.482794378 | N23: derivatives from wages and salaries b
B24: zakup materiałów i usług | D24: 3461907.504 | E24: 22.554325 | F24: 1529950.243 | G24: 22.23681431 | H24: 282906.8939 | I24: 15.12608634 | J24: 1511049.048 | K24: 28.52338794 | L24: 138001.3191 | M24: 10.60704963 | N24: purchase of materials and services
B25: Obsługa długu publicznego | D25: 199570.9189 | E25: 1.300204399 | F25: 77469.99919 | G25: 1.125975171 | H25: 23604.50384 | I25: 1.262053951 | J25: 74207.17014 | K25: 1.400775113 | L25: 24289.24573 | M25: 1.86691864 | N25: Public debt servicing
B26: w tym wypłaty z tytułu gwarancji | N26: of which payments related to guarantees
B27: i poręczeń | D27: 15119.66885 | E27: 0.09850463215 | F27: 4061.21213 | G27: 0.05902703073 | H27: 1967.75061 | I27: 0.1052090503 | J27: 4257.39583 | K27: 0.08036493123 | L27: 4833.31028 | M27: 0.3714976231 | N27: and endorsements
B28: Wydatki majątkowe | D28: 2975479.167 | E28: 19.38524472 | F28: 1170111.704 | G28: 17.00679928 | H28: 200231.6297 | I28: 10.70571621 | J28: 1092188.644 | K28: 20.61674995 | L28: 512947.1888 | M28: 39.42611799 | N28: Property expenditure
B29: w tym inwestycyjne c........................................ | D29: 2775504.615 | E29: 18.08241065 | F29: 1121662.766 | G29: 16.30262603 | H29: 198516.6297 | I29: 10.61402089 | J29: 970875.0299 | K29: 18.32676785 | L29: 484450.1888 | M29: 37.23578318 | N29: of which investment expenditure c
B32: a Bez wydatków gmin mających również status miasta na prawach powiatu. b Obejmują składki na obowiązkowe ubezpieczenia społeczne i Fundusz Pracy oraz składkę na Fundusz Emerytur Pomostowych. c Łącznie z dotacjami na finansowanie zadań inwestycyjnych samorządowych zakładów budżetowych.
B33: a Excluding expenditure of gminas which are also cities with powiat status. b Include contributions to compulsory social security and the Labour Fund as well as contribution to the Bridging Pension Fund. c Including grants for financing investment tasks of local government budgetary establishments.

Sheet Tabl. 7.
B4: Tabl. 7. Wydatki budżetów jednostek samorządu terytorialnego według działów
B5: Expenditure of local government units budgets by divisions
B6: WYSZCZEGÓLNIENIE | D6: Ogółem Total | F6: Gminya Gminasa | H6: Powiaty Powiats | J6: Miasta na prawach powiatu Cities with powiat status | L6: Województwo Voivodship | N6: SPECIFICATION
D9: w tys. zł in thous. zl | E9: w % in % | F9: w tys. zł in thous. zl | G9: w % in % | H9: w tys. zł in thous. zl | I9: w % in % | J9: w tys. zł in thous. zl | K9: w % in % | L9: w tys. zł in thous. zl | M9: w % in %
B10: O G Ó Ł E M | C10: 2014 | D10: 16053874.53 | E10: 100 | F10: 6913856.02 | G10: 100 | H10: 1969240.502 | I10: 100 | J10: 5216527.112 | K10: 100 | L10: 1954250.899 | M10: 100 | N10: T O T A L
C11: 2015 | D11: 15349195.79 | E11: 100 | F11: 6880258.213 | G11: 100 | H11: 1870324.468 | I11: 100 | J11: 5297579.136 | K11: 100 | L11: 1301033.972 | M11: 100
B12: w tym: | N12: of which:
B13: Rolnictwo i łowiectwo | D13: 390867.9122 | E13: 2.546504179 | F13: 148488.8962 | G13: 2.158187841 | H13: 8023.94355 | I13: 0.4290134512 | J13: 1124.91579 | K13: 0.02123452545 | L13: 233230.1567 | M13: 17.9265232 | N13: Agriculture and hunting
B14: Leśnictwo | D14: 4370.07246 | E14: 0.02847101907 | F14: 591.13564 | G14: 0.008591765333 | H14: 3040.64804 | I14: 0.162573291 | J14: 738.28878 | K14: 0.01393634264 | L14: - | M14: - | N14: Forestry
B15: Przetwórstwo przemysłowe | D15: 46982.66366 | E15: 0.3060920214 | F15: 988.11129 | G15: 0.0143615437 | H15: 11.59572 | I15: 0.0006199844036 | J15: - | K15: - | L15: 45982.95665 | M15: 3.534339429 | N15: Manufacturing
B16: Wytwarzanie i zaopatrywanie
B17: w energię elektryczną, gaz, wodę | D17: 42079.62367 | E17: 0.2741487192 | F17: 38539.25882 | G17: 0.5601426229 | H17: - | I17: - | J17: - | K17: - | L17: 3540.36485 | M17: 0.2721193241 | N17: Electricity, gas and water supply
B18: Transport i łączność | D18: 2176471.082 | E18: 14.1797076 | F18: 610749.6822 | G18: 8.876842456 | H18: 236144.3461 | I18: 12.62584916 | J18: 893534.4393 | K18: 16.86684458 | L18: 436042.6148 | M18: 33.51508295 | N18: Transport and communication
B19: Turystyka | D19: 15707.58991 | E19: 0.1023349374 | F19: 11109.68783 | G19: 0.1614719606 | H19: 755.40212 | I19: 0.04038882733 | J19: 781.59089 | K19: 0.01475373694 | L19: 3060.90907 | M19: 0.2352674209 | N19: Tourism
B20: Gospodarka mieszkaniowa | D20: 669062.5148 | E20: 4.358941823 | F20: 319449.3419 | G20: 4.642984784 | H20: 10753.94152 | I20: 0.5749773209 | J20: 336436.7 | K20: 6.350763081 | L20: 2422.5313 | M20: 0.1862004646 | N20: Dwelling economy
B21: Działalność usługowa | D21: 110491.4299 | E21: 0.7198515899 | F21: 28436.59611 | G21: 0.4133071061 | H21: 39667.95573 | I21: 2.12091305 | J21: 34824.36171 | K21: 0.6573636903 | L21: 7562.51637 | M21: 0.5812697081 | N21: Service activity
B22: Administracja publiczna | D22: 1479652.887 | E22: 9.639937538 | F22: 752176.7695 | G22: 10.93239158 | H22: 201945.7594 | I22: 10.797365 | J22: 347639.0264 | K22: 6.562224319 | L22: 177891.3314 | M22: 13.67307351 | N22: Public administration
B23: Bezpieczeństwo publiczne
B24: i ochrona przeciwpożarowa | D24: 287647.7025 | E24: 1.874024584 | F24: 77311.30837 | G24: 1.123668705 | H24: 103522.7805 | I24: 5.535017175 | J24: 104355.162 | K24: 1.969865089 | L24: 2458.45162 | M24: 0.1889613702 | N24: Public safety and fire care
B25: Różne rozliczenia | D25: 382735.2183 | E25: 2.493519684 | F25: 75552.74001 | G25: 1.098109078 | H25: 35003.1737 | I25: 1.871502742 | J25: 219756.1456 | K25: 4.148237146 | L25: 52423.159 | M25: 4.0293459 | N25: Miscellaneous settlements
B26: Obsługa długu publicznegob........................... | D26: 199622.6853 | E26: 1.300541657 | F26: 77521.76557 | G26: 1.126727561 | H26: 23604.50384 | I26: 1.262053951 | J26: 74207.17014 | K26: 1.400775113 | L26: 24289.24573 | M26: 1.86691864 | N26: Public debt servicingb
B27: Oświata i wychowanie | D27: 4292045.478 | E27: 27.96267333 | F27: 2234397.509 | G27: 32.47548914 | H27: 551210.1171 | I27: 29.4713632 | J27: 1437955.976 | K27: 27.14364315 | L27: 68481.87525 | M27: 5.263650046 | N27: Education
B28: Ochrona zdrowia | D28: 262319.3717 | E28: 1.709010526 | F28: 67428.92109 | G28: 0.9800347458 | H28: 88299.87969 | I28: 4.721099531 | J28: 45127.32654 | K28: 0.8518480872 | L28: 61463.24442 | M28: 4.724184438 | N28: Health care
B29: Pomoc społeczna | D29: 1789087.541 | E29: 11.6559041 | F29: 954614.7434 | G29: 13.87469356 | H29: 319940.2221 | I29: 17.10613466 | J29: 503906.9283 | K29: 9.512022668 | L29: 10625.64722 | M29: 0.8167078993 | N29: Social welfare
B30: Pozostałe zadania w zakresie | N30: Other tasks in sphere
B31: polityki społecznej | D31: 245574.313 | E31: 1.59991648 | F31: 40287.68494 | G31: 0.5855548396 | H31: 81239.67882 | I31: 4.34361418 | J31: 97912.42406 | K31: 1.848248446 | L31: 26134.52517 | M31: 2.008750405 | N31: of social policy
B32: Edukacyjna opieka wychowawcza | D32: 379528.4475 | E32: 2.472627574 | F32: 81794.12241 | G32: 1.188823441 | H32: 153574.6651 | I32: 8.211124205 | J32: 125592.6769 | K32: 2.370756032 | L32: 18566.98306 | M32: 1.427094408 | N32: Educational care
B33: Gospodarka komunalna | N33: Municipal economy
B34: i ochrona środowiska | D34: 1292064.326 | E34: 8.417798197 | F34: 783750.1869 | G34: 11.39129031 | H34: 3122.01482 | I34: 0.1669237008 | J34: 503059.2365 | K34: 9.496021174 | L34: 2132.88819 | M34: 0.1639379322 | N34: and environmental protection
B35: Kultura i ochrona dziedzictwa narodowego | D35: 896000.2405 | E35: 5.83744095 | F35: 334487.5336 | G35: 4.861554948 | H35: 4254.67963 | I35: 0.2274835037 | J35: 463114.7508 | K35: 8.742007224 | L35: 94143.27647 | M35: 7.236035224 | N35: Culture and national heritage
B36: Kultura fizyczna | D36: 329383.9852 | E36: 2.145936437 | F36: 218409.0262 | G36: 3.17443066 | H36: 5046.85092 | I36: 0.2698382556 | J36: 91044.59089 | K36: 1.718607472 | L36: 14883.51719 | M36: 1.143976062 | N36: Physical education
B39: a Bez wydatków gmin mających również status miasta na prawach powiatu. b Obejmuje wydatki na obsługę długu publicznego oraz wydatki bieżące jednostek budżetowych związane z tą obsługą.
B40: a Excluding expenditure of gminas which are also cities with powiat status. b Includes public debt servicing and current expenditure of budgetary units connected with this servicing.

Sheet Tabl. 8.
B4: Tabl. 8. Dochody budżetów gmina według rodzajów oraz podregionów i powiatów
B5: Revenue of gminas budgetsa by types as well as subregions and powiats
B6: WYSZCZEGÓLNIENIE SPECIFICATION | D6: Ogółem Grand total | E6: Dochody własne Own revenue | H6: Dotacje celoweb Targeted grantsb | K6: Subwencja ogólna z budżetu państwa General subvention from the state budget
E7: razem total | F7: w tym udział w podatku dochodowym of which share in income tax | H7: razem total | I7: w tym of which | K7: razem total | L7: w tym na zadania oświatowe of which for educational tasks
F8: od osób prawnych corporate income tax | G8: od osób fizycznych personal income tax | I8: z budżetu państwa from the state budget | J8: z państwowych funduszy celowych from state appropriated funds
D9: w tys. zł in thous. zl
B10: O G Ó Ł E M | C10: 2014 | D10: 6847946.712 | E10: 4068551.514 | F10: 100587.1625 | G10: 1220807.16 | H10: 1305412.252 | I10: 934673.4707 | J10: 22989.4893 | K10: 1473982.946 | L10: 1148072.17
B11: T O T A L | C11: 2015 | D11: 7075516.151 | E11: 4198621.98 | F11: 120709.2272 | G11: 1351198.426 | H11: 1344649.493 | I11: 978279.5106 | J11: 14657.83492 | K11: 1532244.678 | L11: 1201965.296
B13: Gminy miejskie | D13: 2302836.83 | E13: 1449333.647 | F13: 46628.89268 | G13: 535201.316 | H13: 407176.8106 | I13: 293567.7723 | J13: 4447.82082 | K13: 446326.372 | L13: 384071.462
B14: Urban gminas
B15: Gminy miejsko-wiejskie | D15: 2626719.55 | E15: 1530836.137 | F15: 59741.98395 | G15: 445624.8 | H15: 497850.5383 | I15: 385022.7133 | J15: 6751.48307 | K15: 598032.874 | L15: 437945.933
B16: Urban-rural gminas
B17: Gminy wiejskie | D17: 2145959.772 | E17: 1218452.196 | F17: 14338.35054 | G17: 370372.31 | H17: 439622.1439 | I17: 299689.025 | J17: 3458.53103 | K17: 487885.432 | L17: 379947.901
B18: Rural gminas
B19: PODREGION JELENIOGÓRSKI | D19: 1723406.638 | E19: 1000227.447 | F19: 14664.31316 | G19: 294133.303 | H19: 334702.7933 | I19: 279636.3097 | J19: 2912.43116 | K19: 388476.398 | L19: 291236.233
B20: SUBREGION
B21: POWIAT BOLESŁAWIECKI | D21: 308250.7788 | E21: 191323.4249 | F21: 4272.09228 | G21: 54618.092 | H21: 51118.07597 | I21: 39484.08613 | J21: 571 | K21: 65809.278 | L21: 58390.19
B22: Gminy miejskie:
B23: Urban gminas:
B24: Bolesławiec | D24: 143983.4353 | E24: 97766.45551 | F24: 3585.04784 | G24: 28980.432 | H24: 22697.58276 | I24: 15474.56066 | J24: - | K24: 23519.397 | L24: 23201.385
B25: Gminy miejsko-wiejskie:
B26: Urban-rural gminas:
B27: Nowogrodziec | D27: 39697.57014 | E27: 18569.14718 | F27: 218.32256 | G27: 5927.007 | H27: 7958.66096 | I27: 6775.5281 | J27: 550 | K27: 13169.762 | L27: 11666.995
B28: Gminy wiejskie:
B29: Rural gminas:
B30: Bolesławiec | D30: 44880.73909 | E30: 31072.2398 | F30: 289.59612 | G30: 9334.797 | H30: 6184.33029 | I30: 5536.61421 | J30: 21 | K30: 7624.169 | L30: 5555.087
B31: Gromadka | D31: 19662.72215 | E31: 10899.40878 | F31: 11.06353 | G31: 2449.23 | H31: 4056.30837 | I31: 3292.15605 | J31: - | K31: 4707.005 | L31: 3589.716
B32: Osiecznica | D32: 31088.38706 | E32: 16746.46773 | F32: 109.50288 | G32: 3791.445 | H32: 4910.54733 | I32: 3506.4108 | J32: - | K32: 9431.372 | L32: 7801.649
B33: Warta Bolesławiecka | D33: 28937.92512 | E33: 16269.70586 | F33: 58.55935 | G33: 4135.181 | H33: 5310.64626 | I33: 4898.81631 | J33: - | K33: 7357.573 | L33: 6575.358
B34: POWIAT JAWORSKI | D34: 170524.3924 | E34: 89319.30868 | F34: 498.59736 | G34: 28140.003 | H34: 40132.46271 | I34: 27404.13716 | J34: 157.371 | K34: 41072.621 | L34: 27671.151
B35: Gminy miejskie:
B36: Urban gminas:
B37: Jawor | D37: 71904.1004 | E37: 46821.52887 | F37: 364.28118 | G37: 15878.045 | H37: 9636.64153 | I37: 9315.48113 | J37: 157.371 | K37: 15445.93 | L37: 11506.13
B38: Gminy miejsko-wiejskie:
B39: Urban-rural gminas:
B40: Bolków | D40: 30644.48991 | E40: 11944.45899 | F40: 19.64339 | G40: 4185.688 | H40: 7934.73292 | I40: 6478.18557 | J40: - | K40: 10765.298 | L40: 5420.971
B41: Gminy wiejskie:
B42: Rural gminas:
B43: Męcinka | D43: 18533.21831 | E43: 9695.066 | F43: 85.62187 | G43: 1874.485 | H43: 4448.43631 | I43: 3904.83031 | J43: - | K43: 4389.716 | L43: 3508.594
B44: Mściwojów | D44: 22185.72176 | E44: 8530.58542 | F44: 9.94585 | G44: 2724.018 | H44: 10891.84534 | I44: 2680.13937 | J44: - | K44: 2763.291 | L44: 1990.945
B45: Paszowice | D45: 14039.81383 | E45: 6694.59742 | F45: 12.47596 | G45: 1693.502 | H45: 3742.73741 | I45: 2322.13915 | J45: - | K45: 3602.479 | L45: 2286.022
B46: Wądroże Wielkie | D46: 13217.04818 | E46: 5633.07198 | F46: 6.62911 | G46: 1784.265 | H46: 3478.0692 | I46: 2703.36163 | J46: - | K46: 4105.907 | L46: 2958.489
B47: POWIAT JELENIOGÓRSKI | D47: 242307.9766 | E47: 147534.5139 | F47: 580.47028 | G47: 37769.677 | H47: 50906.51266 | I47: 42488.887 | J47: 206.807 | K47: 43866.95 | L47: 33916.132
B48: Gminy miejskie:
B49: Urban gminas:
B50: Karpacz | D50: 33164.85316 | E50: 25423.66173 | F50: 154.78021 | G50: 3439.862 | H50: 3546.19443 | I50: 3312.00674 | J50: - | K50: 4194.997 | L50: 3958.904
B51: Kowary | D51: 32599.19434 | E51: 16138.06604 | F51: 150.21631 | G51: 5877.412 | H51: 8919.9433 | I51: 7762.51091 | J51: - | K51: 7541.185 | L51: 5105.846
B52: Piechowice | D52: 21040.43813 | E52: 14231.74251 | F52: 18.42388 | G52: 4065.425 | H52: 4474.59062 | I52: 4040.98389 | J52: 16.807 | K52: 2334.105 | L52: 2334.105
B53: Szklarska Poręba | D53: 38509.31664 | E53: 25952.93806 | F53: 98.69959 | G53: 3903.14 | H53: 9580.29658 | I53: 4733.79974 | J53: 190 | K53: 2976.082 | L53: 2539.045
B54: Gminy wiejskie:
B55: Rural gminas:
B56: Janowice Wielkie | D56: 14171.43445 | E56: 6846.36645 | F56: 4.78315 | G56: 2097.352 | H56: 3295.798 | I56: 3075.99239 | J56: - | K56: 4029.27 | L56: 2083.188
B57: Jeżów Sudecki | D57: 24475.25213 | E57: 13883.11641 | F57: 15.95761 | G57: 5143.419 | H57: 5314.95072 | I57: 4454.09553 | J57: - | K57: 5277.185 | L57: 3258.596
B58: Mysłakowice | D58: 33666.40516 | E58: 19413.31086 | F58: 70.27612 | G58: 6154.443 | H58: 6930.9933 | I58: 6797.28734 | J58: - | K58: 7322.101 | L58: 7194.137
B59: Podgórzyn | D59: 24302.76064 | E59: 14636.88437 | F59: 42.95398 | G59: 4871.19 | H59: 5303.39527 | I59: 5018.83635 | J59: - | K59: 4362.481 | L59: 3533.262
B60: Stara Kamienica | D60: 20378.32191 | E60: 11008.42747 | F60: 24.37943 | G60: 2217.434 | H60: 3540.35044 | I60: 3293.37411 | J60: - | K60: 5829.544 | L60: 3909.049
B61: POWIAT KAMIENNOGÓRSKI | D61: 137288.8568 | E61: 69155.21948 | F61: 587.2739 | G61: 22798.093 | H61: 24188.36033 | I61: 22452.64117 | J61: 500 | K61: 43945.277 | L61: 26048.457
B62: Gminy miejskie:
B63: Urban gminas:
B64: Kamienna Góra | D64: 57072.0051 | E64: 31396.08042 | F64: 454.6581 | G64: 11149.293 | H64: 9292.08668 | I64: 9292.08668 | J64: - | K64: 16383.838 | L64: 10728.37
B65: Gminy miejsko-wiejskie:
B66: Urban-rural gminas:
B67: Lubawka | D67: 35492.56377 | E67: 16971.71603 | F67: 51.13691 | G67: 5499.357 | H67: 6710.23374 | I67: 5303.23047 | J67: 500 | K67: 11810.614 | L67: 6257.996
B68: Gminy wiejskie:
B69: Rural gminas:
B70: Kamienna Góra | D70: 29326.52918 | E70: 13980.68903 | F70: 74.50458 | G70: 4356.543 | H70: 5010.85415 | I70: 4854.31242 | J70: - | K70: 10334.986 | L70: 6059.015
B71: Marciszów | D71: 15397.75876 | E71: 6806.734 | F71: 6.97431 | G71: 1792.9 | H71: 3175.18576 | I71: 3003.0116 | J71: - | K71: 5415.839 | L71: 3003.076
B72: POWIAT LUBAŃSKI | D72: 197114.1452 | E72: 101857.8685 | F72: 681.6366 | G72: 31148.699 | H72: 50035.73378 | I72: 42001.16776 | J72: 599.485 | K72: 45220.543 | L72: 34770.004
B73: Gminy miejskie:
B74: Urban gminas:
B75: Lubań | D75: 61390.15252 | E75: 39123.72205 | F75: 464.83587 | G75: 15546.526 | H75: 9441.37847 | I75: 8346.6885 | J75: - | K75: 12825.052 | L75: 11166.56
B76: Świeradów-Zdrój | D76: 31907.48109 | E76: 18868.6075 | F76: 106.98759 | G76: 2533.542 | H76: 9186.89359 | I76: 6707.05576 | J76: - | K76: 3851.98 | L76: 3792.712
B77: Gminy miejsko-wiejskie:
B78: Urban-rural gminas:
B79: Leśna | D79: 35544.55898 | E79: 12858.03904 | F79: 50.93365 | G79: 3788.217 | H79: 11778.12794 | I79: 10780.81255 | J79: - | K79: 10908.392 | L79: 6904.956
B80: Olszyna | D80: 24899.8225 | E80: 9239.91489 | F80: 10.30385 | G80: 3025.843 | H80: 9583.15761 | I80: 8843.99542 | J80: 200 | K80: 6076.75 | L80: 4169.593
B81: Gminy wiejskie:
B82: Rural gminas:
B83: Lubań | D83: 23241.68473 | E83: 10450.5504 | F83: 44.91999 | G83: 2638.634 | H83: 6474.75933 | I83: 4093.99325 | J83: 399.485 | K83: 6316.375 | L83: 4394.672
B84: Platerówka | D84: 5792.14353 | E84: 3178.42755 | F84: 0.05891 | G84: 862.016 | H84: 1159.25498 | I84: 1159.25498 | J84: - | K84: 1454.461 | L84: 1164.422
B85: Siekierczyn | D85: 14338.30188 | E85: 8138.60702 | F85: 3.59674 | G85: 2753.921 | H85: 2412.16186 | I85: 2069.3673 | J85: - | K85: 3787.533 | L85: 3177.089
B86: POWIAT LWÓWECKI | D86: 146636.1558 | E86: 67564.74885 | F86: 439.33284 | G86: 20569.272 | H86: 31620.01395 | I86: 30179.49096 | J86: 322.24 | K86: 47451.393 | L86: 29918.836
B87: Gminy miejsko-wiejskie:
B88: Urban-rural gminas:
B89: Gryfów Śląski | D89: 28386.77481 | E89: 13006.76853 | F89: 61.06356 | G89: 4912.237 | H89: 7292.69728 | I89: 6904.24924 | J89: 282.24 | K89: 8087.309 | L89: 4526.996
B90: Lubomierz | D90: 22338.70187 | E90: 7127.30908 | F90: 10.00624 | G90: 1860.868 | H90: 4636.74179 | I90: 4451.99671 | J90: - | K90: 10574.651 | L90: 6217.892
B91: Lwówek Śląski | D91: 53576.13875 | E91: 29681.12616 | F91: 340.64678 | G91: 8583.659 | H91: 10703.10559 | I91: 10340.38742 | J91: - | K91: 13191.907 | L91: 9725.104
B92: Mirsk | D92: 27118.13684 | E92: 10177.99606 | F92: 22.71769 | G92: 3447.245 | H92: 6101.48578 | I92: 5999.71237 | J92: - | K92: 10838.655 | L92: 7107.912
B93: Wleń | D93: 15216.40353 | E93: 7571.54902 | F93: 4.89857 | G93: 1765.263 | H93: 2885.98351 | I93: 2483.14522 | J93: 40 | K93: 4758.871 | L93: 2340.932
B94: POWIAT ZGORZELECKI | D94: 369489.1218 | E94: 253295.791 | F94: 7075.52083 | G94: 74614.479 | H94: 50399.13879 | I94: 43971.0193 | J94: 420.97782 | K94: 65794.192 | L94: 54425.695
B95: Gminy miejskie:
B96: Urban gminas:
B97: Zawidów | D97: 14047.04422 | E97: 7269.48878 | F97: 41.73129 | G97: 3445.353 | H97: 2433.14244 | I97: 2312.03467 | J97: - | K97: 4344.413 | L97: 3420.898
B98: Zgorzelec | D98: 94711.40887 | E98: 63648.65505 | F98: 1603.75357 | G98: 30125.438 | H98: 14115.22882 | I98: 11380.73841 | J98: 189.97782 | K98: 16947.525 | L98: 16899.371
B99: Gminy miejsko-wiejskie:
B100: Urban-rural gminas:
B101: Bogatynia | D101: 147915.6249 | E101: 117145.6013 | F101: 4937.76869 | G101: 23778.541 | H101: 14133.12261 | I101: 13156.94488 | J101: 76 | K101: 16636.901 | L101: 15071.999
B102: Pieńsk | D102: 26978.27099 | E102: 12920.612 | F102: 78.00487 | G102: 4316.055 | H102: 5603.50199 | I102: 5160.90199 | J102: - | K102: 8454.157 | L102: 4849.34
B103: Węgliniec | D103: 29591.42873 | E103: 14286.27769 | F103: 198.97253 | G103: 4080.996 | H103: 5482.30404 | I103: 4333.99449 | J103: - | K103: 9822.847 | L103: 6333.086
B104: Gminy wiejskie:
B105: Rural gminas:
B106: Sulików | D106: 21971.5746 | E106: 13852.86852 | F106: 145.07436 | G106: 3947.495 | H106: 3803.06508 | I106: 3722.18809 | J106: - | K106: 4315.641 | L106: 3608.116
B107: Zgorzelec | D107: 34273.7695 | E107: 24172.28769 | F107: 70.21552 | G107: 4920.601 | H107: 4828.77381 | I107: 3904.21677 | J107: 155 | K107: 5272.708 | L107: 4242.885
B108: POWIAT ZŁOTORYJSKI | D108: 151795.2105 | E108: 80176.57139 | F108: 529.38907 | G108: 24474.988 | H108: 36302.49509 | I108: 31654.88024 | J108: 134.55034 | K108: 35316.144 | L108: 26095.768
B109: Gminy miejskie:
B110: Urban gminas:
B111: Wojcieszów | D111: 14260.53793 | E111: 7070.63979 | F111: 97.98081 | G111: 1540.884 | H111: 3984.96914 | I111: 3913.76444 | J111: - | K111: 3204.929 | L111: 2355.681
B112: Złotoryja | D112: 48404.16046 | E112: 31966.4421 | F112: 255.3637 | G112: 11873.586 | H112: 7504.61736 | I112: 7379.6249 | J112: - | K112: 8933.101 | L112: 6424.196
B113: Gminy miejsko-wiejskie:
B114: Urban-rural gminas:
B115: Świerzawa | D115: 27185.42241 | E115: 10802.75228 | F115: 19.67862 | G115: 2869.218 | H115: 8262.62113 | I115: 7124.29955 | J115: 39.729 | K115: 8120.049 | L115: 5177.445
B116: Gminy wiejskie:
B117: Rural gminas:
B118: Pielgrzymka | D118: 17095.75249 | E118: 7106.32341 | F118: 10.16187 | G118: 1890.279 | H118: 5158.71808 | I118: 3800.46723 | J118: - | K118: 4830.711 | L118: 3878.3
B119: Zagrodno | D119: 18496.76648 | E119: 10266.57211 | F119: 3.70541 | G119: 2358.975 | H119: 4272.91937 | I119: 3761.15465 | J119: 76.06572 | K119: 3957.275 | L119: 3106.445
B120: Złotoryja | D120: 26352.57071 | E120: 12963.8417 | F120: 142.49866 | G120: 3942.046 | H120: 7118.65001 | I120: 5675.56947 | J120: 18.75562 | K120: 6270.079 | L120: 5153.701
B121: PODREGION LEGNICKO-GŁOGOWSKI | D121: 1471816.317 | E121: 961652.126 | F121: 65966.30146 | G121: 313634.582 | H121: 231128.4719 | I121: 161242.7394 | J121: 1836.78427 | K121: 279035.719 | L121: 237817.056
B122: SUBREGION
B123: POWIAT GŁOGOWSKI | D123: 355355.651 | E123: 248105.364 | F123: 10233.48661 | G123: 85159.416 | H123: 50904.57992 | I123: 34450.24525 | J123: 862.665 | K123: 56345.707 | L123: 53299.744
B124: Gminy miejskie:
B125: Urban gminas:
B126: Głogów | D126: 248085.2588 | E126: 181673.3739 | F126: 10026.07338 | G126: 67500.556 | H126: 28665.07091 | I126: 22504.88095 | J126: 835.265 | K126: 37746.814 | L126: 37446.677
B127: Gminy wiejskie:
B128: Rural gminas:
B129: Głogów | D129: 27262.31626 | E129: 16000.17854 | F129: 112.98031 | G129: 6479.84 | H129: 6845.98672 | I129: 2981.87284 | J129: 12 | K129: 4416.151 | L129: 3814.073
B130: Jerzmanowa | D130: 36298.06905 | E130: 30037.00999 | F130: 2.11832 | G130: 5849.265 | H130: 1913.28106 | I130: 1778.03026 | J130: 4.9 | K130: 4347.778 | L130: 3953.643
B131: Kotla | D131: 18851.44183 | E131: 8929.79541 | F131: 60.63335 | G131: 2757.437 | H131: 5396.21842 | I131: 2607.16439 | J131: 10.5 | K131: 4525.428 | L131: 3676.958
B132: Pęcław | D132: 11169.94013 | E132: 3625.33826 | F132: -0.39683 | G132: 890.713 | H132: 5365.87187 | I132: 1972.97387 | J132: - | K132: 2178.73 | L132: 1777.954
B133: Żukowice | D133: 13688.62485 | E133: 7839.66791 | F133: 32.07808 | G133: 1681.605 | H133: 2718.15094 | I133: 2605.32294 | J133: - | K133: 3130.806 | L133: 2630.439
B134: POWIAT GÓROWSKI | D134: 122654.2556 | E134: 52356.9046 | F134: 778.99244 | G134: 14790.766 | H134: 33146.52395 | I134: 28002.50379 | J134: 567.34198 | K134: 37150.827 | L134: 24955.074
B135: Gminy miejsko-wiejskie:
B136: Urban-rural gminas:
B137: Góra | D137: 68310.50809 | E137: 30860.2759 | F137: 534.87893 | G137: 9232.417 | H137: 18106.25519 | I137: 16905.65824 | J137: 567.34198 | K137: 19343.977 | L137: 13512.889
B138: Wąsosz | D138: 25899.19265 | E138: 10639.17491 | F138: 130.93342 | G138: 2858.896 | H138: 7326.39374 | I138: 4389.21028 | J138: - | K138: 7933.624 | L138: 5651.727
B139: Gminy wiejskie:
B140: Rural gminas:
B141: Jemielno | D141: 10871.8034 | E141: 3910.67205 | F141: 24.58156 | G141: 912.505 | H141: 3189.05435 | I141: 2964.70835 | J141: - | K141: 3772.077 | L141: 2021.101
B142: Niechlów | D142: 17572.75141 | E142: 6946.78174 | F142: 88.59853 | G142: 1786.948 | H142: 4524.82067 | I142: 3742.92692 | J142: - | K142: 6101.149 | L142: 3769.357
B143: POWIAT LEGNICKI | D143: 189717.9858 | E143: 107735.7697 | F143: 836.10951 | G143: 33524.491 | H143: 37800.56519 | I143: 29973.64189 | J143: 370.91285 | K143: 44181.651 | L143: 33872.875
B144: Gminy miejskie:
B145: Urban gminas:
B146: Chojnów | D146: 44145.3642 | E146: 20741.28541 | F146: 338.22213 | G146: 8797.612 | H146: 11356.23579 | I146: 7542.95279 | J146: - | K146: 12047.843 | L146: 8666.642
B147: Gminy miejsko-wiejskie:
B148: Urban-rural gminas:
B149: Prochowice | D149: 25945.91634 | E149: 15847.27267 | F149: 180.94201 | G149: 4037.351 | H149: 3829.51567 | I149: 3705.2473 | J149: - | K149: 6269.128 | L149: 5527.582
B150: Gminy wiejskie:
B151: Rural gminas:
B152: Chojnów | D152: 29955.75543 | E152: 16916.37176 | F152: 26.97355 | G152: 4850.504 | H152: 6553.38267 | I152: 5945.67483 | J152: 26.603 | K152: 6486.001 | L152: 4210.264
B153: Krotoszyce | D153: 14244.19351 | E153: 8089.88955 | F153: 73.84795 | G153: 1543.185 | H153: 3728.26396 | I153: 1764.17572 | J153: 322.56 | K153: 2426.04 | L153: 1942.89
B154: Kunice | D154: 23068.35244 | E154: 15683.82971 | F154: 15.51425 | G154: 6821.86 | H154: 2496.09973 | I154: 2306.87673 | J154: - | K154: 4888.423 | L154: 4199.453
B155: Legnickie Pole | D155: 21541.30853 | E155: 14914.56506 | F155: 84.40164 | G155: 2810.691 | H155: 2877.64647 | I155: 2565.10029 | J155: 21.74985 | K155: 3749.097 | L155: 3109.319
B156: Miłkowice | D156: 21309.24856 | E156: 11187.62263 | F156: 113.95662 | G156: 3740.276 | H156: 4562.75993 | I156: 3823.39425 | J156: - | K156: 5558.866 | L156: 4175.245
B157: Ruja | D157: 9507.84684 | E157: 4354.93287 | F157: 2.25136 | G157: 923.012 | H157: 2396.66097 | I157: 2320.21998 | J157: - | K157: 2756.253 | L157: 2041.48
B158: POWIAT LUBIŃSKI | D158: 447487.0867 | E158: 296650.5684 | F158: 18492.73481 | G158: 121636.748 | H158: 62874.78829 | I158: 38554.28835 | J158: 26.69544 | K158: 87961.73 | L158: 83847.934
B159: Gminy miejskie:
B160: Urban gminas:
B161: Lubin | D161: 296048.8988 | E161: 190204.8467 | F161: 16324.71328 | G161: 88747.137 | H161: 39548.91811 | I161: 23884.25897 | J161: - | K161: 66295.134 | L161: 66295.134
B162: Gminy miejsko-wiejskie:
B163: Urban-rural gminas:
B164: Ścinawa | D164: 35289.82829 | E164: 18189.25478 | F164: 80.42874 | G164: 6642.499 | H164: 8116.15351 | I164: 6421.40628 | J164: - | K164: 8984.42 | L164: 5450.101
B165: Gminy wiejskie:
B166: Rural gminas:
B167: Lubin | D167: 65595.77031 | E167: 53158.53299 | F167: 171.75136 | G167: 20354.496 | H167: 6211.51732 | I167: 4678.34944 | J167: 26.69544 | K167: 6225.72 | L167: 5919.281
B168: Rudna | D168: 50552.58927 | E168: 35097.93392 | F168: 1915.84143 | G168: 5892.616 | H168: 8998.19935 | I168: 3570.27366 | J168: - | K168: 6456.456 | L168: 6183.418
B169: POWIAT POLKOWICKI | D169: 356601.3378 | E169: 256803.5193 | F169: 35624.97809 | G169: 58523.161 | H169: 46402.0145 | I169: 30262.06008 | J169: 9.169 | K169: 53395.804 | L169: 41841.429
B170: Gminy miejsko-wiejskie:
B171: Urban-rural gminas:
B172: Chocianów | D172: 40519.51742 | E172: 20305.75795 | F172: 128.77148 | G172: 10805.053 | H172: 11355.55147 | I172: 5640.39072 | J172: - | K172: 8858.208 | L172: 6873.448
B173: Polkowice | D173: 217911.4456 | E173: 183941.8165 | F173: 35405.86866 | G173: 31335.889 | H173: 11942.65703 | I173: 10080.91903 | J173: 9.169 | K173: 22026.972 | L173: 16677.467
B174: Przemków | D174: 24843.27988 | E174: 10555.5021 | F174: 51.23438 | G174: 5866.549 | H174: 4837.60278 | I174: 4547.84755 | J174: - | K174: 9450.175 | L174: 6461.6
B175: Gminy wiejskie:
B176: Rural gminas:
B177: Gaworzyce | D177: 19902.17738 | E177: 7381.14947 | F177: 2.68724 | G177: 3836.199 | H177: 8220.03991 | I177: 3310.03693 | J177: - | K177: 4300.988 | L177: 3130.523
B178: Grębocice | D178: 29678.5278 | E178: 20151.73447 | F178: 25.74955 | G178: 3031.053 | H178: 4762.02733 | I178: 2902.55373 | J178: - | K178: 4764.766 | L178: 4703.696
B179: Radwanice | D179: 23746.38977 | E179: 14467.55879 | F179: 10.66678 | G179: 3648.418 | H179: 5284.13598 | I179: 3780.31212 | J179: - | K179: 3994.695 | L179: 3994.695
B180: PODREGION WAŁBRZYSKI | D180: 1786234.403 | E180: 973017.9609 | F180: 13016.23975 | G180: 319821.706 | H180: 397866.2249 | I180: 282197.7279 | J180: 4025.00476 | K180: 415350.217 | L180: 302549.47
B181: SUBREGION
B182: POWIAT DZIERŻONIOWSKI | D182: 327679.9194 | E182: 163702.3362 | F182: 2931.97855 | G182: 55872.314 | H182: 84672.49718 | I182: 49654.87095 | J182: 101.2 | K182: 79305.086 | L182: 51316.328
B183: Gminy miejskie:
B184: Urban gminas:
B185: Bielawa | D185: 116702.6335 | E185: 54275.2864 | F185: 873.07591 | G185: 16585.448 | H185: 34440.45613 | I185: 14275.27657 | J185: - | K185: 27986.891 | L185: 15392.516
B186: Dzierżoniów | D186: 94255.69185 | E186: 54941.54112 | F186: 1799.20333 | G186: 21763.824 | H186: 19362.37173 | I186: 15127.91969 | J186: 1.2 | K186: 19951.779 | L186: 16755.91
B187: Pieszyce | D187: 27913.8146 | E187: 14010.17859 | F187: 118.46766 | G187: 4757.603 | H187: 7627.48301 | I187: 5417.89837 | J187: - | K187: 6276.153 | L187: 3205.052
B188: Piława Górna | D188: 17074.05979 | E188: 8790.6577 | F188: 17.96796 | G188: 2662.182 | H188: 3626.53109 | I188: 3451.95274 | J188: 100 | K188: 4656.871 | L188: 2971.255
B189: Gminy miejsko-wiejskie:
B190: Urban-rural gminas:
B191: Niemcza | D191: 15527.59427 | E191: 7283.50724 | F191: 23.42291 | G191: 2336.866 | H191: 3480.24203 | I191: 3179.34989 | J191: - | K191: 4763.845 | L191: 2846.313
B192: Gminy wiejskie:
B193: Rural gminas:
B194: Dzierżoniów | D194: 31207.91242 | E194: 14131.79458 | F194: 1.62535 | G194: 4480.3 | H194: 9407.02184 | I194: 4679.53935 | J194: - | K194: 7669.096 | L194: 4354.243
B195: Łagiewniki | D195: 24998.2129 | E195: 10269.37055 | F195: 98.21543 | G195: 3286.091 | H195: 6728.39135 | I195: 3522.93434 | J195: - | K195: 8000.451 | L195: 5791.039
B196: POWIAT KŁODZKI | D196: 527010.5302 | E196: 278381.5502 | F196: 2616.76954 | G196: 86290.666 | H196: 116954.3009 | I196: 91562.13644 | J196: 2311.91276 | K196: 131674.679 | L196: 86213.617
B197: Gminy miejskie:
B198: Urban gminas:
B199: Duszniki-Zdrój | D199: 22162.84957 | E199: 13672.20279 | F199: 57.24663 | G199: 2599.124 | H199: 4750.24778 | I199: 2635.24778 | J199: 2115 | K199: 3740.399 | L199: 3358.906
B200: Kłodzko | D200: 81828.49663 | E200: 51283.31825 | F200: 905.10312 | G200: 18994.332 | H200: 14145.70438 | I200: 13573.71058 | J200: - | K200: 16399.474 | L200: 14720.073
B201: Kudowa-Zdrój | D201: 35089.84206 | E201: 20098.87477 | F201: 171.64137 | G201: 4775.234 | H201: 8673.80629 | I201: 5523.92361 | J201: 7.84 | K201: 6317.161 | L201: 5693.764
B202: Nowa Ruda | D202: 66534.52144 | E202: 37163.77639 | F202: 371.95193 | G202: 14447.29 | H202: 13853.89005 | I202: 10094.69282 | J202: - | K202: 15516.855 | L202: 9064.952
B203: Polanica-Zdrój | D203: 24628.27531 | E203: 16084.61942 | F203: 176.38669 | G203: 4899.001 | H203: 5182.69389 | I203: 3676.94475 | J203: - | K203: 3360.962 | L203: 3326.048
B204: Gminy miejsko-wiejskie:
... 145 more rows

Sheet Tabl. 9.
B4: Tabl. 9. Struktura dochodów budżetów gmina według rodzajów oraz podregionów i powiatów
B5: Structure of revenue of gminas budgetsa by types as well as subregions and powiats
B6: WYSZCZEGÓLNIENIE SPECIFICATION | D6: Ogółem Grand total | E6: Dochody własne Own revenue | H6: Dotacje celoweb Targeted grantsb | K6: Subwencja ogólna z budżetu państwa General subvention from the state budget
E7: razem total | F7: w tym udział w podatku dochodowym of which share in income tax | H7: razem total | I7: w tym of which | K7: razem total | L7: w tym na zadania oświatowe of which for educational tasks
F8: od osób prawnych corporate income tax | G8: od osób fizycznych personal income tax | I8: z budżetu państwa from the state budget | J8: z państwowych funduszy celowych from state appropriated funds
D9: w % in %
B10: O G Ó Ł E M | C10: 2014 | D10: 100 | E10: 59.41272 | F10: 1.46887 | G10: 17.82735 | H10: 19.06283 | I10: 13.64895946 | J10: 0.33571 | K10: 21.52445 | L10: 16.7652
B11: T O T A L | C11: 2015 | D11: 100 | E11: 59.34015117 | F11: 1.706013026 | G11: 19.09681778 | H11: 19.0042601 | I11: 13.82626355 | J11: 0.2071627653 | K11: 21.65558873 | L11: 16.98766946
B13: Gminy miejskie | D13: 100 | E13: 62.93687978 | F13: 2.024845707 | G13: 23.24095694 | H13: 17.68153112 | I13: 12.74809264 | J13: 0.1931452877 | K13: 19.3815891 | L13: 16.67818827
B14: Urban gminas
B15: Gminy miejsko-wiejskie | D15: 100 | E15: 58.27939026 | F15: 2.274395223 | G15: 16.96506961 | H15: 18.95331911 | I15: 14.65793001 | J15: 0.2570309827 | K15: 22.76729063 | L15: 16.67273284
B16: Urban-rural gminas
B17: Gminy wiejskie | D17: 100 | E17: 56.77889268 | F17: 0.6681556071 | G17: 17.25905186 | H17: 20.48603845 | I17: 13.96526762 | J17: 0.1611647653 | K17: 22.73506887 | L17: 17.70526671
B18: Rural gminas
B19: PODREGION JELENIOGÓRSKI | D19: 100 | E19: 58.03780864 | F19: 0.8508910687 | G19: 17.06697053 | H19: 19.42099943 | I19: 16.22578813 | J19: 0.1689926855 | K19: 22.54119193 | L19: 16.89886917
B20: SUBREGION
B21: POWIAT BOLESŁAWIECKI | D21: 100 | E21: 62.06745871 | F21: 1.385914513 | G21: 17.71871987 | H21: 16.58327553 | I21: 12.80907911 | J21: 0.1852387858 | K21: 21.34926577 | L21: 18.94243065
B22: Gminy miejskie:
B23: Urban gminas:
B24: Bolesławiec | D24: 100 | E24: 67.90118275 | F24: 2.489902976 | G24: 20.12761534 | H24: 15.76402363 | I24: 10.74745899 | J24: - | K24: 16.33479362 | L24: 16.11392655
B25: Gminy miejsko-wiejskie:
B26: Urban-rural gminas:
B27: Nowogrodziec | D27: 100 | E27: 46.77653346 | F27: 0.5499645425 | G27: 14.93040249 | H27: 20.048232 | I27: 17.06786606 | J27: 1.385475227 | K27: 33.17523454 | L27: 29.38969554
B28: Gminy wiejskie:
B29: Rural gminas:
B30: Bolesławiec | D30: 100 | E30: 69.23290576 | F30: 0.6452570209 | G30: 20.79911603 | H30: 13.77947515 | I30: 12.33628127 | J30: 0.0467906733 | K30: 16.98761909 | L30: 12.377441
B31: Gromadka | D31: 100 | E31: 55.4318405 | F31: 0.05626652259 | G31: 12.45621019 | H31: 20.62943441 | I31: 16.74313467 | J31: - | K31: 23.93872509 | L31: 18.25645489
B32: Osiecznica | D32: 100 | E32: 53.86727751 | F32: 0.3522308179 | G32: 12.19569543 | H32: 15.79543937 | I32: 11.27884439 | J32: - | K32: 30.33728312 | L32: 25.09505876
B33: Warta Bolesławiecka | D33: 100 | E33: 56.2227796 | F33: 0.2023619515 | G33: 14.2898324 | H33: 18.3518557 | I33: 16.92870615 | J33: - | K33: 25.42536471 | L33: 22.72228563
B34: POWIAT JAWORSKI | D34: 100 | E34: 52.37919774 | F34: 0.2923906387 | G34: 16.50203974 | H34: 23.53473433 | I34: 16.07050861 | J34: 0.09228650388 | K34: 24.08606794 | L34: 16.22709257
B35: Gminy miejskie:
B36: Urban gminas:
B37: Jawor | D37: 100 | E37: 65.11663258 | F37: 0.5066208714 | G37: 22.08225249 | H37: 13.40207509 | I37: 12.95542407 | J37: 0.2188623446 | K37: 21.48129232 | L37: 16.00204986
B38: Gminy miejsko-wiejskie:
B39: Urban-rural gminas:
B40: Bolków | D40: 100 | E40: 38.97750958 | F40: 0.06410088749 | G40: 13.65886008 | H40: 25.89285364 | I40: 21.13980552 | J40: - | K40: 35.12963679 | L40: 17.68987187
B41: Gminy wiejskie:
B42: Rural gminas:
B43: Męcinka | D43: 100 | E43: 52.31183186 | F43: 0.4619913744 | G43: 10.11419047 | H43: 24.00250316 | I43: 21.06935905 | J43: - | K43: 23.68566499 | L43: 18.93138008
B44: Mściwojów | D44: 100 | E44: 38.45079061 | F44: 0.04482995914 | G44: 12.27824828 | H44: 49.09394185 | I44: 12.08046959 | J44: - | K44: 12.45526754 | L44: 8.973992469
B45: Paszowice | D45: 100 | E45: 47.68295008 | F45: 0.08886129226 | G45: 12.06214 | H45: 26.65802735 | I45: 16.53967195 | J45: - | K45: 25.65902257 | L45: 16.28242388
B46: Wądroże Wielkie | D46: 100 | E46: 42.6197431 | F46: 0.0501557527 | G46: 13.49972381 | H46: 26.31502248 | I46: 20.45359594 | J46: - | K46: 31.06523442 | L46: 22.38388602
B47: POWIAT JELENIOGÓRSKI | D47: 100 | E47: 60.88718828 | F47: 0.2395588821 | G47: 15.58746746 | H47: 21.00901233 | I47: 17.53507565 | J47: 0.08534882051 | K47: 18.1037994 | L47: 13.99711742
B48: Gminy miejskie:
B49: Urban gminas:
B50: Karpacz | D50: 100 | E50: 76.65844805 | F50: 0.4666995185 | G50: 10.37201034 | H50: 10.69262817 | I50: 9.986496017 | J50: - | K50: 12.64892379 | L50: 11.93704667
B51: Kowary | D51: 100 | E51: 49.50449349 | F51: 0.4607976149 | G51: 18.02931673 | H51: 27.36246549 | I51: 23.81197164 | J51: - | K51: 23.13304102 | L51: 15.66249137
B52: Piechowice | D52: 100 | E52: 67.63995323 | F52: 0.08756414617 | G52: 19.32195981 | H52: 21.26662284 | I52: 19.20579726 | J52: 0.07987951532 | K52: 11.09342394 | L52: 11.09342394
B53: Szklarska Poręba | D53: 100 | E53: 67.39392003 | F53: 0.2563005491 | G53: 10.13557326 | H53: 24.87786701 | I53: 12.29260904 | J53: 0.4933870984 | K53: 7.728212962 | L53: 6.593326555
B54: Gminy wiejskie:
B55: Rural gminas:
B56: Janowice Wielkie | D56: 100 | E56: 48.31103354 | F56: 0.03375205253 | G56: 14.79985676 | H56: 23.25662947 | I56: 21.70558246 | J56: - | K56: 28.432337 | L56: 14.69990922
B57: Jeżów Sudecki | D57: 100 | E57: 56.72307822 | F57: 0.06519896063 | G57: 21.01477432 | H57: 21.71561172 | I57: 18.19836423 | J57: - | K57: 21.56131006 | L57: 13.31384038
B58: Mysłakowice | D58: 100 | E58: 57.66374749 | F58: 0.2087425719 | G58: 18.28066576 | H58: 20.58726872 | I58: 20.19011922 | J58: - | K58: 21.74898379 | L58: 21.36888975
B59: Podgórzyn | D59: 100 | E59: 60.22724985 | F59: 0.1767452704 | G59: 20.04377228 | H59: 21.82219275 | I59: 20.65130141 | J59: - | K59: 17.95055741 | L59: 14.53852117
B60: Stara Kamienica | D60: 100 | E60: 54.02028449 | F60: 0.1196341392 | G60: 10.88133758 | H60: 17.37312059 | I60: 16.16116442 | J60: - | K60: 28.60659492 | L60: 19.1823891
B61: POWIAT KAMIENNOGÓRSKI | D61: 100 | E61: 50.37205574 | F61: 0.4277651615 | G61: 16.60593112 | H61: 17.61858966 | I61: 16.35430704 | J61: 0.3641956176 | K61: 32.0093546 | L61: 18.97346777
B62: Gminy miejskie:
B63: Urban gminas:
B64: Kamienna Góra | D64: 100 | E64: 55.0113499 | F64: 0.7966394368 | G64: 19.53548501 | H64: 16.2813391 | I64: 16.2813391 | J64: - | K64: 28.707311 | L64: 18.79795529
B65: Gminy miejsko-wiejskie:
B66: Urban-rural gminas:
B67: Lubawka | D67: 100 | E67: 47.81766722 | F67: 0.144077814 | G67: 15.49439211 | H67: 18.90602714 | I67: 14.94180726 | J67: 1.408745796 | K67: 33.27630564 | L67: 17.63185111
B68: Gminy wiejskie:
B69: Rural gminas:
B70: Kamienna Góra | D70: 100 | E70: 47.67249798 | F70: 0.2540518162 | G70: 14.85529697 | H70: 17.08642069 | I70: 16.55263189 | J70: - | K70: 35.24108133 | L70: 20.66052537
B71: Marciszów | D71: 100 | E71: 44.20600495 | F71: 0.04529431918 | G71: 11.64390239 | H71: 20.62109044 | I71: 19.50291368 | J71: - | K71: 35.17290461 | L71: 19.50333193
B72: POWIAT LUBAŃSKI | D72: 100 | E72: 51.67456061 | F72: 0.3458080592 | G72: 15.80236617 | H72: 25.38414162 | I72: 21.30804347 | J72: 0.3041308879 | K72: 22.94129777 | L72: 17.63952757
B73: Gminy miejskie:
B74: Urban gminas:
B75: Lubań | D75: 100 | E75: 63.72963813 | F75: 0.7571831164 | G75: 25.32413646 | H75: 15.37930447 | I75: 13.59613579 | J75: - | K75: 20.8910574 | L75: 18.18949708
B76: Świeradów-Zdrój | D76: 100 | E76: 59.13537157 | F76: 0.3353056598 | G76: 7.940275802 | H76: 28.79228719 | I76: 21.02032354 | J76: - | K76: 12.07234125 | L76: 11.8865917
B77: Gminy miejsko-wiejskie:
B78: Urban-rural gminas:
B79: Leśna | D79: 100 | E79: 36.17442278 | F79: 0.1432952088 | G79: 10.6576565 | H79: 33.13623316 | I79: 30.33041585 | J79: - | K79: 30.68934406 | L79: 19.42619686
B80: Olszyna | D80: 100 | E80: 37.10835646 | F80: 0.04138121868 | G80: 12.15206655 | H80: 38.4868511 | I80: 35.51830709 | J80: 0.8032185772 | K80: 24.40479244 | L80: 16.74547278
B81: Gminy wiejskie:
B82: Rural gminas:
B83: Lubań | D83: 100 | E83: 44.96468531 | F83: 0.1932733815 | G83: 11.3530238 | H83: 27.85839067 | I83: 17.61487301 | J83: 1.718829786 | K83: 27.17692402 | L83: 18.90857763
B84: Platerówka | D84: 100 | E84: 54.87480643 | F84: 0.001017067338 | G84: 14.88250413 | H84: 20.01426543 | I84: 20.01426543 | J84: - | K84: 25.11092815 | L84: 20.10347282
B85: Siekierczyn | D85: 100 | E85: 56.76130331 | F85: 0.0250848394 | G85: 19.20674445 | H85: 16.82320459 | I85: 14.43244338 | J85: - | K85: 26.4154921 | L85: 22.15805628
B86: POWIAT LWÓWECKI | D86: 100 | E86: 46.07645944 | F86: 0.2996074451 | G86: 14.02742174 | H86: 21.56358626 | I86: 20.58120714 | J86: 0.2197548062 | K86: 32.3599543 | L86: 20.40345087
B87: Gminy miejsko-wiejskie:
B88: Urban-rural gminas:
B89: Gryfów Śląski | D89: 100 | E89: 45.81981792 | F89: 0.215112708 | G89: 17.30466752 | H89: 25.69047498 | I89: 24.32206295 | J89: 0.9942658223 | K89: 28.48970711 | L89: 15.94755315
B90: Lubomierz | D90: 100 | E90: 31.90565469 | F90: 0.04479329219 | G90: 8.330242334 | H90: 20.7565409 | I90: 19.92952292 | J90: - | K90: 47.33780441 | L90: 27.83461652
B91: Lwówek Śląski | D91: 100 | E91: 55.39989789 | F91: 0.6358180861 | G91: 16.02142148 | H91: 19.97737396 | I91: 19.30035957 | J91: - | K91: 24.62272815 | L91: 18.15193149
B92: Mirsk | D92: 100 | E92: 37.53206247 | F92: 0.08377304877 | G92: 12.7119537 | H92: 22.49964965 | I92: 22.12435318 | J92: - | K92: 39.96828788 | L92: 26.21091575
B93: Wleń | D93: 100 | E93: 49.75912347 | F93: 0.03219269251 | G93: 11.60105275 | H93: 18.96626561 | I93: 16.31887072 | J93: 0.2628742063 | K93: 31.27461092 | L93: 15.38426603
B94: POWIAT ZGORZELECKI | D94: 100 | E94: 68.55297655 | F94: 1.914946994 | G94: 20.19395825 | H94: 13.64022262 | I94: 11.9004909 | J94: 0.1139351053 | K94: 17.80680083 | L94: 14.72998575
B95: Gminy miejskie:
B96: Urban gminas:
B97: Zawidów | D97: 100 | E97: 51.75102083 | F97: 0.2970823566 | G97: 24.52724535 | H97: 17.32138379 | I97: 16.4592254 | J97: - | K97: 30.92759539 | L97: 24.35315178
B98: Zgorzelec | D98: 100 | E98: 67.20273282 | F98: 1.693305579 | G98: 31.80761258 | H98: 14.9034092 | I98: 12.01622755 | J98: 0.200585993 | K98: 17.89385799 | L98: 17.84301511
B99: Gminy miejsko-wiejskie:
B100: Urban-rural gminas:
B101: Bogatynia | D101: 100 | E101: 79.19758401 | F101: 3.33823333 | G101: 16.07574657 | H101: 9.554854411 | I101: 8.894898621 | J101: 0.05138064356 | K101: 11.24756158 | L101: 10.18959222
B102: Pieńsk | D102: 100 | E102: 47.89266149 | F102: 0.2891396192 | G102: 15.99826394 | H102: 20.77042666 | I102: 19.1298471 | J102: - | K102: 31.33691185 | L102: 17.97498439
B103: Węgliniec | D103: 100 | E103: 48.27843164 | F103: 0.6723991998 | G103: 13.79114215 | H103: 18.5266622 | I103: 14.64611435 | J103: - | K103: 33.19490617 | L103: 21.40175812
B104: Gminy wiejskie:
B105: Rural gminas:
B106: Sulików | D106: 100 | E106: 63.04904756 | F106: 0.6602820355 | G106: 17.96637279 | H106: 17.30902381 | I106: 16.94092553 | J106: - | K106: 19.64192862 | L106: 16.42174521
B107: Zgorzelec | D107: 100 | E107: 70.52707666 | F107: 0.2048666401 | G107: 14.35675466 | H107: 14.08883201 | I107: 11.39126751 | J107: 0.4522408893 | K107: 15.38409132 | L107: 12.3793941
B108: POWIAT ZŁOTORYJSKI | D108: 100 | E108: 52.81890722 | F108: 0.3487521565 | G108: 16.12368923 | H108: 23.91544172 | I108: 20.85367525 | J108: 0.08863938432 | K108: 23.26565106 | L108: 17.19143043
B109: Gminy miejskie:
B110: Urban gminas:
B111: Wojcieszów | D111: 100 | E111: 49.58185887 | F111: 0.6870765358 | G111: 10.80523054 | H111: 27.944031 | I111: 27.44471814 | J111: - | K111: 22.47411013 | L111: 16.51887896
B112: Złotoryja | D112: 100 | E112: 66.04069112 | F112: 0.5275656009 | G112: 24.53009387 | H112: 15.50407504 | I112: 15.24584835 | J112: - | K112: 18.45523384 | L112: 13.27199137
B113: Gminy miejsko-wiejskie:
B114: Urban-rural gminas:
B115: Świerzawa | D115: 100 | E115: 39.73729787 | F115: 0.07238666261 | G115: 10.55425204 | H115: 30.39357272 | I115: 26.2063228 | J115: 0.1461408228 | K115: 29.86912941 | L115: 19.04493122
B116: Gminy wiejskie:
B117: Rural gminas:
B118: Pielgrzymka | D118: 100 | E118: 41.56777196 | F118: 0.05944090502 | G118: 11.05700964 | H118: 30.17543734 | I118: 22.23047644 | J118: - | K118: 28.2567907 | L118: 22.68575193
B119: Zagrodno | D119: 100 | E119: 55.50468576 | F119: 0.02003274466 | G119: 12.75344533 | H119: 23.10089915 | I119: 20.33411977 | J119: 0.4112379322 | K119: 21.3944151 | L119: 16.79453002
B120: Złotoryja
B121: PODREGION LEGNICKO-GŁOGOWSKI | D121: 100 | E121: 65.33778128 | F121: 4.48196563 | G121: 21.30935623 | H121: 15.70362206 | I121: 10.95535751 | J121: 0.1247971129 | K121: 18.95859665 | L121: 16.15806628
B122: SUBREGION
B123: POWIAT GŁOGOWSKI | D123: 100 | E123: 69.81888803 | F123: 2.879787217 | G123: 23.96455938 | H123: 14.32496705 | I123: 9.694582078 | J123: 0.2427610192 | K123: 15.85614492 | L123: 14.9989859
B124: Gminy miejskie:
B125: Urban gminas:
B126: Głogów | D126: 100 | E126: 73.23021722 | F126: 4.041382155 | G126: 27.2086122 | H126: 11.55452406 | I126: 9.071430143 | J126: 0.3366846559 | K126: 15.21525873 | L126: 15.09427734
B127: Gminy wiejskie:
B128: Rural gminas:
B129: Głogów | D129: 100 | E129: 58.68972536 | F129: 0.4144193359 | G129: 23.76848665 | H129: 25.11153731 | I129: 10.93770908 | J129: 0.04401680285 | K129: 16.19873733 | L129: 13.99027494
B130: Jerzmanowa | D130: 100 | E130: 82.75098587 | F130: 0.005835902723 | G130: 16.11453489 | H130: 5.27102711 | I130: 4.898415554 | J130: 0.01349934068 | K130: 11.97798702 | L130: 10.89215791
B131: Kotla | D131: 100 | E131: 47.36929669 | F131: 0.3216377323 | G131: 14.62719417 | H131: 28.62496391 | I131: 13.83005297 | J131: 0.0556986574 | K131: 24.00573941 | L131: 19.50491656
B132: Pęcław | D132: 100 | E132: 32.45620136 | F132: -0.003552660045 | G132: 7.974196725 | H132: 48.03850162 | I132: 17.66324481 | J132: - | K132: 19.50529703 | L132: 15.91731002
B133: Żukowice | D133: 100 | E133: 57.27140597 | F133: 0.2343411435 | G133: 12.28468906 | H133: 19.85700514 | I133: 19.03275872 | J133: - | K133: 22.87158889 | L133: 19.21623997
B134: POWIAT GÓROWSKI | D134: 100 | E134: 42.68657811 | F134: 0.6351124439 | G134: 12.05890977 | H134: 27.02435704 | I134: 22.83043802 | J134: 0.462553849 | K134: 30.28906485 | L134: 20.34586887
B135: Gminy miejsko-wiejskie:
B136: Urban-rural gminas:
B137: Góra | D137: 100 | E137: 45.17646957 | F137: 0.7830112013 | G137: 13.51536866 | H137: 26.5058125 | I137: 24.74825428 | J137: 0.8305339777 | K137: 28.31771793 | L137: 19.78156711
B138: Wąsosz | D138: 100 | E138: 41.07917592 | F138: 0.5055501991 | G138: 11.03855259 | H138: 28.28811631 | I138: 16.94728612 | J138: - | K138: 30.63270777 | L138: 21.82202
B139: Gminy wiejskie:
B140: Rural gminas:
B141: Jemielno | D141: 100 | E141: 35.97077602 | F141: 0.2261037943 | G141: 8.393317708 | H141: 29.33325993 | I141: 27.26970164 | J141: - | K141: 34.69596406 | L141: 18.59030122
B142: Niechlów | D142: 100 | E142: 39.53155415 | F142: 0.5041813199 | G142: 10.16885722 | H142: 25.74907346 | I142: 21.2996066 | J142: - | K142: 34.71937238 | L142: 21.45001037
B143: POWIAT LEGNICKI | D143: 100 | E143: 56.78732524 | F143: 0.4407117787 | G143: 17.6706973 | H143: 19.92460811 | I143: 15.79905129 | J143: 0.1955074783 | K143: 23.28806665 | L143: 17.85432986
B144: Gminy miejskie:
B145: Urban gminas:
B146: Chojnów | D146: 100 | E146: 46.98406228 | F146: 0.7661554868 | G146: 19.92873354 | H146: 25.72463949 | I146: 17.0866249 | J146: - | K146: 27.29129823 | L146: 19.63205459
B147: Gminy miejsko-wiejskie:
B148: Urban-rural gminas:
B149: Prochowice | D149: 100 | E149: 61.07809978 | F149: 0.6973814593 | G149: 15.5606414 | H149: 14.75960849 | I149: 14.28065693 | J149: - | K149: 24.16229174 | L149: 21.3042466
B150: Gminy wiejskie:
B151: Rural gminas:
B152: Chojnów | D152: 100 | E152: 56.47119065 | F152: 0.09004463287 | G152: 16.19222727 | H152: 21.87687333 | I152: 19.84818859 | J152: 0.08880764186 | K152: 21.65193602 | L152: 14.05494183
B153: Krotoszyce | D153: 100 | E153: 56.79429688 | F153: 0.5184424794 | G153: 10.83378289 | H153: 26.17392103 | I153: 12.38522714 | J153: 2.264501671 | K153: 17.0317821 | L153: 13.63987367
B154: Kunice | D154: 100 | E154: 67.98851262 | F154: 0.06725339419 | G154: 29.57237634 | H154: 10.82045082 | I154: 10.00017984 | J154: - | K154: 21.19103656 | L154: 18.20439067
B155: Legnickie Pole | D155: 100 | E155: 69.23704305 | F155: 0.3918129666 | G155: 13.04791209 | H155: 13.35873569 | I155: 11.90782021 | J155: 0.1009681003 | K155: 17.40422127 | L155: 14.43421599
B156: Miłkowice | D156: 100 | E156: 52.50125362 | F156: 0.5347754036 | G156: 17.5523599 | H156: 21.41211088 | I156: 17.94241706 | J156: - | K156: 26.0866355 | L156: 19.59358158
B157: Ruja | D157: 100 | E157: 45.80356566 | F157: 0.02367896789 | G157: 9.70789723 | H157: 25.2071895 | I157: 24.40321157 | J157: - | K157: 28.98924485 | L157: 21.47152804
B158: POWIAT LUBIŃSKI | D158: 100 | E158: 66.29254279 | F158: 4.132573958 | G158: 27.18218058 | H158: 14.05063747 | I158: 8.61573205 | J158: 0.0059656336 | K158: 19.65681974 | L158: 18.73750919
B159: Gminy miejskie:
B160: Urban gminas:
B161: Lubin | D161: 100 | E161: 64.24778051 | F161: 5.514194899 | G161: 29.97718868 | H161: 13.35891411 | I161: 8.067673639 | J161: - | K161: 22.39330538 | L161: 22.39330538
B162: Gminy miejsko-wiejskie:
B163: Urban-rural gminas:
B164: Ścinawa | D164: 100 | E164: 51.54248593 | F164: 0.2279091282 | G164: 18.82270139 | H164: 22.99856333 | I164: 18.19619588 | J164: - | K164: 25.45895074 | L164: 15.44382975
B165: Gminy wiejskie:
B166: Rural gminas:
B167: Lubin | D167: 100 | E167: 81.03957426 | F167: 0.2618329798 | G167: 31.03019586 | H167: 9.46938696 | I167: 7.1320901 | J167: 0.04069689231 | K167: 9.491038783 | L167: 9.02387604
B168: Rudna | D168: 100 | E168: 69.42855831 | F168: 3.789798817 | G168: 11.65640788 | H168: 17.79968045 | I168: 7.06249415 | J168: - | K168: 12.77176124 | L168: 12.23165438
B169: POWIAT POLKOWICKI | D169: 100 | E169: 72.0141772 | F169: 9.990141458 | G169: 16.41136889 | H169: 13.012294 | I169: 8.486244125 | J169: 0.002571218621 | K169: 14.97352879 | L169: 11.73339092
B170: Gminy miejsko-wiejskie:
B171: Urban-rural gminas:
B172: Chocianów | D172: 100 | E172: 50.11352366 | F172: 0.3178011196 | G172: 26.66629241 | H172: 28.02489317 | I172: 13.92018237 | J172: - | K172: 21.86158317 | L172: 16.96330173
B173: Polkowice | D173: 100 | E173: 84.41126902 | F173: 16.24782423 | G173: 14.38010239 | H173: 5.480509295 | I173: 4.626153988 | J173: 0.004207672514 | K173: 10.10822169 | L173: 7.653323099
B174: Przemków | D174: 100 | E174: 42.48835963 | F174: 0.2062303377 | G174: 23.61422899 | H174: 19.4724803 | I174: 18.30614787 | J174: - | K174: 38.03916007 | L174: 26.00944815
B175: Gminy wiejskie:
B176: Rural gminas:
B177: Gaworzyce | D177: 100 | E177: 37.08714544 | F177: 0.01350224123 | G177: 19.27527288 | H177: 41.30221409 | I177: 16.63153165 | J177: - | K177: 21.61064047 | L177: 15.72955029
B178: Grębocice | D178: 100 | E178: 67.90004749 | F178: 0.08676154752 | G178: 10.21294931 | H178: 16.04536236 | I178: 9.77997881 | J178: - | K178: 16.05459015 | L178: 15.84881848
B179: Radwanice | D179: 100 | E179: 60.92529825 | F179: 0.04491958611 | G179: 15.36409549 | H179: 22.25237618 | I179: 15.91952358 | J179: - | K179: 16.82232558 | L179: 16.82232558
B180: PODREGION WAŁBRZYSKI | D180: 100 | E180: 54.47313966 | F180: 0.7286971816 | G180: 17.90480048 | H180: 22.27402094 | I180: 15.79847121 | J180: 0.2253346343 | K180: 23.2528394 | L180: 16.93783691
B181: SUBREGION
B182: POWIAT DZIERŻONIOWSKI | D182: 100 | E182: 49.95800063 | F182: 0.8947690648 | G182: 17.05088127 | H182: 25.84000184 | I182: 15.15346776 | J182: 0.03088379666 | K182: 24.20199753 | L182: 15.66050434
B183: Gminy miejskie:
B184: Urban gminas:
B185: Bielawa | D185: 100 | E185: 46.50733643 | F185: 0.748120144 | G185: 14.21171699 | H185: 29.51129301 | I185: 12.23218032 | J185: - | K185: 23.98137056 | L185: 13.18951898
B186: Dzierżoniów | D186: 100 | E186: 58.28989215 | F186: 1.908853773 | G186: 23.09019601 | H186: 20.54238991 | I186: 16.0498739 | J186: 0.001273132663 | K186: 21.16771795 | L186: 17.77708027
B187: Pieszyce | D187: 100 | E187: 50.19084203 | F187: 0.4244051259 | G187: 17.04390127 | H187: 27.32511883 | I187: 19.40938008 | J187: - | K187: 22.48403914 | L187: 11.48195632
B188: Piława Górna | D188: 100 | E188: 51.48545693 | F188: 0.1052354286 | G188: 15.59196836 | H188: 21.24000463 | I188: 20.21752754 | J188: 0.5856837872 | K188: 27.27453844 | L188: 17.40215881
B189: Gminy miejsko-wiejskie:
B190: Urban-rural gminas:
B191: Niemcza | D191: 100 | E191: 46.90686215 | F191: 0.1508469992 | G191: 15.04976212 | H191: 22.41327259 | I191: 20.47548277 | J191: - | K191: 30.67986526 | L191: 18.33067602
B192: Gminy wiejskie:
B193: Rural gminas:
B194: Dzierżoniów | D194: 100 | E194: 45.28272955 | F194: 0.005208134329 | G194: 14.35629509 | H194: 30.14306665 | I194: 14.99472085 | J194: - | K194: 24.5742038 | L194: 13.95236869
B195: Łagiewniki | D195: 100 | E195: 41.08041879 | F195: 0.3928898053 | G195: 13.14530368 | H195: 26.91548943 | I195: 14.09274477 | J195: - | K195: 32.00409178 | L195: 23.16581198
B196: POWIAT KŁODZKI | D196: 100 | E196: 52.8227681 | F196: 0.4965307883 | G196: 16.37361325 | H196: 22.19202354 | I196: 17.37387229 | J196: 0.4386843579 | K196: 24.98520835 | L196: 16.35899324
B197: Gminy miejskie:
B198: Urban gminas:
B199: Duszniki-Zdrój | D199: 100 | E199: 61.68973329 | F199: 0.2582999529 | G199: 11.72739088 | H199: 21.43338006 | I199: 11.89038337 | J199: 9.542996686 | K199: 16.87688665 | L199: 15.15556919
B200: Kłodzko | D200: 100 | E200: 62.67171018 | F200: 1.106097701 | G200: 23.21236829 | H200: 17.28701487 | I200: 16.58799946 | J200: - | K200: 20.04127495 | L200: 17.98893247
B201: Kudowa-Zdrój | D201: 100 | E201: 57.27832783 | F201: 0.4891483117 | G201: 13.6085936 | H201: 24.71885247 | I201: 15.7422299 | J201: 0.0223426483 | K201: 18.0028197 | L201: 16.22624573
B202: Nowa Ruda | D202: 100 | E202: 55.8563819 | F202: 0.5590360041 | G202: 21.71397597 | H202: 20.82210821 | I202: 15.17211306 | J202: - | K202: 23.32150989 | L202: 13.62443406
B203: Polanica-Zdrój | D203: 100 | E203: 65.30956479 | F203: 0.7161958675 | G203: 19.89177455 | H203: 21.04367368 | I203: 14.92976956 | J203: - | K203: 13.64676153 | L203: 13.50499764
B204: Gminy miejsko-wiejskie:
... 145 more rows

Sheet Tabl. 10.
B4: Tabl. 10. Dochody budżetów gmina według działów oraz podregionów i powiatów
B5: Revenue of gminas budgetsa by divisions as well as subregions and powiats
B6: WYSZCZEGÓLNIENIE SPECIFICATION | D6: Ogółem Total | E6: W tym Of which
E7: transport i łączność transport and communication | F7: gospodarka mieszkaniowa dwelling economy | G7: działalność usługowa service activity | H7: administracja publiczna public administration | I7: oświata i wychowanie education | J7: ochrona zdrowia health care | K7: pomoc społeczna social welfare | L7: gospodarka komunalna i ochrona środowiska municipal economy and environmental protection | M7: kultura i ochrona dziedzictwa narodowego culture and national heritage | N7: kultura fizyczna physical education
D9: w tys. zł in thous. zl
B10: O G Ó Ł E M | C10: 2014 | D10: 6847946.712 | E10: 201953.7272 | F10: 378478.169 | G10: 7745.39276 | H10: 70098.66482 | I10: 171819.8832 | J10: 1970.83533 | K10: 688823.4948 | L10: 254352.9012 | M10: 55823.63096 | N10: 49979.02461
B11: T O T A L | C11: 2015 | D11: 7075516.151 | E11: 224818.5719 | F11: 358061.3016 | G11: 8901.76737 | H11: 52133.25122 | I11: 190500.1968 | J11: 2459.56382 | K11: 683798.5121 | L11: 423657.3526 | M11: 49946.36401 | N11: 46121.18306
B13: Gminy miejskie | D13: 2302836.83 | E13: 91906.10003 | F13: 182669.3776 | G13: 5072.66498 | H13: 16320.75622 | I13: 70179.464 | J13: 616.91413 | K13: 218328.679 | L13: 143846.942 | M13: 8439.38849 | N13: 13108.91697
B14: Urban gminas
B15: Gminy miejsko-wiejskie | D15: 2626719.55 | E15: 70228.62118 | F15: 117626.915 | G15: 2967.56367 | H15: 18175.01024 | I15: 68306.35106 | J15: 1445.07715 | K15: 267909.0961 | L15: 145176.5606 | M15: 12222.92676 | N15: 21702.12907
B16: Urban-rural gminas
B17: Gminy wiejskie | D17: 2145959.772 | E17: 62683.85066 | F17: 57765.00899 | G17: 861.53872 | H17: 17637.48476 | I17: 52014.38176 | J17: 397.57254 | K17: 197560.7371 | L17: 134633.85 | M17: 29284.04876 | N17: 11310.13702
B18: Rural gminas
B19: PODREGION JELENIOGÓRSKI | D19: 1723406.638 | E19: 60842.56394 | F19: 86066.38092 | G19: 2584.65667 | H19: 12155.36378 | I19: 39659.57629 | J19: 337.38981 | K19: 191898.2434 | L19: 117706.6391 | M19: 10513.82677 | N19: 12075.97674
B20: SUBREGION
B21: POWIAT BOLESŁAWIECKI | D21: 308250.7788 | E21: 3713.09189 | F21: 27207.02965 | G21: 97.6553 | H21: 2594.49048 | I21: 8802.97474 | J21: 99.1835 | K21: 32072.20988 | L21: 19185.26046 | M21: 4432.65244 | N21: 3166.51095
B22: Gminy miejskie:
B23: Urban gminas:
B24: Bolesławiec | D24: 143983.4353 | E24: 612.43101 | F24: 24931.65628 | G24: 40 | H24: 1299.98826 | I24: 4353.70774 | J24: 8.925 | K24: 14003.17332 | L24: 11440.79164 | M24: 2230.36088 | N24: 1566.76692
B25: Gminy miejsko-wiejskie:
B26: Urban-rural gminas:
B27: Nowogrodziec | D27: 39697.57014 | E27: 812.52863 | F27: 417.36339 | G27: 8.7 | H27: 255.04681 | I27: 1559.96227 | J27: 25 | K27: 4867.76613 | L27: 2016.27678 | M27: 0.748 | N27: -
B28: Gminy wiejskie:
B29: Rural gminas:
B30: Bolesławiec | D30: 44880.73909 | E30: 245.11388 | F30: 967.52084 | G30: 14.01 | H30: 205.85953 | I30: 1560.34606 | J30: 4.3895 | K30: 4321.65307 | L30: 3054.59517 | M30: 1934.4679 | N30: 275.995
B31: Gromadka | D31: 19662.72215 | E31: 681.34137 | F31: 341.49161 | G31: 7.59666 | H31: 93.41953 | I31: 256.82685 | J31: 60.869 | K31: 2672.11188 | L31: 623.80306 | M31: 6.9187 | N31: -
B32: Osiecznica | D32: 31088.38706 | E32: 572.75 | F32: 212.86144 | G32: 10.80364 | H32: 626.59293 | I32: 443.43377 | J32: - | K32: 2932.01642 | L32: 954.5941 | M32: 20.72501 | N32: 1315.71523
B33: Warta Bolesławiecka | D33: 28937.92512 | E33: 788.927 | F33: 336.13609 | G33: 16.545 | H33: 113.58342 | I33: 628.69805 | J33: - | K33: 3275.48906 | L33: 1095.19971 | M33: 239.43195 | N33: 8.0338
B34: POWIAT JAWORSKI | D34: 170524.3924 | E34: 4849.4287 | F34: 7056.66952 | G34: 222.52753 | H34: 779.48787 | I34: 4649.07974 | J34: 50.67295 | K34: 18642.67046 | L34: 17671.49299 | M34: 457.67613 | N34: 407.51296
B35: Gminy miejskie:
B36: Urban gminas:
B37: Jawor | D37: 71904.1004 | E37: 276.09343 | F37: 3082.44088 | G37: 214.52753 | H37: 245.54481 | I37: 1932.93362 | J37: 0.35295 | K37: 7560.51421 | L37: 9910.32118 | M37: 63.27315 | N37: 0.14
B38: Gminy miejsko-wiejskie:
B39: Urban-rural gminas:
B40: Bolków | D40: 30644.48991 | E40: 472.847 | F40: 1361.88107 | G40: 1.2 | H40: 155.79805 | I40: 809.61146 | J40: 0.32 | K40: 4790.96873 | L40: 971.72266 | M40: - | N40: 74.174
B41: Gminy wiejskie:
B42: Rural gminas:
B43: Męcinka | D43: 18533.21831 | E43: 1418.41297 | F43: 1018.40888 | G43: - | H43: 110.52619 | I43: 173.10235 | J43: 50 | K43: 1927.21373 | L43: 519.83022 | M43: 43.77334 | N43: 77.87896
B44: Mściwojów | D44: 22185.72176 | E44: 1701.95334 | F44: 622.35543 | G44: 3 | H44: 58.75305 | I44: 849.43617 | J44: - | K44: 1417.72908 | L44: 4506.10074 | M44: 313.42363 | N44: 230.32
B45: Paszowice | D45: 14039.81383 | E45: 708.53987 | F45: 831.35171 | G45: 3.8 | H45: 30.06251 | I45: 597.87553 | J45: - | K45: 1383.39262 | L45: 1173.59347 | M45: 19.59963 | N45: -
B46: Wądroże Wielkie | D46: 13217.04818 | E46: 271.58209 | F46: 140.23155 | G46: - | H46: 178.80326 | I46: 286.12061 | J46: - | K46: 1562.85209 | L46: 589.92472 | M46: 17.60638 | N46: 25
B47: POWIAT JELENIOGÓRSKI | D47: 242307.9766 | E47: 16846.90937 | F47: 15858.45164 | G47: 577.86981 | H47: 1864.79538 | I47: 4240.39793 | J47: 9.57 | K47: 26822.61477 | L47: 14913.39617 | M47: 711.64915 | N47: 712.79175
B48: Gminy miejskie:
B49: Urban gminas:
B50: Karpacz | D50: 33164.85316 | E50: 1798.923 | F50: 4098.55921 | G50: 83.49052 | H50: 723.31671 | I50: 487.57979 | J50: - | K50: 1217.13254 | L50: 1576.35932 | M50: 81.78977 | N50: 126.00402
B51: Kowary | D51: 32599.19434 | E51: 1620.89712 | F51: 1845.67161 | G51: 164.82405 | H51: 305.57696 | I51: 727.50027 | J51: 6 | K51: 5475.08768 | L51: 1723.08162 | M51: 23.87231 | N51: 16.77943
B52: Piechowice | D52: 21040.43813 | E52: 1486.43573 | F52: 900.39174 | G52: 113.444 | H52: 109.21877 | I52: 530.11535 | J52: - | K52: 2541.36518 | L52: 1306.37008 | M52: - | N52: 16.807
B53: Szklarska Poręba | D53: 38509.31664 | E53: 6007.54557 | F53: 5708.00696 | G53: 56.2317 | H53: 303.04027 | I53: 351.11498 | J53: 3.57 | K53: 2366.24545 | L53: 2831.41833 | M53: - | N53: 190
B54: Gminy wiejskie:
B55: Rural gminas:
B56: Janowice Wielkie | D56: 14171.43445 | E56: 1397.36349 | F56: 720.54966 | G56: 3.4 | H56: 60.07274 | I56: 162.76701 | J56: - | K56: 1517.17132 | L56: 1010.56552 | M56: 73.63091 | N56: 1.5
B57: Jeżów Sudecki | D57: 24475.25213 | E57: 2282.28331 | F57: 353.6923 | G57: 0.5 | H57: 61.02228 | I57: 174.08441 | J57: - | K57: 2755.52682 | L57: 1667.21299 | M57: 39.40844 | N57: 31.8
B58: Mysłakowice | D58: 33666.40516 | E58: 1330.735 | F58: 1171.71124 | G58: 54.7948 | H58: 129.13149 | I58: 891.02794 | J58: - | K58: 4499.33851 | L58: 2268.15179 | M58: 0.1 | N58: 304.82
B59: Podgórzyn | D59: 24302.76064 | E59: 609.94315 | F59: 544.32976 | G59: 52.03653 | H59: 114.51551 | I59: 575.06664 | J59: - | K59: 3880.10951 | L59: 1893.83557 | M59: 226.97689 | N59: 0.0813
B60: Stara Kamienica | D60: 20378.32191 | E60: 312.783 | F60: 515.53916 | G60: 49.14821 | H60: 58.90065 | I60: 341.14154 | J60: - | K60: 2570.63776 | L60: 636.40095 | M60: 265.87083 | N60: 25
B61: POWIAT KAMIENNOGÓRSKI | D61: 137288.8568 | E61: 2505.6528 | F61: 7861.43591 | G61: 32.05338 | H61: 1087.54191 | I61: 2825.76979 | J61: 14.611 | K61: 17360.38724 | L61: 7802.84137 | M61: 96.55362 | N61: 1280.0333
B62: Gminy miejskie:
B63: Urban gminas:
B64: Kamienna Góra | D64: 57072.0051 | E64: 156.703 | F64: 5380.95545 | G64: 5 | H64: 385.56872 | I64: 1135.85223 | J64: 3.311 | K64: 7729.59533 | L64: 3683.09819 | M64: 0.0257 | N64: 302.40586
B65: Gminy miejsko-wiejskie:
B66: Urban-rural gminas:
B67: Lubawka | D67: 35492.56377 | E67: 1478.29623 | F67: 585.49458 | G67: 4 | H67: 344.01029 | I67: 995.3276 | J67: 11.3 | K67: 4015.84485 | L67: 1481.72366 | M67: 27.375 | N67: 881.27344
B68: Gminy wiejskie:
B69: Rural gminas:
B70: Kamienna Góra | D70: 29326.52918 | E70: 612.29957 | F70: 1297.43799 | G70: 6.7656 | H70: 233.35401 | I70: 527.64098 | J70: - | K70: 3406.23108 | L70: 1802.8625 | M70: 64.21292 | N70: 96.354
B71: Marciszów | D71: 15397.75876 | E71: 258.354 | F71: 597.54789 | G71: 16.28778 | H71: 124.60889 | I71: 166.94898 | J71: - | K71: 2208.71598 | L71: 835.15702 | M71: 4.94 | N71: -
B72: POWIAT LUBAŃSKI | D72: 197114.1452 | E72: 14414.22087 | F72: 8620.65783 | G72: 204.90515 | H72: 1093.25995 | I72: 4619.30718 | J72: 0.45 | K72: 23012.39105 | L72: 16394.69508 | M72: 1653.1589 | N72: 1965.35709
B73: Gminy miejskie:
B74: Urban gminas:
B75: Lubań | D75: 61390.15252 | E75: 1.19849 | F75: 3581.46674 | G75: 14 | H75: 490.5362 | I75: 2244.83084 | J75: - | K75: 6955.41852 | L75: 4810.01037 | M75: 81.50844 | N75: 240.38073
B76: Świeradów-Zdrój | D76: 31907.48109 | E76: 4225.44821 | F76: 3318.8839 | G76: 24.16516 | H76: 131.90277 | I76: 668.79093 | J76: - | K76: 1922.64324 | L76: 5861.80154 | M76: 6.6 | N76: -
B77: Gminy miejsko-wiejskie:
B78: Urban-rural gminas:
B79: Leśna | D79: 35544.55898 | E79: 3766.90546 | F79: 699.26921 | G79: - | H79: 222.75581 | I79: 662.31143 | J79: - | K79: 6084.88883 | L79: 1453.69004 | M79: 10.0932 | N79: 739.36554
B80: Olszyna | D80: 24899.8225 | E80: 5219.42068 | F80: 631.81774 | G80: - | H80: 83.48606 | I80: 390.82826 | J80: 0.45 | K80: 3388.5499 | L80: 1277.01652 | M80: 294.666 | N80: 200
B81: Gminy wiejskie:
B82: Rural gminas:
B83: Lubań | D83: 23241.68473 | E83: 1001.25803 | F83: 70.2915 | G83: 34.237 | H83: 67.0615 | I83: 293.61756 | J83: - | K83: 2295.18227 | L83: 1278.6609 | M83: 1021.75207 | N83: 785.20978
B84: Platerówka | D84: 5792.14353 | E84: 199.99 | F84: 36.21676 | G84: 4.07 | H84: 49.97348 | I84: 49.27536 | J84: - | K84: 734.55057 | L84: 225.75363 | M84: 214.69879 | N84: -
B85: Siekierczyn | D85: 14338.30188 | E85: - | F85: 282.71198 | G85: 128.43299 | H85: 47.54413 | I85: 309.6528 | J85: - | K85: 1631.15772 | L85: 1487.76208 | M85: 23.8404 | N85: 0.40104
B86: POWIAT LWÓWECKI | D86: 146636.1558 | E86: 5563.11721 | F86: 4336.16332 | G86: 242.28421 | H86: 1205.1142 | I86: 2877.91267 | J86: 51.99992 | K86: 20399.06278 | L86: 6854.93962 | M86: 1114.61758 | N86: 155.16544
B87: Gminy miejsko-wiejskie:
B88: Urban-rural gminas:
B89: Gryfów Śląski | D89: 28386.77481 | E89: 2007.76065 | F89: 852.85331 | G89: 0.8 | H89: 155.53638 | I89: 458.29845 | J89: 49.91992 | K89: 4454.09617 | L89: 1649.95048 | M89: 219.80312 | N89: 58.83744
B90: Lubomierz | D90: 22338.70187 | E90: 477.494 | F90: 1060.67082 | G90: 1.5 | H90: 87.83844 | I90: 449.72674 | J90: - | K90: 2965.8923 | L90: 1137.6388 | M90: 9.91285 | N90: 96.328
B91: Lwówek Śląski | D91: 53576.13875 | E91: 2552.51631 | F91: 1719.71274 | G91: 142.97407 | H91: 359.71242 | I91: 1239.8454 | J91: 2.08 | K91: 6319.27213 | L91: 2185.27545 | M91: 417.72568 | N91: -
B92: Mirsk | D92: 27118.13684 | E92: 485.18453 | F92: 407.28035 | G92: - | H92: 165.28962 | I92: 502.18106 | J92: - | K92: 4708.78366 | L92: 1391.70593 | M92: 310.09684 | N92: -
B93: Wleń | D93: 15216.40353 | E93: 40.16172 | F93: 295.6461 | G93: 97.01014 | H93: 436.73734 | I93: 227.86102 | J93: - | K93: 1951.01852 | L93: 490.36896 | M93: 157.07909 | N93: -
B94: POWIAT ZGORZELECKI | D94: 369489.1218 | E94: 5765.0037 | F94: 7579.13192 | G94: 1112.02369 | H94: 2183.82576 | I94: 7995.97611 | J94: 92.14682 | K94: 32301.15758 | L94: 26427.21351 | M94: 1406.52009 | N94: 4183.97736
B95: Gminy miejskie:
B96: Urban gminas:
B97: Zawidów | D97: 14047.04422 | E97: 997.04307 | F97: 597.43737 | G97: - | H97: 39.20794 | I97: 475.42315 | J97: - | K97: 1056.87499 | L97: 974.28122 | M97: - | N97: -
B98: Zgorzelec | D98: 94711.40887 | E98: 21.43948 | F98: 2414.49615 | G98: 957.64941 | H98: 678.31052 | I98: 4143.42729 | J98: 4.66682 | K98: 9392.08118 | L98: 5207.42215 | M98: 41.98857 | N98: 3583.16227
B99: Gminy miejsko-wiejskie:
B100: Urban-rural gminas:
B101: Bogatynia | D101: 147915.6249 | E101: 2814.33 | F101: 2033.72241 | G101: 0.56246 | H101: 1015.79198 | I101: 1198.01433 | J101: 87.48 | K101: 8532.19573 | L101: 12943.85693 | M101: 53.59242 | N101: 127.74439
B102: Pieńsk | D102: 26978.27099 | E102: 425.16869 | F102: 1224.85981 | G102: 3.5 | H102: 108.7531 | I102: 382.60254 | J102: - | K102: 4300.75476 | L102: 1600.86685 | M102: 73.9173 | N102: 47.184
B103: Węgliniec | D103: 29591.42873 | E103: 266.55866 | F103: 148.21591 | G103: 112.22214 | H103: 116.0778 | I103: 513.82875 | J103: - | K103: 3608.21823 | L103: 2226.10412 | M103: - | N103: 133.94056
B104: Gminy wiejskie:
B105: Rural gminas:
B106: Sulików | D106: 21971.5746 | E106: 316.97222 | F106: 234.19844 | G106: 37.98748 | H106: 77.41541 | I106: 489.40548 | J106: - | K106: 2608.48623 | L106: 1228.93695 | M106: 25 | N106: 1.16922
B107: Zgorzelec | D107: 34273.7695 | E107: 923.49158 | F107: 926.20183 | G107: 0.1022 | H107: 148.26901 | I107: 793.27457 | J107: - | K107: 2802.54646 | L107: 2245.74529 | M107: 1212.0218 | N107: 290.77692
B108: POWIAT ZŁOTORYJSKI | D108: 151795.2105 | E108: 7185.1394 | F108: 7546.84113 | G108: 95.3376 | H108: 1346.84823 | I108: 3648.15813 | J108: 18.75562 | K108: 21287.74962 | L108: 8456.79989 | M108: 640.99886 | N108: 204.62789
B109: Gminy miejskie:
B110: Urban gminas:
B111: Wojcieszów | D111: 14260.53793 | E111: 1638.31337 | F111: 581.23758 | G111: 22.88129 | H111: 147.57212 | I111: 312.24371 | J111: - | K111: 2235.12104 | L111: 1205.08389 | M111: - | N111: 6.09815
B112: Złotoryja | D112: 48404.16046 | E112: 614.6696 | F112: 5845.94869 | G112: 71.37631 | H112: 453.08633 | I112: 1742.39408 | J112: - | K112: 5920.92429 | L112: 3060.72252 | M112: 20.01056 | N112: 153.01642
B113: Gminy miejsko-wiejskie:
B114: Urban-rural gminas:
B115: Świerzawa | D115: 27185.42241 | E115: 2492.12307 | F115: 293.15346 | G115: - | H115: 301.40312 | I115: 738.82034 | J115: - | K115: 4276.17426 | L115: 1724.3619 | M115: 100.64358 | N115: 19.84918
B116: Gminy wiejskie:
B117: Rural gminas:
B118: Pielgrzymka | D118: 17095.75249 | E118: 519.01405 | F118: 257.085 | G118: 1.08 | H118: 122.81441 | I118: 372.42851 | J118: - | K118: 2706.97154 | L118: 780.89055 | M118: 141.45696 | N118: -
B119: Zagrodno | D119: 18496.76648 | E119: - | F119: 129.55993 | G119: - | H119: 243.53316 | I119: 156.61213 | J119: - | K119: 2762.29801 | L119: 676.91595 | M119: 63.01065 | N119: -
B120: Złotoryja | D120: 26352.57071 | E120: 1921.01931 | F120: 439.85647 | G120: - | H120: 78.43909 | I120: 325.65936 | J120: 18.75562 | K120: 3386.26048 | L120: 1008.82508 | M120: 315.87711 | N120: 25.66414
B121: PODREGION LEGNICKO-GŁOGOWSKI | D121: 1471816.317 | E121: 26943.54466 | F121: 45782.47097 | G121: 734.38178 | H121: 12954.81835 | I121: 37271.78936 | J121: 1148.44467 | K121: 120589.4646 | L121: 65786.91409 | M121: 9343.69728 | N121: 6293.48896
B122: SUBREGION
B123: POWIAT GŁOGOWSKI | D123: 355355.651 | E123: 3408.52468 | F123: 12073.37088 | G123: 105.51615 | H123: 1941.40346 | I123: 7888.18203 | J123: 478.45267 | K123: 26544.93631 | L123: 21200.4954 | M123: 2401.83773 | N123: 1871.31249
B124: Gminy miejskie:
B125: Urban gminas:
B126: Głogów | D126: 248085.2588 | E126: 1324.23577 | F126: 10001.92025 | G126: 51.13039 | H126: 925.32244 | I126: 4999.62162 | J126: 477.80355 | K126: 18451.3833 | L126: 16805.94739 | M126: 510.81172 | N126: 839.54862
B127: Gminy wiejskie:
B128: Rural gminas:
B129: Głogów | D129: 27262.31626 | E129: 413.69691 | F129: 169.01764 | G129: 5.57 | H129: 33.6474 | I129: 1235.60713 | J129: - | K129: 1997.14322 | L129: 2131.25817 | M129: 361.57179 | N129: 443.118
B130: Jerzmanowa | D130: 36298.06905 | E130: 24.50756 | F130: 154.10869 | G130: 9.023 | H130: 341.82895 | I130: 372.76438 | J130: - | K130: 1298.11377 | L130: 373.29282 | M130: 53.60236 | N130: 26.0398
B131: Kotla | D131: 18851.44183 | E131: 1076.19882 | F131: 792.54594 | G131: 37.09276 | H131: 42.86486 | I131: 299.55888 | J131: - | K131: 1681.56263 | L131: 952.079 | M131: 203.259 | N131: 493.64
B132: Pęcław | D132: 11169.94013 | E132: 31.1508 | F132: 355.24148 | G132: - | H132: 555.33853 | I132: 621.83797 | J132: - | K132: 1491.59753 | L132: 9.43128 | M132: 681.43 | N132: 68.62688
B133: Żukowice | D133: 13688.62485 | E133: 538.73482 | F133: 600.53688 | G133: 2.7 | H133: 42.40128 | I133: 358.79205 | J133: 0.64912 | K133: 1625.13586 | L133: 928.48674 | M133: 591.16286 | N133: 0.33919
B134: POWIAT GÓROWSKI | D134: 122654.2556 | E134: 1597.45692 | F134: 4621.93892 | G134: -10.37975 | H134: 518.35616 | I134: 1924.49021 | J134: - | K134: 21377.34485 | L134: 5584.67622 | M134: 388.6753 | N134: 748.97573
B135: Gminy miejsko-wiejskie:
B136: Urban-rural gminas:
B137: Góra | D137: 68310.50809 | E137: 1181.35241 | F137: 3293.33196 | G137: 9.62025 | H137: 356.88955 | I137: 1112.57099 | J137: - | K137: 13080.19102 | L137: 2906.17347 | M137: 244.5143 | N137: 731.85779
B138: Wąsosz | D138: 25899.19265 | E138: 254.10211 | F138: 448.70088 | G138: - | H138: 91.17239 | I138: 405.21244 | J138: - | K138: 3118.20293 | L138: 1637.77783 | M138: 25 | N138: 4.17494
B139: Gminy wiejskie:
B140: Rural gminas:
B141: Jemielno | D141: 10871.8034 | E141: - | F141: 483.04432 | G141: -20 | H141: 40.33158 | I141: 166.74208 | J141: - | K141: 2387.22975 | L141: 315.11031 | M141: 13.746 | N141: -
B142: Niechlów | D142: 17572.75141 | E142: 162.0024 | F142: 396.86176 | G142: - | H142: 29.96264 | I142: 239.9647 | J142: - | K142: 2791.72115 | L142: 725.61461 | M142: 105.415 | N142: 12.943
B143: POWIAT LEGNICKI | D143: 189717.9858 | E143: 832.94408 | F143: 6465.95614 | G143: 224.20535 | H143: 1642.08119 | I143: 6838.76875 | J143: - | K143: 21157.64326 | L143: 9665.15043 | M143: 3504.05426 | N143: 566.14323
B144: Gminy miejskie:
B145: Urban gminas:
B146: Chojnów | D146: 44145.3642 | E146: - | F146: 995.0161 | G146: 120.8073 | H146: 320.24184 | I146: 3567.3671 | J146: - | K146: 4920.97446 | L146: 2006.65524 | M146: 2486.23979 | N146: -
B147: Gminy miejsko-wiejskie:
B148: Urban-rural gminas:
B149: Prochowice | D149: 25945.91634 | E149: 299.31908 | F149: 928.31882 | G149: 99.53972 | H149: 668.46619 | I149: 418.97575 | J149: - | K149: 2757.33665 | L149: 1980.46862 | M149: 44.18275 | N149: 110.133
B150: Gminy wiejskie:
B151: Rural gminas:
B152: Chojnów | D152: 29955.75543 | E152: 0.4 | F152: 899.69546 | G152: - | H152: 112.87733 | I152: 638.02854 | J152: - | K152: 4331.02235 | L152: 1320.29974 | M152: 470.04504 | N152: 4.16867
B153: Krotoszyce | D153: 14244.19351 | E153: 323.061 | F153: 1056.39167 | G153: - | H153: 70.24732 | I153: 1504.91418 | J153: - | K153: 1183.72928 | L153: 578.50344 | M153: 7.43076 | N153: 387.29668
B154: Kunice | D154: 23068.35244 | E154: - | F154: 142.97311 | G154: 1.925 | H154: 46.12969 | I154: 193.86885 | J154: - | K154: 1643.30204 | L154: 1069.26519 | M154: 0.171 | N154: 15.662
B155: Legnickie Pole | D155: 21541.30853 | E155: 124.828 | F155: 222.22664 | G155: 1.93333 | H155: 45.92039 | I155: 230.84203 | J155: - | K155: 1806.93903 | L155: 877.08529 | M155: - | N155: 0.23588
B156: Miłkowice | D156: 21309.24856 | E156: 85.336 | F156: 2133.37099 | G156: - | H156: 50.67039 | I156: 192.67765 | J156: - | K156: 2807.35982 | L156: 946.77357 | M156: 495.98492 | N156: -
B157: Ruja | D157: 9507.84684 | E157: - | F157: 87.96335 | G157: - | H157: 327.52804 | I157: 92.09465 | J157: - | K157: 1706.97963 | L157: 886.09934 | M157: - | N157: 48.647
B158: POWIAT LUBIŃSKI | D158: 447487.0867 | E158: 15748.81023 | F158: 14029.37313 | G158: 142.88628 | H158: 7412.152 | I158: 12911.4858 | J158: 62.57963 | K158: 30013.24708 | L158: 20927.72315 | M158: 1609.56788 | N158: 1248.19062
B159: Gminy miejskie:
B160: Urban gminas:
B161: Lubin | D161: 296048.8988 | E161: 10979.34338 | F161: 10702.42856 | G161: 126.23108 | H161: 1977.74965 | I161: 10820.42294 | J161: 54.38813 | K161: 19640.57646 | L161: 15611.14247 | M161: 107.37016 | N161: -
B162: Gminy miejsko-wiejskie:
B163: Urban-rural gminas:
B164: Ścinawa | D164: 35289.82829 | E164: 651.14863 | F164: 789.93121 | G164: - | H164: 186.82114 | I164: 902.73602 | J164: 6.8615 | K164: 4703.33003 | L164: 82.94065 | M164: 347.922 | N164: 1035.68302
B165: Gminy wiejskie:
B166: Rural gminas:
B167: Lubin | D167: 65595.77031 | E167: 171.88553 | F167: 1739.46412 | G167: 6.6552 | H167: 167.38637 | I167: 686.82355 | J167: 0.98 | K167: 3114.84622 | L167: 2935.97534 | M167: 1154.27572 | N167: 212.5076
B168: Rudna | D168: 50552.58927 | E168: 3946.43269 | F168: 797.54924 | G168: 10 | H168: 5080.19484 | I168: 501.50329 | J168: 0.35 | K168: 2554.49437 | L168: 2297.66469 | M168: - | N168: -
B169: POWIAT POLKOWICKI | D169: 356601.3378 | E169: 5355.80875 | F169: 8591.8319 | G169: 272.15375 | H169: 1440.82554 | I169: 7708.86257 | J169: 607.41237 | K169: 21496.29311 | L169: 8408.86889 | M169: 1439.56211 | N169: 1858.86689
B170: Gminy miejsko-wiejskie:
B171: Urban-rural gminas:
B172: Chocianów | D172: 40519.51742 | E172: 34.4 | F172: 770.6334 | G172: 5.058 | H172: 208.97085 | I172: 624.44471 | J172: - | K172: 4515.01371 | L172: 299.43089 | M172: 254.992 | N172: 37.45048
B173: Polkowice | D173: 217911.4456 | E173: 1189.56508 | F173: 6884.81727 | G173: 241.36139 | H173: 951.74954 | I173: 4177.2573 | J173: 607.41237 | K173: 7263.11675 | L173: 3253.74582 | M173: 180.05039 | N173: 497.34301
B174: Przemków | D174: 24843.27988 | E174: 35.70204 | F174: 507.81544 | G174: 19.94 | H174: 133.30476 | I174: 456.0251 | J174: - | K174: 3992.85627 | L174: 61.41872 | M174: 139.2738 | N174: -
B175: Gminy wiejskie:
B176: Rural gminas:
B177: Gaworzyce | D177: 19902.17738 | E177: 2307.67335 | F177: 48.98004 | G177: - | H177: 28.0901 | I177: 187.15266 | J177: - | K177: 1795.10176 | L177: 3742.78371 | M177: 827.6825 | N177: 179.82619
B178: Grębocice | D178: 29678.5278 | E178: 1.44028 | F178: 263.75106 | G178: 5.79436 | H178: 65.54664 | I178: 1955.93154 | J178: - | K178: 1994.26567 | L178: 53.84855 | M178: 2.18918 | N178: 443.81636
B179: Radwanice | D179: 23746.38977 | E179: 1787.028 | F179: 115.83469 | G179: - | H179: 53.16365 | I179: 308.05126 | J179: - | K179: 1935.93895 | L179: 997.6412 | M179: 35.37424 | N179: 700.43085
B180: PODREGION WAŁBRZYSKI | D180: 1786234.403 | E180: 100568.9962 | F180: 125069.9668 | G180: 4297.57578 | H180: 14199.56474 | I180: 47151.08174 | J180: 468.28367 | K180: 194986.246 | L180: 107848.1991 | M180: 9283.21974 | N180: 11557.5103
B181: SUBREGION
B182: POWIAT DZIERŻONIOWSKI | D182: 327679.9194 | E182: 37749.76294 | F182: 25791.97237 | G182: 218.08877 | H182: 1744.16689 | I182: 6851.1762 | J182: 26.66073 | K182: 36082.69014 | L182: 15301.20864 | M182: 2365.32738 | N182: 391.26713
B183: Gminy miejskie:
B184: Urban gminas:
B185: Bielawa | D185: 116702.6335 | E185: 24934.44965 | F185: 11019.28751 | G185: 99.88076 | H185: 464.03865 | I185: 2886.44212 | J185: 4.61949 | K185: 10046.53649 | L185: 8675.41928 | M185: 63.57179 | N185: -
B186: Dzierżoniów | D186: 94255.69185 | E186: 4398.69265 | F186: 6548.43357 | G186: 80.4065 | H186: 724.22924 | I186: 2143.26239 | J186: 14.84692 | K186: 11643.27424 | L186: 1943.31567 | M186: 124.49602 | N186: 20.85577
B187: Pieszyce | D187: 27913.8146 | E187: 888.944 | F187: 3470.16668 | G187: 0.8 | H187: 164.12937 | I187: 348.119 | J187: 6.56 | K187: 3902.09147 | L187: 1062.17979 | M187: 2037.58464 | N187: 26.7735
B188: Piława Górna | D188: 17074.05979 | E188: 605.02502 | F188: 1103.79386 | G188: 9.3766 | H188: 60.96661 | I188: 258.98607 | J188: - | K188: 2460.79519 | L188: 893.97197 | M188: 3.03997 | N188: 137.98728
B189: Gminy miejsko-wiejskie:
B190: Urban-rural gminas:
B191: Niemcza | D191: 15527.59427 | E191: 412.57684 | F191: 682.58376 | G191: 11.63794 | H191: 124.06627 | I191: 257.06905 | J191: - | K191: 2246.92098 | L191: 12.7207 | M191: - | N191: -
B192: Gminy wiejskie:
B193: Rural gminas:
B194: Dzierżoniów | D194: 31207.91242 | E194: 5157.20972 | F194: 2136.06678 | G194: 0.65 | H194: 111.64012 | I194: 351.37539 | J194: 0.10332 | K194: 3373.5802 | L194: 461.67419 | M194: 27.23096 | N194: 9.65972
B195: Łagiewniki | D195: 24998.2129 | E195: 1352.86506 | F195: 831.64021 | G195: 15.33697 | H195: 95.09663 | I195: 605.92218 | J195: 0.531 | K195: 2409.49157 | L195: 2251.92704 | M195: 109.404 | N195: 195.99086
B196: POWIAT KŁODZKI | D196: 527010.5302 | E196: 14051.44578 | F196: 42105.3366 | G196: 1720.55093 | H196: 5195.63696 | I196: 16699.54987 | J196: 9.83148 | K196: 61590.20773 | L196: 33853.52669 | M196: 1685.11001 | N196: 3900.26725
B197: Gminy miejskie:
B198: Urban gminas:
B199: Duszniki-Zdrój | D199: 22162.84957 | E199: 3.48716 | F199: 3598.28396 | G199: 32.48 | H199: 417.05583 | I199: 819.39231 | J199: - | K199: 1577.38732 | L199: 727.3675 | M199: - | N199: 2115
B200: Kłodzko | D200: 81828.49663 | E200: - | F200: 6531.43886 | G200: 222.51548 | H200: 1202.0903 | I200: 3110.60778 | J200: 5.60871 | K200: 10986.36133 | L200: 4917.34485 | M200: 85.32 | N200: -
B201: Kudowa-Zdrój | D201: 35089.84206 | E201: 2752.40483 | F201: 3540.24029 | G201: 122.84405 | H201: 239.78158 | I201: 1322.84386 | J201: 0.257 | K201: 2747.20166 | L201: 2490.90905 | M201: 59.12272 | N201: 4.35745
B202: Nowa Ruda | D202: 66534.52144 | E202: 730.53207 | F202: 7775.61125 | G202: 1035.86734 | H202: 924.83656 | I202: 1035.24032 | J202: - | K202: 8112.63084 | L202: 5233.08466 | M202: - | N202: 981.91263
B203: Polanica-Zdrój | D203: 24628.27531 | E203: 209.59173 | F203: 1638.79294 | G203: 54.8 | H203: 158.22908 | I203: 1354.53466 | J203: - | K203: 2000.88916 | L203: 1374.7938 | M203: 6.46427 | N203: 7.36258
B204: Gminy miejsko-wiejskie:
B205: Urban-rural gminas:
... 144 more rows

Sheet Tabl. 11.
B4: Tabl. 11. Struktura dochodów budżetów gmina według działów oraz podregionów i powiatów
B5: Structure of revenue of gminas budgetsa by divisions as well as subregions and powiats
B6: WYSZCZEGÓLNIENIE SPECIFICATION | D6: Ogółem Total | E6: W tym Of which
E7: transport i łączność transport and communication | F7: gospodarka mieszkaniowa dwelling economy | G7: działalność usługowa service activity | H7: administracja publiczna public administration | I7: oświata i wychowanie education | J7: ochrona zdrowia health care | K7: pomoc społeczna social welfare | L7: gospodarka komunalna i ochrona środowiska municipal economy and environmental protection | M7: kultura i ochrona dziedzictwa narodowego culture and national heritage | N7: kultura fizyczna physical education
D9: w % in %
B10: O G Ó Ł E M | C10: 2014 | D10: 100 | E10: 2.949113 | F10: 5.526885 | G10: 0.113105 | H10: 1.023645 | I10: 2.509071 | J10: 0.028779 | K10: 10.058832 | L10: 3.714294 | M10: 0.815187 | N10: 0.729839
B11: T O T A L | C11: 2015 | D11: 100 | E11: 3.177415853 | F11: 5.060567935 | G11: 0.1258108551 | H11: 0.7368119881 | I11: 2.692385866 | J11: 0.03476161693 | K11: 9.664291587 | L11: 5.987652966 | M11: 0.7059041764 | N11: 0.6518419586
B13: Gminy miejskie | D13: 100 | E13: 3.990994883 | F13: 7.932363041 | G13: 0.2202789583 | H13: 0.7087239534 | I13: 3.047522217 | J13: 0.02678931143 | K13: 9.48085753 | L13: 6.246510399 | M13: 0.3664779189 | N13: 0.5692507954
B14: Urban gminas
B15: Gminy miejsko-wiejskie | D15: 100 | E15: 2.673624643 | F15: 4.478091885 | G15: 0.1129760378 | H15: 0.6919280836 | I15: 2.600443244 | J15: 0.05501451993 | K15: 10.19937953 | L15: 5.526915144 | M15: 0.4653304827 | N15: 0.8262065539
B16: Urban-rural gminas
B17: Gminy wiejskie | D17: 100 | E17: 2.921017043 | F17: 2.691802976 | G17: 0.04014701167 | H17: 0.8218926092 | I17: 2.42382837 | J17: 0.01852656071 | K17: 9.206171507 | L17: 6.273829165 | M17: 1.364613128 | N17: 0.5270432917
B18: Rural gminas
B19: PODREGION JELENIOGÓRSKI | D19: 100 | E19: 3.530366113 | F19: 4.993968285 | G19: 0.1499736982 | H19: 0.7053102566 | I19: 2.301231492 | J19: 0.01957691253 | K19: 11.13482095 | L19: 6.829881962 | M19: 0.6100607099 | N19: 0.7007038545
B20: SUBREGION
B21: POWIAT BOLESŁAWIECKI | D21: 100 | E21: 1.204568535 | F21: 8.82626469 | G21: 0.03168047146 | H21: 0.8416817274 | I21: 2.855783454 | J21: 0.03217623663 | K21: 10.40458357 | L21: 6.223913053 | M21: 1.438002024 | N21: 1.027251565
B22: Gminy miejskie:
B23: Urban gminas:
B24: Bolesławiec | D24: 100 | E24: 0.4253482415 | F24: 17.31564206 | G24: 0.0277809735 | H24: 0.9028734851 | I24: 3.023755984 | J24: 0.006198629713 | K24: 9.725544674 | L24: 7.945908235 | M24: 1.549039913 | N24: 1.088157757
B25: Gminy miejsko-wiejskie:
B26: Urban-rural gminas:
B27: Nowogrodziec | D27: 100 | E27: 2.046796887 | F27: 1.051357523 | G27: 0.02191569904 | H27: 0.6424746127 | I27: 3.929616509 | J27: 0.06297614668 | K27: 12.26212615 | L27: 5.07909369 | M27: 0.001884246309 | N27: -
B28: Gminy wiejskie:
B29: Rural gminas:
B30: Bolesławiec | D30: 100 | E30: 0.5461449276 | F30: 2.155759597 | G30: 0.03121606347 | H30: 0.4586812387 | I30: 3.476649653 | J30: 0.009780364782 | K30: 9.629193185 | L30: 6.806026888 | M30: 4.310240739 | N30: 0.6149519941
B31: Gromadka | D31: 100 | E31: 3.465142643 | F31: 1.736746354 | G31: 0.03863483368 | H31: 0.4751098515 | I31: 1.306161212 | J31: 0.309565479 | K31: 13.58973523 | L31: 3.172516273 | M31: 0.03518688789 | N31: -
B32: Osiecznica | D32: 100 | E32: 1.842327808 | F32: 0.6846975997 | G32: 0.03475136867 | H32: 2.015520872 | I32: 1.426364672 | J32: - | K32: 9.431227211 | L32: 3.07058098 | M32: 0.0666647966 | N32: 4.232175917
B33: Warta Bolesławiecka | D33: 100 | E33: 2.726273555 | F33: 1.161576335 | G33: 0.05717410606 | H33: 0.3925071322 | I33: 2.172574735 | J33: - | K33: 11.31901837 | L33: 3.784651821 | M33: 0.8273984711 | N33: 0.02776218394
B34: POWIAT JAWORSKI | D34: 100 | E34: 2.843832857 | F34: 4.138217073 | G34: 0.1304960111 | H34: 0.4571122401 | I34: 2.726342944 | J34: 0.029715954 | K34: 10.93255352 | L34: 10.36302944 | M34: 0.2683933504 | N34: 0.2389763448
B35: Gminy miejskie:
B36: Urban gminas:
B37: Jawor | D37: 100 | E37: 0.3839745278 | F37: 4.286877748 | G37: 0.2983522898 | H37: 0.3414893012 | I37: 2.68821056 | J37: 0.0004908621317 | K37: 10.51471914 | L37: 13.78269268 | M37: 0.08799658107 | N37: 0.000194703778
B38: Gminy miejsko-wiejskie:
B39: Urban-rural gminas:
B40: Bolków | D40: 100 | E40: 1.543008226 | F40: 4.444130328 | G40: 0.003915875263 | H40: 0.5084047751 | I40: 2.641947908 | J40: 0.001044233404 | K40: 15.63402995 | L40: 3.170953939 | M40: - | N40: 0.2420467765
B41: Gminy wiejskie:
B42: Rural gminas:
B43: Męcinka | D43: 100 | E43: 7.653354891 | F43: 5.495046046 | G43: - | H43: 0.5963680358 | I43: 0.9340112824 | J43: 0.269785847 | K43: 10.39869977 | L43: 2.804856724 | M43: 0.2361885522 | N43: 0.4202128238
B44: Mściwojów | D44: 100 | E44: 7.671390448 | F44: 2.805207046 | G44: 0.01352221051 | H44: 0.2648237034 | I44: 3.828751569 | J44: - | K44: 6.390277023 | L44: 20.31081426 | M44: 1.412726768 | N44: 1.038145175
B45: Paszowice | D45: 100 | E45: 5.046647189 | F45: 5.921386993 | G45: 0.02706588596 | H45: 0.2141232809 | I45: 4.258429187 | J45: - | K45: 9.853354444 | L45: 8.35903869 | M45: 0.1396003554 | N45: -
B46: Wądroże Wielkie | D46: 100 | E46: 2.05478626 | F46: 1.060989928 | G46: - | H46: 1.352822942 | I46: 2.164784497 | J46: - | K46: 11.82451686 | L46: 4.463362106 | M46: 0.1332096226 | N46: 0.1891496472
B47: POWIAT JELENIOGÓRSKI | D47: 100 | E47: 6.9526846 | F47: 6.544750142 | G47: 0.2384856736 | H47: 0.7695971905 | I47: 1.750003442 | J47: 0.003949519176 | K47: 11.06963755 | L47: 6.154727707 | M47: 0.2936961301 | N47: 0.2941676787
B48: Gminy miejskie:
B49: Urban gminas:
B50: Karpacz | D50: 100 | E50: 5.424185029 | F50: 12.35814068 | G50: 0.2517439761 | H50: 2.180973655 | I50: 1.470170206 | J50: - | K50: 3.669947019 | L50: 4.753102064 | M50: 0.2466158062 | N50: 0.3799323923
B51: Kowary | D51: 100 | E51: 4.972199936 | F51: 5.661709276 | G51: 0.5056077407 | H51: 0.9373758039 | I51: 2.231651072 | J51: 0.01840536284 | K51: 16.79516255 | L51: 5.285657069 | M51: 0.07322975455 | N51: 0.05147191622
B52: Piechowice | D52: 100 | E52: 7.06466149 | F52: 4.279339311 | G52: 0.539171282 | H52: 0.5190898085 | I52: 2.519507183 | J52: - | K52: 12.07848033 | L52: 6.208853979 | M52: - | N52: 0.07987951532
B53: Szklarska Poręba | D53: 100 | E53: 15.60023936 | F53: 14.82240522 | G53: 0.1460210279 | H53: 0.7869271554 | I53: 0.9117663221 | J53: 0.009270483902 | K53: 6.144605141 | L53: 7.352554075 | M53: - | N53: 0.4933870984
B54: Gminy wiejskie:
B55: Rural gminas:
B56: Janowice Wielkie | D56: 100 | E56: 9.860423763 | F56: 5.084521701 | G56: 0.02399192553 | H56: 0.4239002072 | I56: 1.148557054 | J56: - | K56: 10.70584157 | L56: 7.131003735 | M56: 0.5195727381 | N56: 0.01058467303
B57: Jeżów Sudecki | D57: 100 | E57: 9.324861284 | F57: 1.445101763 | G57: 0.002042879875 | H57: 0.2493223754 | I57: 0.7112670753 | J57: - | K57: 11.25842057 | L57: 6.811831728 | M57: 0.1610134179 | N57: 0.12992716
B58: Mysłakowice | D58: 100 | E58: 3.952708921 | F58: 3.48035745 | G58: 0.1627580959 | H58: 0.3835618605 | I58: 2.646638201 | J58: - | K58: 13.36447562 | L58: 6.737136856 | M58: 0.0002970320102 | N58: 0.9054129734
B59: Podgórzyn | D59: 100 | E59: 2.509768989 | F59: 2.23978571 | G59: 0.2141177736 | H59: 0.471203711 | I59: 2.36626056 | J59: - | K59: 15.96571504 | L59: 7.792676717 | M59: 0.9339551723 | N59: 0.0003345298964
B60: Stara Kamienica | D60: 100 | E60: 1.534881044 | F60: 2.529841084 | G60: 0.2411788871 | H60: 0.2890358208 | I60: 1.674041374 | J60: - | K60: 12.61457038 | L60: 3.122931087 | M60: 1.304674797 | N60: 0.122679385
B61: POWIAT KAMIENNOGÓRSKI | D61: 100 | E61: 1.825095538 | F61: 5.726201013 | G61: 0.02334740105 | H61: 0.7921559952 | I61: 2.058265948 | J61: 0.01064252434 | K61: 12.64515391 | L61: 5.683521264 | M61: 0.07032881054 | N61: 0.9323650366
B62: Gminy miejskie:
B63: Urban gminas:
B64: Kamienna Góra | D64: 100 | E64: 0.2745706932 | F64: 9.428362365 | G64: 0.008760862688 | H64: 0.6755829225 | I64: 1.990209084 | J64: 0.005801443272 | K64: 13.54358466 | L64: 6.453423502 | M64: 4.503083422e-05 | N64: 0.5298672431
B65: Gminy miejsko-wiejskie:
B66: Urban-rural gminas:
B67: Lubawka | D67: 100 | E67: 4.165087198 | F67: 1.649626056 | G67: 0.01126996637 | H67: 0.9692460996 | I67: 2.804327144 | J67: 0.03183765499 | K67: 11.3146091 | L67: 4.174743954 | M67: 0.07712883233 | N67: 2.482980507
B68: Gminy wiejskie:
B69: Rural gminas:
B70: Kamienna Góra | D70: 100 | E70: 2.087869199 | F70: 4.424110272 | G70: 0.02306989674 | H70: 0.7957096067 | I70: 1.799193409 | J70: - | K70: 11.61484559 | L70: 6.147548143 | M70: 0.2189584714 | N70: 0.3285557572
B71: Marciszów | D71: 100 | E71: 1.677867565 | F71: 3.880745889 | G71: 0.1057801999 | H71: 0.809266413 | I71: 1.084242081 | J71: - | K71: 14.34439917 | L71: 5.423886898 | M71: 0.03208259122 | N71: -
B72: POWIAT LUBAŃSKI | D72: 100 | E72: 7.312626323 | F72: 4.373434398 | G72: 0.1039525346 | H72: 0.5546329254 | I72: 2.343468133 | J72: 0.0002282941184 | K72: 11.67465228 | L72: 8.31736102 | M72: 0.8386810079 | N72: 0.9970654758
B73: Gminy miejskie:
B74: Urban gminas:
B75: Lubań | D75: 100 | E75: 0.001952251218 | F75: 5.833943382 | G75: 0.02280496045 | H75: 0.7990470456 | I75: 3.656662751 | J75: - | K75: 11.3298603 | L75: 7.835149731 | M75: 0.1327711964 | N75: 0.39156236
B76: Świeradów-Zdrój | D76: 100 | E76: 13.24281349 | F76: 10.40158542 | G76: 0.0757350915 | H76: 0.4133913599 | I76: 2.096031737 | J76: - | K76: 6.025681672 | L76: 18.37124505 | M76: 0.02068480424 | N76: -
B77: Gminy miejsko-wiejskie:
B78: Urban-rural gminas:
B79: Leśna | D79: 100 | E79: 10.59769925 | F79: 1.967303098 | G79: - | H79: 0.6266945389 | I79: 1.863327184 | J79: - | K79: 17.11904439 | L79: 4.089768116 | M79: 0.02839590725 | N79: 2.080108915
B80: Olszyna | D80: 100 | E80: 20.96167826 | F80: 2.537438731 | G80: - | H80: 0.3352877716 | I80: 1.569602595 | J80: 0.001807241799 | K80: 13.60873115 | L80: 5.128616961 | M80: 1.183406026 | N80: 0.8032185772
B81: Gminy wiejskie:
B82: Rural gminas:
B83: Lubań | D83: 100 | E83: 4.308026899 | F83: 0.3024371977 | G83: 0.1473085983 | H83: 0.2885397542 | I83: 1.263323048 | J83: - | K83: 9.875283555 | L83: 5.501584394 | M83: 4.396204844 | N83: 3.378454656
B84: Platerówka | D84: 100 | E84: 3.45278046 | F84: 0.6252738699 | G84: 0.07026759573 | H84: 0.8627804152 | I84: 0.8507275371 | J84: - | K84: 12.68184337 | L84: 3.897583491 | M84: 3.70672427 | N84: -
B85: Siekierczyn | D85: 100 | E85: - | F85: 1.971725678 | G85: 0.8957336167 | H85: 0.3315882899 | I85: 2.159619755 | J85: - | K85: 11.37622665 | L85: 10.37613863 | M85: 0.1662707355 | N85: 0.002796983934
B86: POWIAT LWÓWECKI | D86: 100 | E86: 3.793823685 | F86: 2.95709015 | G86: 0.1652281517 | H86: 0.8218397389 | I86: 1.962621466 | J86: 0.03546186799 | K86: 13.91134585 | L86: 4.674794959 | M86: 0.7601246595 | N86: 0.1058166311
B87: Gminy miejsko-wiejskie:
B88: Urban-rural gminas:
B89: Gryfów Śląski | D89: 100 | E89: 7.072873419 | F89: 3.00440369 | G89: 0.002818213782 | H89: 0.5479184622 | I89: 1.61447876 | J89: 0.1758562582 | K89: 15.69074402 | L89: 5.812391478 | M89: 0.7743152277 | N89: 0.2072706054
B90: Lubomierz | D90: 100 | E90: 2.137519014 | F90: 4.748130962 | G90: 0.006714803791 | H90: 0.3932119266 | I90: 2.013217879 | J90: - | K90: 13.27692324 | L90: 5.092680885 | M90: 0.04437522851 | N90: 0.4312157464
B91: Lwówek Śląski | D91: 100 | E91: 4.764278221 | F91: 3.209848227 | G91: 0.2668614673 | H91: 0.6714041519 | I91: 2.31417461 | J91: 0.00388232532 | K91: 11.79493759 | L91: 4.078822216 | M91: 0.7796860501 | N91: -
B92: Mirsk | D92: 100 | E92: 1.789151419 | F92: 1.501874382 | G92: - | H92: 0.6095168742 | I92: 1.851827295 | J92: - | K92: 17.36396452 | L92: 5.132011606 | M92: 1.143503486 | N92: -
B93: Wleń | D93: 100 | E93: 0.2639370067 | F93: 1.942943347 | G93: 0.6375365888 | H93: 2.87017454 | I93: 1.497469619 | J93: - | K93: 12.82181112 | L93: 3.222633778 | M93: 1.032301028 | N93: -
B94: POWIAT ZGORZELECKI | D94: 100 | E94: 1.560263445 | F94: 2.051246295 | G94: 0.3009624978 | H94: 0.5910392569 | I94: 2.164062658 | J94: 0.02493898049 | K94: 8.742113278 | L94: 7.15236578 | M94: 0.3806661704 | N94: 1.132368211
B95: Gminy miejskie:
B96: Urban gminas:
B97: Zawidów | D97: 100 | E97: 7.097885181 | F97: 4.253118027 | G97: - | H97: 0.279118791 | I97: 3.38450668 | J97: - | K97: 7.523824752 | L97: 6.935845041 | M97: - | N97: -
B98: Zgorzelec | D98: 100 | E98: 0.0226366393 | F98: 2.54931922 | G98: 1.011123603 | H98: 0.7161867066 | I98: 4.37479216 | J98: 0.0049274106 | K98: 9.916525677 | L98: 5.498199438 | M98: 0.0443331701 | N98: 3.783242497
B99: Gminy miejsko-wiejskie:
B100: Urban-rural gminas:
B101: Bogatynia | D101: 100 | E101: 1.902659034 | F101: 1.374920609 | G101: 0.000380257326 | H101: 0.6867374428 | I101: 0.8099308851 | J101: 0.05914182498 | K101: 5.768285626 | L101: 8.750838148 | M101: 0.03623175039 | N101: 0.08636301276
B102: Pieńsk | D102: 100 | E102: 1.575967156 | F102: 4.540171646 | G102: 0.01297340367 | H102: 0.4031136763 | I102: 1.418187771 | J102: - | K102: 15.94155075 | L102: 5.933911964 | M102: 0.2739882776 | N102: 0.1748963083
B103: Węgliniec | D103: 100 | E103: 0.9007968572 | F103: 0.5008744639 | G103: 0.3792386675 | H103: 0.3922683188 | I103: 1.736410752 | J103: - | K103: 12.19345731 | L103: 7.522800404 | M103: - | N103: 0.4526329608
B104: Gminy wiejskie:
B105: Rural gminas:
B106: Sulików | D106: 100 | E106: 1.44264681 | F106: 1.065915594 | G106: 0.1728937534 | H106: 0.3523434775 | I106: 2.227448369 | J106: - | K106: 11.87209509 | L106: 5.59330395 | M106: 0.113783379 | N106: 0.005321512096
B107: Zgorzelec | D107: 100 | E107: 2.694455829 | F107: 2.702363479 | G107: 0.0002981872187 | H107: 0.4326019932 | I107: 2.314523852 | J107: - | K107: 8.176942603 | L107: 6.552373208 | M107: 3.536295592 | N107: 0.848394922
B108: POWIAT ZŁOTORYJSKI | D108: 100 | E108: 4.73344276 | F108: 4.971725462 | G108: 0.06280672473 | H108: 0.8872797934 | I108: 2.403342054 | J108: 0.01235587074 | K108: 14.02399295 | L108: 5.5711902 | M108: 0.4222787122 | N108: 0.1348052349
B109: Gminy miejskie:
B110: Urban gminas:
B111: Wojcieszów | D111: 100 | E111: 11.48844018 | F111: 4.075846107 | G111: 0.1604518014 | H111: 1.034828565 | I111: 2.189564738 | J111: - | K111: 15.67346934 | L111: 8.45047989 | M111: - | N111: 0.04276241212
B112: Złotoryja | D112: 100 | E112: 1.269869355 | F112: 12.07736821 | G112: 0.1474590393 | H112: 0.9360483184 | I112: 3.599678341 | J112: - | K112: 12.23226316 | L112: 6.323263312 | M112: 0.0413405786 | N112: 0.3161224542
B113: Gminy miejsko-wiejskie:
B114: Urban-rural gminas:
B115: Świerzawa | D115: 100 | E115: 9.167130208 | F115: 1.078348004 | G115: - | H115: 1.1086939 | I115: 2.717707781 | J115: - | K115: 15.72965906 | L115: 6.342965263 | M115: 0.3702115733 | N115: 0.07301405768
B116: Gminy wiejskie:
B117: Rural gminas:
B118: Pielgrzymka | D118: 100 | E118: 3.035923983 | F118: 1.503794584 | G118: 0.006317358658 | H118: 0.7183913669 | I118: 2.178485622 | J118: - | K118: 15.83417601 | L118: 4.567745997 | M118: 0.8274392138 | N118: -
B119: Zagrodno | D119: 100 | E119: - | F119: 0.7004463734 | G119: - | H119: 1.316625586 | I119: 0.8467000444 | J119: - | K119: 14.93395082 | L119: 3.659644786 | M119: 0.3406576499 | N119: -
B120: Złotoryja | D120: 100 | E120: 7.289684681 | F120: 1.669121676 | G120: - | H120: 0.297652517 | I120: 1.235778337 | J120: 0.07117187999 | K120: 12.84982978 | L120: 3.8281847 | M120: 1.19865767 | N120: 0.0973876146
B121: PODREGION LEGNICKO-GŁOGOWSKI | D121: 100 | E121: 1.830632284 | F121: 3.110610369 | G121: 0.04989629287 | H121: 0.8801926029 | I121: 2.532366908 | J121: 0.07802907583 | K121: 8.193241454 | L121: 4.469777467 | M121: 0.634841262 | N121: 0.4276001623
B122: SUBREGION
B123: POWIAT GŁOGOWSKI | D123: 100 | E123: 0.9591868515 | F123: 3.397545768 | G123: 0.0296931116 | H123: 0.5463268854 | I123: 2.219799237 | J123: 0.1346405126 | K123: 7.469963187 | L123: 5.965993602 | M123: 0.6758968722 | N123: 0.5266027105
B124: Gminy miejskie:
B125: Urban gminas:
B126: Głogów | D126: 100 | E126: 0.5337825295 | F126: 4.031646337 | G126: 0.02061000732 | H126: 0.37298566 | I126: 2.015283634 | J126: 0.1925965099 | K126: 7.437517 | L126: 6.774262795 | M126: 0.2059016817 | N126: 0.3384113284
B127: Gminy wiejskie:
B128: Rural gminas:
B129: Głogów | D129: 100 | E129: 1.517467944 | F129: 0.6199680115 | G129: 0.02043113266 | H129: 0.1234209143 | I129: 4.53228962 | J129: - | K129: 7.325654948 | L129: 7.817597557 | M129: 1.326269516 | N129: 1.62538647
B130: Jerzmanowa | D130: 100 | E130: 0.06751753094 | F130: 0.4245644301 | G130: 0.02485807162 | H130: 0.9417276427 | I130: 1.026953746 | J130: - | K130: 3.576261228 | L130: 1.028409581 | M130: 0.1476727589 | N130: 0.07173880232
B131: Kotla | D131: 100 | E131: 5.708840892 | F131: 4.20416617 | G131: 0.1967635173 | H131: 0.2273823954 | I131: 1.589050231 | J131: - | K131: 8.920074364 | L131: 5.05043067 | M131: 1.07821461 | N131: 2.618579547
B132: Pęcław | D132: 100 | E132: 0.2788806353 | F132: 3.180334683 | G132: - | H132: 4.971723425 | I132: 5.567066276 | J132: - | K132: 13.35367524 | L132: 0.08443447226 | M132: 6.100569851 | N132: 0.614388969
B133: Żukowice | D133: 100 | E133: 3.935638721 | F133: 4.387123517 | G133: 0.01972440643 | H133: 0.3097555851 | I133: 2.621096377 | J133: 0.004742039519 | K133: 11.87216304 | L133: 6.782907342 | M133: 4.318643154 | N133: 0.002477896821
B134: POWIAT GÓROWSKI | D134: 100 | E134: 1.302406437 | F134: 3.768266253 | G134: -0.008462608944 | H134: 0.4226157158 | I134: 1.56903664 | J134: - | K134: 17.42894672 | L134: 4.55318586 | M134: 0.316886926 | N134: 0.6106398238
B135: Gminy miejsko-wiejskie:
B136: Urban-rural gminas:
B137: Góra | D137: 100 | E137: 1.729386068 | F137: 4.821120574 | G137: 0.01408311879 | H137: 0.5224519038 | I137: 1.628696699 | J137: - | K137: 19.14813897 | L137: 4.25435786 | M137: 0.3579453686 | N137: 1.071369267
B138: Wąsosz | D138: 100 | E138: 0.9811198111 | F138: 1.732489835 | G138: - | H138: 0.3520279232 | I138: 1.564575566 | J138: - | K138: 12.03976885 | L138: 6.323663645 | M138: 0.09652810548 | N138: 0.01611996195
B139: Gminy wiejskie:
B140: Rural gminas:
B141: Jemielno | D141: 100 | E141: - | F141: 4.443092854 | G141: -0.1839621198 | H141: 0.3709741477 | I141: 1.533711325 | J141: - | K141: 21.95799227 | L141: 2.898418031 | M141: 0.126437165 | N141: -
B142: Niechlów | D142: 100 | E142: 0.9218954745 | F142: 2.258392842 | G142: - | H142: 0.1705062531 | I142: 1.365549961 | J142: - | K142: 15.88664794 | L142: 4.12920318 | M142: 0.5998776033 | N142: 0.07365380468
B143: POWIAT LEGNICKI | D143: 100 | E143: 0.4390432864 | F143: 3.408193541 | G143: 0.118178226 | H143: 0.8655379629 | I143: 3.604702379 | J143: - | K143: 11.15215469 | L143: 5.094482944 | M143: 1.84698053 | N143: 0.2984130511
B144: Gminy miejskie:
B145: Urban gminas:
B146: Chojnów | D146: 100 | E146: - | F146: 2.253953768 | G146: 0.273657953 | H146: 0.7254257515 | I146: 8.080955191 | J146: - | K146: 11.14720549 | L146: 4.545562771 | M146: 5.631938563 | N146: -
B147: Gminy miejsko-wiejskie:
B148: Urban-rural gminas:
B149: Prochowice | D149: 100 | E149: 1.153626937 | F149: 3.577899535 | G149: 0.3836431086 | H149: 2.576383047 | I149: 1.614804212 | J149: - | K149: 10.62724713 | L149: 7.633064849 | M149: 0.1702878766 | N149: 0.4244714218
B150: Gminy wiejskie:
B151: Rural gminas:
B152: Chojnów | D152: 100 | E152: 0.001335302663 | F152: 3.003414359 | G152: - | H152: 0.3768134984 | I152: 2.129903021 | J152: - | K152: 14.45806419 | L152: 4.407499397 | M152: 1.569130984 | N152: 0.01391609038
B153: Krotoszyce | D153: 100 | E153: 2.268018893 | F153: 7.416296818 | G153: - | H153: 0.4931646004 | I153: 10.56510626 | J153: - | K153: 8.310258346 | L153: 4.061328145 | M153: 0.05216694083 | N153: 2.718979349
B154: Kunice | D154: 100 | E154: - | F154: 0.6197803262 | G154: 0.008344765865 | H154: 0.1999695909 | I154: 0.8404104736 | J154: - | K154: 7.123621179 | L154: 4.635203978 | M154: 0.0007412753054 | N154: 0.06789388207
B155: Legnickie Pole | D155: 100 | E155: 0.5794819745 | F155: 1.03163018 | G155: 0.00897498867 | H155: 0.2131736331 | I155: 1.071624919 | J155: - | K155: 8.388251008 | L155: 4.071643507 | M155: - | N155: 0.001095012402
B156: Miłkowice | D156: 100 | E156: 0.400464614 | F156: 10.01147921 | G156: - | H156: 0.2377859072 | I156: 0.9041972994 | J156: - | K156: 13.17437268 | L156: 4.443017159 | M156: 2.327557063 | N156: -
B157: Ruja | D157: 100 | E157: - | F157: 0.9251658286 | G157: - | H157: 3.444818217 | I157: 0.9686173068 | J157: - | K157: 17.95337744 | L157: 9.319663589 | M157: - | N157: 0.511651069
B158: POWIAT LUBIŃSKI | D158: 100 | E158: 3.519388759 | F158: 3.135145917 | G158: 0.03193081638 | H158: 1.656394613 | I158: 2.885331484 | J158: 0.01398467841 | K158: 6.707064398 | L158: 4.676721133 | M158: 0.3596903526 | N158: 0.2789333272
B159: Gminy miejskie:
B160: Urban gminas:
B161: Lubin | D161: 100 | E161: 3.708624968 | F161: 3.615088116 | G161: 0.04263859129 | H161: 0.6680483048 | I161: 3.654944498 | J161: 0.01837133332 | K161: 6.634233918 | L161: 5.273163498 | M161: 0.03626771132 | N161: -
B162: Gminy miejsko-wiejskie:
B163: Urban-rural gminas:
B164: Ścinawa | D164: 100 | E164: 1.845145362 | F164: 2.238410466 | G164: - | H164: 0.5293909012 | I164: 2.558062943 | J164: 0.01944327964 | K164: 13.32772149 | L164: 0.2350270716 | M164: 0.985898818 | N164: 2.934791894
B165: Gminy wiejskie:
B166: Rural gminas:
B167: Lubin | D167: 100 | E167: 0.2620375204 | F167: 2.651793114 | G167: 0.01014577612 | H167: 0.2551786025 | I167: 1.04705463 | J167: 0.001493998768 | K167: 4.748547361 | L167: 4.475860755 | M167: 1.759680105 | N167: 0.3239654005
B168: Rudna | D168: 100 | E168: 7.806588638 | F168: 1.577662493 | G168: 0.01978138043 | H168: 10.04932668 | I168: 0.9920427366 | J168: 0.000692348315 | K168: 5.053142494 | L168: 4.545097933 | M168: - | N168: -
B169: POWIAT POLKOWICKI | D169: 100 | E169: 1.501903718 | F169: 2.409366143 | G169: 0.07631876865 | H169: 0.4040437842 | I169: 2.161759296 | J169: 0.1703337328 | K169: 6.028102206 | L169: 2.358058705 | M169: 0.4036894866 | N169: 0.5212731117
B170: Gminy miejsko-wiejskie:
B171: Urban-rural gminas:
B172: Chocianów | D172: 100 | E172: 0.08489735858 | F172: 1.90188198 | G172: 0.01248287325 | H172: 0.5157288717 | I172: 1.541096118 | J172: - | K172: 11.14281215 | L172: 0.7389794081 | M172: 0.6293066064 | N172: 0.09242577993
B173: Polkowice | D173: 100 | E173: 0.5458938042 | F173: 3.159456472 | G173: 0.1107612266 | H173: 0.4367597753 | I173: 1.916951764 | J173: 0.2787427564 | K173: 3.333058863 | L173: 1.493150491 | M173: 0.08262548556 | N173: 0.2282317061
B174: Przemków | D174: 100 | E174: 0.1437090439 | F174: 2.044075671 | G174: 0.08026315405 | H174: 0.5365827727 | I174: 1.835607465 | J174: - | K174: 16.07217843 | L174: 0.2472246833 | M174: 0.5606095518 | N174: -
B175: Gminy wiejskie:
B176: Rural gminas:
B177: Gaworzyce | D177: 100 | E177: 11.5950798 | F177: 0.2461039265 | G177: - | H177: 0.1411408383 | I177: 0.9403627373 | J177: - | K177: 9.019624967 | L177: 18.80590067 | M177: 4.158753508 | N177: 0.903550333
B178: Grębocice | D178: 100 | E178: 0.004852936135 | F178: 0.8886932053 | G178: 0.01952374471 | H178: 0.2208554294 | I178: 6.590392735 | J178: - | K178: 6.719557262 | L178: 0.1814394244 | M178: 0.007376309279 | N178: 1.495412316
B179: Radwanice | D179: 100 | E179: 7.525472366 | F179: 0.4877991607 | G179: - | H179: 0.2238809794 | I179: 1.297255132 | J179: - | K179: 8.152561163 | L179: 4.201233154 | M179: 0.1489668128 | N179: 2.949630899
B180: PODREGION WAŁBRZYSKI | D180: 100 | E180: 5.630223896 | F180: 7.001878736 | G180: 0.2405941669 | H180: 0.7949440856 | I180: 2.639691726 | J180: 0.02621624963 | K180: 10.91605031 | L180: 6.037740565 | M180: 0.5197089321 | N180: 0.6470321186
B181: SUBREGION
B182: POWIAT DZIERŻONIOWSKI | D182: 100 | E182: 11.52031623 | F182: 7.871087255 | G182: 0.06655542715 | H182: 0.5322776243 | I182: 2.090813564 | J182: 0.008136211109 | K182: 11.01156586 | L182: 4.66955945 | M182: 0.7218408087 | N182: 0.1194052815
B183: Gminy miejskie:
B184: Urban gminas:
B185: Bielawa | D185: 100 | E185: 21.36579861 | F185: 9.442192671 | G185: 0.08558569501 | H185: 0.3976248316 | I185: 2.473330749 | J185: 0.00395834255 | K185: 8.608663049 | L185: 7.433781927 | M185: 0.05447331228 | N185: -
B186: Dzierżoniów | D186: 100 | E186: 4.666766074 | F186: 6.94752056 | G186: 0.08530678458 | H186: 0.7683665843 | I186: 2.273881129 | J186: 0.015751749 | K186: 12.35286062 | L186: 2.061748879 | M186: 0.1320832913 | N186: 0.02212680167
B187: Pieszyce | D187: 100 | E187: 3.184602365 | F187: 12.43171788 | G187: 0.002865964439 | H187: 0.5879861723 | I187: 1.247120843 | J187: 0.0235009084 | K187: 13.97906924 | L187: 3.805211882 | M187: 7.2995564 | N187: 0.09591487363
B188: Piława Górna | D188: 100 | E188: 3.54353345 | F188: 6.464741682 | G188: 0.05491722599 | H188: 0.3570715504 | I188: 1.516839423 | J188: - | K188: 14.41247846 | L188: 5.23584889 | M188: 0.01780461142 | N188: 0.8081691273
B189: Gminy miejsko-wiejskie:
B190: Urban-rural gminas:
B191: Niemcza | D191: 100 | E191: 2.657055773 | F191: 4.395940209 | G191: 0.07495005213 | H191: 0.7990050992 | I191: 1.655562642 | J191: - | K191: 14.47050291 | L191: 0.08192318642 | M191: - | N191: -
B192: Gminy wiejskie:
B193: Rural gminas:
B194: Dzierżoniów | D194: 100 | E194: 16.52532746 | F194: 6.844632064 | G194: 0.002082805127 | H194: 0.3577301759 | I194: 1.125917637 | J194: 0.0003310698858 | K194: 10.8100156 | L194: 1.4793498 | M194: 0.0872565894 | N194: 0.0309527913
B195: Łagiewniki | D195: 100 | E195: 5.4118471 | F195: 3.326798653 | G195: 0.06135226571 | H195: 0.3804137135 | I195: 2.423861987 | J195: 0.002124151843 | K195: 9.63865529 | L195: 9.008352113 | M195: 0.4376472848 | N195: 0.7840194848
B196: POWIAT KŁODZKI | D196: 100 | E196: 2.666255222 | F196: 7.989467798 | G196: 0.326473729 | H196: 0.9858696673 | I196: 3.168731726 | J196: 0.001865518702 | K196: 11.68671292 | L196: 6.423690753 | M196: 0.3197488311 | N196: 0.7400738746
B197: Gminy miejskie:
B198: Urban gminas:
B199: Duszniki-Zdrój | D199: 100 | E199: 0.01573425831 | F199: 16.23565575 | G199: 0.1465515519 | H199: 1.881778914 | I199: 3.697143309 | J199: - | K199: 7.117258613 | L199: 3.281922289 | M199: - | N199: 9.542996686
B200: Kłodzko | D200: 100 | E200: - | F200: 7.981863445 | G200: 0.2719290824 | H200: 1.469036276 | I200: 3.801374714 | J200: 0.006854225888 | K200: 13.42608233 | L200: 6.009330554 | M200: 0.1042668551 | N200: -
B201: Kudowa-Zdrój | D201: 100 | E201: 7.843879221 | F201: 10.08907445 | G201: 0.3500843628 | H201: 0.683336162 | I201: 3.769876928 | J201: 0.0007324056904 | K201: 7.829051084 | L201: 7.098661333 | M201: 0.1684895586 | N201: 0.01241798123
B202: Nowa Ruda | D202: 100 | E202: 1.097974486 | F202: 11.68658176 | G202: 1.556887038 | H202: 1.390010088 | I202: 1.55594464 | J202: - | K202: 12.19311519 | L202: 7.865217254 | M202: - | N202: 1.475794232
B203: Polanica-Zdrój | D203: 100 | E203: 0.8510207368 | F203: 6.654111664 | G203: 0.2225084758 | H203: 0.6424691864 | I203: 5.499916835 | J203: - | K203: 8.124357613 | L203: 5.582176513 | M203: 0.02624735154 | N203: 0.02989482579
B204: Gminy miejsko-wiejskie:
B205: Urban-rural gminas:
... 144 more rows

Sheet Tabl. 12.
B4: Tabl. 12. Wydatki budżetów gmina według rodzajów oraz podregionów i powiatów
B5: Expenditure of gminas budgetsa by types as well as subregions and powiats
B6: WYSZCZEGÓLNIENIE SPECIFICATION | D6: Ogółem Total | E6: Wydatki majątkowe Property expenditure | G6: Wydatki bieżące Current expenditure
E7: razem total | F7: w tym inwestycyjneb of which investment expenditureb | G7: razem total | H7: w tym of which
H8: dotacje grants | J8: świadczenia na rzecz osób fizycznych benefits for natural persons | K8: wydatki bieżące jednostek budżetowych current expenditures of budgetary units | O8: na obsługę długu publicznego on public dept servicing
H9: razem total | I9: w tym dla samorządowych zakładów budżetowych of which for local government budgetary establishments | K9: razem total | L9: w tym of which
L10: wynagrodzenia wages and salaries | M10: pochodne od wynagrodzeńc derivatives from wages and salariesc | N10: zakup materiałów i usług purchase of materials and services
D11: w tys. zł in thous. zl
B12: O G Ó Ł E M | C12: 2014 | D12: 6913856.02 | E12: 1365203.74 | F12: 1306256.318 | G12: 5548652.281 | H12: 485138.1749 | I12: 36559.7036 | J12: 783255.6491 | K12: 4093250.436 | L12: 1959339.88 | M12: 367060.3673 | N12: 1472992.795 | O12: 93291.31126
B13: T O T A L | C13: 2015 | D13: 6880258.213 | E13: 1170111.704 | F13: 1121662.766 | G13: 5710146.509 | H13: 519975.5876 | I13: 41289.06664 | J13: 783369.8963 | K13: 4242312.632 | L13: 2029330.061 | M13: 381498.4819 | N13: 1529950.243 | O13: 77469.99919
B15: Gminy miejskie | D15: 2229792.516 | E15: 303146.1226 | F15: 285264.9477 | G15: 1926646.393 | H15: 198433.5857 | I15: 8832.60076 | J15: 240801.2578 | K15: 1454688.335 | L15: 680422.3639 | M15: 124648.8131 | N15: 564387.0814 | O15: 27374.14322
B16: Urban gminas
B17: Gminy miejsko-wiejskie | D17: 2573118.581 | E17: 431983.2462 | F17: 410388.1601 | G17: 2141135.335 | H17: 185412.4555 | I17: 19083.812 | J17: 304335.1302 | K17: 1566440.237 | L17: 763267.6359 | M17: 144176.8235 | N17: 551027.5996 | O17: 30600.49152
B18: Urban-rural gminas
B19: Gminy wiejskie | D19: 2077347.116 | E19: 434982.3354 | F19: 426009.6584 | G19: 1642364.781 | H19: 136129.5463 | I19: 13372.65388 | J19: 238233.5083 | K19: 1221184.059 | L19: 585640.0613 | M19: 112672.8452 | N19: 414535.5615 | O19: 19495.36445
B20: Rural gminas
B21: PODREGION JELENIOGÓRSKI | D21: 1666103.287 | E21: 245809.8297 | F21: 236946.3147 | G21: 1420293.457 | H21: 114418.1655 | I21: 8837.2513 | J21: 216357.1108 | K21: 1051812.884 | L21: 504700.9273 | M21: 93593.13512 | N21: 376736.8766 | O21: 16857.12677
B22: SUBREGION
B23: POWIAT BOLESŁAWIECKI | D23: 295708.4258 | E23: 53051.10296 | F23: 50651.10296 | G23: 242657.3228 | H23: 23625.05553 | I23: 158.58 | J23: 33939.88031 | K23: 181946.3037 | L23: 83421.57151 | M23: 15637.51717 | N23: 69274.47929 | O23: 2292.23765
B24: Gminy miejskie:
B25: Urban gminas:
B26: Bolesławiec | D26: 137287.6914 | E26: 23494.16458 | F26: 22294.16458 | G26: 113793.5268 | H26: 13499.63523 | I26: - | J26: 12970.74315 | K26: 85311.51666 | L26: 37253.77873 | M26: 6761.64299 | N26: 37539.02356 | O26: 1540.32417
B27: Gminy miejsko-wiejskie:
B28: Urban-rural gminas:
B29: Nowogrodziec | D29: 43499.21697 | E29: 9831.4267 | F29: 8631.4267 | G29: 33667.79027 | H29: 1583.65425 | I29: - | J29: 5796.39191 | K29: 25770.83095 | L29: 14349.28809 | M29: 2710.64829 | N29: 7105.34354 | O29: 419.45716
B30: Gminy wiejskie:
B31: Rural gminas:
B32: Bolesławiec | D32: 42161.92402 | E32: 10639.82577 | F32: 10639.82577 | G32: 31522.09825 | H32: 4213.5957 | I32: - | J32: 4788.94019 | K32: 22410.31638 | L32: 9799.39021 | M32: 1910.48482 | N32: 7736.63954 | O32: 16.06848
B33: Gromadka | D33: 20066.31018 | E33: 3677.98287 | F33: 3677.98287 | G33: 16388.32731 | H33: 895.09736 | I33: 31.14 | J33: 3020.63271 | K33: 12319.36181 | L33: 5903.05361 | M33: 1100.03971 | N33: 3725.50478 | O33: 149.03228
B34: Osiecznica | D34: 25784.68436 | E34: 2139.9067 | F34: 2139.9067 | G34: 23644.77766 | H34: 1184.23354 | I34: 127.44 | J34: 3499.83763 | K34: 18718.65844 | L34: 8729.18281 | M34: 1798.46824 | N34: 6420.69874 | O34: 167.35556
B35: Warta Bolesławiecka | D35: 26908.59885 | E35: 3267.79634 | F35: 3267.79634 | G35: 23640.80251 | H35: 2248.83945 | I35: - | J35: 3863.33472 | K35: 17415.61943 | L35: 7386.87806 | M35: 1356.23312 | N35: 6747.26913 | O35: -
B36: POWIAT JAWORSKI | D36: 160804.1893 | E36: 25977.991 | F36: 25977.991 | G36: 134826.1983 | H36: 9821.82157 | I36: 1739.28951 | J36: 21274.94689 | K36: 101853.3511 | L36: 54220.50712 | M36: 10022.85028 | N36: 30545.01904 | O36: 1690.98091
B37: Gminy miejskie:
B38: Urban gminas:
B39: Jawor | D39: 66829.51092 | E39: 5609.66449 | F39: 5609.66449 | G39: 61219.84643 | H39: 6262.48452 | I39: 1091.071 | J39: 8372.08718 | K39: 45914.19231 | L39: 25133.12337 | M39: 4508.80762 | N39: 14193.13795 | O39: 656.23955
B40: Gminy miejsko-wiejskie:
B41: Urban-rural gminas:
B42: Bolków | D42: 28428.212 | E42: 2072.40227 | F42: 2072.40227 | G42: 26355.80973 | H42: 1587.25524 | I42: 178.84426 | J42: 5423.90244 | K42: 18975.6784 | L42: 10243.09769 | M42: 2002.98447 | N42: 5350.18264 | O42: 331.93277
B43: Gminy wiejskie:
B44: Rural gminas:
B45: Męcinka | D45: 17559.0537 | E45: 2644.67594 | F45: 2644.67594 | G45: 14914.37776 | H45: 489.71354 | I45: - | J45: 2364.051 | K45: 11850.38027 | L45: 5481.37188 | M45: 1039.88733 | N45: 4288.50499 | O45: 177.43944
B46: Mściwojów | D46: 22038.8611 | E46: 12107.75142 | F46: 12107.75142 | G46: 9931.10968 | H46: 264.64463 | I46: 98.88625 | J46: 1645.50805 | K46: 7803.41788 | L46: 4156.15975 | M46: 768.07905 | N46: 1992.84384 | O46: 186.84377
B47: Paszowice | D47: 13228.90881 | E47: 2256.64339 | F47: 2256.64339 | G47: 10972.26542 | H47: 504.25547 | I47: - | J47: 1627.48008 | K47: 8680.83182 | L47: 4506.42159 | M47: 849.60647 | N47: 2516.52234 | O47: 133.78401
B48: Wądroże Wielkie | D48: 12719.64277 | E48: 1286.85349 | F48: 1286.85349 | G48: 11432.78928 | H48: 713.46817 | I48: 370.488 | J48: 1841.91814 | K48: 8628.85045 | L48: 4700.33284 | M48: 853.48534 | N48: 2203.82728 | O48: 204.74137
B49: POWIAT JELENIOGÓRSKI | D49: 235401.4615 | E49: 40594.61302 | F49: 40035.06302 | G49: 194806.8484 | H49: 16286.76302 | I49: - | J49: 30970.38234 | K49: 142941.9706 | L49: 61911.14609 | M49: 11283.93336 | N49: 58566.23075 | O49: 2883.98842
B50: Gminy miejskie:
B51: Urban gminas:
B52: Karpacz | D52: 31707.39972 | E52: 8267.32247 | F52: 8267.32247 | G52: 23440.07725 | H52: 1936.19538 | I52: - | J52: 1804.07198 | K52: 18530.00456 | L52: 8031.31091 | M52: 1432.22919 | N52: 7941.59013 | O52: 169.12821
B53: Kowary | D53: 32218.80515 | E53: 3687.03802 | F53: 3687.03802 | G53: 28531.76713 | H53: 3655.62686 | I53: - | J53: 6045.02553 | K53: 18530.93966 | L53: 8275.13864 | M53: 1393.09802 | N53: 7586.7097 | O53: 255.19348
B54: Piechowice | D54: 19784.66508 | E54: 2230.8648 | F54: 2230.8648 | G54: 17553.80028 | H54: 1137.69355 | I54: - | J54: 2711.3675 | K54: 13499.41454 | L54: 5754.32818 | M54: 1017.17147 | N54: 6062.28283 | O54: 171.04739
B55: Szklarska Poręba | D55: 37070.96611 | E55: 9279.34763 | F55: 8722.34763 | G55: 27791.61848 | H55: 4099.18081 | I55: - | J55: 2662.09482 | K55: 20700.45884 | L55: 7439.92457 | M55: 1312.25634 | N55: 9982.93568 | O55: 292.08847
B56: Gminy wiejskie:
B57: Rural gminas:
B58: Janowice Wielkie | D58: 12923.27947 | E58: 1549.5621 | F58: 1549.5621 | G58: 11373.71737 | H58: 589.13405 | I58: - | J58: 1740.35928 | K58: 8194.80951 | L58: 3755.77292 | M58: 693.58943 | N58: 3009.90883 | O58: 307.82833
B59: Jeżów Sudecki | D59: 22946.04683 | E59: 6542.26737 | F59: 6542.26737 | G59: 16403.77946 | H59: 1431.17223 | I59: - | J59: 3071.33672 | K59: 11626.49621 | L59: 5183.30623 | M59: 982.06268 | N59: 4591.04916 | O59: 253.39177
B60: Mysłakowice | D60: 33900.43582 | E60: 2674.33052 | F60: 2674.33052 | G60: 31226.1053 | H60: 1262.23708 | I60: - | J60: 5709.65172 | K60: 23836.95088 | L60: 10250.62013 | M60: 1917.23488 | N60: 9271.95884 | O60: 413.95307
B61: Podgórzyn | D61: 23401.02215 | E61: 1660.94301 | F61: 1660.94301 | G61: 21740.07914 | H61: 1702.95626 | I61: - | J61: 4339.59772 | K61: 15259.82947 | L61: 7275.95153 | M61: 1353.60393 | N61: 5773.45964 | O61: 404.86206
B62: Stara Kamienica | D62: 21448.84112 | E62: 4702.9371 | F62: 4700.3871 | G62: 16745.90402 | H62: 472.5668 | I62: - | J62: 2886.87707 | K62: 12763.06696 | L62: 5944.79298 | M62: 1182.68742 | N62: 4346.33594 | O62: 616.49564
B63: POWIAT KAMIENNOGÓRSKI | D63: 132470.5527 | E63: 15603.14348 | F63: 15353.14348 | G63: 116867.4093 | H63: 6427.68081 | I63: 400 | J63: 19439.78184 | K63: 89635.72798 | L63: 45030.87029 | M63: 8673.05259 | N63: 30528.43132 | O63: 1161.31439
B64: Gminy miejskie:
B65: Urban gminas:
B66: Kamienna Góra | D66: 54658.52237 | E66: 1065.12132 | F66: 1065.12132 | G66: 53593.40105 | H66: 3182.14272 | I66: - | J66: 8140.54942 | K66: 41473.23496 | L66: 19877.47574 | M66: 3798.5477 | N66: 15764.79687 | O66: 677.32715
B67: Gminy miejsko-wiejskie:
B68: Urban-rural gminas:
B69: Lubawka | D69: 35811.11086 | E69: 9077.55589 | F69: 8827.55589 | G69: 26733.55497 | H69: 1981.36241 | I69: 400 | J69: 4584.66035 | K69: 19925.77124 | L69: 10640.44505 | M69: 2105.68479 | N69: 5579.87461 | O69: 233.33184
B70: Gminy wiejskie:
B71: Rural gminas:
B72: Kamienna Góra | D72: 28757.62162 | E72: 3984.99524 | F72: 3984.99524 | G72: 24772.62638 | H72: 1189.19211 | I72: - | J72: 4023.86442 | K72: 19431.35614 | L72: 9671.39041 | M72: 1892.01463 | N72: 6659.94103 | O72: 122.44318
B73: Marciszów | D73: 13243.29789 | E73: 1475.47103 | F73: 1475.47103 | G73: 11767.82686 | H73: 74.98357 | I73: - | J73: 2690.70765 | K73: 8805.36564 | L73: 4841.55909 | M73: 876.80547 | N73: 2523.81881 | O73: 128.21222
B74: POWIAT LUBAŃSKI | D74: 191364.181 | E74: 30501.76434 | F74: 29712.79934 | G74: 160862.4166 | H74: 9515.73258 | I74: - | J74: 26767.51921 | K74: 122175.2868 | L74: 61207.13937 | M74: 11093.83704 | N74: 40727.04798 | O74: 2051.06876
B75: Gminy miejskie:
B76: Urban gminas:
B77: Lubań | D77: 59608.7676 | E77: 2564.21879 | F77: 1786.21879 | G77: 57044.54881 | H77: 4285.50669 | I77: - | J77: 7806.00166 | K77: 44094.67241 | L77: 22722.62661 | M77: 3946.92992 | N77: 15190.23801 | O77: 763.23695
B78: Świeradów-Zdrój | D78: 27769.80884 | E78: 6749.09093 | F78: 6749.09093 | G78: 21020.71791 | H78: 543.05234 | I78: - | J78: 2498.27924 | K78: 17295.59667 | L78: 6814.51818 | M78: 1245.90425 | N78: 7838.75601 | O78: 683.29241
B79: Gminy miejsko-wiejskie:
B80: Urban-rural gminas:
B81: Leśna | D81: 35440.07912 | E81: 6909.60608 | F81: 6909.60608 | G81: 28530.47304 | H81: 2028.83332 | I81: - | J81: 7131.64373 | K81: 19092.32957 | L81: 9338.48437 | M81: 1755.53256 | N81: 5781.61713 | O81: 208.23393
B82: Olszyna | D82: 24727.4404 | E82: 6693.70991 | F82: 6682.74491 | G82: 18033.73049 | H82: 669.86098 | I82: - | J82: 3931.72159 | K82: 13139.48508 | L82: 7076.16223 | M82: 1299.19253 | N82: 4050.36842 | O82: 237.33531
B83: Gminy wiejskie:
B84: Rural gminas:
B85: Lubań | D85: 24082.48539 | E85: 6464.83208 | F85: 6464.83208 | G85: 17617.65331 | H85: 1145.41919 | I85: - | J85: 2662.96704 | K85: 13666.43448 | L85: 7278.0542 | M85: 1361.85798 | N85: 3832.21384 | O85: 70.87525
B86: Platerówka | D86: 5567.47801 | E86: 287.66823 | F86: 287.66823 | G86: 5279.80978 | H86: 192.957 | I86: - | J86: 792.99181 | K86: 4269.24599 | L86: 2420.12932 | M86: 445.0491 | N86: 1046.5753 | O86: 6.44043
B87: Siekierczyn | D87: 14168.12163 | E87: 832.63832 | F87: 832.63832 | G87: 13335.48331 | H87: 650.10306 | I87: - | J87: 1943.91414 | K87: 10617.52263 | L87: 5557.16446 | M87: 1039.3707 | N87: 2987.27927 | O87: 81.65448
B88: POWIAT LWÓWECKI | D88: 141432.5649 | E88: 19914.00256 | F88: 19913.50256 | G88: 121518.5623 | H88: 7765.93621 | I88: 177.84906 | J88: 22860.74505 | K88: 88584.46839 | L88: 44050.00263 | M88: 8075.29391 | N88: 30613.79593 | O88: 1255.13195
B89: Gminy miejsko-wiejskie:
B90: Urban-rural gminas:
B91: Gryfów Śląski | D91: 27310.95551 | E91: 5378.71548 | F91: 5378.71548 | G91: 21932.24003 | H91: 1836.31418 | I91: - | J91: 4842.4709 | K91: 15017.12667 | L91: 8043.91976 | M91: 1443.06811 | N91: 4525.91446 | O91: 155.07128
B92: Lubomierz | D92: 22286.32992 | E92: 2142.85876 | F92: 2142.85876 | G92: 20143.47116 | H92: 867.0582 | I92: - | J92: 3618.96687 | K92: 15345.40169 | L92: 7874.30506 | M92: 1454.06317 | N92: 4947.8011 | O92: 261.87109
B93: Lwówek Śląski | D93: 49926.93013 | E93: 7289.8593 | F93: 7289.8593 | G93: 42637.07083 | H93: 3536.58935 | I93: - | J93: 6576.4113 | K93: 31935.2488 | L93: 14742.98686 | M93: 2611.55022 | N93: 12581.41615 | O93: 441.00197
B94: Mirsk | D94: 27299.86368 | E94: 1816.04037 | F94: 1815.54037 | G94: 25483.82331 | H94: 900.31706 | I94: 177.84906 | J94: 5547.71166 | K94: 18069.84565 | L94: 9117.00272 | M94: 1760.36444 | N94: 6164.41988 | O94: 201.83191
B95: Wleń | D95: 14608.48566 | E95: 3286.52865 | F95: 3286.52865 | G95: 11321.95701 | H95: 625.65742 | I95: - | J95: 2275.18432 | K95: 8216.84558 | L95: 4271.78823 | M95: 806.24797 | N95: 2394.24434 | O95: 195.3557
B96: POWIAT ZGORZELECKI | D96: 363673.8198 | E96: 43454.85888 | F96: 38590.35888 | G96: 320218.9609 | H96: 32044.45099 | I96: 5377.53773 | J96: 37499.42087 | K96: 231473.2988 | L96: 108924.9988 | M96: 20116.55055 | N96: 85570.96021 | O96: 3934.02311
B97: Gminy miejskie:
B98: Urban gminas:
B99: Zawidów | D99: 12837.60792 | E99: 196.82939 | F99: 196.82939 | G99: 12640.77853 | H99: 554.39591 | I99: - | J99: 1412.82385 | K99: 10467.80304 | L99: 4925.09631 | M99: 913.47504 | N99: 4236.69531 | O99: 127.89296
B100: Zgorzelec | D100: 94896.7808 | E100: 13208.31211 | F100: 11403.31211 | G100: 81688.46869 | H100: 11557.96561 | I100: 550 | J100: 10389.98366 | K100: 57833.93297 | L100: 27332.17621 | M100: 5193.96959 | N100: 20645.50958 | O100: 1564.9258
B101: Gminy miejsko-wiejskie:
B102: Urban-rural gminas:
B103: Bogatynia | D103: 145791.6707 | E103: 13953.73301 | F103: 10991.73301 | G103: 131837.9377 | H103: 12482.61226 | I103: 4491.45514 | J103: 10015.04955 | K103: 93833.73562 | L103: 42952.59698 | M103: 7670.64673 | N103: 37851.2414 | O103: 1165.32468
B104: Pieńsk | D104: 25794.086 | E104: 2800.76042 | F104: 2720.26042 | G104: 22993.32558 | H104: 1293.47052 | I104: - | J104: 4610.87302 | K104: 16712.27843 | L104: 8525.01706 | M104: 1664.44909 | N104: 5128.44053 | O104: 206.97545
B105: Węgliniec | D105: 29715.15771 | E105: 6575.7733 | F105: 6575.7733 | G105: 23139.38441 | H105: 1966.60518 | I105: 336.08259 | J105: 4461.74273 | K105: 16374.60115 | L105: 8388.52044 | M105: 1608.07874 | N105: 5032.7252 | O105: 270.69251
B106: Gminy wiejskie:
B107: Rural gminas:
B108: Sulików | D108: 20867.94395 | E108: 974.51988 | F108: 957.51988 | G108: 19893.42407 | H108: 1049.1388 | I108: - | J108: 3101.2467 | K108: 15336.65708 | L108: 6446.44938 | M108: 1195.26807 | N108: 5393.63203 | O108: 232.95917
B109: Zgorzelec | D109: 33770.57278 | E109: 5744.93077 | F109: 5744.93077 | G109: 28025.64201 | H109: 3140.26271 | I109: - | J109: 3507.70136 | K109: 20914.29056 | L109: 10355.14238 | M109: 1870.66329 | N109: 7282.71616 | O109: 365.25254
B110: POWIAT ZŁOTORYJSKI | D110: 145248.0921 | E110: 16712.35343 | F110: 16712.35343 | G110: 128535.7386 | H110: 8930.72478 | I110: 983.995 | J110: 23604.43433 | K110: 93202.47638 | L110: 45934.69155 | M110: 8690.10022 | N110: 30910.91205 | O110: 1588.38158
B111: Gminy miejskie:
B112: Urban gminas:
B113: Wojcieszów | D113: 13704.51411 | E113: 2228.62365 | F113: 2228.62365 | G113: 11475.89046 | H113: 266.65433 | I113: - | J113: 2550.13153 | K113: 8506.41251 | L113: 4260.14872 | M113: 735.90137 | N113: 2721.36896 | O113: 112.38287
B114: Złotoryja | D114: 44696.63901 | E114: 2311.53643 | F114: 2311.53643 | G114: 42385.10258 | H114: 3684.81668 | I114: - | J114: 5773.64599 | K114: 31974.40417 | L114: 14896.87471 | M114: 2756.46319 | N114: 12925.57001 | O114: 808.20187
B115: Gminy miejsko-wiejskie:
B116: Urban-rural gminas:
B117: Świerzawa | D117: 24454.744 | E117: 2491.7853 | F117: 2491.7853 | G117: 21962.9587 | H117: 1092.0438 | I117: - | J117: 4844.36254 | K117: 15086.91058 | L117: 7318.36954 | M117: 1471.07053 | N117: 5267.75939 | O117: 206.11039
B118: Gminy wiejskie:
B119: Rural gminas:
B120: Pielgrzymka | D120: 17064.28513 | E120: 1447.1129 | F120: 1447.1129 | G120: 15617.17223 | H120: 891.10715 | I120: - | J120: 3333.3288 | K120: 11173.89136 | L120: 5985.3887 | M120: 1093.92111 | N120: 2698.51107 | O120: 193.676
B121: Zagrodno | D121: 19208.24517 | E121: 4009.41 | F121: 4009.41 | G121: 15198.83517 | H121: 676.924 | I121: 294.924 | J121: 3127.19193 | K121: 11268.07781 | L121: 5572.31472 | M121: 1016.04355 | N121: 2971.86653 | O121: 41.74432
B122: Złotoryja | D122: 26119.66464 | E122: 4223.88515 | F122: 4223.88515 | G122: 21895.77949 | H122: 2319.17882 | I122: 689.071 | J122: 3975.77354 | K122: 15192.77995 | L122: 7901.59516 | M122: 1616.70047 | N122: 4325.83609 | O122: 226.26613
B123: PODREGION LEGNICKO-GŁOGOWSKI | D123: 1420880.714 | E123: 205606.8637 | F123: 195130.0407 | G123: 1215273.85 | H123: 117299.9879 | I123: 14000.26355 | J123: 142692.8282 | K123: 892526.3036 | L123: 445410.0701 | M123: 81200.04537 | N123: 309620.821 | O123: 15895.86013
B124: SUBREGION
B125: POWIAT GŁOGOWSKI | D125: 339131.0675 | E125: 51003.15352 | F125: 49188.65352 | G125: 288127.914 | H125: 30348.39851 | I125: 3747.12376 | J125: 33528.11686 | K125: 212667.0118 | L125: 101560.3301 | M125: 18705.52016 | N125: 80663.62678 | O125: 7540.11601
B126: Gminy miejskie:
B127: Urban gminas:
B128: Głogów | D128: 234712.2617 | E128: 28556.42818 | F128: 26742.42818 | G128: 206155.8335 | H128: 24801.28821 | I128: 2896.12376 | J128: 23680.98953 | K128: 150647.3024 | L128: 73036.65211 | M128: 13332.97094 | N128: 58161.64954 | O128: 6658.78519
B129: Gminy wiejskie:
B130: Rural gminas:
B131: Głogów | D131: 22450.31465 | E131: 2907.45435 | F131: 2907.45435 | G131: 19542.8603 | H131: 1514.79641 | I131: - | J131: 2375.82564 | K131: 15385.0629 | L131: 6753.41101 | M131: 1349.30793 | N131: 6308.98251 | O131: 254.32702
B132: Jerzmanowa | D132: 37180.0944 | E132: 9138.75366 | F132: 9138.75366 | G132: 28041.34074 | H132: 2481.6935 | I132: 851 | J132: 2087.38172 | K132: 19768.1598 | L132: 8870.28685 | M132: 1654.41222 | N132: 7353.92394 | O132: 170.77023
B133: Kotla | D133: 18604.29654 | E133: 3701.38454 | F133: 3701.38454 | G133: 14902.912 | H133: 539.89861 | I133: - | J133: 1879.82158 | K133: 12240.7526 | L133: 5669.43232 | M133: 1076.80804 | N133: 4280.77829 | O133: 140.48121
B134: Pęcław | D134: 12443.93439 | E134: 4723.41129 | F134: 4722.91129 | G134: 7720.5231 | H134: 475.61661 | I134: - | J134: 1667.77931 | K134: 5308.23966 | L134: 2739.04449 | M134: 441.752 | N134: 1383.91842 | O134: 256.37972
B135: Żukowice | D135: 13740.16584 | E135: 1975.7215 | F135: 1975.7215 | G135: 11764.44434 | H135: 535.10517 | I135: - | J135: 1836.31908 | K135: 9317.49452 | L135: 4491.50327 | M135: 850.26903 | N135: 3174.37408 | O135: 59.37264
B136: POWIAT GÓROWSKI | D136: 123397.4874 | E136: 17868.1915 | F136: 17813.1915 | G136: 105529.2959 | H136: 3647.19875 | I136: 207.15345 | J136: 23922.53741 | K136: 76255.01972 | L136: 41740.68756 | M136: 8245.85263 | N136: 19984.48866 | O136: 1587.23809
B137: Gminy miejsko-wiejskie:
B138: Urban-rural gminas:
B139: Góra | D139: 70148.15918 | E139: 9876.43204 | F139: 9876.43204 | G139: 60271.72714 | H139: 2021.61818 | I139: - | J139: 13891.19352 | K139: 43424.10899 | L139: 23569.45983 | M139: 4629.19929 | N139: 11868.49801 | O139: 885.76484
B140: Wąsosz | D140: 26670.44995 | E140: 6293.34063 | F140: 6238.34063 | G140: 20377.10932 | H140: 698.69564 | I140: 159.70797 | J140: 4004.49128 | K140: 15251.71321 | L140: 8681.29473 | M140: 1676.99947 | N140: 3651.22671 | O140: 399.57615
B141: Gminy wiejskie:
B142: Rural gminas:
B143: Jemielno | D143: 10572.33817 | E143: 446.61257 | F143: 446.61257 | G143: 10125.7256 | H143: 377.49345 | I143: - | J143: 2742.33761 | K143: 6816.36945 | L143: 3669.51295 | M143: 772.38254 | N143: 1708.27323 | O143: 171.7005
B144: Niechlów | D144: 16006.54014 | E144: 1251.80626 | F144: 1251.80626 | G144: 14754.73388 | H144: 549.39148 | I144: 47.44548 | J144: 3284.515 | K144: 10762.82807 | L144: 5820.42005 | M144: 1167.27133 | N144: 2756.49071 | O144: 130.1966
B145: POWIAT LEGNICKI | D145: 185394.5728 | E145: 29970.4606 | F145: 29970.4606 | G145: 155424.1123 | H145: 13568.50681 | I145: 2744.84312 | J145: 25178.24614 | K145: 114344.0308 | L145: 57696.90441 | M145: 10563.54774 | N145: 37799.15081 | O145: 1690.68828
B146: Gminy miejskie:
B147: Urban gminas:
B148: Chojnów | D148: 43276.17461 | E148: 6579.90877 | F148: 6579.90877 | G148: 36696.26584 | H148: 2457.11478 | I148: - | J148: 5299.19682 | K148: 28728.56624 | L148: 16241.6612 | M148: 2865.02855 | N148: 8268.29058 | O148: 188.67844
B149: Gminy miejsko-wiejskie:
B150: Urban-rural gminas:
B151: Prochowice | D151: 23759.01418 | E151: 1830.28569 | F151: 1830.28569 | G151: 21928.72849 | H151: 1499.46806 | I151: - | J151: 3346.07825 | K151: 16805.37596 | L151: 8547.82433 | M151: 1655.44994 | N151: 5590.27724 | O151: 212.72112
B152: Gminy wiejskie:
B153: Rural gminas:
B154: Chojnów | D154: 29214.32222 | E154: 4558.91297 | F154: 4558.91297 | G154: 24655.40925 | H154: 2235.16678 | I154: 315.554 | J154: 5332.05675 | K154: 16716.84823 | L154: 8551.8672 | M154: 1500.79467 | N154: 5164.89683 | O154: 340.08752
B155: Krotoszyce | D155: 12910.98981 | E155: 1829.80273 | F155: 1829.80273 | G155: 11081.18708 | H155: 457.62989 | I155: - | J155: 1378.27059 | K155: 9146.9356 | L155: 4097.82637 | M155: 799.81452 | N155: 3187.67174 | O155: 61.37747
B156: Kunice | D156: 24139.85774 | E156: 5808.1608 | F156: 5808.1608 | G156: 18331.69694 | H156: 1721.85474 | I156: - | J156: 2282.25035 | K156: 13666.77959 | L156: 6211.58907 | M156: 1181.95356 | N156: 5403.08288 | O156: 287.23807
B157: Legnickie Pole | D157: 21931.4777 | E157: 4794.03306 | F157: 4794.03306 | G157: 17137.44464 | H157: 2522.86874 | I157: 1217.308 | J157: 2271.93057 | K157: 12157.95759 | L157: 5531.68148 | M157: 1002.20397 | N157: 4720.9055 | O157: 121.99011
B158: Miłkowice | D158: 20100.4126 | E158: 3161.2901 | F158: 3161.2901 | G158: 16939.1225 | H158: 2659.40382 | I158: 1211.98112 | J158: 3330.53662 | K158: 10541.66527 | L158: 5385.06347 | M158: 975.24072 | N158: 3306.44679 | O158: 380.61355
B159: Ruja | D159: 10062.32399 | E159: 1408.06648 | F159: 1408.06648 | G159: 8654.25751 | H159: 15 | I159: - | J159: 1937.92619 | K159: 6579.9023 | L159: 3129.39129 | M159: 583.06181 | N159: 2157.57925 | O159: 97.982
B160: POWIAT LUBIŃSKI | D160: 431917.7499 | E160: 51916.85189 | F160: 48515.98127 | G160: 380000.898 | H160: 41652.1853 | I160: 5608.38464 | J160: 33557.53261 | K160: 295904.5817 | L160: 148176.4517 | M160: 26135.48152 | N160: 105195.7363 | O160: 2892.11954
B161: Gminy miejskie:
B162: Urban gminas:
B163: Lubin | D163: 290670.6336 | E163: 28642.47936 | F163: 25241.60874 | G163: 262028.1542 | H163: 23249.34834 | I163: 210 | J163: 20855.30098 | K163: 215354.9328 | L163: 111169.4313 | M163: 19383.39976 | N163: 74287.77993 | O163: 2069.73365
B164: Gminy miejsko-wiejskie:
B165: Urban-rural gminas:
B166: Ścinawa | D166: 34615.13569 | E166: 7362.35618 | F166: 7362.35618 | G166: 27252.77951 | H166: 1720.83933 | I166: 228.0171 | J166: 5403.295 | K166: 19366.21888 | L166: 9830.87592 | M166: 1718.0165 | N166: 6324.07853 | O166: 543.35885
B167: Gminy wiejskie:
B168: Rural gminas:
B169: Lubin | D169: 60589.39039 | E169: 7243.8884 | F169: 7243.8884 | G169: 53345.50199 | H169: 10592.56835 | I169: 3615.49871 | J169: 3908.57981 | K169: 35783.7999 | L169: 16202.43764 | M169: 2837.94223 | N169: 13563.57076 | O169: 279.02704
B170: Rudna | D170: 46042.59026 | E170: 8668.12795 | F170: 8668.12795 | G170: 37374.46231 | H170: 6089.42928 | I170: 1554.86883 | J170: 3390.35682 | K170: 25399.63016 | L170: 10973.70675 | M170: 2196.12303 | N170: 11020.30704 | O170: -
B171: POWIAT POLKOWICKI | D171: 341039.8362 | E171: 54848.20622 | F171: 49641.75378 | G171: 286191.63 | H171: 28083.69857 | I171: 1692.75858 | J171: 26506.39522 | K171: 193355.6595 | L171: 96235.69646 | M171: 17549.64332 | N171: 65977.8185 | O171: 2185.69821
B172: Gminy miejsko-wiejskie:
B173: Urban-rural gminas:
B174: Chocianów | D174: 38414.06838 | E174: 6838.17802 | F174: 6837.67802 | G174: 31575.89036 | H174: 2588.29441 | I174: 1201.4 | J174: 5099.66289 | K174: 22964.9896 | L174: 13739.75752 | M174: 2581.12791 | N174: 5083.45945 | O174: 689.71448
B175: Polkowice | D175: 211116.7763 | E175: 26615.78933 | F175: 21410.33689 | G175: 184500.9869 | H175: 21258.06434 | I175: - | J175: 9542.07127 | K175: 119788.8926 | L175: 54950.77344 | M175: 10240.95262 | N175: 47546.39592 | O175: 1.62865
B176: Przemków | D176: 22721.55391 | E176: 1713.37203 | F176: 1713.37203 | G176: 21008.18188 | H176: 739.552 | I176: - | J176: 4637.62204 | K176: 14192.02132 | L176: 8431.87839 | M176: 971.30016 | N176: 3239.65407 | O176: 1280.58033
B177: Gminy wiejskie:
B178: Rural gminas:
B179: Gaworzyce | D179: 18013.86385 | E179: 7759.77789 | F179: 7759.77789 | G179: 10254.08596 | H179: 753.55984 | I179: - | J179: 2149.84225 | K179: 7209.01147 | L179: 3928.37963 | M179: 711.9273 | N179: 1609.88704 | O179: 129.11757
B180: Grębocice | D180: 29096.11916 | E180: 5739.69582 | F180: 5739.19582 | G180: 23356.42334 | H180: 2221.29276 | I180: 491.35858 | J180: 2704.40757 | K180: 17766.91529 | L180: 8818.40016 | M180: 1750.83967 | N180: 5485.53606 | O180: 5.57526
B181: Radwanice | D181: 21677.45465 | E181: 6181.39313 | F181: 6181.39313 | G181: 15496.06152 | H181: 522.93522 | I181: - | J181: 2372.7892 | K181: 11433.82918 | L181: 6366.50732 | M181: 1293.49566 | N181: 3012.88596 | O181: 79.08192
B182: PODREGION WAŁBRZYSKI | D182: 1722614.003 | E182: 253655.1611 | F182: 243622.7299 | G182: 1468958.842 | H182: 134155.5386 | I182: 5895.94465 | J182: 219596.8099 | K182: 1090127.429 | L182: 496038.4541 | M182: 94878.46426 | N182: 422263.5261 | O182: 20917.70125
B183: SUBREGION
B184: POWIAT DZIERŻONIOWSKI | D184: 313624.9794 | E184: 53872.4409 | F184: 52647.2409 | G184: 259752.5385 | H184: 33992.59873 | I184: 2985.5 | J184: 38797.35804 | K184: 182189.2869 | L184: 78901.97602 | M184: 15246.27221 | N184: 74074.33793 | O184: 3679.19777
B185: Gminy miejskie:
B186: Urban gminas:
B187: Bielawa | D187: 107335.3924 | E187: 20351.35203 | F187: 19472.15203 | G187: 86984.04035 | H187: 10491.51495 | I187: 1967 | J187: 9903.63594 | K187: 64833.81448 | L187: 20600.3248 | M187: 3901.03367 | N187: 36122.62715 | O187: 1428.00078
B188: Dzierżoniów | D188: 92765.11929 | E188: 13579.79151 | F188: 13333.79151 | G188: 79185.32778 | H188: 13699.07002 | I188: 900 | J188: 12875.84455 | K188: 51073.05309 | L188: 25648.00062 | M188: 5011.7331 | N188: 17723.99433 | O188: 1137.49287
B189: Pieszyce | D189: 25113.41422 | E189: 4190.81986 | F189: 4190.81986 | G189: 20922.59436 | H189: 3557.62851 | I189: 118.5 | J189: 4380.4395 | K189: 12664.13538 | L189: 6239.10967 | M189: 1122.90023 | N189: 4569.20655 | O189: 311.08761
B190: Piława Górna | D190: 17942.27518 | E190: 3445.32479 | F190: 3345.32479 | G190: 14496.95039 | H190: 949.99091 | I190: - | J190: 2588.77714 | K190: 10822.10142 | L190: 5328.88932 | M190: 1017.73203 | N190: 3886.37088 | O190: 124.09521
B191: Gminy miejsko-wiejskie:
B192: Urban-rural gminas:
B193: Niemcza | D193: 16025.45595 | E193: 1564.01385 | F193: 1564.01385 | G193: 14461.4421 | H193: 1888.85741 | I193: - | J193: 2383.54701 | K193: 9843.29703 | L193: 4388.59595 | M193: 878.81025 | N193: 3226.81885 | O193: 190.81597
B194: Gminy wiejskie:
B195: Rural gminas:
B196: Dzierżoniów | D196: 31322.42792 | E196: 8158.29735 | F196: 8158.29735 | G196: 23164.13057 | H196: 2118.64766 | I196: - | J196: 3799.27103 | K196: 16841.25021 | L196: 8626.05001 | M196: 1723.19893 | N196: 3888.83015 | O196: 281.30587
B197: Łagiewniki | D197: 23120.89446 | E197: 2582.84151 | F197: 2582.84151 | G197: 20538.05295 | H197: 1286.88927 | I197: - | J197: 2865.84287 | K197: 16111.63528 | L197: 8071.00565 | M197: 1590.864 | N197: 4656.49002 | O197: 206.39946
B198: POWIAT KŁODZKI | D198: 498498.5826 | E198: 56102.51438 | F198: 51869.01438 | G198: 442396.0683 | H198: 39699.7533 | I198: 871.942 | J198: 70887.76025 | K198: 323195.5579 | L198: 144800.1611 | M198: 27421.37796 | N198: 126430.0282 | O198: 7070.83623
B199: Gminy miejskie:
B200: Urban gminas:
B201: Duszniki-Zdrój | D201: 20209.8079 | E201: 3450.13585 | F201: 3450.13585 | G201: 16759.67205 | H201: 1521.413 | I201: - | J201: 2129.33772 | K201: 12757.70316 | L201: 5869.01392 | M201: 1043.44037 | N201: 5261.78529 | O201: 233.14702
B202: Kłodzko | D202: 80460.61923 | E202: 6643.12311 | F202: 3142.62311 | G202: 73817.49612 | H202: 9167.66691 | I202: - | J202: 12445.8839 | K202: 50773.95884 | L202: 25730.8345 | M202: 4922.12548 | N202: 17589.85802 | O202: 1066.89009
B203: Kudowa-Zdrój | D203: 32953.25368 | E203: 2590.94126 | F203: 2590.94126 | G203: 30362.31242 | H203: 2081.7484 | I203: - | J203: 3408.48159 | K203: 24138.82431 | L203: 10949.34371 | M203: 2007.75042 | N203: 9939.96847 | O203: 582.76352
B204: Nowa Ruda | D204: 63998.68957 | E204: 4092.86375 | F204: 4092.86375 | G204: 59905.82582 | H204: 4497.61101 | I204: - | J204: 8957.42733 | K204: 45510.58003 | L204: 16730.89712 | M204: 3246.27448 | N204: 20781.2322 | O204: 910.2695
... 147 more rows

Sheet Tabl. 13.
B4: Tabl. 13. Struktura wydatków budżetów gmina według rodzajów oraz podregionów i powiatów
B5: Structure of expenditure of gminas budgetsa by types as well as subregions and powiats
B6: WYSZCZEGÓLNIENIE SPECIFICATION | D6: Ogółem Grand total | E6: Wydatki majątkowe Property expenditure | G6: Wydatki bieżące Current expenditure
E7: razem total | F7: w tym inwestycyjneb of which investment expenditureb | G7: razem total | H7: w tym of which
H8: dotacje grants | J8: świadczenia na rzecz osób fizycznych benefits for natural persons | K8: wydatki bieżące jednostek budżetowych current expenditures of budgetary units | O8: na obsługę długu publicznego on public dept servicing
H9: razem total | I9: w tym dla samorządowych zakładów budżetowych of which for local government budgetary establishments | K9: razem total | L9: w tym of which
L10: wynagrodzenia wages and salaries | M10: pochodne od wynagrodzeńc derivatives from wages and salariesc | N10: zakup materiałów i usług for purchases materials and services
D11: w % in %
B12: O G Ó Ł E M | C12: 2014 | D12: 100 | E12: 19.74591 | F12: 18.89331 | G12: 80.25409 | H12: 7.0169 | I12: 0.52879 | J12: 11.32878 | K12: 59.20358 | L12: 28.33932 | M12: 5.309054256 | N12: 21.30494 | O12: 1.34934
B13: T O T A L | C13: 2015 | D13: 100 | E13: ='Tabl. 12.'!E13/'Tabl. 12.'!$D13*100 -> 17.00679928 | F13: ='Tabl. 12.'!F13/'Tabl. 12.'!$D13*100 -> 16.30262603 | G13: ='Tabl. 12.'!G13/'Tabl. 12.'!$D13*100 -> 82.99320072 | H13: ='Tabl. 12.'!H13/'Tabl. 12.'!$D13*100 -> 7.557501063 | I13: ='Tabl. 12.'!I13/'Tabl. 12.'!$D13*100 -> 0.6001092599 | J13: ='Tabl. 12.'!J13/'Tabl. 12.'!$D13*100 -> 11.38576303 | K13: ='Tabl. 12.'!K13/'Tabl. 12.'!$D13*100 -> 61.65920668 | L13: ='Tabl. 12.'!L13/'Tabl. 12.'!$D13*100 -> 29.49496949 | M13: ='Tabl. 12.'!M13/'Tabl. 12.'!$D13*100 -> 5.544827971 | N13: ='Tabl. 12.'!N13/'Tabl. 12.'!$D13*100 -> 22.23681431 | O13: ='Tabl. 12.'!O13/'Tabl. 12.'!$D13*100 -> 1.125975171
B15: Gminy miejskie | D15: 100 | E15: 13.59526146 | F15: 12.79334044 | G15: 86.40473854 | H15: 8.899195074 | I15: 0.3961176073 | J15: 10.79926747 | K15: 65.23873073 | L15: 30.51505282 | M15: 5.590152996 | N15: 25.31119274 | O15: 1.227654278
B16: Urban gminas
B17: Gminy miejsko-wiejskie | D17: 100 | E17: 16.78831475 | F17: 15.94905743 | G17: 83.21168525 | H17: 7.205748577 | I17: 0.7416608057 | J17: 11.82748174 | K17: 60.87711032 | L17: 29.6631349 | M17: 5.603193907 | N17: 21.41477675 | O17: 1.189237517
B18: Urban-rural gminas
B19: Gminy wiejskie | D19: 100 | E19: 20.93931881 | F19: 20.50738921 | G19: 79.06068119 | H19: 6.553047647 | I19: 0.6437370902 | J19: 11.46816083 | K19: 58.78574888 | L19: 28.19172861 | M19: 5.423881466 | N19: 19.95504546 | O19: 0.9384740902
B20: Rural gminas
B21: PODREGION JELENIOGÓRSKI | D21: 100 | E21: 14.7535769 | F21: 14.22158617 | G21: 85.2464231 | H21: 6.867411305 | I21: 0.5304143728 | J21: 12.98581622 | K21: 63.13011276 | L21: 30.29229528 | M21: 5.617486974 | N21: 22.61185603 | O21: 1.011769612
B22: SUBREGION
B23: POWIAT BOLESŁAWIECKI | D23: 100 | E23: 17.94034202 | F23: 17.12873173 | G23: 82.05965798 | H23: 7.98930753 | I23: 0.05362714964 | J23: 11.47748165 | K23: 61.52895481 | L23: 28.21075229 | M23: 5.288154075 | N23: 23.42661664 | O23: 0.7751681893
B24: Gminy miejskie:
B25: Urban gminas:
B26: Bolesławiec | D26: 100 | E26: 17.11308883 | F26: 16.23901192 | G26: 82.88691117 | H26: 9.83309945 | I26: - | J26: 9.447855824 | K26: 62.14068849 | L26: 27.13555625 | M26: 4.925163298 | N26: 27.34332785 | O26: 1.121968149
B27: Gminy miejsko-wiejskie:
B28: Urban-rural gminas:
B29: Nowogrodziec | D29: 100 | E29: 22.60138776 | F29: 19.84271741 | G29: 77.39861224 | H29: 3.640650017 | I29: - | J29: 13.32527874 | K29: 59.24435598 | L29: 32.98746297 | M29: 6.23148755 | N29: 16.33441711 | O29: 0.9642866912
B30: Gminy wiejskie:
B31: Rural gminas:
B32: Bolesławiec | D32: 100 | E32: 25.23562674 | F32: 25.23562674 | G32: 74.76437326 | H32: 9.993841121 | I32: - | J32: 11.35844794 | K32: 53.15297369 | L32: 23.24227472 | M32: 4.531303693 | N32: 18.34982563 | O32: 0.03811135372
B33: Gromadka | D33: 100 | E33: 18.32914391 | F33: 18.32914391 | G33: 81.67085609 | H33: 4.460697318 | I33: 0.1551854811 | J33: 15.05325435 | K33: 61.39325915 | L33: 29.41773329 | M33: 5.482022854 | N33: 18.56596827 | O33: 0.7426989749
B34: Osiecznica | D34: 100 | E34: 8.299138629 | F34: 8.299138629 | G34: 91.70086137 | H34: 4.592778889 | I34: 0.4942468879 | J34: 13.57331965 | K34: 72.59603483 | L34: 33.85413871 | M34: 6.974947666 | N34: 24.90121132 | O34: 0.6490502566
B35: Warta Bolesławiecka | D35: 100 | E35: 12.14405982 | F35: 12.14405982 | G35: 87.85594018 | H35: 8.357326454 | I35: - | J35: 14.35724967 | K35: 64.72139084 | L35: 27.45173802 | M35: 5.040147678 | N35: 25.07476947 | O35: -
B36: POWIAT JAWORSKI | D36: 100 | E36: 16.15504615 | F36: 16.15504615 | G36: 83.84495385 | H36: 6.107938862 | I36: 1.081619526 | J36: 13.23034368 | K36: 63.33998609 | L36: 33.71834239 | M36: 6.23295346 | N36: 18.99516373 | O36: 1.051577647
B37: Gminy miejskie:
B38: Urban gminas:
B39: Jawor | D39: 100 | E39: 8.393993032 | F39: 8.393993032 | G39: 91.60600697 | H39: 9.370836976 | I39: 1.632618562 | J39: 12.52753023 | K39: 68.70346899 | L39: 37.60782179 | M39: 6.746731433 | N39: 21.23783005 | O39: 0.9819607251
B40: Gminy miejsko-wiejskie:
B41: Urban-rural gminas:
B42: Bolków | D42: 100 | E42: 7.2899494 | F42: 7.2899494 | G42: 92.7100506 | H42: 5.583380481 | I42: 0.629108366 | J42: 19.07929503 | K42: 66.74946142 | L42: 36.03145245 | M42: 7.045763096 | N42: 18.81997587 | O42: 1.167617471
B43: Gminy wiejskie:
B44: Rural gminas:
B45: Męcinka | D45: 100 | E45: 15.06160859 | F45: 15.06160859 | G45: 84.93839141 | H45: 2.788951776 | I45: - | J45: 13.46343055 | K45: 67.4887182 | L45: 31.21678408 | M45: 5.92222877 | N45: 24.42332635 | O45: 1.010529628
B46: Mściwojów | D46: 100 | E46: 54.93819016 | F46: 54.93819016 | G46: 45.06180984 | H46: 1.200809011 | I46: 0.4486903817 | J46: 7.466393307 | K46: 35.40753692 | L46: 18.85832363 | M46: 3.485112259 | N46: 9.042408457 | O46: 0.8477923117
B47: Paszowice | D47: 100 | E47: 17.05842426 | F47: 17.05842426 | G47: 82.94157574 | H47: 3.811769189 | I47: - | J47: 12.30245142 | K47: 65.62016524 | L47: 34.06495316 | M47: 6.422347317 | N47: 19.02290186 | O47: 1.011300417
B48: Wądroże Wielkie | D48: 100 | E48: 10.11705685 | F48: 10.11705685 | G48: 89.88294315 | H48: 5.609184023 | I48: 2.912723311 | J48: 14.48089521 | K48: 67.8387798 | L48: 36.95334 | M48: 6.709978853 | N48: 17.32617275 | O48: 1.609647171
B49: POWIAT JELENIOGÓRSKI | D49: 100 | E49: 17.24484324 | F49: 17.00714294 | G49: 82.75515676 | H49: 6.918717887 | I49: - | J49: 13.15641039 | K49: 60.72263517 | L49: 26.30023863 | M49: 4.793484837 | N49: 24.87929786 | O49: 1.225136158
B50: Gminy miejskie:
B51: Urban gminas:
B52: Karpacz | D52: 100 | E52: 26.07379521 | F52: 26.07379521 | G52: 73.92620479 | H52: 6.106446436 | I52: - | J52: 5.689750645 | K52: 58.44063128 | L52: 25.329453 | M52: 4.517018748 | N52: 25.0464882 | O52: 0.5334029643
B53: Kowary | D53: 100 | E53: 11.44374536 | F53: 11.44374536 | G53: 88.55625464 | H53: 11.34625211 | I53: - | J53: 18.76241376 | K53: 57.51591213 | L53: 25.68418848 | M53: 4.323866182 | N53: 23.54745828 | O53: 0.7920637616
B54: Piechowice | D54: 100 | E54: 11.27572689 | F54: 11.27572689 | G54: 88.72427311 | H54: 5.750380638 | I54: - | J54: 13.70438918 | K54: 68.23170615 | L54: 29.08478944 | M54: 5.141211468 | N54: 30.64132148 | O54: 0.8645452895
B55: Szklarska Poręba | D55: 100 | E55: 25.0313078 | F55: 23.52878424 | G55: 74.9686922 | H55: 11.05765843 | I55: - | J55: 7.181077537 | K55: 55.84008461 | L55: 20.06941105 | M55: 3.539849315 | N55: 26.92925685 | O55: 0.78791707
B56: Gminy wiejskie:
B57: Rural gminas:
B58: Janowice Wielkie | D58: 100 | E58: 11.99047118 | F58: 11.99047118 | G58: 88.00952882 | H58: 4.558703937 | I58: - | J58: 13.46685479 | K58: 63.41122258 | L58: 29.06207305 | M58: 5.366976947 | N58: 23.29059614 | O58: 2.381967601
B59: Jeżów Sudecki | D59: 100 | E59: 28.51152278 | F59: 28.51152278 | G59: 71.48847722 | H59: 6.237118928 | I59: - | J59: 13.3850364 | K59: 50.66884198 | L59: 22.58910334 | M59: 4.279877433 | N59: 20.00801791 | O59: 1.104293789
B60: Mysłakowice | D60: 100 | E60: 7.888779171 | F60: 7.888779171 | G60: 92.11122083 | H60: 3.723365348 | I60: - | J60: 16.84241392 | K60: 70.31458535 | L60: 30.23742876 | M60: 5.655487411 | N60: 27.35055941 | O60: 1.221084803
B61: Podgórzyn | D61: 100 | E61: 7.097737011 | F61: 7.097737011 | G61: 92.90226299 | H61: 7.277272972 | I61: - | J61: 18.54447935 | K61: 65.21009797 | L61: 31.09245179 | M61: 5.784379508 | N61: 24.67182674 | O61: 1.73010417
B62: Stara Kamienica | D62: 100 | E62: 21.9262993 | F62: 21.91441054 | G62: 78.0737007 | H62: 2.203227659 | I62: - | J62: 13.45936153 | K62: 59.50469253 | L62: 27.71615001 | M62: 5.51399217 | N62: 20.2637332 | O62: 2.874260836
B63: POWIAT KAMIENNOGÓRSKI | D63: 100 | E63: 11.77857505 | F63: 11.58985387 | G63: 88.22142495 | H63: 4.852158217 | I63: 0.3019538997 | J63: 14.67479484 | K63: 67.66464405 | L63: 33.99311723 | M63: 6.54715513 | N63: 23.04544722 | O63: 0.8766585222
B64: Gminy miejskie:
B65: Urban gminas:
B66: Kamienna Góra | D66: 100 | E66: 1.948682975 | F66: 1.948682975 | G66: 98.05131702 | H66: 5.821860127 | I66: - | J66: 14.89346778 | K66: 75.87697794 | L66: 36.36665405 | M66: 6.949598224 | N66: 28.84234002 | O66: 1.239197696
B67: Gminy miejsko-wiejskie:
B68: Urban-rural gminas:
B69: Lubawka | D69: 100 | E69: 25.34843425 | F69: 24.65032689 | G69: 74.65156575 | H69: 5.532814711 | I69: 1.116971773 | J69: 12.8023405 | K69: 55.64131009 | L69: 29.71269194 | M69: 5.879976185 | N69: 15.58140609 | O69: 0.6515626977
B70: Gminy wiejskie:
B71: Rural gminas:
B72: Kamienna Góra | D72: 100 | E72: 13.85717947 | F72: 13.85717947 | G72: 86.14282053 | H72: 4.135224135 | I72: - | J72: 13.99234079 | K72: 67.56941306 | L72: 33.63070332 | M72: 6.579176314 | N72: 23.15887287 | O72: 0.4257764485
B73: Marciszów | D73: 100 | E73: 11.14126589 | F73: 11.14126589 | G73: 88.85873411 | H73: 0.566200131 | I73: - | J73: 20.31750454 | K73: 66.48922129 | L73: 36.55856064 | M73: 6.620748678 | N73: 19.0573287 | O73: 0.9681290949
B74: POWIAT LUBAŃSKI | D74: 100 | E74: 15.9391189 | F74: 15.52683433 | G74: 84.0608811 | H74: 4.972577695 | I74: - | J74: 13.98773745 | K74: 63.84438624 | L74: 31.98463738 | M74: 5.797238011 | N74: 21.28248232 | O74: 1.071814354
B75: Gminy miejskie:
B76: Urban gminas:
B77: Lubań | D77: 100 | E77: 4.301747701 | F77: 2.996570575 | G77: 95.6982523 | H77: 7.189389854 | I77: - | J77: 13.09539179 | K77: 73.97346764 | L77: 38.11960476 | M77: 6.621391582 | N77: 25.48322776 | O77: 1.280410552
B78: Świeradów-Zdrój | D78: 100 | E78: 24.30369964 | F78: 24.30369964 | G78: 75.69630036 | H78: 1.955549435 | I78: - | J78: 8.996386163 | K78: 62.28201559 | L78: 24.53930533 | M78: 4.486542407 | N78: 28.22761963 | O78: 2.460558565
B79: Gminy miejsko-wiejskie:
B80: Urban-rural gminas:
B81: Leśna | D81: 100 | E81: 19.49658762 | F81: 19.49658762 | G81: 80.50341238 | H81: 5.724686204 | I81: - | J81: 20.1231033 | K81: 53.8721415 | L81: 26.35006637 | M81: 4.953523253 | N81: 16.31378167 | O81: 0.5875662108
B82: Olszyna | D82: 100 | E82: 27.06996681 | F82: 27.02562336 | G82: 72.93003319 | H82: 2.708978241 | I82: - | J82: 15.90023685 | K82: 53.13726317 | L82: 28.6166385 | M82: 5.25405181 | N82: 16.38005533 | O82: 0.9598054071
B83: Gminy wiejskie:
B84: Rural gminas:
B85: Lubań | D85: 100 | E85: 26.84453857 | F85: 26.84453857 | G85: 73.15546143 | H85: 4.756233302 | I85: - | J85: 11.05769192 | K85: 56.74843879 | L85: 30.22135831 | M85: 5.654972724 | N85: 15.91286687 | O85: 0.2943020575
B86: Platerówka | D86: 100 | E86: 5.166939671 | F86: 5.166939671 | G86: 94.83306033 | H86: 3.465788273 | I86: - | J86: 14.24328589 | K86: 76.68186533 | L86: 43.46904138 | M86: 7.993728924 | N86: 18.79801408 | O86: 0.115679487
B87: Siekierczyn | D87: 100 | E87: 5.876843394 | F87: 5.876843394 | G87: 94.12315661 | H87: 4.588491523 | I87: - | J87: 13.72033775 | K87: 74.93952203 | L87: 39.22301491 | M87: 7.335980924 | N87: 21.08451175 | O87: 0.5763253742
B88: POWIAT LWÓWECKI | D88: 100 | E88: 14.08021029 | F88: 14.07985677 | G88: 85.91978971 | H88: 5.490910962 | I88: 0.1257483099 | J88: 16.16370676 | K88: 62.63371413 | L88: 31.14558706 | M88: 5.709642553 | N88: 21.64550714 | O88: 0.887441977
B89: Gminy miejsko-wiejskie:
B90: Urban-rural gminas:
B91: Gryfów Śląski | D91: 100 | E91: 19.69435115 | F91: 19.69435115 | G91: 80.30564885 | H91: 6.723727331 | I91: - | J91: 17.73087323 | K91: 54.98572419 | L91: 29.453088 | M91: 5.283843363 | N91: 16.57179097 | O91: 0.5677988086
B92: Lubomierz | D92: 100 | E92: 9.615126258 | F92: 9.615126258 | G92: 90.38487374 | H92: 3.890538295 | I92: - | J92: 16.23850532 | K92: 68.85566957 | L92: 35.3324441 | M92: 6.524462194 | N92: 22.20105831 | O92: 1.175030124
B93: Lwówek Śląski | D93: 100 | E93: 14.60105655 | F93: 14.60105655 | G93: 85.39894345 | H93: 7.083530553 | I93: - | J93: 13.17207223 | K93: 63.96397439 | L93: 29.52912751 | M93: 5.230744637 | N93: 25.19965902 | O93: 0.8832947847
B94: Mirsk | D94: 100 | E94: 6.652195745 | F94: 6.650364234 | G94: 93.34780426 | H94: 3.297881156 | I94: 0.6514650113 | J94: 20.3213896 | K94: 66.19024132 | L94: 33.39578112 | M94: 6.448253591 | N94: 22.58040535 | O94: 0.7393147173
B95: Wleń | D95: 100 | E95: 22.4973945 | F95: 22.4973945 | G95: 77.5026055 | H95: 4.282835569 | I95: - | J95: 15.57440225 | K95: 56.24707291 | L95: 29.24182786 | M95: 5.519038652 | N95: 16.38940815 | O95: 1.337275502
B96: POWIAT ZGORZELECKI | D96: 100 | E96: 11.94885541 | F96: 10.61125568 | G96: 88.05114459 | H96: 8.811316417 | I96: 1.478670566 | J96: 10.31127863 | K96: 63.64860109 | L96: 29.95128954 | M96: 5.531481634 | N96: 23.5295904 | O96: 1.081744931
B97: Gminy miejskie:
B98: Urban gminas:
B99: Zawidów | D99: 100 | E99: 1.533224813 | F99: 1.533224813 | G99: 98.46677519 | H99: 4.318529694 | I99: - | J99: 11.0053513 | K99: 81.54013665 | L99: 38.36459519 | M99: 7.115617222 | N99: 33.00221767 | O99: 0.9962366883
B100: Zgorzelec | D100: 100 | E100: 13.91860925 | F100: 12.01654262 | G100: 86.08139075 | H100: 12.17951285 | I100: 0.5795770893 | J100: 10.94872089 | K100: 60.94404097 | L100: 28.80200569 | M100: 5.473283231 | N100: 21.75575336 | O100: 1.649082073
B101: Gminy miejsko-wiejskie:
B102: Urban-rural gminas:
B103: Bogatynia | D103: 100 | E103: 9.571008376 | F103: 7.539342241 | G103: 90.42899162 | H103: 8.561951587 | I103: 3.080735079 | J103: 6.869425053 | K103: 64.36152024 | L103: 29.46162616 | M103: 5.261375149 | N103: 25.96255412 | O103: 0.7993081324
B104: Pieńsk | D104: 100 | E104: 10.8581495 | F104: 10.54606246 | G104: 89.1418505 | H104: 5.014601099 | I104: - | J104: 17.87569841 | K104: 64.79112472 | L104: 33.05027773 | M104: 6.452832211 | N104: 19.88223397 | O104: 0.8024143596
B105: Węgliniec | D105: 100 | E105: 22.12935689 | F105: 22.12935689 | G105: 77.87064311 | H105: 6.6181886 | I105: 1.131013987 | J105: 15.01503971 | K105: 55.10521368 | L105: 28.2297692 | M105: 5.411644642 | N105: 16.93655894 | O105: 0.9109576757
B106: Gminy wiejskie:
B107: Rural gminas:
B108: Sulików | D108: 100 | E108: 4.669937212 | F108: 4.588472551 | G108: 95.33006279 | H108: 5.027513983 | I108: - | J108: 14.86129495 | K108: 73.49385793 | L108: 30.89163645 | M108: 5.727771135 | N108: 25.84649471 | O108: 1.116349414
B109: Zgorzelec | D109: 100 | E109: 17.01164741 | F109: 17.01164741 | G109: 82.98835259 | H109: 9.298813883 | I109: - | J109: 10.38685776 | K109: 61.93051772 | L109: 30.66321216 | M109: 5.539329469 | N109: 21.56527284 | O109: 1.081570462
B110: POWIAT ZŁOTORYJSKI | D110: 100 | E110: 11.50607433 | F110: 11.50607433 | G110: 88.49392567 | H110: 6.148600407 | I110: 0.6774581243 | J110: 16.2511149 | K110: 64.16778015 | L110: 31.62498791 | M110: 5.982935884 | N110: 21.28145824 | O110: 1.093564506
B111: Gminy miejskie:
B112: Urban gminas:
B113: Wojcieszów | D113: 100 | E113: 16.26196764 | F113: 16.26196764 | G113: 83.73803236 | H113: 1.945740855 | I113: - | J113: 18.60796749 | K113: 62.07015033 | L113: 31.0857334 | M113: 5.369773522 | N113: 19.85746403 | O113: 0.820042718
B114: Złotoryja | D114: 100 | E114: 5.171611292 | F114: 5.171611292 | G114: 94.82838871 | H114: 8.244057633 | I114: - | J114: 12.91740524 | K114: 71.53648435 | L114: 33.32884763 | M114: 6.167048018 | N114: 28.91843838 | O114: 1.808193833
B115: Gminy miejsko-wiejskie:
B116: Urban-rural gminas:
B117: Świerzawa | D117: 100 | E117: 10.18937389 | F117: 10.18937389 | G117: 89.81062611 | H117: 4.465570361 | I117: - | J117: 19.80950011 | K117: 61.6931855 | L117: 29.92617522 | M117: 6.015481209 | N117: 21.54084864 | O117: 0.8428237482
B118: Gminy wiejskie:
B119: Rural gminas:
B120: Pielgrzymka | D120: 100 | E120: 8.480360525 | F120: 8.480360525 | G120: 91.51963948 | H120: 5.22205966 | I120: - | J120: 19.53394927 | K120: 65.48115714 | L120: 35.07553146 | M120: 6.410588558 | N120: 15.81379501 | O120: 1.134978691
B121: Zagrodno | D121: 100 | E121: 20.87337997 | F121: 20.87337997 | G121: 79.12662003 | H121: 3.524132444 | I121: 1.535403143 | J121: 16.28046655 | K121: 58.66271338 | L121: 29.01001456 | M121: 5.289621936 | N121: 15.47182735 | O121: 0.2173250062
B122: Złotoryja | D122: 100 | E122: 16.171284 | F122: 16.171284 | G122: 83.828716 | H122: 8.879052821 | I122: 2.638131115 | J122: 15.2213805 | K122: 58.16606055 | L122: 30.25151842 | M122: 6.189591223 | N122: 16.56160655 | O122: 0.8662673626
B123: PODREGION LEGNICKO-GŁOGOWSKI | D123: 100 | E123: 14.47038177 | F123: 13.73303464 | G123: 85.52961823 | H123: 8.255442332 | I123: 0.9853229348 | J123: 10.04256211 | K123: 62.81500585 | L123: 31.34746399 | M123: 5.714768634 | N123: 21.79076808 | O123: 1.118732908
B124: SUBREGION
B125: POWIAT GŁOGOWSKI | D125: 100 | E125: 15.03936336 | F125: 14.50431949 | G125: 84.96063664 | H125: 8.948870043 | I125: 1.104919047 | J125: 9.886477551 | K125: 62.70938649 | L125: 29.94722093 | M125: 5.515720012 | N125: 23.78538403 | O125: 2.223363393
B126: Gminy miejskie:
B127: Urban gminas:
B128: Głogów | D128: 100 | E128: 12.16656853 | F128: 11.39370734 | G128: 87.83343147 | H128: 10.5666777 | I128: 1.233903904 | J128: 10.08937043 | K128: 64.1838229 | L128: 31.1175273 | M128: 5.680560037 | N128: 24.77997916 | O128: 2.836999286
B129: Gminy wiejskie:
B130: Rural gminas:
B131: Głogów | D131: 100 | E131: 12.95061738 | F131: 12.95061738 | G131: 87.04938262 | H131: 6.747328194 | I131: - | J131: 10.58259395 | K131: 68.52938651 | L131: 30.08158734 | M131: 6.010196075 | N131: 28.10197812 | O131: 1.1328439
B132: Jerzmanowa | D132: 100 | E132: 24.57969461 | F132: 24.57969461 | G132: 75.42030539 | H132: 6.674790745 | I132: 2.28885917 | J132: 5.614245347 | K132: 53.1686649 | L132: 23.85762326 | M132: 4.449725711 | N132: 19.77919653 | O132: 0.459305531
B133: Kotla | D133: 100 | E133: 19.89532113 | F133: 19.89532113 | G133: 80.10467887 | H133: 2.902010344 | I133: - | J133: 10.10423359 | K133: 65.79529935 | L133: 30.47377958 | M133: 5.787953539 | N133: 23.00962189 | O133: 0.7551008967
B134: Pęcław | D134: 100 | E134: 37.95753933 | F134: 37.95352131 | G134: 62.04246067 | H134: 3.822075841 | I134: - | J134: 13.40234734 | K134: 42.65724564 | L134: 22.0110811 | M134: 3.549938357 | N134: 11.12122884 | O134: 2.060278622
B135: Żukowice | D135: 100 | E135: 14.37916778 | F135: 14.37916778 | G135: 85.62083222 | H135: 3.894459326 | I135: - | J135: 13.36460638 | K135: 67.81209651 | L135: 32.68885778 | M135: 6.188200637 | N135: 23.10288039 | O135: 0.4321100683
B136: POWIAT GÓROWSKI | D136: 100 | E136: 14.4801907 | F136: 14.43561929 | G136: 85.5198093 | H136: 2.955650739 | I136: 0.1678749335 | J136: 19.38656767 | K136: 61.79624991 | L136: 33.8262054 | M136: 6.682350509 | N136: 16.19521521 | O136: 1.28628072
B137: Gminy miejsko-wiejskie:
B138: Urban-rural gminas:
B139: Góra | D139: 100 | E139: 14.07938876 | F139: 14.07938876 | G139: 85.92061124 | H139: 2.881926203 | I139: - | J139: 19.80264868 | K139: 61.90341913 | L139: 33.59954146 | M139: 6.599174296 | N139: 16.91918669 | O139: 1.262705751
B140: Wąsosz | D140: 100 | E140: 23.59667963 | F140: 23.39045889 | G140: 76.40332037 | H140: 2.61973698 | I140: 0.598819931 | J140: 15.01471212 | K140: 57.18581141 | L140: 32.55023723 | M140: 6.287855935 | N140: 13.6901579 | O140: 1.498198008
B141: Gminy wiejskie:
B142: Rural gminas:
B143: Jemielno | D143: 100 | E143: 4.224350024 | F143: 4.224350024 | G143: 95.77564998 | H143: 3.570576763 | I143: - | J143: 25.93879959 | K143: 64.47362296 | L143: 34.70862255 | M143: 7.30569272 | N143: 16.15795108 | O143: 1.62405418
B144: Niechlów | D144: 100 | E144: 7.820592389 | F144: 7.820592389 | G144: 92.17940761 | H144: 3.43229377 | I144: 0.2964130886 | J144: 20.51983109 | K144: 67.24019042 | L144: 36.36276172 | M144: 7.292464954 | N144: 17.22102769 | O144: 0.8133962672
B145: POWIAT LEGNICKI | D145: 100 | E145: 16.16577019 | F145: 16.16577019 | G145: 83.83422981 | H145: 7.318718451 | I145: 1.480541247 | J145: 13.58089709 | K145: 61.67603993 | L145: 31.12113991 | M145: 5.697873232 | N145: 20.38848831 | O145: 0.9119405461
B146: Gminy miejskie:
B147: Urban gminas:
B148: Chojnów | D148: 100 | E148: 15.20446026 | F148: 15.20446026 | G148: 84.79553974 | H148: 5.677754104 | I148: - | J148: 12.24506756 | K148: 66.38425531 | L148: 37.53026081 | M148: 6.620336885 | N148: 19.10587212 | O148: 0.435986872
B149: Gminy miejsko-wiejskie:
B150: Urban-rural gminas:
B151: Prochowice | D151: 100 | E151: 7.703542227 | F151: 7.703542227 | G151: 92.29645777 | H151: 6.311154363 | I151: - | J151: 14.08340525 | K151: 70.73263155 | L151: 35.97718434 | M151: 6.967670996 | N151: 23.5290791 | O151: 0.8953280569
B152: Gminy wiejskie:
B153: Rural gminas:
B154: Chojnów | D154: 100 | E154: 15.60506157 | F154: 15.60506157 | G154: 84.39493843 | H154: 7.650928073 | I154: 1.080134592 | J154: 18.25151619 | K154: 57.22141388 | L154: 29.27285848 | M154: 5.13718805 | N154: 17.67933136 | O154: 1.164112306
B155: Krotoszyce | D155: 100 | E155: 14.17244345 | F155: 14.17244345 | G155: 85.82755655 | H155: 3.544498886 | I155: - | J155: 10.67517371 | K155: 70.84612206 | L155: 31.73905665 | M155: 6.194835034 | N155: 24.6896 | O155: 0.4753893458
B156: Kunice | D156: 100 | E156: 24.06045994 | F156: 24.06045994 | G156: 75.93954006 | H156: 7.132828861 | I156: - | J156: 9.454282517 | K156: 56.6149964 | L156: 25.73167223 | M156: 4.896273925 | N156: 22.38241392 | O156: 1.189891312
B157: Legnickie Pole | D157: 100 | E157: 21.85914294 | F157: 21.85914294 | G157: 78.14085706 | H157: 11.50341429 | I157: 5.550506066 | J157: 10.35922249 | K157: 55.43610766 | L157: 25.22256619 | M157: 4.569705625 | N157: 21.52570641 | O157: 0.556232971
B158: Miłkowice | D158: 100 | E158: 15.7274886 | F158: 15.7274886 | G158: 84.2725114 | H158: 13.23059319 | I158: 6.029633043 | J158: 16.5694938 | K158: 52.44501931 | L158: 26.7908106 | M158: 4.851844285 | N158: 16.44964636 | O158: 1.893560881
B159: Ruja | D159: 100 | E159: 13.99345202 | F159: 13.99345202 | G159: 86.00654798 | H159: 0.1490709305 | I159: - | J159: 19.25923069 | K159: 65.39147722 | L159: 31.10008476 | M159: 5.794504436 | N159: 21.44215643 | O159: 0.973751194
B160: POWIAT LUBIŃSKI | D160: 100 | E160: 12.02007834 | F160: 11.23268985 | G160: 87.97992166 | H160: 9.643545631 | I160: 1.298484409 | J160: 7.769426614 | K160: 68.50947474 | L160: 34.30663632 | M160: 6.05103206 | N160: 24.35550201 | O160: 0.6695996033
B161: Gminy miejskie:
B162: Urban gminas:
B163: Lubin | D163: 100 | E163: 9.853929518 | F163: 8.68392119 | G163: 90.14607048 | H163: 7.998519856 | I163: 0.07224672043 | J163: 7.17489095 | K163: 74.08898868 | L163: 38.24584204 | M163: 6.668509826 | N163: 25.55737366 | O163: 0.7120546113
B164: Gminy miejsko-wiejskie:
B165: Urban-rural gminas:
B166: Ścinawa | D166: 100 | E166: 21.26918191 | F166: 21.26918191 | G166: 78.73081809 | H166: 4.97134937 | I166: 0.6587208036 | J166: 15.60963114 | K166: 55.94725687 | L166: 28.40051245 | M166: 4.963194469 | N166: 18.26969158 | O166: 1.569714633
B167: Gminy wiejskie:
B168: Rural gminas:
B169: Lubin | D169: 100 | E169: 11.95570438 | F169: 11.95570438 | G169: 88.04429562 | H169: 17.4825465 | I169: 5.967214205 | J169: 6.45093107 | K169: 59.05951466 | L169: 26.74137755 | M169: 4.683893024 | N169: 22.38604923 | O169: 0.4605212863
B170: Rudna | D170: 100 | E170: 18.82632558 | F170: 18.82632558 | G170: 81.17367442 | H170: 13.22564444 | I170: 3.377022929 | J170: 7.363523209 | K170: 55.16551092 | L170: 23.8338171 | M170: 4.769764293 | N170: 23.93502837 | O170: -
B171: POWIAT POLKOWICKI | D171: 100 | E171: 16.08263915 | F171: 14.5559986 | G171: 83.91736085 | H171: 8.234726735 | I171: 0.496352156 | J171: 7.772228463 | K171: 56.69591613 | L171: 28.21831535 | M171: 5.145921812 | N171: 19.34607383 | O171: 0.6408923469
B172: Gminy miejsko-wiejskie:
B173: Urban-rural gminas:
B174: Chocianów | D174: 100 | E174: 17.80123353 | F174: 17.79993192 | G174: 82.19876647 | H174: 6.737881508 | I174: 3.12750003 | J174: 13.27550844 | K174: 59.78275816 | L174: 35.76751461 | M174: 6.719225583 | N174: 13.23332744 | O174: 1.795473661
B175: Polkowice | D175: 100 | E175: 12.60714084 | F175: 10.14146638 | G175: 87.39285916 | H175: 10.06933921 | I175: - | J175: 4.519807208 | K175: 56.74058441 | L175: 26.02861526 | M175: 4.850847385 | N175: 22.52137266 | O175: 0.0007714450878
B176: Przemków | D176: 100 | E176: 7.540734392 | F176: 7.540734392 | G176: 92.45926561 | H176: 3.254847811 | I176: - | J176: 20.41067287 | K176: 62.46061064 | L176: 37.10960273 | M176: 4.274796362 | N176: 14.25806564 | O176: 5.63597162
B177: Gminy wiejskie:
B178: Rural gminas:
B179: Gaworzyce | D179: 100 | E179: 43.07669889 | F179: 43.07669889 | G179: 56.92330111 | H179: 4.18322158 | I179: - | J179: 11.93437603 | K179: 40.01924035 | L179: 21.80753481 | M179: 3.952107698 | N179: 8.936933539 | O179: 0.7167677688
B180: Grębocice | D180: 100 | E180: 19.72667141 | F180: 19.72495297 | G180: 80.27332859 | H180: 7.634326584 | I180: 1.688742671 | J180: 9.294736371 | K180: 61.06283519 | L180: 30.30782254 | M180: 6.017433667 | N180: 18.85315368 | O180: 0.0191615245
B181: Radwanice | D181: 100 | E181: 28.51530878 | F181: 28.51530878 | G181: 71.48469122 | H181: 2.412346045 | I181: - | J181: 10.94588474 | K181: 52.74525706 | L181: 29.36925678 | M181: 5.967008954 | N181: 13.89870725 | O181: 0.3648118346
B182: PODREGION WAŁBRZYSKI | D182: 100 | E182: 14.72501446 | F182: 14.14261868 | G182: 85.27498554 | H182: 7.7879048 | I182: 0.3422673123 | J182: 12.74788255 | K182: 63.28332565 | L182: 28.79568221 | M182: 5.507819168 | N182: 24.51295098 | O182: 1.214299966
B183: SUBREGION
B184: POWIAT DZIERŻONIOWSKI | D184: 100 | E184: 17.17734378 | F184: 16.78668612 | G184: 82.82265622 | H184: 10.8386133 | I184: 0.9519331036 | J184: 12.37062115 | K184: 58.09144643 | L184: 25.15806495 | M184: 4.861306723 | N184: 23.61876215 | O184: 1.173120131
B185: Gminy miejskie:
B186: Urban gminas:
B187: Bielawa | D187: 100 | E187: 18.96052325 | F187: 18.14140853 | G187: 81.03947675 | H187: 9.774515859 | I187: 1.83257354 | J187: 9.226813002 | K187: 60.40301623 | L187: 19.19248101 | M187: 3.634433697 | N187: 33.65397596 | O187: 1.330409987
B188: Dzierżoniów | D188: 100 | E188: 14.63889834 | F188: 14.37371246 | G188: 85.36110166 | H188: 14.76747955 | I188: 0.9701922521 | J188: 13.88004958 | K188: 55.05631155 | L188: 27.64832387 | M188: 5.402605137 | N188: 19.10631331 | O188: 1.226207521
B189: Pieszyce | D189: 100 | E189: 16.68757511 | F189: 16.68757511 | G189: 83.31242489 | H189: 14.16624788 | I189: 0.4718593775 | J189: 17.44262832 | K189: 50.42777246 | L189: 24.84373337 | M189: 4.471316485 | N189: 18.19428657 | O189: 1.238730852
B190: Piława Górna | D190: 100 | E190: 19.20227371 | F190: 18.64493079 | G190: 80.79772629 | H190: 5.294707056 | I190: - | J190: 14.42836605 | K190: 60.31621582 | L190: 29.70018722 | M190: 5.672257391 | N190: 21.66041286 | O190: 0.6916358642
B191: Gminy miejsko-wiejskie:
B192: Urban-rural gminas:
B193: Niemcza | D193: 100 | E193: 9.759559134 | F193: 9.759559134 | G193: 90.24044087 | H193: 11.78660636 | I193: - | J193: 14.87350511 | K193: 61.42288282 | L193: 27.38515499 | M193: 5.483839291 | N193: 20.13558216 | O193: 1.190705404
B194: Gminy wiejskie:
B195: Rural gminas:
B196: Dzierżoniów | D196: 100 | E196: 26.04618445 | F196: 26.04618445 | G196: 73.95381555 | H196: 6.763995644 | I196: - | J196: 12.12955471 | K196: 53.76738436 | L196: 27.53953184 | M196: 5.501485818 | N196: 12.4154812 | O196: 0.8980972698
B197: Łagiewniki | D197: 100 | E197: 11.17102764 | F197: 11.17102764 | G197: 88.82897236 | H197: 5.565914728 | I197: - | J197: 12.39503461 | K197: 69.68430788 | L197: 34.90784348 | M197: 6.880633458 | N197: 20.13974861 | O197: 0.892696692
B198: POWIAT KŁODZKI | D198: 100 | E198: 11.25429767 | F198: 10.40504751 | G198: 88.74570233 | H198: 7.96386483 | I198: 0.1749136367 | J198: 14.22025312 | K198: 64.83379674 | L198: 29.04725633 | M198: 5.500793566 | N198: 25.36216403 | O198: 1.418426546
B199: Gminy miejskie:
B200: Urban gminas:
B201: Duszniki-Zdrój | D201: 100 | E201: 17.07159151 | F201: 17.07159151 | G201: 82.92840849 | H201: 7.528092338 | I201: - | J201: 10.53616012 | K201: 63.12629602 | L201: 29.04042408 | M201: 5.163039526 | N201: 26.03580062 | O201: 1.153633034
B202: Kłodzko | D202: 100 | E202: 8.256365876 | F202: 3.905790361 | G202: 91.74363412 | H202: 11.39398006 | I202: - | J202: 15.46829246 | K202: 63.10411146 | L202: 31.97941396 | M202: 6.117434252 | N202: 21.86144997 | O202: 1.325977976
B203: Kudowa-Zdrój | D203: 100 | E203: 7.862474781 | F203: 7.862474781 | G203: 92.13752522 | H203: 6.317277256 | I203: - | J203: 10.34338406 | K203: 73.25171755 | L203: 33.22689716 | M203: 6.09272286 | N203: 30.16384533 | O203: 1.768455175
B204: Nowa Ruda | D204: 100 | E204: 6.395230555 | F204: 6.395230555 | G204: 93.60476945 | H204: 7.027661098 | I204: - | J204: 13.99626678 | K204: 71.11173734 | L204: 26.14256203 | M204: 5.072407735 | N204: 32.47134018 | O204: 1.422325217
... 147 more rows

Sheet Tabl.14.
B4: Tabl. 14. Wydatki budżetów gmina według działów oraz podregionów i powiatów
B5: Expenditure of gminas budgetsa by divisions as well as subregions and powiats
B6: WYSZCZEGÓLNIENIE SPECIFICATION | D6: Ogółem Total | E6: W tym Of which
E7: transport i łączność transport and communication | F7: gospodarka mieszkaniowa dwelling economy | G7: działalność usługowa service activity | H7: administracja publiczna public administration | I7: oświata i wychowanie education | J7: ochrona zdrowia health care | K7: pomoc społeczna social welfare | L7: gospodarka komunalna i ochrona środowiska municipal economy and environmental protection | M7: kultura i ochrona dziedzictwa narodowego culture and national heritage | N7: kultura fizyczna physical education
D9: w tys. zł in thous. zl
B10: O G Ó Ł E M | C10: 2014 | D10: 6913856.02 | E10: 645541.4418 | F10: 324507.616 | G10: 26281.85053 | H10: 728354.5305 | I10: 2133055.41 | J10: 65391.91484 | K10: 943561.7932 | L10: 817106.4744 | M10: 405526.0754 | N10: 234150.3545
B11: T O T A L | C11: 2015 | D11: 6880258.213 | E11: 610749.6822 | F11: 319449.3419 | G11: 28436.59611 | H11: 752176.7695 | I11: 2234397.509 | J11: 67428.92109 | K11: 954614.7434 | L11: 783750.1869 | M11: 334487.5336 | N11: 218409.0262
B13: Gminy miejskie | D13: 2229792.516 | E13: 223237.4502 | F13: 148199.5958 | G13: 10103.09699 | H13: 219297.9024 | I13: 716896.7197 | J13: 21464.82315 | K13: 328178.1187 | L13: 238610.5325 | M13: 106787.131 | N13: 83799.43277
B14: Urban gminas
B15: Gminy miejsko-wiejskie | D15: 2573118.581 | E15: 196137.6841 | F15: 114372.7216 | G15: 10971.96352 | H15: 283306.9917 | I15: 821400.5415 | J15: 32503.10178 | K15: 364518.726 | L15: 288121.9129 | M15: 119978.4046 | N15: 94508.05506
B16: Urban-rural gminas
B17: Gminy wiejskie | D17: 2077347.116 | E17: 191374.5479 | F17: 56877.02457 | G17: 7361.5356 | H17: 249571.8753 | I17: 696100.2478 | J17: 13460.99616 | K17: 261917.8986 | L17: 257017.7415 | M17: 107721.998 | N17: 40101.53836
B18: Rural gminas
B19: PODREGION JELENIOGÓRSKI | D19: 1666103.287 | E19: 130966.2257 | F19: 82431.32749 | G19: 6487.43436 | H19: 192124.8427 | I19: 511827.554 | J19: 19054.09906 | K19: 262303.7681 | L19: 189929.855 | M19: 78002.84948 | N19: 47873.92422
B20: SUBREGION
B21: POWIAT BOLESŁAWIECKI | D21: 295708.4258 | E21: 24693.3769 | F21: 18848.57904 | G21: 633.73883 | H21: 30386.62822 | I21: 93695.00613 | J21: 4656.7804 | K21: 43297.31087 | L21: 31292.3091 | M21: 25759.35727 | N21: 9944.59982
B22: Gminy miejskie:
B23: Urban gminas:
B24: Bolesławiec | D24: 137287.6914 | E24: 10999.20209 | F24: 15191.51974 | G24: 144.61148 | H24: 11912.70765 | I24: 35656.88329 | J24: 1128.57263 | K24: 20201.5372 | L24: 17104.22044 | M24: 15323.41439 | N24: 5618.89775
B25: Gminy miejsko-wiejskie:
B26: Urban-rural gminas:
B27: Nowogrodziec | D27: 43499.21697 | E27: 2769.61677 | F27: 429.61451 | G27: 54.7508 | H27: 4289.0864 | I27: 18440.30622 | J27: 2918.39506 | K27: 6571.46282 | L27: 2974.75365 | M27: 1184.56297 | N27: 360.08175
B28: Gminy wiejskie:
B29: Rural gminas:
B30: Bolesławiec | D30: 42161.92402 | E30: 3087.68741 | F30: 1997.61435 | G30: 250.89995 | H30: 4405.57424 | I30: 14471.90085 | J30: 165.45218 | K30: 5094.14732 | L30: 4254.70674 | M30: 5540.2225 | N30: 1499.23986
B31: Gromadka | D31: 20066.31018 | E31: 2822.46537 | F31: 204.73945 | G31: 47.38956 | H31: 3587.60757 | I31: 5416.95784 | J31: 164.15986 | K31: 3601.51717 | L31: 1602.12565 | M31: 916.52604 | N31: 318.74399
B32: Osiecznica | D32: 25784.68436 | E32: 2347.44209 | F32: 964.20637 | G32: 52.49074 | H32: 2298.92015 | I32: 10338.77581 | J32: 155.68718 | K32: 3724.00629 | L32: 2266.87112 | M32: 766.40221 | N32: 1769.66739
B33: Warta Bolesławiecka | D33: 26908.59885 | E33: 2666.96317 | F33: 60.88462 | G33: 83.5963 | H33: 3892.73221 | I33: 9370.18212 | J33: 124.51349 | K33: 4104.64007 | L33: 3089.6315 | M33: 2028.22916 | N33: 377.96908
B34: POWIAT JAWORSKI | D34: 160804.1893 | E34: 8123.39291 | F34: 1522.85562 | G34: 661.98161 | H34: 18287.43485 | I34: 51356.89959 | J34: 1180.2866 | K34: 27201.28117 | L34: 26243.37567 | M34: 6302.22332 | N34: 2720.39779
B35: Gminy miejskie:
B36: Urban gminas:
B37: Jawor | D37: 66829.51092 | E37: 1015.35287 | F37: 597.58439 | G37: 395.96162 | H37: 7194.75216 | I37: 21813.15547 | J37: 521.82941 | K37: 12057.6432 | L37: 12033.92683 | M37: 3453 | N37: 1778.39056
B38: Gminy miejsko-wiejskie:
B39: Urban-rural gminas:
B40: Bolków | D40: 28428.212 | E40: 1216.43946 | F40: 247.01669 | G40: 30.81115 | H40: 3166.9803 | I40: 10539.04803 | J40: 207.28685 | K40: 6493.1937 | L40: 2905.1988 | M40: 1236.94641 | N40: 242.71592
B41: Gminy wiejskie:
B42: Rural gminas:
B43: Męcinka | D43: 17559.0537 | E43: 2141.58909 | F43: 507.46386 | G43: 154.91963 | H43: 2320.9926 | I43: 5440.96956 | J43: 253.10585 | K43: 2623.74707 | L43: 955.9405 | M43: 558.51334 | N43: 282.62905
B44: Mściwojów | D44: 22038.8611 | E44: 2111.80082 | F44: 35.74239 | G44: 18.46784 | H44: 1961.87525 | I44: 3962.64567 | J44: 64.13668 | K44: 2108.36933 | L44: 7614.67499 | M44: 319.43784 | N44: 107.87807
B45: Paszowice | D45: 13228.90881 | E45: 996.26423 | F45: 94.30999 | G45: 7.02488 | H45: 1976.1035 | I45: 4895.29864 | J45: 47.06187 | K45: 1760.22787 | L45: 1456.79155 | M45: 477.21673 | N45: 83.6169
B46: Wądroże Wielkie | D46: 12719.64277 | E46: 641.94644 | F46: 40.7383 | G46: 54.79649 | H46: 1666.73104 | I46: 4705.78222 | J46: 86.86594 | K46: 2158.1 | L46: 1276.843 | M46: 257.109 | N46: 225.16729
B47: POWIAT JELENIOGÓRSKI | D47: 235401.4615 | E47: 30561.06676 | F47: 13228.48454 | G47: 1408.84239 | H47: 30349.10345 | I47: 59620.73383 | J47: 1926.38315 | K47: 36106.21876 | L47: 26372.3517 | M47: 5866.09468 | N47: 3548.45441
B48: Gminy miejskie:
B49: Urban gminas:
B50: Karpacz | D50: 31707.39972 | E50: 4242.67713 | F50: 5803.9301 | G50: 84.64119 | H50: 5199.56219 | I50: 6178.2934 | J50: 654.5463 | K50: 2295.70285 | L50: 3850.37694 | M50: 631.15367 | N50: 240.27042
B51: Kowary | D51: 32218.80515 | E51: 3269.84546 | F51: 1088.86841 | G51: 131.32132 | H51: 3718.53019 | I51: 8571.22873 | J51: 185.27207 | K51: 7923.07339 | L51: 4668.0329 | M51: 649.31123 | N51: 292.13161
B52: Piechowice | D52: 19784.66508 | E52: 3434.04706 | F52: 932.84408 | G52: 115.019 | H52: 2686.00476 | I52: 5343.5276 | J52: 119.8125 | K52: 3391.29922 | L52: 1698.29052 | M52: 376.91 | N52: 146.11416
B53: Szklarska Poręba | D53: 37070.96611 | E53: 6719.20272 | F53: 3012.75754 | G53: 453.86135 | H53: 4609.08575 | I53: 6390.94573 | J53: 391.97704 | K53: 3695.79924 | L53: 4363.52507 | M53: 1389.81212 | N53: 1122.17484
B54: Gminy wiejskie:
B55: Rural gminas:
B56: Janowice Wielkie | D56: 12923.27947 | E56: 2018.94743 | F56: 330.26476 | G56: 8.92666 | H56: 2015.61441 | I56: 3280.41663 | J56: 66.69849 | K56: 2041.07406 | L56: 1283.29265 | M56: 411.73286 | N56: 96.8929
B57: Jeżów Sudecki | D57: 22946.04683 | E57: 4391.89629 | F57: 92.56156 | G57: 214.93868 | H57: 2277.3478 | I57: 5398.19055 | J57: 73.87321 | K57: 3095.93903 | L57: 2179.47645 | M57: 348.0572 | N57: 367.87272
B58: Mysłakowice | D58: 33900.43582 | E58: 3407.73054 | F58: 668.45008 | G58: 98.33206 | H58: 4655.3878 | I58: 11627.88889 | J58: 186.52948 | K58: 5717.38279 | L58: 4527.00634 | M58: 576.00354 | N58: 1020.55948
B59: Podgórzyn | D59: 23401.02215 | E59: 2282.74475 | F59: 461.98639 | G59: 232.50146 | H59: 3110.69043 | I59: 6966.50259 | J59: 176.69089 | K59: 4964.02497 | L59: 2656.53661 | M59: 538.88555 | N59: 152.8559
B60: Stara Kamienica | D60: 21448.84112 | E60: 793.97538 | F60: 836.82162 | G60: 69.30067 | H60: 2076.88012 | I60: 5863.73971 | J60: 70.98317 | K60: 2981.92321 | L60: 1145.81422 | M60: 944.22851 | N60: 109.58238
B61: POWIAT KAMIENNOGÓRSKI | D61: 132470.5527 | E61: 4966.09978 | F61: 9115.31259 | G61: 625.84379 | H61: 15390.15846 | I61: 44456.0623 | J61: 697.82492 | K61: 23545.95221 | L61: 11969.18475 | M61: 4003.0636 | N61: 4977.55793
B62: Gminy miejskie:
B63: Urban gminas:
B64: Kamienna Góra | D64: 54658.52237 | E64: 600.13695 | F64: 6008.0195 | G64: 486.97646 | H64: 6215.42195 | I64: 18460.57203 | J64: 373.56221 | K64: 10780.85487 | L64: 5993.21193 | M64: 1668.4345 | N64: 1873.13548
B65: Gminy miejsko-wiejskie:
B66: Urban-rural gminas:
B67: Lubawka | D67: 35811.11086 | E67: 1646.18503 | F67: 1843.29924 | G67: 35.02367 | H67: 3280.69556 | I67: 11527.54284 | J67: 177.75249 | K67: 5636.77014 | L67: 2896.6343 | M67: 998.71981 | N67: 2670.03085
B68: Gminy wiejskie:
B69: Rural gminas:
B70: Kamienna Góra | D70: 28757.62162 | E70: 2207.09215 | F70: 1045.41262 | G70: 37.78379 | H70: 3712.94263 | I70: 10580.49828 | J70: 96.07319 | K70: 4376.76581 | L70: 1962.11008 | M70: 1121.16831 | N70: 369.80477
B71: Marciszów | D71: 13243.29789 | E71: 512.68565 | F71: 218.58123 | G71: 66.05987 | H71: 2181.09832 | I71: 3887.44915 | J71: 50.43703 | K71: 2751.56139 | L71: 1117.22844 | M71: 214.74098 | N71: 64.58683
B72: POWIAT LUBAŃSKI | D72: 191364.181 | E72: 18591.48486 | F72: 9291.24654 | G72: 781.31491 | H72: 22919.0332 | I72: 61796.48415 | J72: 1245.00958 | K72: 31130.54554 | L72: 20000.92269 | M72: 5845.48504 | N72: 6318.48792
B73: Gminy miejskie:
B74: Urban gminas:
B75: Lubań | D75: 59608.7676 | E75: 757.50975 | F75: 3726.65466 | G75: 153.99818 | H75: 7413.80889 | I75: 22587.31364 | J75: 565.88779 | K75: 10630.50317 | L75: 6976.31902 | M75: 1973.167 | N75: 1745.64733
B76: Świeradów-Zdrój | D76: 27769.80884 | E76: 5124.6764 | F76: 1718.32123 | G76: 54.47175 | H76: 3385.60238 | I76: 6725.25859 | J76: 277.92257 | K76: 3005.09411 | L76: 4623.6165 | M76: 582.87227 | N76: 233.1171
B77: Gminy miejsko-wiejskie:
B78: Urban-rural gminas:
B79: Leśna | D79: 35440.07912 | E79: 4543.29775 | F79: 1924.86447 | G79: 169.034 | H79: 3777.00205 | I79: 10060.58622 | J79: 163.71023 | K79: 7431.531 | L79: 2935.74605 | M79: 902.03021 | N79: 1875.74631
B80: Olszyna | D80: 24727.4404 | E80: 5758.02819 | F80: 714.77403 | G80: 91.5595 | H80: 2218.24231 | I80: 7099.66488 | J80: 88.89826 | K80: 4339.47371 | L80: 1783.95378 | M80: 775.20195 | N80: 608.16997
B81: Gminy wiejskie:
B82: Rural gminas:
B83: Lubań | D83: 24082.48539 | E83: 1579.09617 | F83: 346.82231 | G83: 205.84738 | H83: 2573.2501 | I83: 8220.49461 | J83: 55.88525 | K83: 2780.33497 | L83: 1680.67691 | M83: 817.55483 | N83: 1686.19728
B84: Platerówka | D84: 5567.47801 | E84: 288.92247 | F84: 73.51912 | G84: 1.45575 | H84: 1083.95986 | I84: 2247.66358 | J84: 15.12465 | K84: 883.02344 | L84: 419.00865 | M84: 117.93216 | N84: 47.86967
B85: Siekierczyn | D85: 14168.12163 | E85: 539.95413 | F85: 786.29072 | G85: 104.94835 | H85: 2467.16761 | I85: 4855.50263 | J85: 77.58083 | K85: 2060.58514 | L85: 1581.60178 | M85: 676.72662 | N85: 121.74026
B86: POWIAT LWÓWECKI | D86: 141432.5649 | E86: 12445.2225 | F86: 3708.86993 | G86: 569.92163 | H86: 14568.47479 | I86: 48171.57986 | J86: 713.42949 | K86: 25583.46079 | L86: 14740.34523 | M86: 5953.78638 | N86: 1787.47781
B87: Gminy miejsko-wiejskie:
B88: Urban-rural gminas:
B89: Gryfów Śląski | D89: 27310.95551 | E89: 3315.47655 | F89: 455.69715 | G89: 27.16764 | H89: 2633.6326 | I89: 8029.95274 | J89: 168.13913 | K89: 5608.30548 | L89: 5110.43495 | M89: 731.51404 | N89: 188.25453
B90: Lubomierz | D90: 22286.32992 | E90: 1214.84696 | F90: 1566.74951 | G90: 23.04 | H90: 2231.14844 | I90: 7974.78363 | J90: 67.44328 | K90: 3705.36969 | L90: 1361.07262 | M90: 815.4486 | N90: 216.73759
B91: Lwówek Śląski | D91: 49926.93013 | E91: 6171.24631 | F91: 1145.47457 | G91: 284.68845 | H91: 5073.80185 | I91: 17361.13163 | J91: 294.47826 | K91: 7932.86985 | L91: 4546.1558 | M91: 2573.08425 | N91: 280.81553
B92: Mirsk | D92: 27299.86368 | E92: 1456.91071 | F92: 320.93471 | G92: 69.78811 | H92: 2395.11535 | I92: 10565.97454 | J92: 130.43243 | K92: 5869.01324 | L92: 2819.67374 | M92: 925.84645 | N92: 1016.7778
B93: Wleń | D93: 14608.48566 | E93: 286.74197 | F93: 220.01399 | G93: 165.23743 | H93: 2234.77655 | I93: 4239.73732 | J93: 52.93639 | K93: 2467.90253 | L93: 903.00812 | M93: 907.89304 | N93: 84.89236
B94: POWIAT ZGORZELECKI | D94: 363673.8198 | E94: 18181.58152 | F94: 18768.67018 | G94: 1480.58946 | H94: 42634.13959 | I94: 109925.8483 | J94: 7814.51821 | K94: 47663.1114 | L94: 45229.80405 | M94: 18447.48907 | N94: 16535.66118
B95: Gminy miejskie:
B96: Urban gminas:
B97: Zawidów | D97: 12837.60792 | E97: 2135.46878 | F97: 145.84215 | G97: 22.40741 | H97: 1623.86972 | I97: 5149.88149 | J97: 119.78444 | K97: 1658.16091 | L97: 1203.54054 | M97: 451 | N97: 84.92
B98: Zgorzelec | D98: 94896.7808 | E98: 2926.52233 | F98: 2701.84641 | G98: 806.97382 | H98: 9508.82048 | I98: 33790.49386 | J98: 1111.55285 | K98: 13153.25667 | L98: 11062.28846 | M98: 4157.49356 | N98: 10514.06149
B99: Gminy miejsko-wiejskie:
B100: Urban-rural gminas:
B101: Bogatynia | D101: 145791.6707 | E101: 7682.77129 | F101: 12253.07254 | G101: 118.8393 | H101: 17160.69289 | I101: 36463.91678 | J101: 5807.91891 | K101: 15374.39142 | L101: 18509.98333 | M101: 6676.01361 | N101: 3930.91782
B102: Pieńsk | D102: 25794.086 | E102: 1878.41215 | F102: 1234.91665 | G102: 68.61641 | H102: 3112.0891 | I102: 8589.0973 | J102: 147.09146 | K102: 5127.30246 | L102: 2874.02859 | M102: 960.85085 | N102: 350.9208
B103: Węgliniec | D103: 29715.15771 | E103: 859.26588 | F103: 587.0453 | G103: 136.52025 | H103: 3152.19688 | I103: 9054.3772 | J103: 121.08282 | K103: 4958.22567 | L103: 5292.07179 | M103: 839.61384 | N103: 258.75928
B104: Gminy wiejskie:
B105: Rural gminas:
B106: Sulików | D106: 20867.94395 | E106: 731.52151 | F106: 1447.27292 | G106: 206.67949 | H106: 2853.19694 | I106: 6697.7024 | J106: 49.9625 | K106: 3473.61079 | L106: 3489.77402 | M106: 509.86743 | N106: 129.59647
B107: Zgorzelec | D107: 33770.57278 | E107: 1967.61958 | F107: 398.67421 | G107: 120.55278 | H107: 5223.27358 | I107: 10180.37928 | J107: 457.12523 | K107: 3918.16348 | L107: 2798.11732 | M107: 4852.64978 | N107: 1266.48532
B108: POWIAT ZŁOTORYJSKI | D108: 145248.0921 | E108: 13404.00044 | F108: 7947.30905 | G108: 325.20174 | H108: 17589.87011 | I108: 42804.93981 | J108: 819.86671 | K108: 27775.88739 | L108: 14081.5618 | M108: 5825.35012 | N108: 2041.28736
B109: Gminy miejskie:
B110: Urban gminas:
B111: Wojcieszów | D111: 13704.51411 | E111: 1946.24835 | F111: 885.83661 | G111: 60.44131 | H111: 1424.88468 | I111: 3481.69609 | J111: 44.69663 | K111: 2859.26255 | L111: 1598.93331 | M111: 220.29859 | N111: 111.81169
B112: Złotoryja | D112: 44696.63901 | E112: 1506.5878 | F112: 5152.26125 | G112: 44.46726 | H112: 5501.45768 | I112: 12195.00726 | J112: 280.56986 | K112: 8374.87904 | L112: 6113.41761 | M112: 2309.32859 | N112: 1030.7277
B113: Gminy miejsko-wiejskie:
B114: Urban-rural gminas:
B115: Świerzawa | D115: 24454.744 | E115: 3916.69238 | F115: 32.94838 | G115: 21.73025 | H115: 2720.9991 | I115: 7120.43631 | J115: 165.83035 | K115: 5248.21442 | L115: 1594.54776 | M115: 1174.42485 | N115: 99.86799
B116: Gminy wiejskie:
B117: Rural gminas:
B118: Pielgrzymka | D118: 17064.28513 | E118: 762.85096 | F118: 687.70837 | G118: 10.3175 | H118: 2073.26738 | I118: 6100.79732 | J118: 48.75088 | K118: 3469.38129 | L118: 1097.81025 | M118: 636.56117 | N118: 106.81514
B119: Zagrodno | D119: 19208.24517 | E119: 1356.60569 | F119: 67.3681 | G119: 61.19672 | H119: 2907.0255 | I119: 5121.12425 | J119: 157.34456 | K119: 3449.60129 | L119: 1894.84319 | M119: 524.90174 | N119: 402.12186
B120: Złotoryja | D120: 26119.66464 | E120: 3915.01526 | F120: 1121.18634 | G120: 127.0487 | H120: 2962.23577 | I120: 8785.87858 | J120: 122.67443 | K120: 4374.5488 | L120: 1782.00968 | M120: 959.83518 | N120: 289.94298
B121: PODREGION LEGNICKO-GŁOGOWSKI | D121: 1420880.714 | E121: 122420.8882 | F121: 41824.22394 | G121: 5409.36719 | H121: 144981.6452 | I121: 483135.0975 | J121: 17547.39847 | K121: 177987.2213 | L121: 141061.7229 | M121: 75620.27034 | N121: 44205.14227
B122: SUBREGION
B123: POWIAT GŁOGOWSKI | D123: 339131.0675 | E123: 35409.63469 | F123: 6509.15571 | G123: 1950.09443 | H123: 32250.92789 | I123: 119234.5663 | J123: 5517.45858 | K123: 41410.37942 | L123: 29687.43595 | M123: 17604.56163 | N123: 11900.54098
B124: Gminy miejskie:
B125: Urban gminas:
B126: Głogów | D126: 234712.2617 | E126: 27058.57646 | F126: 4543.80612 | G126: 1516.48016 | H126: 17980.94265 | I126: 90233.71627 | J126: 4727.94656 | K126: 30044.3046 | L126: 19243.84548 | M126: 9933.9373 | N126: 10077.80013
B127: Gminy wiejskie:
B128: Rural gminas:
B129: Głogów | D129: 22450.31465 | E129: 2026.50919 | F129: 227.05009 | G129: 181.44406 | H129: 2802.87511 | I129: 6721.50873 | J129: 390.79361 | K129: 2620.71596 | L129: 4174.83176 | M129: 1322.27623 | N129: 488.45288
B130: Jerzmanowa | D130: 37180.0944 | E130: 3880.56159 | F130: 353.84924 | G130: 73.22871 | H130: 5026.58634 | I130: 9710.09464 | J130: 102.66909 | K130: 2367.61152 | L130: 3323.96701 | M130: 3644.80002 | N130: 1103.15973
B131: Kotla | D131: 18604.29654 | E131: 1167.56446 | F131: 842.08585 | G131: 48.35987 | H131: 2451.4056 | I131: 5241.36072 | J131: 130.31312 | K131: 2131.09387 | L131: 1789.39019 | M131: 591.15622 | N131: 52.73902
B132: Pęcław | D132: 12443.93439 | E132: 97.87825 | F132: 104.75004 | G132: 2.315 | H132: 2278.62333 | I132: 2312.43228 | J132: 29.61304 | K132: 1948.0137 | L132: 201.53825 | M132: 1467.82419 | N132: 131.21344
B133: Żukowice | D133: 13740.16584 | E133: 1178.54474 | F133: 437.61437 | G133: 128.26663 | H133: 1710.49486 | I133: 5015.45366 | J133: 136.12316 | K133: 2298.63977 | L133: 953.86326 | M133: 644.56767 | N133: 47.17578
B134: POWIAT GÓROWSKI | D134: 123397.4874 | E134: 7548.53251 | F134: 3026.44145 | G134: 249.47894 | H134: 11621.73812 | I134: 41788.67617 | J134: 564.89106 | K134: 27537.06909 | L134: 11514.90926 | M134: 4184.69241 | N134: 5746.58544
B135: Gminy miejsko-wiejskie:
B136: Urban-rural gminas:
B137: Góra | D137: 70148.15918 | E137: 3515.17926 | F137: 2177.02269 | G137: 152.5891 | H137: 5406.53914 | I137: 22940.74981 | J137: 337.60822 | K137: 16811.78486 | L137: 6064.36729 | M137: 2469.00295 | N137: 5439.53949
B138: Wąsosz | D138: 26670.44995 | E138: 3667.77124 | F138: 203.13894 | G138: 60.6963 | H138: 2713.39367 | I138: 9079.60731 | J138: 131.79026 | K138: 4346.60927 | L138: 3883.47429 | M138: 714.47957 | N138: 196.6873
B139: Gminy wiejskie:
B140: Rural gminas:
B141: Jemielno | D141: 10572.33817 | E141: 37.53779 | F141: 371.47343 | G141: 4.75 | H141: 1635.29147 | I141: 3549.59431 | J141: 34.72104 | K141: 2802.52902 | L141: 596.01668 | M141: 405.62561 | N141: 26.43537
B142: Niechlów | D142: 16006.54014 | E142: 328.04422 | F142: 274.80639 | G142: 31.44354 | H142: 1866.51384 | I142: 6218.72474 | J142: 60.77154 | K142: 3576.14594 | L142: 971.051 | M142: 595.58428 | N142: 83.92328
B143: POWIAT LEGNICKI | D143: 185394.5728 | E143: 5441.64966 | F143: 5095.46796 | G143: 830.57928 | H143: 23300.09728 | I143: 64507.0076 | J143: 1129.77388 | K143: 28877.27781 | L143: 21927.71526 | M143: 11515.86821 | N143: 3062.44907
B144: Gminy miejskie:
B145: Urban gminas:
B146: Chojnów | D146: 43276.17461 | E146: 142.15664 | F146: 136.0063 | G146: 188.09445 | H146: 4079.15881 | I146: 17497.62392 | J146: 304.94611 | K146: 7203.91122 | L146: 5531.18479 | M146: 4696.74689 | N146: 244.61818
B147: Gminy miejsko-wiejskie:
B148: Urban-rural gminas:
B149: Prochowice | D149: 23759.01418 | E149: 568.96561 | F149: 927.5384 | G149: 179.97802 | H149: 3070.47184 | I149: 8588.94362 | J149: 227.98597 | K149: 3826.10402 | L149: 3229.70824 | M149: 1601.59497 | N149: 342.94329
B150: Gminy wiejskie:
B151: Rural gminas:
B152: Chojnów | D152: 29214.32222 | E152: 334.11565 | F152: 1550.66574 | G152: 64.96274 | H152: 3957.15795 | I152: 9454.15086 | J152: 170.41623 | K152: 5575.82822 | L152: 1760.10232 | M152: 1001.13909 | N152: 369.60132
B153: Krotoszyce | D153: 12910.98981 | E153: 606.28111 | F153: 563.19865 | G153: 36.8656 | H153: 1972.37733 | I153: 4968.31249 | J153: 54.56804 | K153: 1632.88981 | L153: 919.5906 | M153: 415.05239 | N153: 87.902
B154: Kunice | D154: 24139.85774 | E154: 1308.07971 | F154: 85.88206 | G154: 42.14814 | H154: 3092.75599 | I154: 9889.07789 | J154: 91.73472 | K154: 2336.30385 | L154: 3549.68703 | M154: 1399.93328 | N154: 541.24252
B155: Legnickie Pole | D155: 21931.4777 | E155: 1843.68354 | F155: 1383.39273 | G155: 188.56591 | H155: 3365.596 | I155: 5446.80405 | J155: 119.25593 | K155: 2571.04876 | L155: 3179.21922 | M155: 1293.11966 | N155: 1288.11109
B156: Miłkowice | D156: 20100.4126 | E156: 563.88787 | F156: 437.90472 | G156: 127.45357 | H156: 2360.91134 | I156: 5773.31632 | J156: 135.73675 | K156: 3492.75322 | L156: 1248.69137 | M156: 975.93432 | N156: 145.63555
B157: Ruja | D157: 10062.32399 | E157: 74.47953 | F157: 10.87936 | G157: 2.51085 | H157: 1401.66802 | I157: 2888.77845 | J157: 25.13013 | K157: 2238.43871 | L157: 2509.53169 | M157: 132.34761 | N157: 42.39512
B158: POWIAT LUBIŃSKI | D158: 431917.7499 | E158: 51976.87525 | F158: 9680.00382 | G158: 814.51392 | H158: 37143.69668 | I158: 159954.862 | J158: 3071.77208 | K158: 47958.07194 | L158: 49049.50365 | M158: 25184.23085 | N158: 11777.64044
B159: Gminy miejskie:
B160: Urban gminas:
B161: Lubin | D161: 290670.6336 | E161: 36824.37648 | F161: 7027.16441 | G161: 378.34307 | H161: 20806.03485 | I161: 119596.1199 | J161: 1794.45892 | K161: 33059.56289 | L161: 27636.37086 | M161: 15204.73105 | N161: 6566.64722
B162: Gminy miejsko-wiejskie:
B163: Urban-rural gminas:
B164: Ścinawa | D164: 34615.13569 | E164: 997.34621 | F164: 499.02741 | G164: 191.941 | H164: 4169.36792 | I164: 10300.97918 | J164: 214.91131 | K164: 6090.88064 | L164: 3205.99157 | M164: 2398.98892 | N164: 2864.66412
B165: Gminy wiejskie:
B166: Rural gminas:
B167: Lubin | D167: 60589.39039 | E167: 6963.68255 | F167: 1707.42669 | G167: 166.50849 | H167: 8073.24095 | I167: 17027.02773 | J167: 177.38022 | K167: 5056.74362 | L167: 10809.19663 | M167: 3811.78019 | N167: 1317.46228
B168: Rudna | D168: 46042.59026 | E168: 7191.47001 | F168: 446.38531 | G168: 77.72136 | H168: 4095.05296 | I168: 13030.73517 | J168: 885.02163 | K168: 3750.88479 | L168: 7397.94459 | M168: 3768.73069 | N168: 1028.86682
B169: POWIAT POLKOWICKI | D169: 341039.8362 | E169: 22044.19612 | F169: 17513.155 | G169: 1564.70062 | H169: 40665.18527 | I169: 97649.98536 | J169: 7263.50287 | K169: 32204.42304 | L169: 28882.15881 | M169: 17130.91724 | N169: 11717.92634
B170: Gminy miejsko-wiejskie:
B171: Urban-rural gminas:
B172: Chocianów | D172: 38414.06838 | E172: 595.83289 | F172: 1820.36239 | G172: 222.29864 | H172: 4092.18202 | I172: 14626.9483 | J172: 225.67163 | K172: 6407.71019 | L172: 1360.41581 | M172: 1314.77865 | N172: 455.04196
B173: Polkowice | D173: 211116.7763 | E173: 13473.50433 | F173: 14328.50135 | G173: 983.83048 | H173: 24763.76746 | I173: 50700.82986 | J173: 6500.22467 | K173: 13482.00983 | L173: 17269.14679 | M173: 10717.32263 | N173: 9744.05841
B174: Przemków | D174: 22721.55391 | E174: 42.7992 | F174: 760.07382 | G174: 34.22886 | H174: 3144.42682 | I174: 7795.94282 | J174: 132.96101 | K174: 5099.60108 | L174: 2023.42154 | M174: 967.61789 | N174: 122.33763
B175: Gminy wiejskie:
B176: Rural gminas:
B177: Gaworzyce | D177: 18013.86385 | E177: 3274.87756 | F177: 129.82774 | G177: 31.182 | H177: 1841.86852 | I177: 4068.63345 | J177: 62.44056 | K177: 2033.11916 | L177: 4255.36553 | M177: 1300.35744 | N177: 337.3715
B178: Grębocice | D178: 29096.11916 | E178: 1813.5455 | F178: 389.93819 | G178: 72.89836 | H178: 4337.40268 | I178: 12398.73315 | J178: 269.33 | K178: 2781.0618 | L178: 1240.93707 | M178: 2164.20068 | N178: 934.11117
B179: Radwanice | D179: 21677.45465 | E179: 2843.63664 | F179: 84.45151 | G179: 220.26228 | H179: 2485.53777 | I179: 8058.89778 | J179: 72.875 | K179: 2400.92098 | L179: 2732.87207 | M179: 666.63995 | N179: 125.00567
B180: PODREGION WAŁBRZYSKI | D180: 1722614.003 | E180: 178705.9285 | F180: 108804.1365 | G180: 8412.31284 | H180: 196250.3391 | I180: 515770.4323 | J180: 13828.35837 | K180: 274144.0093 | L180: 183484.9067 | M180: 78058.35281 | N180: 53325.84664
B181: SUBREGION
B182: POWIAT DZIERŻONIOWSKI | D182: 313624.9794 | E182: 51422.06769 | F182: 31337.73249 | G182: 591.76006 | H182: 33105.4728 | I182: 78542.86853 | J182: 1944.96188 | K182: 51167.3048 | L182: 27919.43259 | M182: 12393.30535 | N182: 8598.50466
B183: Gminy miejskie:
B184: Urban gminas:
B185: Bielawa | D185: 107335.3924 | E185: 22323.53956 | F185: 16350.44845 | G185: 159.22734 | H185: 7389.86086 | I185: 22549.41675 | J185: 509.72062 | K185: 14519.31751 | L185: 12769.907 | M185: 2414.256 | N185: 3457.8435
B186: Dzierżoniów | D186: 92765.11929 | E186: 12860.53189 | F186: 6784.61583 | G186: 121.53888 | H186: 10205.36465 | I186: 24703.85904 | J186: 849.65577 | K186: 17718.77128 | L186: 5843.72419 | M186: 4811.04755 | N186: 3553.89105
B187: Pieszyce | D187: 25113.41422 | E187: 3493.47668 | F187: 989.25033 | G187: 154.03908 | H187: 3529.02825 | I187: 5796.17365 | J187: 137.30725 | K187: 5316.67228 | L187: 2360.86064 | M187: 1795.9572 | N187: 405.02411
B188: Piława Górna | D188: 17942.27518 | E188: 1526.55538 | F188: 2276.36794 | G188: 11.664 | H188: 2561.9486 | I188: 4548.32344 | J188: 103.81444 | K188: 3168.51961 | L188: 2244.96507 | M188: 390 | N188: 494.18861
B189: Gminy miejsko-wiejskie:
B190: Urban-rural gminas:
B191: Niemcza | D191: 16025.45595 | E191: 1847.42146 | F191: 1547.24451 | G191: 70.01979 | H191: 2434.05699 | I191: 4445.26867 | J191: 86.46041 | K191: 3050.79883 | L191: 846.32586 | M191: 474.00219 | N191: 145.37896
B192: Gminy wiejskie:
B193: Rural gminas:
B194: Dzierżoniów | D194: 31322.42792 | E194: 6902.61229 | F194: 2536.40881 | G194: 35.41954 | H194: 3446.23377 | I194: 8137.83559 | J194: 117.92363 | K194: 4402.35039 | L194: 1806.63953 | M194: 1350.93243 | N194: 393.74826
B195: Łagiewniki | D195: 23120.89446 | E195: 2467.93043 | F195: 853.39662 | G195: 39.85143 | H195: 3538.97968 | I195: 8361.99139 | J195: 140.07976 | K195: 2990.8749 | L195: 2047.0103 | M195: 1157.10998 | N195: 148.43017
B196: POWIAT KŁODZKI | D196: 498498.5826 | E196: 28515.21465 | F196: 33490.52193 | G196: 2648.73932 | H196: 60397.95446 | I196: 152044.251 | J196: 4228.86394 | K196: 85814.37054 | L196: 55030.13147 | M196: 24957.38705 | N196: 15583.06157
B197: Gminy miejskie:
B198: Urban gminas:
B199: Duszniki-Zdrój | D199: 20209.8079 | E199: 173.40902 | F199: 1111.62527 | G199: 75.39696 | H199: 2554.01023 | I199: 5882.02021 | J199: 259.05589 | K199: 2618.92003 | L199: 1859.12132 | M199: 1439.699 | N199: 3164.03674
B200: Kłodzko | D200: 80460.61923 | E200: 1407.44281 | F200: 5933.64579 | G200: 148.67569 | H200: 8903.00327 | I200: 26842.81899 | J200: 652.07864 | K200: 14987.6721 | L200: 6659.33192 | M200: 5771.14458 | N200: 4501.52443
B201: Kudowa-Zdrój | D201: 32953.25368 | E201: 2670.28394 | F201: 2842.68698 | G201: 165.13834 | H201: 4251.73439 | I201: 10468.25538 | J201: 322.10088 | K201: 4436.64495 | L201: 4603.35147 | M201: 816.67094 | N201: 319.70942
B202: Nowa Ruda | D202: 63998.68957 | E202: 3237.31305 | F202: 7217.1999 | G202: 1109.30048 | H202: 5864.56266 | I202: 17445.56799 | J202: 601.75461 | K202: 12402.97317 | L202: 6737.99586 | M202: 2304.27 | N202: 3883.85434
B203: Polanica-Zdrój | D203: 22065.19835 | E203: 1311.67997 | F203: 954.17133 | G203: 136.15182 | H203: 2994.14301 | I203: 6954.45893 | J203: 302.76989 | K203: 2967.56615 | L203: 3576.25959 | M203: 1678.11431 | N203: 328.07419
B204: Gminy miejsko-wiejskie:
B205: Urban-rural gminas:
... 144 more rows

Sheet Tabl. 15.
B4: Tabl. 15. Struktura wydatków budżetów gmina według działów oraz podregionów i powiatów
B5: Structure of expenditure of gminas budgetsa by divisions as well as subregions and powiats
B6: WYSZCZEGÓLNIENIE SPECIFICATION | D6: Ogółem Total | E6: W tym Of which
E7: transport i łączność transport and communication | F7: gospodarka mieszkaniowa dwelling economy | G7: działalność usługowa service activity | H7: administracja publiczna public administration | I7: oświata i wychowanie education | J7: ochrona zdrowia health care | K7: pomoc społeczna social welfare | L7: gospodarka komunalna i ochrona środowiska municipal economy and environmental protection | M7: kultura i ochrona dziedzictwa narodowego culture and national heritage | N7: kultura fizyczna physical education
D9: w % in %
B10: O G Ó Ł E M | C10: 2014 | D10: 100 | E10: 9.336923 | F10: 4.693583 | G10: 0.380133 | H10: 10.534707 | I10: 30.851892 | J10: 0.945809 | K10: 13.647402 | L10: 11.81839 | M10: 5.865411 | N10: 3.386682
B11: T O T A L | C11: 2015 | D11: 100 | E11: =Tabl.14.!E11/Tabl.14.!$D11*100 -> 8.876842456 | F11: =Tabl.14.!F11/Tabl.14.!$D11*100 -> 4.642984784 | G11: =Tabl.14.!G11/Tabl.14.!$D11*100 -> 0.4133071061 | H11: =Tabl.14.!H11/Tabl.14.!$D11*100 -> 10.93239158 | I11: =Tabl.14.!I11/Tabl.14.!$D11*100 -> 32.47548914 | J11: =Tabl.14.!J11/Tabl.14.!$D11*100 -> 0.9800347458 | K11: =Tabl.14.!K11/Tabl.14.!$D11*100 -> 13.87469356 | L11: =Tabl.14.!L11/Tabl.14.!$D11*100 -> 11.39129031 | M11: =Tabl.14.!M11/Tabl.14.!$D11*100 -> 4.861554948 | N11: =Tabl.14.!N11/Tabl.14.!$D11*100 -> 3.17443066
B13: Gminy miejskie | D13: 100 | E13: =Tabl.14.!E13/Tabl.14.!$D13*100 -> 10.01157949 | F13: =Tabl.14.!F13/Tabl.14.!$D13*100 -> 6.646340176 | G13: =Tabl.14.!G13/Tabl.14.!$D13*100 -> 0.4530958338 | H13: =Tabl.14.!H13/Tabl.14.!$D13*100 -> 9.834901719 | I13: =Tabl.14.!I13/Tabl.14.!$D13*100 -> 32.15082635 | J13: =Tabl.14.!J13/Tabl.14.!$D13*100 -> 0.9626376893 | K13: =Tabl.14.!K13/Tabl.14.!$D13*100 -> 14.71787695 | L13: =Tabl.14.!L13/Tabl.14.!$D13*100 -> 10.70101953 | M13: =Tabl.14.!M13/Tabl.14.!$D13*100 -> 4.789106174 | N13: =Tabl.14.!N13/Tabl.14.!$D13*100 -> 3.758171766
B14: Urban gminas
B15: Gminy miejsko-wiejskie | D15: 100 | E15: =Tabl.14.!E15/Tabl.14.!$D15*100 -> 7.622566854 | F15: =Tabl.14.!F15/Tabl.14.!$D15*100 -> 4.444906753 | G15: =Tabl.14.!G15/Tabl.14.!$D15*100 -> 0.4264072243 | H15: =Tabl.14.!H15/Tabl.14.!$D15*100 -> 11.01025789 | I15: =Tabl.14.!I15/Tabl.14.!$D15*100 -> 31.92237418 | J15: =Tabl.14.!J15/Tabl.14.!$D15*100 -> 1.263179319 | K15: =Tabl.14.!K15/Tabl.14.!$D15*100 -> 14.1664177 | L15: =Tabl.14.!L15/Tabl.14.!$D15*100 -> 11.19738185 | M15: =Tabl.14.!M15/Tabl.14.!$D15*100 -> 4.662762356 | N15: =Tabl.14.!N15/Tabl.14.!$D15*100 -> 3.672899328
B16: Urban-rural gminas
B17: Gminy wiejskie | D17: 100 | E17: =Tabl.14.!E17/Tabl.14.!$D17*100 -> 9.212449206 | F17: =Tabl.14.!F17/Tabl.14.!$D17*100 -> 2.737964403 | G17: =Tabl.14.!G17/Tabl.14.!$D17*100 -> 0.3543719556 | H17: =Tabl.14.!H17/Tabl.14.!$D17*100 -> 12.01397077 | I17: =Tabl.14.!I17/Tabl.14.!$D17*100 -> 33.5090964 | J17: =Tabl.14.!J17/Tabl.14.!$D17*100 -> 0.6479897391 | K17: =Tabl.14.!K17/Tabl.14.!$D17*100 -> 12.60828759 | L17: =Tabl.14.!L17/Tabl.14.!$D17*100 -> 12.37240225 | M17: =Tabl.14.!M17/Tabl.14.!$D17*100 -> 5.185555998 | N17: =Tabl.14.!N17/Tabl.14.!$D17*100 -> 1.930420681
B18: Rural gminas
B19: PODREGION JELENIOGÓRSKI | D19: 100 | E19: =Tabl.14.!E19/Tabl.14.!$D19*100 -> 7.860630652 | F19: =Tabl.14.!F19/Tabl.14.!$D19*100 -> 4.947552059 | G19: =Tabl.14.!G19/Tabl.14.!$D19*100 -> 0.3893776821 | H19: =Tabl.14.!H19/Tabl.14.!$D19*100 -> 11.53138849 | I19: =Tabl.14.!I19/Tabl.14.!$D19*100 -> 30.72003746 | J19: =Tabl.14.!J19/Tabl.14.!$D19*100 -> 1.143632523 | K19: =Tabl.14.!K19/Tabl.14.!$D19*100 -> 15.74354784 | L19: =Tabl.14.!L19/Tabl.14.!$D19*100 -> 11.3996447 | M19: =Tabl.14.!M19/Tabl.14.!$D19*100 -> 4.681753531 | N19: =Tabl.14.!N19/Tabl.14.!$D19*100 -> 2.873406744
B20: SUBREGION
B21: POWIAT BOLESŁAWIECKI | D21: 100 | E21: =Tabl.14.!E21/Tabl.14.!$D21*100 -> 8.350582785 | F21: =Tabl.14.!F21/Tabl.14.!$D21*100 -> 6.374041926 | G21: =Tabl.14.!G21/Tabl.14.!$D21*100 -> 0.2143120637 | H21: =Tabl.14.!H21/Tabl.14.!$D21*100 -> 10.27587501 | I21: =Tabl.14.!I21/Tabl.14.!$D21*100 -> 31.68492946 | J21: =Tabl.14.!J21/Tabl.14.!$D21*100 -> 1.574787863 | K21: =Tabl.14.!K21/Tabl.14.!$D21*100 -> 14.64189286 | L21: =Tabl.14.!L21/Tabl.14.!$D21*100 -> 10.58214997 | M21: =Tabl.14.!M21/Tabl.14.!$D21*100 -> 8.711066382 | N21: =Tabl.14.!N21/Tabl.14.!$D21*100 -> 3.362974793
B22: Gminy miejskie:
B23: Urban gminas:
B24: Bolesławiec | D24: 100 | E24: =Tabl.14.!E24/Tabl.14.!$D24*100 -> 8.011790406 | F24: =Tabl.14.!F24/Tabl.14.!$D24*100 -> 11.06546376 | G24: =Tabl.14.!G24/Tabl.14.!$D24*100 -> 0.1053346287 | H24: =Tabl.14.!H24/Tabl.14.!$D24*100 -> 8.677185498 | I24: =Tabl.14.!I24/Tabl.14.!$D24*100 -> 25.97238173 | J24: =Tabl.14.!J24/Tabl.14.!$D24*100 -> 0.8220493901 | K24: =Tabl.14.!K24/Tabl.14.!$D24*100 -> 14.71474754 | L24: =Tabl.14.!L24/Tabl.14.!$D24*100 -> 12.45867001 | M24: =Tabl.14.!M24/Tabl.14.!$D24*100 -> 11.16153548 | N24: =Tabl.14.!N24/Tabl.14.!$D24*100 -> 4.092790615
B25: Gminy miejsko-wiejskie:
B26: Urban-rural gminas:
B27: Nowogrodziec | D27: 100 | E27: =Tabl.14.!E27/Tabl.14.!$D27*100 -> 6.367049715 | F27: =Tabl.14.!F27/Tabl.14.!$D27*100 -> 0.9876373414 | G27: =Tabl.14.!G27/Tabl.14.!$D27*100 -> 0.1258661737 | H27: =Tabl.14.!H27/Tabl.14.!$D27*100 -> 9.860146225 | I27: =Tabl.14.!I27/Tabl.14.!$D27*100 -> 42.39227164 | J27: =Tabl.14.!J27/Tabl.14.!$D27*100 -> 6.709074929 | K27: =Tabl.14.!K27/Tabl.14.!$D27*100 -> 15.10708302 | L27: =Tabl.14.!L27/Tabl.14.!$D27*100 -> 6.838637238 | M27: =Tabl.14.!M27/Tabl.14.!$D27*100 -> 2.723182284 | N27: =Tabl.14.!N27/Tabl.14.!$D27*100 -> 0.8277890387
B28: Gminy wiejskie:
B29: Rural gminas:
B30: Bolesławiec | D30: 100 | E30: =Tabl.14.!E30/Tabl.14.!$D30*100 -> 7.323402529 | F30: =Tabl.14.!F30/Tabl.14.!$D30*100 -> 4.737958232 | G30: =Tabl.14.!G30/Tabl.14.!$D30*100 -> 0.5950865759 | H30: =Tabl.14.!H30/Tabl.14.!$D30*100 -> 10.44917741 | I30: =Tabl.14.!I30/Tabl.14.!$D30*100 -> 34.32457409 | J30: =Tabl.14.!J30/Tabl.14.!$D30*100 -> 0.3924208485 | K30: =Tabl.14.!K30/Tabl.14.!$D30*100 -> 12.08234073 | L30: =Tabl.14.!L30/Tabl.14.!$D30*100 -> 10.09134863 | M30: =Tabl.14.!M30/Tabl.14.!$D30*100 -> 13.14034553 | N30: =Tabl.14.!N30/Tabl.14.!$D30*100 -> 3.555909496
B31: Gromadka | D31: 100 | E31: =Tabl.14.!E31/Tabl.14.!$D31*100 -> 14.06569192 | F31: =Tabl.14.!F31/Tabl.14.!$D31*100 -> 1.020314388 | G31: =Tabl.14.!G31/Tabl.14.!$D31*100 -> 0.2361647935 | H31: =Tabl.14.!H31/Tabl.14.!$D31*100 -> 17.87876066 | I31: =Tabl.14.!I31/Tabl.14.!$D31*100 -> 26.99528609 | J31: =Tabl.14.!J31/Tabl.14.!$D31*100 -> 0.8180869254 | K31: =Tabl.14.!K31/Tabl.14.!$D31*100 -> 17.94807883 | L31: =Tabl.14.!L31/Tabl.14.!$D31*100 -> 7.984156707 | M31: =Tabl.14.!M31/Tabl.14.!$D31*100 -> 4.567486657 | N31: =Tabl.14.!N31/Tabl.14.!$D31*100 -> 1.588453418
B32: Osiecznica | D32: 100 | E32: =Tabl.14.!E32/Tabl.14.!$D32*100 -> 9.104017165 | F32: =Tabl.14.!F32/Tabl.14.!$D32*100 -> 3.739453842 | G32: =Tabl.14.!G32/Tabl.14.!$D32*100 -> 0.2035733277 | H32: =Tabl.14.!H32/Tabl.14.!$D32*100 -> 8.91583592 | I32: =Tabl.14.!I32/Tabl.14.!$D32*100 -> 40.09657697 | J32: =Tabl.14.!J32/Tabl.14.!$D32*100 -> 0.6037971139 | K32: =Tabl.14.!K32/Tabl.14.!$D32*100 -> 14.44270652 | L32: =Tabl.14.!L32/Tabl.14.!$D32*100 -> 8.791541088 | M32: =Tabl.14.!M32/Tabl.14.!$D32*100 -> 2.972315656 | N32: =Tabl.14.!N32/Tabl.14.!$D32*100 -> 6.863250158
B33: Warta Bolesławiecka | D33: 100 | E33: =Tabl.14.!E33/Tabl.14.!$D33*100 -> 9.911193016 | F33: =Tabl.14.!F33/Tabl.14.!$D33*100 -> 0.2262645496 | G33: =Tabl.14.!G33/Tabl.14.!$D33*100 -> 0.3106676065 | H33: =Tabl.14.!H33/Tabl.14.!$D33*100 -> 14.4664991 | I33: =Tabl.14.!I33/Tabl.14.!$D33*100 -> 34.8222595 | J33: =Tabl.14.!J33/Tabl.14.!$D33*100 -> 0.4627275121 | K33: =Tabl.14.!K33/Tabl.14.!$D33*100 -> 15.25400892 | L33: =Tabl.14.!L33/Tabl.14.!$D33*100 -> 11.48194864 | M33: =Tabl.14.!M33/Tabl.14.!$D33*100 -> 7.537475925 | N33: =Tabl.14.!N33/Tabl.14.!$D33*100 -> 1.40464051
B34: POWIAT JAWORSKI | D34: 100 | E34: =Tabl.14.!E34/Tabl.14.!$D34*100 -> 5.05172965 | F34: =Tabl.14.!F34/Tabl.14.!$D34*100 -> 0.9470248422 | G34: =Tabl.14.!G34/Tabl.14.!$D34*100 -> 0.4116693806 | H34: =Tabl.14.!H34/Tabl.14.!$D34*100 -> 11.37248658 | I34: =Tabl.14.!I34/Tabl.14.!$D34*100 -> 31.93753833 | J34: =Tabl.14.!J34/Tabl.14.!$D34*100 -> 0.7339899571 | K34: =Tabl.14.!K34/Tabl.14.!$D34*100 -> 16.91577893 | L34: =Tabl.14.!L34/Tabl.14.!$D34*100 -> 16.32008207 | M34: =Tabl.14.!M34/Tabl.14.!$D34*100 -> 3.919191003 | N34: =Tabl.14.!N34/Tabl.14.!$D34*100 -> 1.691745596
B35: Gminy miejskie:
B36: Urban gminas:
B37: Jawor | D37: 100 | E37: =Tabl.14.!E37/Tabl.14.!$D37*100 -> 1.519318122 | F37: =Tabl.14.!F37/Tabl.14.!$D37*100 -> 0.8941923737 | G37: =Tabl.14.!G37/Tabl.14.!$D37*100 -> 0.5924951635 | H37: =Tabl.14.!H37/Tabl.14.!$D37*100 -> 10.76583093 | I37: =Tabl.14.!I37/Tabl.14.!$D37*100 -> 32.64000465 | J37: =Tabl.14.!J37/Tabl.14.!$D37*100 -> 0.7808367932 | K37: =Tabl.14.!K37/Tabl.14.!$D37*100 -> 18.0423933 | L37: =Tabl.14.!L37/Tabl.14.!$D37*100 -> 18.00690543 | M37: =Tabl.14.!M37/Tabl.14.!$D37*100 -> 5.166879052 | N37: =Tabl.14.!N37/Tabl.14.!$D37*100 -> 2.661085702
B38: Gminy miejsko-wiejskie:
B39: Urban-rural gminas:
B40: Bolków | D40: 100 | E40: =Tabl.14.!E40/Tabl.14.!$D40*100 -> 4.278986874 | F40: =Tabl.14.!F40/Tabl.14.!$D40*100 -> 0.8689139155 | G40: =Tabl.14.!G40/Tabl.14.!$D40*100 -> 0.1083822999 | H40: =Tabl.14.!H40/Tabl.14.!$D40*100 -> 11.14027256 | I40: =Tabl.14.!I40/Tabl.14.!$D40*100 -> 37.07249696 | J40: =Tabl.14.!J40/Tabl.14.!$D40*100 -> 0.7291589425 | K40: =Tabl.14.!K40/Tabl.14.!$D40*100 -> 22.84066863 | L40: =Tabl.14.!L40/Tabl.14.!$D40*100 -> 10.21942147 | M40: =Tabl.14.!M40/Tabl.14.!$D40*100 -> 4.351122786 | N40: =Tabl.14.!N40/Tabl.14.!$D40*100 -> 0.8537853876
B41: Gminy wiejskie:
B42: Rural gminas:
B43: Męcinka | D43: 100 | E43: =Tabl.14.!E43/Tabl.14.!$D43*100 -> 12.19649491 | F43: =Tabl.14.!F43/Tabl.14.!$D43*100 -> 2.89004105 | G43: =Tabl.14.!G43/Tabl.14.!$D43*100 -> 0.8822777847 | H43: =Tabl.14.!H43/Tabl.14.!$D43*100 -> 13.21821005 | I43: =Tabl.14.!I43/Tabl.14.!$D43*100 -> 30.98669013 | J43: =Tabl.14.!J43/Tabl.14.!$D43*100 -> 1.441454957 | K43: =Tabl.14.!K43/Tabl.14.!$D43*100 -> 14.94241726 | L43: =Tabl.14.!L43/Tabl.14.!$D43*100 -> 5.444145888 | M43: =Tabl.14.!M43/Tabl.14.!$D43*100 -> 3.180771296 | N43: =Tabl.14.!N43/Tabl.14.!$D43*100 -> 1.609591581
B44: Mściwojów | D44: 100 | E44: =Tabl.14.!E44/Tabl.14.!$D44*100 -> 9.582168563 | F44: =Tabl.14.!F44/Tabl.14.!$D44*100 -> 0.162178934 | G44: =Tabl.14.!G44/Tabl.14.!$D44*100 -> 0.08379670763 | H44: =Tabl.14.!H44/Tabl.14.!$D44*100 -> 8.901890352 | I44: =Tabl.14.!I44/Tabl.14.!$D44*100 -> 17.98026519 | J44: =Tabl.14.!J44/Tabl.14.!$D44*100 -> 0.2910163085 | K44: =Tabl.14.!K44/Tabl.14.!$D44*100 -> 9.566598385 | L44: =Tabl.14.!L44/Tabl.14.!$D44*100 -> 34.55112746 | M44: =Tabl.14.!M44/Tabl.14.!$D44*100 -> 1.449429889 | N44: =Tabl.14.!N44/Tabl.14.!$D44*100 -> 0.4894902214
B45: Paszowice | D45: 100 | E45: =Tabl.14.!E45/Tabl.14.!$D45*100 -> 7.530963017 | F45: =Tabl.14.!F45/Tabl.14.!$D45*100 -> 0.7129083083 | G45: =Tabl.14.!G45/Tabl.14.!$D45*100 -> 0.05310249017 | H45: =Tabl.14.!H45/Tabl.14.!$D45*100 -> 14.93776644 | I45: =Tabl.14.!I45/Tabl.14.!$D45*100 -> 37.00455351 | J45: =Tabl.14.!J45/Tabl.14.!$D45*100 -> 0.3557502034 | K45: =Tabl.14.!K45/Tabl.14.!$D45*100 -> 13.30591884 | L45: =Tabl.14.!L45/Tabl.14.!$D45*100 -> 11.01218227 | M45: =Tabl.14.!M45/Tabl.14.!$D45*100 -> 3.607377879 | N45: =Tabl.14.!N45/Tabl.14.!$D45*100 -> 0.6320770761
B46: Wądroże Wielkie | D46: 100 | E46: =Tabl.14.!E46/Tabl.14.!$D46*100 -> 5.04689048 | F46: =Tabl.14.!F46/Tabl.14.!$D46*100 -> 0.3202786488 | G46: =Tabl.14.!G46/Tabl.14.!$D46*100 -> 0.4308021144 | H46: =Tabl.14.!H46/Tabl.14.!$D46*100 -> 13.10359945 | I46: =Tabl.14.!I46/Tabl.14.!$D46*100 -> 36.99618224 | J46: =Tabl.14.!J46/Tabl.14.!$D46*100 -> 0.6829275128 | K46: =Tabl.14.!K46/Tabl.14.!$D46*100 -> 16.96667146 | L46: =Tabl.14.!L46/Tabl.14.!$D46*100 -> 10.03835582 | M46: =Tabl.14.!M46/Tabl.14.!$D46*100 -> 2.021353938 | N46: =Tabl.14.!N46/Tabl.14.!$D46*100 -> 1.770232813
B47: POWIAT JELENIOGÓRSKI | D47: 100 | E47: =Tabl.14.!E47/Tabl.14.!$D47*100 -> 12.9825306 | F47: =Tabl.14.!F47/Tabl.14.!$D47*100 -> 5.619542232 | G47: =Tabl.14.!G47/Tabl.14.!$D47*100 -> 0.5984849802 | H47: =Tabl.14.!H47/Tabl.14.!$D47*100 -> 12.89248727 | I47: =Tabl.14.!I47/Tabl.14.!$D47*100 -> 25.3272573 | J47: =Tabl.14.!J47/Tabl.14.!$D47*100 -> 0.8183395031 | K47: =Tabl.14.!K47/Tabl.14.!$D47*100 -> 15.33814554 | L47: =Tabl.14.!L47/Tabl.14.!$D47*100 -> 11.20313848 | M47: =Tabl.14.!M47/Tabl.14.!$D47*100 -> 2.491953382 | N47: =Tabl.14.!N47/Tabl.14.!$D47*100 -> 1.507405429
B48: Gminy miejskie:
B49: Urban gminas:
B50: Karpacz | D50: 100 | E50: =Tabl.14.!E50/Tabl.14.!$D50*100 -> 13.38071607 | F50: =Tabl.14.!F50/Tabl.14.!$D50*100 -> 18.30465491 | G50: =Tabl.14.!G50/Tabl.14.!$D50*100 -> 0.2669445957 | H50: =Tabl.14.!H50/Tabl.14.!$D50*100 -> 16.39857647 | I50: =Tabl.14.!I50/Tabl.14.!$D50*100 -> 19.48533609 | J50: =Tabl.14.!J50/Tabl.14.!$D50*100 -> 2.06433295 | K50: =Tabl.14.!K50/Tabl.14.!$D50*100 -> 7.240274732 | L50: =Tabl.14.!L50/Tabl.14.!$D50*100 -> 12.14346485 | M50: =Tabl.14.!M50/Tabl.14.!$D50*100 -> 1.990556386 | N50: =Tabl.14.!N50/Tabl.14.!$D50*100 -> 0.7577739648
B51: Kowary | D51: 100 | E51: =Tabl.14.!E51/Tabl.14.!$D51*100 -> 10.14887251 | F51: =Tabl.14.!F51/Tabl.14.!$D51*100 -> 3.379605187 | G51: =Tabl.14.!G51/Tabl.14.!$D51*100 -> 0.4075921481 | H51: =Tabl.14.!H51/Tabl.14.!$D51*100 -> 11.54149005 | I51: =Tabl.14.!I51/Tabl.14.!$D51*100 -> 26.60318621 | J51: =Tabl.14.!J51/Tabl.14.!$D51*100 -> 0.5750432679 | K51: =Tabl.14.!K51/Tabl.14.!$D51*100 -> 24.5914563 | L51: =Tabl.14.!L51/Tabl.14.!$D51*100 -> 14.48853512 | M51: =Tabl.14.!M51/Tabl.14.!$D51*100 -> 2.015317536 | N51: =Tabl.14.!N51/Tabl.14.!$D51*100 -> 0.9067114955
B52: Piechowice | D52: 100 | E52: =Tabl.14.!E52/Tabl.14.!$D52*100 -> 17.35711495 | F52: =Tabl.14.!F52/Tabl.14.!$D52*100 -> 4.714985451 | G52: =Tabl.14.!G52/Tabl.14.!$D52*100 -> 0.581354294 | H52: =Tabl.14.!H52/Tabl.14.!$D52*100 -> 13.57619525 | I52: =Tabl.14.!I52/Tabl.14.!$D52*100 -> 27.00843092 | J52: =Tabl.14.!J52/Tabl.14.!$D52*100 -> 0.6055826546 | K52: =Tabl.14.!K52/Tabl.14.!$D52*100 -> 17.14104943 | L52: =Tabl.14.!L52/Tabl.14.!$D52*100 -> 8.58387298 | M52: =Tabl.14.!M52/Tabl.14.!$D52*100 -> 1.905061311 | N52: =Tabl.14.!N52/Tabl.14.!$D52*100 -> 0.7385222818
B53: Szklarska Poręba | D53: 100 | E53: =Tabl.14.!E53/Tabl.14.!$D53*100 -> 18.12524308 | F53: =Tabl.14.!F53/Tabl.14.!$D53*100 -> 8.127000335 | G53: =Tabl.14.!G53/Tabl.14.!$D53*100 -> 1.224304078 | H53: =Tabl.14.!H53/Tabl.14.!$D53*100 -> 12.43314171 | I53: =Tabl.14.!I53/Tabl.14.!$D53*100 -> 17.23976039 | J53: =Tabl.14.!J53/Tabl.14.!$D53*100 -> 1.057369368 | K53: =Tabl.14.!K53/Tabl.14.!$D53*100 -> 9.969525016 | L53: =Tabl.14.!L53/Tabl.14.!$D53*100 -> 11.7707347 | M53: =Tabl.14.!M53/Tabl.14.!$D53*100 -> 3.749058268 | N53: =Tabl.14.!N53/Tabl.14.!$D53*100 -> 3.027098988
B54: Gminy wiejskie:
B55: Rural gminas:
B56: Janowice Wielkie | D56: 100 | E56: =Tabl.14.!E56/Tabl.14.!$D56*100 -> 15.62256264 | F56: =Tabl.14.!F56/Tabl.14.!$D56*100 -> 2.555580112 | G56: =Tabl.14.!G56/Tabl.14.!$D56*100 -> 0.06907426262 | H56: =Tabl.14.!H56/Tabl.14.!$D56*100 -> 15.59677182 | I56: =Tabl.14.!I56/Tabl.14.!$D56*100 -> 25.38377846 | J56: =Tabl.14.!J56/Tabl.14.!$D56*100 -> 0.5161111787 | K56: =Tabl.14.!K56/Tabl.14.!$D56*100 -> 15.79377792 | L56: =Tabl.14.!L56/Tabl.14.!$D56*100 -> 9.930085107 | M56: =Tabl.14.!M56/Tabl.14.!$D56*100 -> 3.185978149 | N56: =Tabl.14.!N56/Tabl.14.!$D56*100 -> 0.749754737
B57: Jeżów Sudecki | D57: 100 | E57: =Tabl.14.!E57/Tabl.14.!$D57*100 -> 19.14009992 | F57: =Tabl.14.!F57/Tabl.14.!$D57*100 -> 0.4033878284 | G57: =Tabl.14.!G57/Tabl.14.!$D57*100 -> 0.9367133328 | H57: =Tabl.14.!H57/Tabl.14.!$D57*100 -> 9.924793656 | I57: =Tabl.14.!I57/Tabl.14.!$D57*100 -> 23.52557977 | J57: =Tabl.14.!J57/Tabl.14.!$D57*100 -> 0.3219430804 | K57: =Tabl.14.!K57/Tabl.14.!$D57*100 -> 13.49225447 | L57: =Tabl.14.!L57/Tabl.14.!$D57*100 -> 9.498265501 | M57: =Tabl.14.!M57/Tabl.14.!$D57*100 -> 1.516850386 | N57: =Tabl.14.!N57/Tabl.14.!$D57*100 -> 1.603207397
B58: Mysłakowice | D58: 100 | E58: =Tabl.14.!E58/Tabl.14.!$D58*100 -> 10.05217325 | F58: =Tabl.14.!F58/Tabl.14.!$D58*100 -> 1.971803795 | G58: =Tabl.14.!G58/Tabl.14.!$D58*100 -> 0.2900613447 | H58: =Tabl.14.!H58/Tabl.14.!$D58*100 -> 13.73253083 | I58: =Tabl.14.!I58/Tabl.14.!$D58*100 -> 34.30011623 | J58: =Tabl.14.!J58/Tabl.14.!$D58*100 -> 0.5502273805 | K58: =Tabl.14.!K58/Tabl.14.!$D58*100 -> 16.86521914 | L58: =Tabl.14.!L58/Tabl.14.!$D58*100 -> 13.35382933 | M58: =Tabl.14.!M58/Tabl.14.!$D58*100 -> 1.699103643 | N58: =Tabl.14.!N58/Tabl.14.!$D58*100 -> 3.010461238
B59: Podgórzyn | D59: 100 | E59: =Tabl.14.!E59/Tabl.14.!$D59*100 -> 9.754893335 | F59: =Tabl.14.!F59/Tabl.14.!$D59*100 -> 1.974214575 | G59: =Tabl.14.!G59/Tabl.14.!$D59*100 -> 0.9935525829 | H59: =Tabl.14.!H59/Tabl.14.!$D59*100 -> 13.29296819 | I59: =Tabl.14.!I59/Tabl.14.!$D59*100 -> 29.77007818 | J59: =Tabl.14.!J59/Tabl.14.!$D59*100 -> 0.7550562914 | K59: =Tabl.14.!K59/Tabl.14.!$D59*100 -> 21.21285531 | L59: =Tabl.14.!L59/Tabl.14.!$D59*100 -> 11.35222467 | M59: =Tabl.14.!M59/Tabl.14.!$D59*100 -> 2.30282911 | N59: =Tabl.14.!N59/Tabl.14.!$D59*100 -> 0.653201809
B60: Stara Kamienica | D60: 100 | E60: =Tabl.14.!E60/Tabl.14.!$D60*100 -> 3.701716916 | F60: =Tabl.14.!F60/Tabl.14.!$D60*100 -> 3.901477079 | G60: =Tabl.14.!G60/Tabl.14.!$D60*100 -> 0.3230975026 | H60: =Tabl.14.!H60/Tabl.14.!$D60*100 -> 9.682947943 | I60: =Tabl.14.!I60/Tabl.14.!$D60*100 -> 27.33825887 | J60: =Tabl.14.!J60/Tabl.14.!$D60*100 -> 0.3309417493 | K60: =Tabl.14.!K60/Tabl.14.!$D60*100 -> 13.90249102 | L60: =Tabl.14.!L60/Tabl.14.!$D60*100 -> 5.342079852 | M60: =Tabl.14.!M60/Tabl.14.!$D60*100 -> 4.402235555 | N60: =Tabl.14.!N60/Tabl.14.!$D60*100 -> 0.5109011689
B61: POWIAT KAMIENNOGÓRSKI | D61: 100 | E61: =Tabl.14.!E61/Tabl.14.!$D61*100 -> 3.748832988 | F61: =Tabl.14.!F61/Tabl.14.!$D61*100 -> 6.88101046 | G61: =Tabl.14.!G61/Tabl.14.!$D61*100 -> 0.4724399325 | H61: =Tabl.14.!H61/Tabl.14.!$D61*100 -> 11.61779591 | I61: =Tabl.14.!I61/Tabl.14.!$D61*100 -> 33.55920345 | J61: =Tabl.14.!J61/Tabl.14.!$D61*100 -> 0.5267773898 | K61: =Tabl.14.!K61/Tabl.14.!$D61*100 -> 17.77448023 | L61: =Tabl.14.!L61/Tabl.14.!$D61*100 -> 9.03535503 | M61: =Tabl.14.!M61/Tabl.14.!$D61*100 -> 3.021851662 | N61: =Tabl.14.!N61/Tabl.14.!$D61*100 -> 3.75748257
B62: Gminy miejskie:
B63: Urban gminas:
B64: Kamienna Góra | D64: 100 | E64: =Tabl.14.!E64/Tabl.14.!$D64*100 -> 1.097975071 | F64: =Tabl.14.!F64/Tabl.14.!$D64*100 -> 10.99191716 | G64: =Tabl.14.!G64/Tabl.14.!$D64*100 -> 0.8909433312 | H64: =Tabl.14.!H64/Tabl.14.!$D64*100 -> 11.37136842 | I64: =Tabl.14.!I64/Tabl.14.!$D64*100 -> 33.77437082 | J64: =Tabl.14.!J64/Tabl.14.!$D64*100 -> 0.6834473268 | K64: =Tabl.14.!K64/Tabl.14.!$D64*100 -> 19.72401449 | L64: =Tabl.14.!L64/Tabl.14.!$D64*100 -> 10.96482611 | M64: =Tabl.14.!M64/Tabl.14.!$D64*100 -> 3.052469089 | N64: =Tabl.14.!N64/Tabl.14.!$D64*100 -> 3.426977896
B65: Gminy miejsko-wiejskie:
B66: Urban-rural gminas:
B67: Lubawka | D67: 100 | E67: =Tabl.14.!E67/Tabl.14.!$D67*100 -> 4.59685553 | F67: =Tabl.14.!F67/Tabl.14.!$D67*100 -> 5.147283052 | G67: =Tabl.14.!G67/Tabl.14.!$D67*100 -> 0.09780112697 | H67: =Tabl.14.!H67/Tabl.14.!$D67*100 -> 9.161110843 | I67: =Tabl.14.!I67/Tabl.14.!$D67*100 -> 32.18984992 | J67: =Tabl.14.!J67/Tabl.14.!$D67*100 -> 0.4963612849 | K67: =Tabl.14.!K67/Tabl.14.!$D67*100 -> 15.74028285 | L67: =Tabl.14.!L67/Tabl.14.!$D67*100 -> 8.088646876 | M67: =Tabl.14.!M67/Tabl.14.!$D67*100 -> 2.788854593 | N67: =Tabl.14.!N67/Tabl.14.!$D67*100 -> 7.455872733
B68: Gminy wiejskie:
B69: Rural gminas:
B70: Kamienna Góra | D70: 100 | E70: =Tabl.14.!E70/Tabl.14.!$D70*100 -> 7.674807671 | F70: =Tabl.14.!F70/Tabl.14.!$D70*100 -> 3.635254103 | G70: =Tabl.14.!G70/Tabl.14.!$D70*100 -> 0.1313870476 | H70: =Tabl.14.!H70/Tabl.14.!$D70*100 -> 12.91116031 | I70: =Tabl.14.!I70/Tabl.14.!$D70*100 -> 36.7919796 | J70: =Tabl.14.!J70/Tabl.14.!$D70*100 -> 0.3340790531 | K70: =Tabl.14.!K70/Tabl.14.!$D70*100 -> 15.21949857 | L70: =Tabl.14.!L70/Tabl.14.!$D70*100 -> 6.822921958 | M70: =Tabl.14.!M70/Tabl.14.!$D70*100 -> 3.898682321 | N70: =Tabl.14.!N70/Tabl.14.!$D70*100 -> 1.285936559
B71: Marciszów | D71: 100 | E71: =Tabl.14.!E71/Tabl.14.!$D71*100 -> 3.871283832 | F71: =Tabl.14.!F71/Tabl.14.!$D71*100 -> 1.650504518 | G71: =Tabl.14.!G71/Tabl.14.!$D71*100 -> 0.4988173682 | H71: =Tabl.14.!H71/Tabl.14.!$D71*100 -> 16.46944997 | I71: =Tabl.14.!I71/Tabl.14.!$D71*100 -> 29.35408674 | J71: =Tabl.14.!J71/Tabl.14.!$D71*100 -> 0.3808494713 | K71: =Tabl.14.!K71/Tabl.14.!$D71*100 -> 20.77701048 | L71: =Tabl.14.!L71/Tabl.14.!$D71*100 -> 8.43617994 | M71: =Tabl.14.!M71/Tabl.14.!$D71*100 -> 1.621506831 | N71: =Tabl.14.!N71/Tabl.14.!$D71*100 -> 0.487694459
B72: POWIAT LUBAŃSKI | D72: 100 | E72: =Tabl.14.!E72/Tabl.14.!$D72*100 -> 9.715237598 | F72: =Tabl.14.!F72/Tabl.14.!$D72*100 -> 4.855269409 | G72: =Tabl.14.!G72/Tabl.14.!$D72*100 -> 0.4082869145 | H72: =Tabl.14.!H72/Tabl.14.!$D72*100 -> 11.97665785 | I72: =Tabl.14.!I72/Tabl.14.!$D72*100 -> 32.29260765 | J72: =Tabl.14.!J72/Tabl.14.!$D72*100 -> 0.6505969788 | K72: =Tabl.14.!K72/Tabl.14.!$D72*100 -> 16.26769721 | L72: =Tabl.14.!L72/Tabl.14.!$D72*100 -> 10.45175883 | M72: =Tabl.14.!M72/Tabl.14.!$D72*100 -> 3.054639071 | N72: =Tabl.14.!N72/Tabl.14.!$D72*100 -> 3.301813269
B73: Gminy miejskie:
B74: Urban gminas:
B75: Lubań | D75: 100 | E75: =Tabl.14.!E75/Tabl.14.!$D75*100 -> 1.270802569 | F75: =Tabl.14.!F75/Tabl.14.!$D75*100 -> 6.251856581 | G75: =Tabl.14.!G75/Tabl.14.!$D75*100 -> 0.2583482031 | H75: =Tabl.14.!H75/Tabl.14.!$D75*100 -> 12.43744702 | I75: =Tabl.14.!I75/Tabl.14.!$D75*100 -> 37.89260297 | J75: =Tabl.14.!J75/Tabl.14.!$D75*100 -> 0.9493365033 | K75: =Tabl.14.!K75/Tabl.14.!$D75*100 -> 17.83379123 | L75: =Tabl.14.!L75/Tabl.14.!$D75*100 -> 11.70351158 | M75: =Tabl.14.!M75/Tabl.14.!$D75*100 -> 3.310195932 | N75: =Tabl.14.!N75/Tabl.14.!$D75*100 -> 2.928507668
B76: Świeradów-Zdrój | D76: 100 | E76: =Tabl.14.!E76/Tabl.14.!$D76*100 -> 18.45412919 | F76: =Tabl.14.!F76/Tabl.14.!$D76*100 -> 6.187731575 | G76: =Tabl.14.!G76/Tabl.14.!$D76*100 -> 0.1961545732 | H76: =Tabl.14.!H76/Tabl.14.!$D76*100 -> 12.19166613 | I76: =Tabl.14.!I76/Tabl.14.!$D76*100 -> 24.21787859 | J76: =Tabl.14.!J76/Tabl.14.!$D76*100 -> 1.000808366 | K76: =Tabl.14.!K76/Tabl.14.!$D76*100 -> 10.82144327 | L76: =Tabl.14.!L76/Tabl.14.!$D76*100 -> 16.64979592 | M76: =Tabl.14.!M76/Tabl.14.!$D76*100 -> 2.09894232 | N76: =Tabl.14.!N76/Tabl.14.!$D76*100 -> 0.8394623864
B77: Gminy miejsko-wiejskie:
B78: Urban-rural gminas:
B79: Leśna | D79: 100 | E79: =Tabl.14.!E79/Tabl.14.!$D79*100 -> 12.81966029 | F79: =Tabl.14.!F79/Tabl.14.!$D79*100 -> 5.431321029 | G79: =Tabl.14.!G79/Tabl.14.!$D79*100 -> 0.4769571745 | H79: =Tabl.14.!H79/Tabl.14.!$D79*100 -> 10.6574312 | I79: =Tabl.14.!I79/Tabl.14.!$D79*100 -> 28.38759526 | J79: =Tabl.14.!J79/Tabl.14.!$D79*100 -> 0.4619352836 | K79: =Tabl.14.!K79/Tabl.14.!$D79*100 -> 20.96928445 | L79: =Tabl.14.!L79/Tabl.14.!$D79*100 -> 8.283689323 | M79: =Tabl.14.!M79/Tabl.14.!$D79*100 -> 2.545226287 | N79: =Tabl.14.!N79/Tabl.14.!$D79*100 -> 5.292726079
B80: Olszyna | D80: 100 | E80: =Tabl.14.!E80/Tabl.14.!$D80*100 -> 23.28598552 | F80: =Tabl.14.!F80/Tabl.14.!$D80*100 -> 2.890610667 | G80: =Tabl.14.!G80/Tabl.14.!$D80*100 -> 0.3702748789 | H80: =Tabl.14.!H80/Tabl.14.!$D80*100 -> 8.970772042 | I80: =Tabl.14.!I80/Tabl.14.!$D80*100 -> 28.71168534 | J80: =Tabl.14.!J80/Tabl.14.!$D80*100 -> 0.3595125842 | K80: =Tabl.14.!K80/Tabl.14.!$D80*100 -> 17.54922321 | L80: =Tabl.14.!L80/Tabl.14.!$D80*100 -> 7.214470043 | M80: =Tabl.14.!M80/Tabl.14.!$D80*100 -> 3.134986628 | N80: =Tabl.14.!N80/Tabl.14.!$D80*100 -> 2.459494231
B81: Gminy wiejskie:
B82: Rural gminas:
B83: Lubań | D83: 100 | E83: =Tabl.14.!E83/Tabl.14.!$D83*100 -> 6.557031571 | F83: =Tabl.14.!F83/Tabl.14.!$D83*100 -> 1.440143342 | G83: =Tabl.14.!G83/Tabl.14.!$D83*100 -> 0.8547597005 | H83: =Tabl.14.!H83/Tabl.14.!$D83*100 -> 10.68515171 | I83: =Tabl.14.!I83/Tabl.14.!$D83*100 -> 34.13474347 | J83: =Tabl.14.!J83/Tabl.14.!$D83*100 -> 0.2320576514 | K83: =Tabl.14.!K83/Tabl.14.!$D83*100 -> 11.54504996 | L83: =Tabl.14.!L83/Tabl.14.!$D83*100 -> 6.978834962 | M83: =Tabl.14.!M83/Tabl.14.!$D83*100 -> 3.394810863 | N83: =Tabl.14.!N83/Tabl.14.!$D83*100 -> 7.00175772
B84: Platerówka | D84: 100 | E84: =Tabl.14.!E84/Tabl.14.!$D84*100 -> 5.189467646 | F84: =Tabl.14.!F84/Tabl.14.!$D84*100 -> 1.32051029 | G84: =Tabl.14.!G84/Tabl.14.!$D84*100 -> 0.02614738662 | H84: =Tabl.14.!H84/Tabl.14.!$D84*100 -> 19.46949513 | I84: =Tabl.14.!I84/Tabl.14.!$D84*100 -> 40.37130593 | J84: =Tabl.14.!J84/Tabl.14.!$D84*100 -> 0.2716607048 | K84: =Tabl.14.!K84/Tabl.14.!$D84*100 -> 15.86038487 | L84: =Tabl.14.!L84/Tabl.14.!$D84*100 -> 7.52600458 | M84: =Tabl.14.!M84/Tabl.14.!$D84*100 -> 2.118233063 | N84: =Tabl.14.!N84/Tabl.14.!$D84*100 -> 0.8598088742
B85: Siekierczyn | D85: 100 | E85: =Tabl.14.!E85/Tabl.14.!$D85*100 -> 3.81104951 | F85: =Tabl.14.!F85/Tabl.14.!$D85*100 -> 5.549717461 | G85: =Tabl.14.!G85/Tabl.14.!$D85*100 -> 0.7407358063 | H85: =Tabl.14.!H85/Tabl.14.!$D85*100 -> 17.41351235 | I85: =Tabl.14.!I85/Tabl.14.!$D85*100 -> 34.27061651 | J85: =Tabl.14.!J85/Tabl.14.!$D85*100 -> 0.5475731507 | K85: =Tabl.14.!K85/Tabl.14.!$D85*100 -> 14.54381317 | L85: =Tabl.14.!L85/Tabl.14.!$D85*100 -> 11.16310137 | M85: =Tabl.14.!M85/Tabl.14.!$D85*100 -> 4.776403236 | N85: =Tabl.14.!N85/Tabl.14.!$D85*100 -> 0.8592547635
B86: POWIAT LWÓWECKI | D86: 100 | E86: =Tabl.14.!E86/Tabl.14.!$D86*100 -> 8.799403807 | F86: =Tabl.14.!F86/Tabl.14.!$D86*100 -> 2.622359237 | G86: =Tabl.14.!G86/Tabl.14.!$D86*100 -> 0.4029635116 | H86: =Tabl.14.!H86/Tabl.14.!$D86*100 -> 10.30065091 | I86: =Tabl.14.!I86/Tabl.14.!$D86*100 -> 34.0597513 | J86: =Tabl.14.!J86/Tabl.14.!$D86*100 -> 0.5044308505 | K86: =Tabl.14.!K86/Tabl.14.!$D86*100 -> 18.08880494 | L86: =Tabl.14.!L86/Tabl.14.!$D86*100 -> 10.42217204 | M86: =Tabl.14.!M86/Tabl.14.!$D86*100 -> 4.20962908 | N86: =Tabl.14.!N86/Tabl.14.!$D86*100 -> 1.263837512
B87: Gminy miejsko-wiejskie:
B88: Urban-rural gminas:
B89: Gryfów Śląski | D89: 100 | E89: =Tabl.14.!E89/Tabl.14.!$D89*100 -> 12.13973106 | F89: =Tabl.14.!F89/Tabl.14.!$D89*100 -> 1.668550739 | G89: =Tabl.14.!G89/Tabl.14.!$D89*100 -> 0.09947524535 | H89: =Tabl.14.!H89/Tabl.14.!$D89*100 -> 9.643136063 | I89: =Tabl.14.!I89/Tabl.14.!$D89*100 -> 29.40194728 | J89: =Tabl.14.!J89/Tabl.14.!$D89*100 -> 0.6156471894 | K89: =Tabl.14.!K89/Tabl.14.!$D89*100 -> 20.5350028 | L89: =Tabl.14.!L89/Tabl.14.!$D89*100 -> 18.71203279 | M89: =Tabl.14.!M89/Tabl.14.!$D89*100 -> 2.678463739 | N89: =Tabl.14.!N89/Tabl.14.!$D89*100 -> 0.6893004162
B90: Lubomierz | D90: 100 | E90: =Tabl.14.!E90/Tabl.14.!$D90*100 -> 5.451085775 | F90: =Tabl.14.!F90/Tabl.14.!$D90*100 -> 7.030092059 | G90: =Tabl.14.!G90/Tabl.14.!$D90*100 -> 0.1033817595 | H90: =Tabl.14.!H90/Tabl.14.!$D90*100 -> 10.01128695 | I90: =Tabl.14.!I90/Tabl.14.!$D90*100 -> 35.78329702 | J90: =Tabl.14.!J90/Tabl.14.!$D90*100 -> 0.3026217428 | K90: =Tabl.14.!K90/Tabl.14.!$D90*100 -> 16.62619957 | L90: =Tabl.14.!L90/Tabl.14.!$D90*100 -> 6.107208432 | M90: =Tabl.14.!M90/Tabl.14.!$D90*100 -> 3.658963153 | N90: =Tabl.14.!N90/Tabl.14.!$D90*100 -> 0.9725136026
B91: Lwówek Śląski | D91: 100 | E91: =Tabl.14.!E91/Tabl.14.!$D91*100 -> 12.3605563 | F91: =Tabl.14.!F91/Tabl.14.!$D91*100 -> 2.294302027 | G91: =Tabl.14.!G91/Tabl.14.!$D91*100 -> 0.5702102037 | H91: =Tabl.14.!H91/Tabl.14.!$D91*100 -> 10.16245509 | I91: =Tabl.14.!I91/Tabl.14.!$D91*100 -> 34.77308055 | J91: =Tabl.14.!J91/Tabl.14.!$D91*100 -> 0.5898184792 | K91: =Tabl.14.!K91/Tabl.14.!$D91*100 -> 15.88895978 | L91: =Tabl.14.!L91/Tabl.14.!$D91*100 -> 9.105618527 | M91: =Tabl.14.!M91/Tabl.14.!$D91*100 -> 5.153700104 | N91: =Tabl.14.!N91/Tabl.14.!$D91*100 -> 0.5624530274
B92: Mirsk | D92: 100 | E92: =Tabl.14.!E92/Tabl.14.!$D92*100 -> 5.336695916 | F92: =Tabl.14.!F92/Tabl.14.!$D92*100 -> 1.175590889 | G92: =Tabl.14.!G92/Tabl.14.!$D92*100 -> 0.2556353791 | H92: =Tabl.14.!H92/Tabl.14.!$D92*100 -> 8.773360109 | I92: =Tabl.14.!I92/Tabl.14.!$D92*100 -> 38.70339671 | J92: =Tabl.14.!J92/Tabl.14.!$D92*100 -> 0.4777768546 | K92: =Tabl.14.!K92/Tabl.14.!$D92*100 -> 21.49832435 | L92: =Tabl.14.!L92/Tabl.14.!$D92*100 -> 10.32852681 | M92: =Tabl.14.!M92/Tabl.14.!$D92*100 -> 3.391395872 | N92: =Tabl.14.!N92/Tabl.14.!$D92*100 -> 3.724479404
B93: Wleń | D93: 100 | E93: =Tabl.14.!E93/Tabl.14.!$D93*100 -> 1.962845271 | F93: =Tabl.14.!F93/Tabl.14.!$D93*100 -> 1.506069795 | G93: =Tabl.14.!G93/Tabl.14.!$D93*100 -> 1.13110581 | H93: =Tabl.14.!H93/Tabl.14.!$D93*100 -> 15.29779747 | I93: =Tabl.14.!I93/Tabl.14.!$D93*100 -> 29.0224286 | J93: =Tabl.14.!J93/Tabl.14.!$D93*100 -> 0.3623674023 | K93: =Tabl.14.!K93/Tabl.14.!$D93*100 -> 16.89362325 | L93: =Tabl.14.!L93/Tabl.14.!$D93*100 -> 6.181394438 | M93: =Tabl.14.!M93/Tabl.14.!$D93*100 -> 6.214833359 | N93: =Tabl.14.!N93/Tabl.14.!$D93*100 -> 0.5811167699
B94: POWIAT ZGORZELECKI | D94: 100 | E94: =Tabl.14.!E94/Tabl.14.!$D94*100 -> 4.999419955 | F94: =Tabl.14.!F94/Tabl.14.!$D94*100 -> 5.160852708 | G94: =Tabl.14.!G94/Tabl.14.!$D94*100 -> 0.4071201663 | H94: =Tabl.14.!H94/Tabl.14.!$D94*100 -> 11.72318085 | I94: =Tabl.14.!I94/Tabl.14.!$D94*100 -> 30.22649482 | J94: =Tabl.14.!J94/Tabl.14.!$D94*100 -> 2.148771175 | K94: =Tabl.14.!K94/Tabl.14.!$D94*100 -> 13.10600566 | L94: =Tabl.14.!L94/Tabl.14.!$D94*100 -> 12.43691506 | M94: =Tabl.14.!M94/Tabl.14.!$D94*100 -> 5.072537 | N94: =Tabl.14.!N94/Tabl.14.!$D94*100 -> 4.54683848
B95: Gminy miejskie:
B96: Urban gminas:
B97: Zawidów | D97: 100 | E97: =Tabl.14.!E97/Tabl.14.!$D97*100 -> 16.63447578 | F97: =Tabl.14.!F97/Tabl.14.!$D97*100 -> 1.136053936 | G97: =Tabl.14.!G97/Tabl.14.!$D97*100 -> 0.1745450565 | H97: =Tabl.14.!H97/Tabl.14.!$D97*100 -> 12.64931699 | I97: =Tabl.14.!I97/Tabl.14.!$D97*100 -> 40.11558479 | J97: =Tabl.14.!J97/Tabl.14.!$D97*100 -> 0.933074454 | K97: =Tabl.14.!K97/Tabl.14.!$D97*100 -> 12.9164321 | L97: =Tabl.14.!L97/Tabl.14.!$D97*100 -> 9.375115267 | M97: =Tabl.14.!M97/Tabl.14.!$D97*100 -> 3.513115549 | N97: =Tabl.14.!N97/Tabl.14.!$D97*100 -> 0.6614939522
B98: Zgorzelec | D98: 100 | E98: =Tabl.14.!E98/Tabl.14.!$D98*100 -> 3.083900534 | F98: =Tabl.14.!F98/Tabl.14.!$D98*100 -> 2.847142324 | G98: =Tabl.14.!G98/Tabl.14.!$D98*100 -> 0.8503700686 | H98: =Tabl.14.!H98/Tabl.14.!$D98*100 -> 10.02017181 | I98: =Tabl.14.!I98/Tabl.14.!$D98*100 -> 35.60762923 | J98: =Tabl.14.!J98/Tabl.14.!$D98*100 -> 1.171328301 | K98: =Tabl.14.!K98/Tabl.14.!$D98*100 -> 13.86059312 | L98: =Tabl.14.!L98/Tabl.14.!$D98*100 -> 11.6571799 | M98: =Tabl.14.!M98/Tabl.14.!$D98*100 -> 4.381069121 | N98: =Tabl.14.!N98/Tabl.14.!$D98*100 -> 11.07947119
B99: Gminy miejsko-wiejskie:
B100: Urban-rural gminas:
B101: Bogatynia | D101: 100 | E101: =Tabl.14.!E101/Tabl.14.!$D101*100 -> 5.269691509 | F101: =Tabl.14.!F101/Tabl.14.!$D101*100 -> 8.404507942 | G101: =Tabl.14.!G101/Tabl.14.!$D101*100 -> 0.08151309294 | H101: =Tabl.14.!H101/Tabl.14.!$D101*100 -> 11.770695 | I101: =Tabl.14.!I101/Tabl.14.!$D101*100 -> 25.01097396 | J101: =Tabl.14.!J101/Tabl.14.!$D101*100 -> 3.983711061 | K101: =Tabl.14.!K101/Tabl.14.!$D101*100 -> 10.54545253 | L101: =Tabl.14.!L101/Tabl.14.!$D101*100 -> 12.69618713 | M101: =Tabl.14.!M101/Tabl.14.!$D101*100 -> 4.579146106 | N101: =Tabl.14.!N101/Tabl.14.!$D101*100 -> 2.69625679
B102: Pieńsk | D102: 100 | E102: =Tabl.14.!E102/Tabl.14.!$D102*100 -> 7.28233654 | F102: =Tabl.14.!F102/Tabl.14.!$D102*100 -> 4.787596079 | G102: =Tabl.14.!G102/Tabl.14.!$D102*100 -> 0.266016055 | H102: =Tabl.14.!H102/Tabl.14.!$D102*100 -> 12.06512648 | I102: =Tabl.14.!I102/Tabl.14.!$D102*100 -> 33.2987077 | J102: =Tabl.14.!J102/Tabl.14.!$D102*100 -> 0.570252654 | K102: =Tabl.14.!K102/Tabl.14.!$D102*100 -> 19.87782184 | L102: =Tabl.14.!L102/Tabl.14.!$D102*100 -> 11.14219977 | M102: =Tabl.14.!M102/Tabl.14.!$D102*100 -> 3.725081982 | N102: =Tabl.14.!N102/Tabl.14.!$D102*100 -> 1.360469993
B103: Węgliniec | D103: 100 | E103: =Tabl.14.!E103/Tabl.14.!$D103*100 -> 2.891675314 | F103: =Tabl.14.!F103/Tabl.14.!$D103*100 -> 1.975575246 | G103: =Tabl.14.!G103/Tabl.14.!$D103*100 -> 0.4594296666 | H103: =Tabl.14.!H103/Tabl.14.!$D103*100 -> 10.60804358 | I103: =Tabl.14.!I103/Tabl.14.!$D103*100 -> 30.47056754 | J103: =Tabl.14.!J103/Tabl.14.!$D103*100 -> 0.4074783018 | K103: =Tabl.14.!K103/Tabl.14.!$D103*100 -> 16.68584673 | L103: =Tabl.14.!L103/Tabl.14.!$D103*100 -> 17.80933435 | M103: =Tabl.14.!M103/Tabl.14.!$D103*100 -> 2.825540582 | N103: =Tabl.14.!N103/Tabl.14.!$D103*100 -> 0.8707989455
B104: Gminy wiejskie:
B105: Rural gminas:
B106: Sulików | D106: 100 | E106: =Tabl.14.!E106/Tabl.14.!$D106*100 -> 3.505479561 | F106: =Tabl.14.!F106/Tabl.14.!$D106*100 -> 6.935388189 | G106: =Tabl.14.!G106/Tabl.14.!$D106*100 -> 0.9904161641 | H106: =Tabl.14.!H106/Tabl.14.!$D106*100 -> 13.67263084 | I106: =Tabl.14.!I106/Tabl.14.!$D106*100 -> 32.09565071 | J106: =Tabl.14.!J106/Tabl.14.!$D106*100 -> 0.2394222455 | K106: =Tabl.14.!K106/Tabl.14.!$D106*100 -> 16.64567817 | L106: =Tabl.14.!L106/Tabl.14.!$D106*100 -> 16.72313299 | M106: =Tabl.14.!M106/Tabl.14.!$D106*100 -> 2.443304579 | N106: =Tabl.14.!N106/Tabl.14.!$D106*100 -> 0.6210313307
B107: Zgorzelec | D107: 100 | E107: =Tabl.14.!E107/Tabl.14.!$D107*100 -> 5.826432358 | F107: =Tabl.14.!F107/Tabl.14.!$D107*100 -> 1.180537306 | G107: =Tabl.14.!G107/Tabl.14.!$D107*100 -> 0.3569758227 | H107: =Tabl.14.!H107/Tabl.14.!$D107*100 -> 15.46693808 | I107: =Tabl.14.!I107/Tabl.14.!$D107*100 -> 30.14571102 | J107: =Tabl.14.!J107/Tabl.14.!$D107*100 -> 1.353620008 | K107: =Tabl.14.!K107/Tabl.14.!$D107*100 -> 11.60230093 | L107: =Tabl.14.!L107/Tabl.14.!$D107*100 -> 8.285667342 | M107: =Tabl.14.!M107/Tabl.14.!$D107*100 -> 14.36946247 | N107: =Tabl.14.!N107/Tabl.14.!$D107*100 -> 3.750263071
B108: POWIAT ZŁOTORYJSKI | D108: 100 | E108: =Tabl.14.!E108/Tabl.14.!$D108*100 -> 9.228348717 | F108: =Tabl.14.!F108/Tabl.14.!$D108*100 -> 5.471541097 | G108: =Tabl.14.!G108/Tabl.14.!$D108*100 -> 0.223893984 | H108: =Tabl.14.!H108/Tabl.14.!$D108*100 -> 12.11022455 | I108: =Tabl.14.!I108/Tabl.14.!$D108*100 -> 29.47022519 | J108: =Tabl.14.!J108/Tabl.14.!$D108*100 -> 0.5644595384 | K108: =Tabl.14.!K108/Tabl.14.!$D108*100 -> 19.12306523 | L108: =Tabl.14.!L108/Tabl.14.!$D108*100 -> 9.694834266 | M108: =Tabl.14.!M108/Tabl.14.!$D108*100 -> 4.010620751 | N108: =Tabl.14.!N108/Tabl.14.!$D108*100 -> 1.40537981
B109: Gminy miejskie:
B110: Urban gminas:
B111: Wojcieszów | D111: 100 | E111: =Tabl.14.!E111/Tabl.14.!$D111*100 -> 14.20151298 | F111: =Tabl.14.!F111/Tabl.14.!$D111*100 -> 6.463830844 | G111: =Tabl.14.!G111/Tabl.14.!$D111*100 -> 0.4410321265 | H111: =Tabl.14.!H111/Tabl.14.!$D111*100 -> 10.39719226 | I111: =Tabl.14.!I111/Tabl.14.!$D111*100 -> 25.40546905 | J111: =Tabl.14.!J111/Tabl.14.!$D111*100 -> 0.3261453098 | K111: =Tabl.14.!K111/Tabl.14.!$D111*100 -> 20.86365505 | L111: =Tabl.14.!L111/Tabl.14.!$D111*100 -> 11.66720175 | M111: =Tabl.14.!M111/Tabl.14.!$D111*100 -> 1.607489242 | N111: =Tabl.14.!N111/Tabl.14.!$D111*100 -> 0.8158748942
B112: Złotoryja | D112: 100 | E112: =Tabl.14.!E112/Tabl.14.!$D112*100 -> 3.370695948 | F112: =Tabl.14.!F112/Tabl.14.!$D112*100 -> 11.52717825 | G112: =Tabl.14.!G112/Tabl.14.!$D112*100 -> 0.09948680927 | H112: =Tabl.14.!H112/Tabl.14.!$D112*100 -> 12.30843706 | I112: =Tabl.14.!I112/Tabl.14.!$D112*100 -> 27.28394691 | J112: =Tabl.14.!J112/Tabl.14.!$D112*100 -> 0.6277202631 | K112: =Tabl.14.!K112/Tabl.14.!$D112*100 -> 18.73715614 | L112: =Tabl.14.!L112/Tabl.14.!$D112*100 -> 13.67757788 | M112: =Tabl.14.!M112/Tabl.14.!$D112*100 -> 5.166671681 | N112: =Tabl.14.!N112/Tabl.14.!$D112*100 -> 2.306051915
B113: Gminy miejsko-wiejskie:
B114: Urban-rural gminas:
B115: Świerzawa | D115: 100 | E115: =Tabl.14.!E115/Tabl.14.!$D115*100 -> 16.01608416 | F115: =Tabl.14.!F115/Tabl.14.!$D115*100 -> 0.1347320585 | G115: =Tabl.14.!G115/Tabl.14.!$D115*100 -> 0.08885903692 | H115: =Tabl.14.!H115/Tabl.14.!$D115*100 -> 11.12667178 | I115: =Tabl.14.!I115/Tabl.14.!$D115*100 -> 29.1167894 | J115: =Tabl.14.!J115/Tabl.14.!$D115*100 -> 0.6781111673 | K115: =Tabl.14.!K115/Tabl.14.!$D115*100 -> 21.46092562 | L115: =Tabl.14.!L115/Tabl.14.!$D115*100 -> 6.520402585 | M115: =Tabl.14.!M115/Tabl.14.!$D115*100 -> 4.802441808 | N115: =Tabl.14.!N115/Tabl.14.!$D115*100 -> 0.4083787996
B116: Gminy wiejskie:
B117: Rural gminas:
B118: Pielgrzymka | D118: 100 | E118: =Tabl.14.!E118/Tabl.14.!$D118*100 -> 4.470453665 | F118: =Tabl.14.!F118/Tabl.14.!$D118*100 -> 4.030103604 | G118: =Tabl.14.!G118/Tabl.14.!$D118*100 -> 0.0604625387 | H118: =Tabl.14.!H118/Tabl.14.!$D118*100 -> 12.14974647 | I118: =Tabl.14.!I118/Tabl.14.!$D118*100 -> 35.75184822 | J118: =Tabl.14.!J118/Tabl.14.!$D118*100 -> 0.2856895535 | K118: =Tabl.14.!K118/Tabl.14.!$D118*100 -> 20.33124308 | L118: =Tabl.14.!L118/Tabl.14.!$D118*100 -> 6.433379668 | M118: =Tabl.14.!M118/Tabl.14.!$D118*100 -> 3.730371153 | N118: =Tabl.14.!N118/Tabl.14.!$D118*100 -> 0.625957309
B119: Zagrodno | D119: 100 | E119: =Tabl.14.!E119/Tabl.14.!$D119*100 -> 7.062621692 | F119: =Tabl.14.!F119/Tabl.14.!$D119*100 -> 0.350724907 | G119: =Tabl.14.!G119/Tabl.14.!$D119*100 -> 0.3185961001 | H119: =Tabl.14.!H119/Tabl.14.!$D119*100 -> 15.13425862 | I119: =Tabl.14.!I119/Tabl.14.!$D119*100 -> 26.66107291 | J119: =Tabl.14.!J119/Tabl.14.!$D119*100 -> 0.8191511437 | K119: =Tabl.14.!K119/Tabl.14.!$D119*100 -> 17.95896116 | L119: =Tabl.14.!L119/Tabl.14.!$D119*100 -> 9.864738675 | M119: =Tabl.14.!M119/Tabl.14.!$D119*100 -> 2.732689714 | N119: =Tabl.14.!N119/Tabl.14.!$D119*100 -> 2.09348567
B120: Złotoryja | D120: 100 | E120: =Tabl.14.!E120/Tabl.14.!$D120*100 -> 14.98876541 | F120: =Tabl.14.!F120/Tabl.14.!$D120*100 -> 4.292498987 | G120: =Tabl.14.!G120/Tabl.14.!$D120*100 -> 0.4864101502 | H120: =Tabl.14.!H120/Tabl.14.!$D120*100 -> 11.34101762 | I120: =Tabl.14.!I120/Tabl.14.!$D120*100 -> 33.63702674 | J120: =Tabl.14.!J120/Tabl.14.!$D120*100 -> 0.4696631128 | K120: =Tabl.14.!K120/Tabl.14.!$D120*100 -> 16.74810477 | L120: =Tabl.14.!L120/Tabl.14.!$D120*100 -> 6.822483001 | M120: =Tabl.14.!M120/Tabl.14.!$D120*100 -> 3.674760734 | N120: =Tabl.14.!N120/Tabl.14.!$D120*100 -> 1.110056289
B121: PODREGION LEGNICKO-GŁOGOWSKI | D121: 100 | E121: =Tabl.14.!E121/Tabl.14.!$D121*100 -> 8.615845583 | F121: =Tabl.14.!F121/Tabl.14.!$D121*100 -> 2.943542236 | G121: =Tabl.14.!G121/Tabl.14.!$D121*100 -> 0.38070523 | H121: =Tabl.14.!H121/Tabl.14.!$D121*100 -> 10.2036465 | I121: =Tabl.14.!I121/Tabl.14.!$D121*100 -> 34.00250934 | J121: =Tabl.14.!J121/Tabl.14.!$D121*100 -> 1.234966334 | K121: =Tabl.14.!K121/Tabl.14.!$D121*100 -> 12.52654213 | L121: =Tabl.14.!L121/Tabl.14.!$D121*100 -> 9.92776674 | M121: =Tabl.14.!M121/Tabl.14.!$D121*100 -> 5.322070291 | N121: =Tabl.14.!N121/Tabl.14.!$D121*100 -> 3.111108613
B122: SUBREGION
B123: POWIAT GŁOGOWSKI | D123: 100 | E123: =Tabl.14.!E123/Tabl.14.!$D123*100 -> 10.44128306 | F123: =Tabl.14.!F123/Tabl.14.!$D123*100 -> 1.919362846 | G123: =Tabl.14.!G123/Tabl.14.!$D123*100 -> 0.5750267719 | H123: =Tabl.14.!H123/Tabl.14.!$D123*100 -> 9.50987125 | I123: =Tabl.14.!I123/Tabl.14.!$D123*100 -> 35.15884498 | J123: =Tabl.14.!J123/Tabl.14.!$D123*100 -> 1.626939879 | K123: =Tabl.14.!K123/Tabl.14.!$D123*100 -> 12.21073012 | L123: =Tabl.14.!L123/Tabl.14.!$D123*100 -> 8.753971191 | M123: =Tabl.14.!M123/Tabl.14.!$D123*100 -> 5.191079 | N123: =Tabl.14.!N123/Tabl.14.!$D123*100 -> 3.509127331
B124: Gminy miejskie:
B125: Urban gminas:
B126: Głogów | D126: 100 | E126: =Tabl.14.!E126/Tabl.14.!$D126*100 -> 11.52840344 | F126: =Tabl.14.!F126/Tabl.14.!$D126*100 -> 1.935904876 | G126: =Tabl.14.!G126/Tabl.14.!$D126*100 -> 0.6461018052 | H126: =Tabl.14.!H126/Tabl.14.!$D126*100 -> 7.660845036 | I126: =Tabl.14.!I126/Tabl.14.!$D126*100 -> 38.4443981 | J126: =Tabl.14.!J126/Tabl.14.!$D126*100 -> 2.014358571 | K126: =Tabl.14.!K126/Tabl.14.!$D126*100 -> 12.80048361 | L126: =Tabl.14.!L126/Tabl.14.!$D126*100 -> 8.198909311 | M126: =Tabl.14.!M126/Tabl.14.!$D126*100 -> 4.232389577 | N126: =Tabl.14.!N126/Tabl.14.!$D126*100 -> 4.293682851
B127: Gminy wiejskie:
B128: Rural gminas:
B129: Głogów | D129: 100 | E129: =Tabl.14.!E129/Tabl.14.!$D129*100 -> 9.02664048 | F129: =Tabl.14.!F129/Tabl.14.!$D129*100 -> 1.011344801 | G129: =Tabl.14.!G129/Tabl.14.!$D129*100 -> 0.8082027483 | H129: =Tabl.14.!H129/Tabl.14.!$D129*100 -> 12.4847921 | I129: =Tabl.14.!I129/Tabl.14.!$D129*100 -> 29.93948564 | J129: =Tabl.14.!J129/Tabl.14.!$D129*100 -> 1.740704378 | K129: =Tabl.14.!K129/Tabl.14.!$D129*100 -> 11.67340414 | L129: =Tabl.14.!L129/Tabl.14.!$D129*100 -> 18.59587193 | M129: =Tabl.14.!M129/Tabl.14.!$D129*100 -> 5.8897893 | N129: =Tabl.14.!N129/Tabl.14.!$D129*100 -> 2.175706165
B130: Jerzmanowa | D130: 100 | E130: =Tabl.14.!E130/Tabl.14.!$D130*100 -> 10.43720209 | F130: =Tabl.14.!F130/Tabl.14.!$D130*100 -> 0.951716895 | G130: =Tabl.14.!G130/Tabl.14.!$D130*100 -> 0.1969567619 | H130: =Tabl.14.!H130/Tabl.14.!$D130*100 -> 13.51956315 | I130: =Tabl.14.!I130/Tabl.14.!$D130*100 -> 26.11637974 | J130: =Tabl.14.!J130/Tabl.14.!$D130*100 -> 0.276139939 | K130: =Tabl.14.!K130/Tabl.14.!$D130*100 -> 6.367954569 | L130: =Tabl.14.!L130/Tabl.14.!$D130*100 -> 8.940179049 | M130: =Tabl.14.!M130/Tabl.14.!$D130*100 -> 9.803095121 | N130: =Tabl.14.!N130/Tabl.14.!$D130*100 -> 2.967070815
B131: Kotla | D131: 100 | E131: =Tabl.14.!E131/Tabl.14.!$D131*100 -> 6.275778595 | F131: =Tabl.14.!F131/Tabl.14.!$D131*100 -> 4.526297719 | G131: =Tabl.14.!G131/Tabl.14.!$D131*100 -> 0.2599392559 | H131: =Tabl.14.!H131/Tabl.14.!$D131*100 -> 13.17655626 | I131: =Tabl.14.!I131/Tabl.14.!$D131*100 -> 28.17285087 | J131: =Tabl.14.!J131/Tabl.14.!$D131*100 -> 0.7004463712 | K131: =Tabl.14.!K131/Tabl.14.!$D131*100 -> 11.45484789 | L131: =Tabl.14.!L131/Tabl.14.!$D131*100 -> 9.618155603 | M131: =Tabl.14.!M131/Tabl.14.!$D131*100 -> 3.177525249 | N131: =Tabl.14.!N131/Tabl.14.!$D131*100 -> 0.2834776359
B132: Pęcław | D132: 100 | E132: =Tabl.14.!E132/Tabl.14.!$D132*100 -> 0.7865538899 | F132: =Tabl.14.!F132/Tabl.14.!$D132*100 -> 0.8417758943 | G132: =Tabl.14.!G132/Tabl.14.!$D132*100 -> 0.01860344106 | H132: =Tabl.14.!H132/Tabl.14.!$D132*100 -> 18.31111655 | I132: =Tabl.14.!I132/Tabl.14.!$D132*100 -> 18.58280675 | J132: =Tabl.14.!J132/Tabl.14.!$D132*100 -> 0.2379716822 | K132: =Tabl.14.!K132/Tabl.14.!$D132*100 -> 15.65432313 | L132: =Tabl.14.!L132/Tabl.14.!$D132*100 -> 1.619570175 | M132: =Tabl.14.!M132/Tabl.14.!$D132*100 -> 11.79549927 | N132: =Tabl.14.!N132/Tabl.14.!$D132*100 -> 1.054436932
B133: Żukowice | D133: 100 | E133: =Tabl.14.!E133/Tabl.14.!$D133*100 -> 8.577369107 | F133: =Tabl.14.!F133/Tabl.14.!$D133*100 -> 3.184927861 | G133: =Tabl.14.!G133/Tabl.14.!$D133*100 -> 0.9335158796 | H133: =Tabl.14.!H133/Tabl.14.!$D133*100 -> 12.44886619 | I133: =Tabl.14.!I133/Tabl.14.!$D133*100 -> 36.50213337 | J133: =Tabl.14.!J133/Tabl.14.!$D133*100 -> 0.9906951749 | K133: =Tabl.14.!K133/Tabl.14.!$D133*100 -> 16.72934517 | L133: =Tabl.14.!L133/Tabl.14.!$D133*100 -> 6.942152454 | M133: =Tabl.14.!M133/Tabl.14.!$D133*100 -> 4.691120016 | N133: =Tabl.14.!N133/Tabl.14.!$D133*100 -> 0.3433421441
B134: POWIAT GÓROWSKI | D134: 100 | E134: =Tabl.14.!E134/Tabl.14.!$D134*100 -> 6.117249765 | F134: =Tabl.14.!F134/Tabl.14.!$D134*100 -> 2.452595683 | G134: =Tabl.14.!G134/Tabl.14.!$D134*100 -> 0.2021750565 | H134: =Tabl.14.!H134/Tabl.14.!$D134*100 -> 9.418131893 | I134: =Tabl.14.!I134/Tabl.14.!$D134*100 -> 33.86509485 | J134: =Tabl.14.!J134/Tabl.14.!$D134*100 -> 0.4577816548 | K134: =Tabl.14.!K134/Tabl.14.!$D134*100 -> 22.31574537 | L134: =Tabl.14.!L134/Tabl.14.!$D134*100 -> 9.331558931 | M134: =Tabl.14.!M134/Tabl.14.!$D134*100 -> 3.391229835 | N134: =Tabl.14.!N134/Tabl.14.!$D134*100 -> 4.656971191
B135: Gminy miejsko-wiejskie:
B136: Urban-rural gminas:
B137: Góra | D137: 100 | E137: =Tabl.14.!E137/Tabl.14.!$D137*100 -> 5.01107841 | F137: =Tabl.14.!F137/Tabl.14.!$D137*100 -> 3.103463748 | G137: =Tabl.14.!G137/Tabl.14.!$D137*100 -> 0.217524026 | H137: =Tabl.14.!H137/Tabl.14.!$D137*100 -> 7.707314352 | I137: =Tabl.14.!I137/Tabl.14.!$D137*100 -> 32.70328128 | J137: =Tabl.14.!J137/Tabl.14.!$D137*100 -> 0.4812788018 | K137: =Tabl.14.!K137/Tabl.14.!$D137*100 -> 23.96610981 | L137: =Tabl.14.!L137/Tabl.14.!$D137*100 -> 8.645084006 | M137: =Tabl.14.!M137/Tabl.14.!$D137*100 -> 3.519697422 | N137: =Tabl.14.!N137/Tabl.14.!$D137*100 -> 7.754358138
B138: Wąsosz | D138: 100 | E138: =Tabl.14.!E138/Tabl.14.!$D138*100 -> 13.75219108 | F138: =Tabl.14.!F138/Tabl.14.!$D138*100 -> 0.7616629655 | G138: =Tabl.14.!G138/Tabl.14.!$D138*100 -> 0.2275788377 | H138: =Tabl.14.!H138/Tabl.14.!$D138*100 -> 10.17378288 | I138: =Tabl.14.!I138/Tabl.14.!$D138*100 -> 34.04369753 | J138: =Tabl.14.!J138/Tabl.14.!$D138*100 -> 0.4941433693 | K138: =Tabl.14.!K138/Tabl.14.!$D138*100 -> 16.29747259 | L138: =Tabl.14.!L138/Tabl.14.!$D138*100 -> 14.56096278 | M138: =Tabl.14.!M138/Tabl.14.!$D138*100 -> 2.678918321 | N138: =Tabl.14.!N138/Tabl.14.!$D138*100 -> 0.7374727474
B139: Gminy wiejskie:
B140: Rural gminas:
B141: Jemielno | D141: 100 | E141: =Tabl.14.!E141/Tabl.14.!$D141*100 -> 0.3550566525 | F141: =Tabl.14.!F141/Tabl.14.!$D141*100 -> 3.513635527 | G141: =Tabl.14.!G141/Tabl.14.!$D141*100 -> 0.04492856664 | H141: =Tabl.14.!H141/Tabl.14.!$D141*100 -> 15.46764248 | I141: =Tabl.14.!I141/Tabl.14.!$D141*100 -> 33.57435463 | J141: =Tabl.14.!J141/Tabl.14.!$D141*100 -> 0.3284140125 | K141: =Tabl.14.!K141/Tabl.14.!$D141*100 -> 26.50812881 | L141: =Tabl.14.!L141/Tabl.14.!$D141*100 -> 5.637510553 | M141: =Tabl.14.!M141/Tabl.14.!$D141*100 -> 3.836668895 | N141: =Tabl.14.!N141/Tabl.14.!$D141*100 -> 0.2500427964
B142: Niechlów | D142: 100 | E142: =Tabl.14.!E142/Tabl.14.!$D142*100 -> 2.049438649 | F142: =Tabl.14.!F142/Tabl.14.!$D142*100 -> 1.716838165 | G142: =Tabl.14.!G142/Tabl.14.!$D142*100 -> 0.1964418277 | H142: =Tabl.14.!H142/Tabl.14.!$D142*100 -> 11.66094499 | I142: =Tabl.14.!I142/Tabl.14.!$D142*100 -> 38.85114888 | J142: =Tabl.14.!J142/Tabl.14.!$D142*100 -> 0.3796669328 | K142: =Tabl.14.!K142/Tabl.14.!$D142*100 -> 22.34177973 | L142: =Tabl.14.!L142/Tabl.14.!$D142*100 -> 6.066588979 | M142: =Tabl.14.!M142/Tabl.14.!$D142*100 -> 3.720880807 | N142: =Tabl.14.!N142/Tabl.14.!$D142*100 -> 0.5243061853
B143: POWIAT LEGNICKI | D143: 100 | E143: =Tabl.14.!E143/Tabl.14.!$D143*100 -> 2.935172037 | F143: =Tabl.14.!F143/Tabl.14.!$D143*100 -> 2.74844505 | G143: =Tabl.14.!G143/Tabl.14.!$D143*100 -> 0.4480062535 | H143: =Tabl.14.!H143/Tabl.14.!$D143*100 -> 12.56784216 | I143: =Tabl.14.!I143/Tabl.14.!$D143*100 -> 34.79444226 | J143: =Tabl.14.!J143/Tabl.14.!$D143*100 -> 0.6093888632 | K143: =Tabl.14.!K143/Tabl.14.!$D143*100 -> 15.5761182 | L143: =Tabl.14.!L143/Tabl.14.!$D143*100 -> 11.82759286 | M143: =Tabl.14.!M143/Tabl.14.!$D143*100 -> 6.21154548 | N143: =Tabl.14.!N143/Tabl.14.!$D143*100 -> 1.651854757
B144: Gminy miejskie:
B145: Urban gminas:
B146: Chojnów | D146: 100 | E146: =Tabl.14.!E146/Tabl.14.!$D146*100 -> 0.3284870747 | F146: =Tabl.14.!F146/Tabl.14.!$D146*100 -> 0.3142752363 | G146: =Tabl.14.!G146/Tabl.14.!$D146*100 -> 0.4346374228 | H146: =Tabl.14.!H146/Tabl.14.!$D146*100 -> 9.425876586 | I146: =Tabl.14.!I146/Tabl.14.!$D146*100 -> 40.43246446 | J146: =Tabl.14.!J146/Tabl.14.!$D146*100 -> 0.7046512608 | K146: =Tabl.14.!K146/Tabl.14.!$D146*100 -> 16.64636786 | L146: =Tabl.14.!L146/Tabl.14.!$D146*100 -> 12.78113151 | M146: =Tabl.14.!M146/Tabl.14.!$D146*100 -> 10.85296224 | N146: =Tabl.14.!N146/Tabl.14.!$D146*100 -> 0.5652490827
B147: Gminy miejsko-wiejskie:
B148: Urban-rural gminas:
B149: Prochowice | D149: 100 | E149: =Tabl.14.!E149/Tabl.14.!$D149*100 -> 2.394735765 | F149: =Tabl.14.!F149/Tabl.14.!$D149*100 -> 3.903943122 | G149: =Tabl.14.!G149/Tabl.14.!$D149*100 -> 0.757514679 | H149: =Tabl.14.!H149/Tabl.14.!$D149*100 -> 12.92339748 | I149: =Tabl.14.!I149/Tabl.14.!$D149*100 -> 36.15025251 | J149: =Tabl.14.!J149/Tabl.14.!$D149*100 -> 0.9595767243 | K149: =Tabl.14.!K149/Tabl.14.!$D149*100 -> 16.10379956 | L149: =Tabl.14.!L149/Tabl.14.!$D149*100 -> 13.59361216 | M149: =Tabl.14.!M149/Tabl.14.!$D149*100 -> 6.74099926 | N149: =Tabl.14.!N149/Tabl.14.!$D149*100 -> 1.443423904
B150: Gminy wiejskie:
B151: Rural gminas:
B152: Chojnów | D152: 100 | E152: =Tabl.14.!E152/Tabl.14.!$D152*100 -> 1.143670722 | F152: =Tabl.14.!F152/Tabl.14.!$D152*100 -> 5.307895656 | G152: =Tabl.14.!G152/Tabl.14.!$D152*100 -> 0.2223660693 | H152: =Tabl.14.!H152/Tabl.14.!$D152*100 -> 13.54526701 | I152: =Tabl.14.!I152/Tabl.14.!$D152*100 -> 32.36135615 | J152: =Tabl.14.!J152/Tabl.14.!$D152*100 -> 0.5833311097 | K152: =Tabl.14.!K152/Tabl.14.!$D152*100 -> 19.08594072 | L152: =Tabl.14.!L152/Tabl.14.!$D152*100 -> 6.024792589 | M152: =Tabl.14.!M152/Tabl.14.!$D152*100 -> 3.426877688 | N152: =Tabl.14.!N152/Tabl.14.!$D152*100 -> 1.265137412
B153: Krotoszyce | D153: 100 | E153: =Tabl.14.!E153/Tabl.14.!$D153*100 -> 4.695853059 | F153: =Tabl.14.!F153/Tabl.14.!$D153*100 -> 4.362164778 | G153: =Tabl.14.!G153/Tabl.14.!$D153*100 -> 0.2855365897 | H153: =Tabl.14.!H153/Tabl.14.!$D153*100 -> 15.27673214 | I153: =Tabl.14.!I153/Tabl.14.!$D153*100 -> 38.48126722 | J153: =Tabl.14.!J153/Tabl.14.!$D153*100 -> 0.4226479984 | K153: =Tabl.14.!K153/Tabl.14.!$D153*100 -> 12.64728603 | L153: =Tabl.14.!L153/Tabl.14.!$D153*100 -> 7.122541444 | M153: =Tabl.14.!M153/Tabl.14.!$D153*100 -> 3.214721691 | N153: =Tabl.14.!N153/Tabl.14.!$D153*100 -> 0.6808308371
B154: Kunice | D154: 100 | E154: =Tabl.14.!E154/Tabl.14.!$D154*100 -> 5.418754841 | F154: =Tabl.14.!F154/Tabl.14.!$D154*100 -> 0.355768708 | G154: =Tabl.14.!G154/Tabl.14.!$D154*100 -> 0.1745997862 | H154: =Tabl.14.!H154/Tabl.14.!$D154*100 -> 12.8118236 | I154: =Tabl.14.!I154/Tabl.14.!$D154*100 -> 40.96576706 | J154: =Tabl.14.!J154/Tabl.14.!$D154*100 -> 0.3800135071 | K154: =Tabl.14.!K154/Tabl.14.!$D154*100 -> 9.678200573 | L154: =Tabl.14.!L154/Tabl.14.!$D154*100 -> 14.70467253 | M154: =Tabl.14.!M154/Tabl.14.!$D154*100 -> 5.799260688 | N154: =Tabl.14.!N154/Tabl.14.!$D154*100 -> 2.242111473
B155: Legnickie Pole | D155: 100 | E155: =Tabl.14.!E155/Tabl.14.!$D155*100 -> 8.406563229 | F155: =Tabl.14.!F155/Tabl.14.!$D155*100 -> 6.307795348 | G155: =Tabl.14.!G155/Tabl.14.!$D155*100 -> 0.8597957355 | H155: =Tabl.14.!H155/Tabl.14.!$D155*100 -> 15.34596093 | I155: =Tabl.14.!I155/Tabl.14.!$D155*100 -> 24.83555429 | J155: =Tabl.14.!J155/Tabl.14.!$D155*100 -> 0.54376605 | K155: =Tabl.14.!K155/Tabl.14.!$D155*100 -> 11.72309862 | L155: =Tabl.14.!L155/Tabl.14.!$D155*100 -> 14.49614688 | M155: =Tabl.14.!M155/Tabl.14.!$D155*100 -> 5.896181177 | N155: =Tabl.14.!N155/Tabl.14.!$D155*100 -> 5.873343819
B156: Miłkowice | D156: 100 | E156: =Tabl.14.!E156/Tabl.14.!$D156*100 -> 2.805354702 | F156: =Tabl.14.!F156/Tabl.14.!$D156*100 -> 2.178585727 | G156: =Tabl.14.!G156/Tabl.14.!$D156*100 -> 0.6340843471 | H156: =Tabl.14.!H156/Tabl.14.!$D156*100 -> 11.74558646 | I156: =Tabl.14.!I156/Tabl.14.!$D156*100 -> 28.72237717 | J156: =Tabl.14.!J156/Tabl.14.!$D156*100 -> 0.6752933519 | K156: =Tabl.14.!K156/Tabl.14.!$D156*100 -> 17.376525 | L156: =Tabl.14.!L156/Tabl.14.!$D156*100 -> 6.212267354 | M156: =Tabl.14.!M156/Tabl.14.!$D156*100 -> 4.85529496 | N156: =Tabl.14.!N156/Tabl.14.!$D156*100 -> 0.7245401022
B157: Ruja | D157: 100 | E157: =Tabl.14.!E157/Tabl.14.!$D157*100 -> 0.7401821893 | F157: =Tabl.14.!F157/Tabl.14.!$D157*100 -> 0.1081197545 | G157: =Tabl.14.!G157/Tabl.14.!$D157*100 -> 0.02495298305 | H157: =Tabl.14.!H157/Tabl.14.!$D157*100 -> 13.92986373 | I157: =Tabl.14.!I157/Tabl.14.!$D157*100 -> 28.70885943 | J157: =Tabl.14.!J157/Tabl.14.!$D157*100 -> 0.2497447908 | K157: =Tabl.14.!K157/Tabl.14.!$D157*100 -> 22.24574276 | L157: =Tabl.14.!L157/Tabl.14.!$D157*100 -> 24.93988161 | M157: =Tabl.14.!M157/Tabl.14.!$D157*100 -> 1.315278758 | N157: =Tabl.14.!N157/Tabl.14.!$D157*100 -> 0.4213253324
B158: POWIAT LUBIŃSKI | D158: 100 | E158: =Tabl.14.!E158/Tabl.14.!$D158*100 -> 12.03397528 | F158: =Tabl.14.!F158/Tabl.14.!$D158*100 -> 2.241168329 | G158: =Tabl.14.!G158/Tabl.14.!$D158*100 -> 0.1885807935 | H158: =Tabl.14.!H158/Tabl.14.!$D158*100 -> 8.599715267 | I158: =Tabl.14.!I158/Tabl.14.!$D158*100 -> 37.0336394 | J158: =Tabl.14.!J158/Tabl.14.!$D158*100 -> 0.7111937587 | K158: =Tabl.14.!K158/Tabl.14.!$D158*100 -> 11.10351958 | L158: =Tabl.14.!L158/Tabl.14.!$D158*100 -> 11.35621392 | M158: =Tabl.14.!M158/Tabl.14.!$D158*100 -> 5.830793214 | N158: =Tabl.14.!N158/Tabl.14.!$D158*100 -> 2.726824828
B159: Gminy miejskie:
B160: Urban gminas:
B161: Lubin | D161: 100 | E161: =Tabl.14.!E161/Tabl.14.!$D161*100 -> 12.66876396 | F161: =Tabl.14.!F161/Tabl.14.!$D161*100 -> 2.417569441 | G161: =Tabl.14.!G161/Tabl.14.!$D161*100 -> 0.1301621238 | H161: =Tabl.14.!H161/Tabl.14.!$D161*100 -> 7.157941824 | I161: =Tabl.14.!I161/Tabl.14.!$D161*100 -> 41.14489258 | J161: =Tabl.14.!J161/Tabl.14.!$D161*100 -> 0.6173512949 | K161: =Tabl.14.!K161/Tabl.14.!$D161*100 -> 11.37354761 | L161: =Tabl.14.!L161/Tabl.14.!$D161*100 -> 9.507795997 | M161: =Tabl.14.!M161/Tabl.14.!$D161*100 -> 5.230914064 | N161: =Tabl.14.!N161/Tabl.14.!$D161*100 -> 2.25913679
B162: Gminy miejsko-wiejskie:
B163: Urban-rural gminas:
B164: Ścinawa | D164: 100 | E164: =Tabl.14.!E164/Tabl.14.!$D164*100 -> 2.881243104 | F164: =Tabl.14.!F164/Tabl.14.!$D164*100 -> 1.441645107 | G164: =Tabl.14.!G164/Tabl.14.!$D164*100 -> 0.5545002097 | H164: =Tabl.14.!H164/Tabl.14.!$D164*100 -> 12.04492727 | I164: =Tabl.14.!I164/Tabl.14.!$D164*100 -> 29.7585983 | J164: =Tabl.14.!J164/Tabl.14.!$D164*100 -> 0.6208593603 | K164: =Tabl.14.!K164/Tabl.14.!$D164*100 -> 17.59600394 | L164: =Tabl.14.!L164/Tabl.14.!$D164*100 -> 9.261820028 | M164: =Tabl.14.!M164/Tabl.14.!$D164*100 -> 6.930462274 | N164: =Tabl.14.!N164/Tabl.14.!$D164*100 -> 8.275755859
B165: Gminy wiejskie:
B166: Rural gminas:
B167: Lubin | D167: 100 | E167: =Tabl.14.!E167/Tabl.14.!$D167*100 -> 11.49323752 | F167: =Tabl.14.!F167/Tabl.14.!$D167*100 -> 2.818029162 | G167: =Tabl.14.!G167/Tabl.14.!$D167*100 -> 0.2748145986 | H167: =Tabl.14.!H167/Tabl.14.!$D167*100 -> 13.32451259 | I167: =Tabl.14.!I167/Tabl.14.!$D167*100 -> 28.10232554 | J167: =Tabl.14.!J167/Tabl.14.!$D167*100 -> 0.2927578886 | K167: =Tabl.14.!K167/Tabl.14.!$D167*100 -> 8.34592259 | L167: =Tabl.14.!L167/Tabl.14.!$D167*100 -> 17.84008151 | M167: =Tabl.14.!M167/Tabl.14.!$D167*100 -> 6.291167753 | N167: =Tabl.14.!N167/Tabl.14.!$D167*100 -> 2.174410852
B168: Rudna | D168: 100 | E168: =Tabl.14.!E168/Tabl.14.!$D168*100 -> 15.61916905 | F168: =Tabl.14.!F168/Tabl.14.!$D168*100 -> 0.969505207 | G168: =Tabl.14.!G168/Tabl.14.!$D168*100 -> 0.1688031876 | H168: =Tabl.14.!H168/Tabl.14.!$D168*100 -> 8.894054259 | I168: =Tabl.14.!I168/Tabl.14.!$D168*100 -> 28.30148151 | J168: =Tabl.14.!J168/Tabl.14.!$D168*100 -> 1.922180366 | K168: =Tabl.14.!K168/Tabl.14.!$D168*100 -> 8.146554676 | L168: =Tabl.14.!L168/Tabl.14.!$D168*100 -> 16.06761164 | M168: =Tabl.14.!M168/Tabl.14.!$D168*100 -> 8.185314225 | N168: =Tabl.14.!N168/Tabl.14.!$D168*100 -> 2.234598041
B169: POWIAT POLKOWICKI | D169: 100 | E169: =Tabl.14.!E169/Tabl.14.!$D169*100 -> 6.463818528 | F169: =Tabl.14.!F169/Tabl.14.!$D169*100 -> 5.135222675 | G169: =Tabl.14.!G169/Tabl.14.!$D169*100 -> 0.4588028887 | H169: =Tabl.14.!H169/Tabl.14.!$D169*100 -> 11.9238813 | I169: =Tabl.14.!I169/Tabl.14.!$D169*100 -> 28.63301438 | J169: =Tabl.14.!J169/Tabl.14.!$D169*100 -> 2.129810684 | K169: =Tabl.14.!K169/Tabl.14.!$D169*100 -> 9.44300918 | L169: =Tabl.14.!L169/Tabl.14.!$D169*100 -> 8.468851947 | M169: =Tabl.14.!M169/Tabl.14.!$D169*100 -> 5.023142584 | N169: =Tabl.14.!N169/Tabl.14.!$D169*100 -> 3.435940643
B170: Gminy miejsko-wiejskie:
B171: Urban-rural gminas:
B172: Chocianów | D172: 100 | E172: =Tabl.14.!E172/Tabl.14.!$D172*100 -> 1.551079891 | F172: =Tabl.14.!F172/Tabl.14.!$D172*100 -> 4.738790935 | G172: =Tabl.14.!G172/Tabl.14.!$D172*100 -> 0.5786906969 | H172: =Tabl.14.!H172/Tabl.14.!$D172*100 -> 10.6528212 | I172: =Tabl.14.!I172/Tabl.14.!$D172*100 -> 38.07706113 | J172: =Tabl.14.!J172/Tabl.14.!$D172*100 -> 0.5874713081 | K172: =Tabl.14.!K172/Tabl.14.!$D172*100 -> 16.6806341 | L172: =Tabl.14.!L172/Tabl.14.!$D172*100 -> 3.541452044 | M172: =Tabl.14.!M172/Tabl.14.!$D172*100 -> 3.422648799 | N172: =Tabl.14.!N172/Tabl.14.!$D172*100 -> 1.18457112
B173: Polkowice | D173: 100 | E173: =Tabl.14.!E173/Tabl.14.!$D173*100 -> 6.382015001 | F173: =Tabl.14.!F173/Tabl.14.!$D173*100 -> 6.787002721 | G173: =Tabl.14.!G173/Tabl.14.!$D173*100 -> 0.4660124588 | H173: =Tabl.14.!H173/Tabl.14.!$D173*100 -> 11.72989087 | I173: =Tabl.14.!I173/Tabl.14.!$D173*100 -> 24.01553811 | J173: =Tabl.14.!J173/Tabl.14.!$D173*100 -> 3.078971167 | K173: =Tabl.14.!K173/Tabl.14.!$D173*100 -> 6.386043814 | L173: =Tabl.14.!L173/Tabl.14.!$D173*100 -> 8.179902657 | M173: =Tabl.14.!M173/Tabl.14.!$D173*100 -> 5.076490282 | N173: =Tabl.14.!N173/Tabl.14.!$D173*100 -> 4.615482759
B174: Przemków | D174: 100 | E174: =Tabl.14.!E174/Tabl.14.!$D174*100 -> 0.1883638776 | F174: =Tabl.14.!F174/Tabl.14.!$D174*100 -> 3.345166545 | G174: =Tabl.14.!G174/Tabl.14.!$D174*100 -> 0.1506448905 | H174: =Tabl.14.!H174/Tabl.14.!$D174*100 -> 13.83896028 | I174: =Tabl.14.!I174/Tabl.14.!$D174*100 -> 34.31078196 | J174: =Tabl.14.!J174/Tabl.14.!$D174*100 -> 0.5851756906 | K174: =Tabl.14.!K174/Tabl.14.!$D174*100 -> 22.44389226 | L174: =Tabl.14.!L174/Tabl.14.!$D174*100 -> 8.905295597 | M174: =Tabl.14.!M174/Tabl.14.!$D174*100 -> 4.258590296 | N174: =Tabl.14.!N174/Tabl.14.!$D174*100 -> 0.5384210538
B175: Gminy wiejskie:
B176: Rural gminas:
B177: Gaworzyce | D177: 100 | E177: =Tabl.14.!E177/Tabl.14.!$D177*100 -> 18.17976192 | F177: =Tabl.14.!F177/Tabl.14.!$D177*100 -> 0.7207101213 | G177: =Tabl.14.!G177/Tabl.14.!$D177*100 -> 0.1731000093 | H177: =Tabl.14.!H177/Tabl.14.!$D177*100 -> 10.22472766 | I177: =Tabl.14.!I177/Tabl.14.!$D177*100 -> 22.58612302 | J177: =Tabl.14.!J177/Tabl.14.!$D177*100 -> 0.3466250246 | K177: =Tabl.14.!K177/Tabl.14.!$D177*100 -> 11.28641349 | L177: =Tabl.14.!L177/Tabl.14.!$D177*100 -> 23.62272506 | M177: =Tabl.14.!M177/Tabl.14.!$D177*100 -> 7.218648097 | N177: =Tabl.14.!N177/Tabl.14.!$D177*100 -> 1.872843621
B178: Grębocice | D178: 100 | E178: =Tabl.14.!E178/Tabl.14.!$D178*100 -> 6.23294636 | F178: =Tabl.14.!F178/Tabl.14.!$D178*100 -> 1.340172508 | G178: =Tabl.14.!G178/Tabl.14.!$D178*100 -> 0.2505432412 | H178: =Tabl.14.!H178/Tabl.14.!$D178*100 -> 14.9071519 | I178: =Tabl.14.!I178/Tabl.14.!$D178*100 -> 42.61301338 | J178: =Tabl.14.!J178/Tabl.14.!$D178*100 -> 0.9256560936 | K178: =Tabl.14.!K178/Tabl.14.!$D178*100 -> 9.558188103 | L178: =Tabl.14.!L178/Tabl.14.!$D178*100 -> 4.264957341 | M178: =Tabl.14.!M178/Tabl.14.!$D178*100 -> 7.438107701 | N178: =Tabl.14.!N178/Tabl.14.!$D178*100 -> 3.210432171
B179: Radwanice | D179: 100 | E179: =Tabl.14.!E179/Tabl.14.!$D179*100 -> 13.11794528 | F179: =Tabl.14.!F179/Tabl.14.!$D179*100 -> 0.3895822243 | G179: =Tabl.14.!G179/Tabl.14.!$D179*100 -> 1.016089221 | H179: =Tabl.14.!H179/Tabl.14.!$D179*100 -> 11.46600378 | I179: =Tabl.14.!I179/Tabl.14.!$D179*100 -> 37.17640244 | J179: =Tabl.14.!J179/Tabl.14.!$D179*100 -> 0.3361787681 | K179: =Tabl.14.!K179/Tabl.14.!$D179*100 -> 11.07565911 | L179: =Tabl.14.!L179/Tabl.14.!$D179*100 -> 12.60697861 | M179: =Tabl.14.!M179/Tabl.14.!$D179*100 -> 3.075268572 | N179: =Tabl.14.!N179/Tabl.14.!$D179*100 -> 0.5766621221
B180: PODREGION WAŁBRZYSKI | D180: 100 | E180: =Tabl.14.!E180/Tabl.14.!$D180*100 -> 10.3741133 | F180: =Tabl.14.!F180/Tabl.14.!$D180*100 -> 6.316222688 | G180: =Tabl.14.!G180/Tabl.14.!$D180*100 -> 0.4883457829 | H180: =Tabl.14.!H180/Tabl.14.!$D180*100 -> 11.39258933 | I180: =Tabl.14.!I180/Tabl.14.!$D180*100 -> 29.9411494 | J180: =Tabl.14.!J180/Tabl.14.!$D180*100 -> 0.8027543224 | K180: =Tabl.14.!K180/Tabl.14.!$D180*100 -> 15.91441894 | L180: =Tabl.14.!L180/Tabl.14.!$D180*100 -> 10.65153925 | M180: =Tabl.14.!M180/Tabl.14.!$D180*100 -> 4.531389659 | N180: =Tabl.14.!N180/Tabl.14.!$D180*100 -> 3.095635269
B181: SUBREGION
B182: POWIAT DZIERŻONIOWSKI | D182: 100 | E182: =Tabl.14.!E182/Tabl.14.!$D182*100 -> 16.39603701 | F182: =Tabl.14.!F182/Tabl.14.!$D182*100 -> 9.992103483 | G182: =Tabl.14.!G182/Tabl.14.!$D182*100 -> 0.1886839693 | H182: =Tabl.14.!H182/Tabl.14.!$D182*100 -> 10.55575129 | I182: =Tabl.14.!I182/Tabl.14.!$D182*100 -> 25.04356275 | J182: =Tabl.14.!J182/Tabl.14.!$D182*100 -> 0.6201552835 | K182: =Tabl.14.!K182/Tabl.14.!$D182*100 -> 16.31480531 | L182: =Tabl.14.!L182/Tabl.14.!$D182*100 -> 8.902171199 | M182: =Tabl.14.!M182/Tabl.14.!$D182*100 -> 3.951632097 | N182: =Tabl.14.!N182/Tabl.14.!$D182*100 -> 2.741651726
B183: Gminy miejskie:
B184: Urban gminas:
B185: Bielawa | D185: 100 | E185: =Tabl.14.!E185/Tabl.14.!$D185*100 -> 20.7979298 | F185: =Tabl.14.!F185/Tabl.14.!$D185*100 -> 15.23304484 | G185: =Tabl.14.!G185/Tabl.14.!$D185*100 -> 0.1483456076 | H185: =Tabl.14.!H185/Tabl.14.!$D185*100 -> 6.884831458 | I185: =Tabl.14.!I185/Tabl.14.!$D185*100 -> 21.00837035 | J185: =Tabl.14.!J185/Tabl.14.!$D185*100 -> 0.4748858775 | K185: =Tabl.14.!K185/Tabl.14.!$D185*100 -> 13.52705495 | L185: =Tabl.14.!L185/Tabl.14.!$D185*100 -> 11.89720065 | M185: =Tabl.14.!M185/Tabl.14.!$D185*100 -> 2.249263683 | N185: =Tabl.14.!N185/Tabl.14.!$D185*100 -> 3.221531522
B186: Dzierżoniów | D186: 100 | E186: =Tabl.14.!E186/Tabl.14.!$D186*100 -> 13.86354266 | F186: =Tabl.14.!F186/Tabl.14.!$D186*100 -> 7.313757457 | G186: =Tabl.14.!G186/Tabl.14.!$D186*100 -> 0.1310178663 | H186: =Tabl.14.!H186/Tabl.14.!$D186*100 -> 11.00129524 | I186: =Tabl.14.!I186/Tabl.14.!$D186*100 -> 26.63054738 | J186: =Tabl.14.!J186/Tabl.14.!$D186*100 -> 0.9159216056 | K186: =Tabl.14.!K186/Tabl.14.!$D186*100 -> 19.1006829 | L186: =Tabl.14.!L186/Tabl.14.!$D186*100 -> 6.299484369 | M186: =Tabl.14.!M186/Tabl.14.!$D186*100 -> 5.186267842 | N186: =Tabl.14.!N186/Tabl.14.!$D186*100 -> 3.831063957
B187: Pieszyce | D187: 100 | E187: =Tabl.14.!E187/Tabl.14.!$D187*100 -> 13.91079942 | F187: =Tabl.14.!F187/Tabl.14.!$D187*100 -> 3.93913118 | G187: =Tabl.14.!G187/Tabl.14.!$D187*100 -> 0.613373708 | H187: =Tabl.14.!H187/Tabl.14.!$D187*100 -> 14.05236349 | I187: =Tabl.14.!I187/Tabl.14.!$D187*100 -> 23.07999063 | J187: =Tabl.14.!J187/Tabl.14.!$D187*100 -> 0.5467486372 | K187: =Tabl.14.!K187/Tabl.14.!$D187*100 -> 21.17064702 | L187: =Tabl.14.!L187/Tabl.14.!$D187*100 -> 9.400795206 | M187: =Tabl.14.!M187/Tabl.14.!$D187*100 -> 7.151386045 | N187: =Tabl.14.!N187/Tabl.14.!$D187*100 -> 1.612779953
B188: Piława Górna | D188: 100 | E188: =Tabl.14.!E188/Tabl.14.!$D188*100 -> 8.508148296 | F188: =Tabl.14.!F188/Tabl.14.!$D188*100 -> 12.6871755 | G188: =Tabl.14.!G188/Tabl.14.!$D188*100 -> 0.06500847793 | H188: =Tabl.14.!H188/Tabl.14.!$D188*100 -> 14.27883908 | I188: =Tabl.14.!I188/Tabl.14.!$D188*100 -> 25.34975857 | J188: =Tabl.14.!J188/Tabl.14.!$D188*100 -> 0.5786024289 | K188: =Tabl.14.!K188/Tabl.14.!$D188*100 -> 17.65951964 | L188: =Tabl.14.!L188/Tabl.14.!$D188*100 -> 12.51215382 | M188: =Tabl.14.!M188/Tabl.14.!$D188*100 -> 2.173637379 | N188: =Tabl.14.!N188/Tabl.14.!$D188*100 -> 2.754325218
